Workbook

Sheet BUPA CARE PRODUCTS
AB1: Franja Fronteriza Norte | AC1: Asegurados totales | AD1: =COUNTA(C14:C16) -> 1 | AG1: =IF(OR(C11="Cancún",C11=AB1,C12="Si"),0.16,0.16)*IF(D8="",1,"Error") -> 0.16
B2: SEGURO DE GASTOS MEDICOS MAYORES: PRODUCTOS BUPA CARE -- MÉXICO | AB2: Aguascalientes | AC2: adultos | AD2: =COUNTIF(C14:C16,">17") -> 1
AB3: Baja California Norte
B4: Cotización para: | C4: Juan Vidal | AB4: Baja California Sur | AC4: RPF
AB5: Campeche | AC5: Anual | AD5: 0 | AE5: 1
AB6: Cancún | AC6: Semestral | AD6: 0.045 | AE6: 2
AB7: Coahuila | AC7: Trimestral | AD7: 0.075 | AE7: 4
AB8: Colima | AC8: Mensual | AD8: 0.09 | AE8: 12
AB9: Chiapas | AD9: =VLOOKUP($C$17,$AC$5:$AE$8,2,FALSE) -> 0.09 | AE9: =VLOOKUP($C$17,$AC$5:$AE$8,3,FALSE) -> 12
AB10: Chihuahua
B11: Estado | C11: Edo. Mexico (solo área metropolitana) | E11: =VLOOKUP(C11,'Fórmulas Cotización'!AV3:AX39,2,FALSE) -> Zona 1 | G11: OTROS DEPENDIENTES | J11: COBERTURAS ADICIONALES | AB11: Distrito Federal
B12: IVA Franja fronteriza? | C12: No | AB12: Durango
G13: ID | H13: Edad | J13: Trasplante de órganos | L13: No Contratada | AB13: Guanajuato
B14: Edad Titular | C14: 54 | G14: 1 | J14: Complicaciones del embarazo | L14: No Contratada | AB14: Guerrero (solo Acapulco y Zihuatanejo)
B15: Edad Cónyuge | G15: 2 | J15: Padecimientos Congénitos | L15: No Contratada | AB15: Guerrero (excepto Acapulco y Zihuatanejo)
B16: No. de dependientes | G16: 3 | AB16: Hidalgo
B17: Forma de pago | C17: Mensual | G17: 4 | J17: COBERTURAS ADICIONALES | AB17: Jalisco
G18: 5 | J18: USAMED (625) | L18: =IF(C14<>0,625,0)+IF(C15<>0,625,0) -> 625 | AB18: Edo. Mexico (solo área metropolitana)
P19: Prima fraccionada | AB19: Edo. Mexico (excepto área metropolitana)
B20: Producto | C20: Deducible (dentro/fuera país) | E20: Titular | F20: Cónyuge | G20: Dependientes | H20: Otros dependientes | I20: Cob. Adicionales | J20: Tarifa Total | K20: Derecho Póliza | L20: RPF +USAMED | M20: Prima neta | N20: IVA | O20: Prima Anual | P20: 1er. Recibo | Q20: Recibos Subsecuentes | AB20: Michoacán
B21: Diamond | C21: 1000 | D21: 2000 | E21: =TRANSPOSE('Fórmulas Cotización'!P6:T7) -> 489937.5 | F21: 0 | G21: =TRANSPOSE('Fórmulas Cotización'!P13:T13) -> 0 | H21: ='Fórmulas Cotización'!P39 -> 0 | I21: =(IF($L$13="Contratada",'Fórmulas Cotización'!$F$25,0)+IF($L$14="Contratada",'Fórmulas Cotización'!$E$25,0)+IF($L$15="Contratada",'Fórmulas Cotización'!$G$25,0)) -> 0 | J21: =SUM(E21:I21) -> 489937.5 | K21: 937.5 | L21: =IF($AD$9=0,$L$18,((J21+IF($C$14<>0,$L$18,0))*$AD$9)+$L$18) -> 44775.625 | M21: =J21+K21+L21 -> 535650.625 | N21: =M21*$AG$1 -> 85704.1 | O21: =M21+N21 -> 621354.725 | P21: =(((J21 + (IF($C$14<>0,$L$18,0)))/$AE$9)*(1+$AD$9)+K21)*(1+$AG$1) -> 52776.43542 | Q21: =IF($C$17="Anual",0,(((J21+(IF($C$14<>0,$L$18,0)))/$AE$9)*(1+$AD$9))*(1+$AG$1)) -> 51688.93542 | AB21: Morelos
C22: 2000 | D22: 3000 | E22: 348525 | F22: 0 | G22: 0 | H22: ='Fórmulas Cotización'!Q39 -> 0 | I22: =(IF($L$13="Contratada",'Fórmulas Cotización'!$F$25,0)+IF($L$14="Contratada",'Fórmulas Cotización'!$E$25,0)+IF($L$15="Contratada",'Fórmulas Cotización'!$G$25,0)) -> 0 | J22: =SUM(E22:I22) -> 348525 | K22: 937.5 | L22: =IF($AD$9=0,$L$18,((J22+IF($C$14<>0,$L$18,0))*$AD$9)+$L$18) -> 32048.5 | M22: =J22+K22+L22 -> 381511 | N22: =M22*$AG$1 -> 61041.76 | O22: =M22+N22 -> 442552.76 | P22: =(((J22 + (IF($C$14<>0,$L$18,0)))/$AE$9)*(1+$AD$9)+K22)*(1+$AG$1) -> 37876.27167 | Q22: =IF($C$17="Anual",0,(((J22+(IF($C$14<>0,$L$18,0)))/$AE$9)*(1+$AD$9))*(1+$AG$1)) -> 36788.77167 | AB22: Nayarit
C23: 5000 | D23: 5000 | E23: 261250 | F23: 0 | G23: 0 | H23: ='Fórmulas Cotización'!R39 -> 0 | I23: =(IF($L$13="Contratada",'Fórmulas Cotización'!$F$25,0)+IF($L$14="Contratada",'Fórmulas Cotización'!$E$25,0)+IF($L$15="Contratada",'Fórmulas Cotización'!$G$25,0)) -> 0 | J23: 261250 | K23: 937.5 | L23: 24193.75 | M23: =J23+K23+L23 -> 286381.25 | N23: =M23*$AG$1 -> 45821 | O23: =M23+N23 -> 332202.25 | P23: 28680.39583 | Q23: 27592.89583 | AB23: Nuevo León
C24: 10000 | D24: 10000 | E24: 198837.5 | F24: 0 | G24: 0 | H24: ='Fórmulas Cotización'!S39 -> 0 | I24: =(IF($L$13="Contratada",'Fórmulas Cotización'!$F$25,0)+IF($L$14="Contratada",'Fórmulas Cotización'!$E$25,0)+IF($L$15="Contratada",'Fórmulas Cotización'!$G$25,0)) -> 0 | J24: 198837.5 | K24: 937.5 | L24: 18576.625 | M24: =J24+K24+L24 -> 218351.625 | N24: =M24*$AG$1 -> 34936.26 | O24: =M24+N24 -> 253287.885 | P24: 22104.19875 | Q24: 21016.69875 | AB24: Oaxaca
C25: 20000 | D25: 20000 | E25: 156950 | F25: 0 | G25: 0 | H25: ='Fórmulas Cotización'!T39 -> 0 | I25: =(IF($L$13="Contratada",'Fórmulas Cotización'!$F$25,0)+IF($L$14="Contratada",'Fórmulas Cotización'!$E$25,0)+IF($L$15="Contratada",'Fórmulas Cotización'!$G$25,0)) -> 0 | J25: 156950 | K25: 937.5 | L25: 14806.75 | M25: =J25+K25+L25 -> 172694.25 | N25: =M25*$AG$1 -> 27631.08 | O25: =M25+N25 -> 200325.33 | P25: 17690.6525 | Q25: 16603.1525 | AB25: Puebla
AB26: Querétaro
P27: Prima fraccionada | AB27: Quintana Roo
C28: Deducible (dentro/fuera país) | E28: Titular | F28: Cónyuge | G28: Dependientes | H28: Otros dependientes | I28: Cob. Adicionales | J28: Tarifa Total | K28: Derecho Póliza | L28: RPF +USAMED | M28: Prima neta | N28: IVA | O28: Prima Anual | P28: 1er. Recibo | Q28: Recibos Subsecuentes | AB28: San Luis Potosí
B29: Complete | C29: 1000 | D29: 2000 | E29: =TRANSPOSE('Fórmulas Cotización'!J6:N7) -> 441750 | F29: 0 | G29: =TRANSPOSE('Fórmulas Cotización'!J13:N13) -> 0 | H29: ='Fórmulas Cotización'!J39 -> 0 | I29: =(IF($L$13="Contratada",'Fórmulas Cotización'!$F$25,0)+IF($L$14="Contratada",'Fórmulas Cotización'!$E$25,0)+IF($L$15="Contratada",'Fórmulas Cotización'!$G$25,0)) -> 0 | J29: =SUM(E29:I29) -> 441750 | K29: 937.5 | L29: =IF($AD$9=0,$L$18,((J29+IF($C$14<>0,$L$18,0))*$AD$9)+$L$18) -> 40438.75 | M29: =J29+K29+L29 -> 483126.25 | N29: =M29*$AG$1 -> 77300.2 | O29: =M29+N29 -> 560426.45 | P29: =(((J29 + (IF($C$14<>0,$L$18,0)))/$AE$9)*(1+$AD$9)+K29)*(1+$AG$1) -> 47699.07917 | Q29: =IF($C$17="Anual",0,(((J29+(IF($C$14<>0,$L$18,0)))/$AE$9)*(1+$AD$9))*(1+$AG$1)) -> 46611.57917 | AB29: Sinaloa
C30: 2000 | D30: 3000 | E30: 325150 | F30: 0 | G30: 0 | H30: ='Fórmulas Cotización'!K39 -> 0 | I30: =(IF($L$13="Contratada",'Fórmulas Cotización'!$F$25,0)+IF($L$14="Contratada",'Fórmulas Cotización'!$E$25,0)+IF($L$15="Contratada",'Fórmulas Cotización'!$G$25,0)) -> 0 | J30: =SUM(E30:I30) -> 325150 | K30: 937.5 | L30: =IF($AD$9=0,$L$18,((J30+IF($C$14<>0,$L$18,0))*$AD$9)+$L$18) -> 29944.75 | M30: =J30+K30+L30 -> 356032.25 | N30: =M30*$AG$1 -> 56965.16 | O30: =M30+N30 -> 412997.41 | P30: =(((J30 + (IF($C$14<>0,$L$18,0)))/$AE$9)*(1+$AD$9)+K30)*(1+$AG$1) -> 35413.32583 | Q30: =IF($C$17="Anual",0,(((J30+(IF($C$14<>0,$L$18,0)))/$AE$9)*(1+$AD$9))*(1+$AG$1)) -> 34325.82583 | AB30: Sonora
C31: 5000 | D31: 5000 | E31: 242250 | F31: 0 | G31: 0 | H31: ='Fórmulas Cotización'!L39 -> 0 | I31: =(IF($L$13="Contratada",'Fórmulas Cotización'!$F$25,0)+IF($L$14="Contratada",'Fórmulas Cotización'!$E$25,0)+IF($L$15="Contratada",'Fórmulas Cotización'!$G$25,0)) -> 0 | J31: 242250 | K31: 937.5 | L31: 22483.75 | M31: =J31+K31+L31 -> 265671.25 | N31: =M31*$AG$1 -> 42507.4 | O31: =M31+N31 -> 308178.65 | P31: 26678.42917 | Q31: 25590.92917 | AB31: Tabasco
C32: 10000 | D32: 10000 | E32: 186275 | F32: 0 | G32: 0 | H32: ='Fórmulas Cotización'!M39 -> 0 | I32: =(IF($L$13="Contratada",'Fórmulas Cotización'!$F$25,0)+IF($L$14="Contratada",'Fórmulas Cotización'!$E$25,0)+IF($L$15="Contratada",'Fórmulas Cotización'!$G$25,0)) -> 0 | J32: 186275 | K32: 937.5 | L32: 17446 | M32: =J32+K32+L32 -> 204658.5 | N32: =M32*$AG$1 -> 32745.36 | O32: =M32+N32 -> 237403.86 | P32: 20780.53 | Q32: 19693.03 | AB32: Tamaulipas
C33: 20000 | D33: 20000 | E33: 143012.5 | F33: 0 | G33: 0 | H33: ='Fórmulas Cotización'!N39 -> 0 | I33: =(IF($L$13="Contratada",'Fórmulas Cotización'!$F$25,0)+IF($L$14="Contratada",'Fórmulas Cotización'!$E$25,0)+IF($L$15="Contratada",'Fórmulas Cotización'!$G$25,0)) -> 0 | J33: 143012.5 | K33: 937.5 | L33: 13552.375 | M33: =J33+K33+L33 -> 157502.375 | N33: =M33*$AG$1 -> 25200.38 | O33: =M33+N33 -> 182702.755 | P33: 16222.10458 | Q33: 15134.60458 | AB33: Tlaxcala
AB34: Veracruz
P35: Prima fraccionada | AB35: Yucatán
C36: Deducible (dentro/fuera país) | E36: Titular | F36: Cónyuge | G36: Dependientes | H36: Otros dependientes | I36: Cob. Adicionales | J36: Tarifa Total | K36: Derecho Póliza | L36: RPF +USAMED | M36: Prima neta | N36: IVA | O36: Prima Anual | P36: 1er. Recibo | Q36: Recibos Subsecuentes | AB36: Zacatecas
B37: Advantage | C37: 1000 | D37: 2000 | E37: =TRANSPOSE('Fórmulas Cotización'!D6:H7) -> 350612.5 | F37: 0 | G37: =TRANSPOSE('Fórmulas Cotización'!D13:H13) -> 0 | H37: ='Fórmulas Cotización'!D39 -> 0 | I37: =(IF($L$13="Contratada",'Fórmulas Cotización'!$F$25,0)+IF($L$14="Contratada",'Fórmulas Cotización'!$E$25,0)+IF($L$15="Contratada",'Fórmulas Cotización'!$G$25,0)) -> 0 | J37: =SUM(E37:I37) -> 350612.5 | K37: 937.5 | L37: =IF($AD$9=0,$L$18,((J37+IF($C$14<>0,$L$18,0))*$AD$9)+$L$18) -> 32236.375 | M37: =J37+K37+L37 -> 383786.375 | N37: =M37*$AG$1 -> 61405.82 | O37: =M37+N37 -> 445192.195 | P37: =(((J37 + (IF($C$14<>0,$L$18,0)))/$AE$9)*(1+$AD$9)+K37)*(1+$AG$1) -> 38096.22458 | Q37: =IF($C$17="Anual",0,(((J37+(IF($C$14<>0,$L$18,0)))/$AE$9)*(1+$AD$9))*(1+$AG$1)) -> 37008.72458
C38: 2000 | D38: 3000 | E38: 267412.5 | F38: 0 | G38: 0 | H38: ='Fórmulas Cotización'!E39 -> 0 | I38: =(IF($L$13="Contratada",'Fórmulas Cotización'!$F$25,0)+IF($L$14="Contratada",'Fórmulas Cotización'!$E$25,0)+IF($L$15="Contratada",'Fórmulas Cotización'!$G$25,0)) -> 0 | J38: =SUM(E38:I38) -> 267412.5 | K38: 937.5 | L38: =IF($AD$9=0,$L$18,((J38+IF($C$14<>0,$L$18,0))*$AD$9)+$L$18) -> 24748.375 | M38: =J38+K38+L38 -> 293098.375 | N38: =M38*$AG$1 -> 46895.74 | O38: =M38+N38 -> 339994.115 | P38: =(((J38 + (IF($C$14<>0,$L$18,0)))/$AE$9)*(1+$AD$9)+K38)*(1+$AG$1) -> 29329.71792 | Q38: =IF($C$17="Anual",0,(((J38+(IF($C$14<>0,$L$18,0)))/$AE$9)*(1+$AD$9))*(1+$AG$1)) -> 28242.21792
C39: 5000 | D39: 5000 | E39: 210762.5 | F39: 0 | G39: 0 | H39: ='Fórmulas Cotización'!F39 -> 0 | I39: =(IF($L$13="Contratada",'Fórmulas Cotización'!$F$25,0)+IF($L$14="Contratada",'Fórmulas Cotización'!$E$25,0)+IF($L$15="Contratada",'Fórmulas Cotización'!$G$25,0)) -> 0 | J39: 210762.5 | K39: 937.5 | L39: 19649.875 | M39: =J39+K39+L39 -> 231349.875 | N39: =M39*$AG$1 -> 37015.98 | O39: =M39+N39 -> 268365.855 | P39: 23360.69625 | Q39: 22273.19625
C40: 10000 | D40: 10000 | E40: 210762.5 | F40: 0 | G40: 0 | H40: ='Fórmulas Cotización'!G39 -> 0 | I40: =(IF($L$13="Contratada",'Fórmulas Cotización'!$F$25,0)+IF($L$14="Contratada",'Fórmulas Cotización'!$E$25,0)+IF($L$15="Contratada",'Fórmulas Cotización'!$G$25,0)) -> 0 | J40: 210762.5 | K40: 937.5 | L40: 19649.875 | M40: =J40+K40+L40 -> 231349.875 | N40: =M40*$AG$1 -> 37015.98 | O40: =M40+N40 -> 268365.855 | P40: 23360.69625 | Q40: 22273.19625
C41: 20000 | D41: 20000 | E41: 122300 | F41: 0 | G41: 0 | H41: ='Fórmulas Cotización'!H39 -> 0 | I41: =(IF($L$13="Contratada",'Fórmulas Cotización'!$F$25,0)+IF($L$14="Contratada",'Fórmulas Cotización'!$E$25,0)+IF($L$15="Contratada",'Fórmulas Cotización'!$G$25,0)) -> 0 | J41: 122300 | K41: 937.5 | L41: 11688.25 | M41: =J41+K41+L41 -> 134925.75 | N41: =M41*$AG$1 -> 21588.12 | O41: =M41+N41 -> 156513.87 | P41: 14039.6975 | Q41: 12952.1975
P43: Prima fraccionada
C44: Deducible (dentro/fuera país) | E44: Titular | F44: Cónyuge | G44: Dependientes | H44: Otros dependientes | I44: Cob. Adicionales | J44: Tarifa Total | K44: Derecho Póliza | L44: RPF +USAMED | M44: Prima neta | N44: IVA | O44: Prima Anual | P44: 1er. Recibo | Q44: Recibos Subsecuentes
B45: Secure | C45: 1000 | D45: 2000 | E45: =TRANSPOSE('Fórmulas Cotización'!AB6:AF7) -> 251637.5 | F45: 0 | G45: =TRANSPOSE('Fórmulas Cotización'!AB13:AF13) -> 0 | H45: ='Fórmulas Cotización'!AB39 -> 0 | I45: =(IF($L$13="Contratada",'Fórmulas Cotización'!$F$26,0)+IF($L$14="Contratada",'Fórmulas Cotización'!$E$26,0)+IF($L$15="Contratada",'Fórmulas Cotización'!$G$26,0)) -> 0 | J45: =SUM(E45:I45) -> 251637.5 | K45: 937.5 | L45: =IF($AD$9=0,$L$18,((J45+IF($C$14<>0,$L$18,0))*$AD$9)+$L$18) -> 23328.625 | M45: =J45+K45+L45 -> 275903.625 | N45: =M45*$AG$1 -> 44144.58 | O45: =M45+N45 -> 320048.205 | P45: =(((J45 + (IF($C$14<>0,$L$18,0)))/$AE$9)*(1+$AD$9)+K45)*(1+$AG$1) -> 27667.55875 | Q45: =IF($C$17="Anual",0,(((J45+(IF($C$14<>0,$L$18,0)))/$AE$9)*(1+$AD$9))*(1+$AG$1)) -> 26580.05875
C46: 2000 | D46: 3000 | E46: 202087.5 | F46: 0 | G46: 0 | H46: ='Fórmulas Cotización'!AC39 -> 0 | I46: =(IF($L$13="Contratada",'Fórmulas Cotización'!$F$26,0)+IF($L$14="Contratada",'Fórmulas Cotización'!$E$26,0)+IF($L$15="Contratada",'Fórmulas Cotización'!$G$26,0)) -> 0 | J46: =SUM(E46:I46) -> 202087.5 | K46: 937.5 | L46: =IF($AD$9=0,$L$18,((J46+IF($C$14<>0,$L$18,0))*$AD$9)+$L$18) -> 18869.125 | M46: =J46+K46+L46 -> 221894.125 | N46: =M46*$AG$1 -> 35503.06 | O46: =M46+N46 -> 257397.185 | P46: =(((J46 + (IF($C$14<>0,$L$18,0)))/$AE$9)*(1+$AD$9)+K46)*(1+$AG$1) -> 22446.64042 | Q46: =IF($C$17="Anual",0,(((J46+(IF($C$14<>0,$L$18,0)))/$AE$9)*(1+$AD$9))*(1+$AG$1)) -> 21359.14042
C47: 5000 | D47: 5000 | E47: 131350 | F47: 0 | G47: 0 | H47: ='Fórmulas Cotización'!AD39 -> 0 | I47: =(IF($L$13="Contratada",'Fórmulas Cotización'!$F$26,0)+IF($L$14="Contratada",'Fórmulas Cotización'!$E$26,0)+IF($L$15="Contratada",'Fórmulas Cotización'!$G$26,0)) -> 0 | J47: 131350 | K47: 937.5 | L47: 12502.75 | M47: =J47+K47+L47 -> 144790.25 | N47: =M47*$AG$1 -> 23166.44 | O47: =M47+N47 -> 167956.69 | P47: 14993.26583 | Q47: 13905.76583
C48: 10000 | D48: 10000 | E48: 109600 | F48: 0 | G48: 0 | H48: ='Fórmulas Cotización'!AE39 -> 0 | I48: =(IF($L$13="Contratada",'Fórmulas Cotización'!$F$26,0)+IF($L$14="Contratada",'Fórmulas Cotización'!$E$26,0)+IF($L$15="Contratada",'Fórmulas Cotización'!$G$26,0)) -> 0 | J48: 109600 | K48: 937.5 | L48: 10545.25 | M48: =J48+K48+L48 -> 121082.75 | N48: =M48*$AG$1 -> 19373.24 | O48: =M48+N48 -> 140455.99 | P48: 12701.54083 | Q48: 11614.04083
C49: 20000 | D49: 20000 | E49: 91125 | F49: 0 | G49: 0 | H49: ='Fórmulas Cotización'!AF39 -> 0 | I49: =(IF($L$13="Contratada",'Fórmulas Cotización'!$F$26,0)+IF($L$14="Contratada",'Fórmulas Cotización'!$E$26,0)+IF($L$15="Contratada",'Fórmulas Cotización'!$G$26,0)) -> 0 | J49: 91125 | K49: 937.5 | L49: 8882.5 | M49: =J49+K49+L49 -> 100945 | N49: =M49*$AG$1 -> 16151.2 | O49: =M49+N49 -> 117096.2 | P49: 10754.89167 | Q49: 9667.391667
P51: Prima fraccionada
C52: Deducible (dentro/fuera país) | E52: Titular | F52: Cónyuge | G52: Dependientes | H52: Otros dependientes | I52: Cob. Adicionales | J52: Tarifa Total | K52: Derecho Póliza | L52: RPF +USAMED | M52: Prima neta | N52: IVA | O52: Prima Anual | P52: 1er. Recibo | Q52: Recibos Subsecuentes
B53: Essential | C53: 1000 | D53: 2000 | E53: =TRANSPOSE('Fórmulas Cotización'!V6:Z7) -> 193025 | F53: 0 | G53: =TRANSPOSE('Fórmulas Cotización'!V13:Z13) -> 0 | H53: ='Fórmulas Cotización'!V39 -> 0 | I53: =(IF($L$13="Contratada",'Fórmulas Cotización'!$F$27,0)+IF($L$14="Contratada",'Fórmulas Cotización'!$E$27,0)+IF($L$15="Contratada",'Fórmulas Cotización'!$G$27,0)) -> 0 | J53: =SUM(E53:I53) -> 193025 | K53: 937.5 | L53: =IF($AD$9=0,$L$18,((J53+IF($C$14<>0,$L$18,0))*$AD$9)+$L$18) -> 18053.5 | M53: =J53+K53+L53 -> 212016 | N53: =M53*$AG$1 -> 33922.56 | O53: =M53+N53 -> 245938.56 | P53: =(((J53 + (IF($C$14<>0,$L$18,0)))/$AE$9)*(1+$AD$9)+K53)*(1+$AG$1) -> 21491.755 | Q53: =IF($C$17="Anual",0,(((J53+(IF($C$14<>0,$L$18,0)))/$AE$9)*(1+$AD$9))*(1+$AG$1)) -> 20404.255
C54: 2000 | D54: 3000 | E54: 153112.5 | F54: 0 | G54: 0 | H54: ='Fórmulas Cotización'!W39 -> 0 | I54: =(IF($L$13="Contratada",'Fórmulas Cotización'!$F$27,0)+IF($L$14="Contratada",'Fórmulas Cotización'!$E$27,0)+IF($L$15="Contratada",'Fórmulas Cotización'!$G$27,0)) -> 0 | J54: =SUM(E54:I54) -> 153112.5 | K54: 937.5 | L54: =IF($AD$9=0,$L$18,((J54+IF($C$14<>0,$L$18,0))*$AD$9)+$L$18) -> 14461.375 | M54: =J54+K54+L54 -> 168511.375 | N54: =M54*$AG$1 -> 26961.82 | O54: =M54+N54 -> 195473.195 | P54: =(((J54 + (IF($C$14<>0,$L$18,0)))/$AE$9)*(1+$AD$9)+K54)*(1+$AG$1) -> 17286.30792 | Q54: =IF($C$17="Anual",0,(((J54+(IF($C$14<>0,$L$18,0)))/$AE$9)*(1+$AD$9))*(1+$AG$1)) -> 16198.80792
C55: 5000 | D55: 5000 | E55: 100050 | F55: 0 | G55: 0 | H55: ='Fórmulas Cotización'!X39 -> 0 | I55: =(IF($L$13="Contratada",'Fórmulas Cotización'!$F$27,0)+IF($L$14="Contratada",'Fórmulas Cotización'!$E$27,0)+IF($L$15="Contratada",'Fórmulas Cotización'!$G$27,0)) -> 0 | J55: =SUM(E55:I55) -> 100050 | K55: 937.5 | L55: =IF($AD$9=0,$L$18,((J55+IF($C$14<>0,$L$18,0))*$AD$9)+$L$18) -> 9685.75 | M55: =J55+K55+L55 -> 110673.25 | N55: =M55*$AG$1 -> 17707.72 | O55: =M55+N55 -> 128380.97 | P55: =(((J55 + (IF($C$14<>0,$L$18,0)))/$AE$9)*(1+$AD$9)+K55)*(1+$AG$1) -> 11695.28917 | Q55: 10607.78917
C56: 10000 | D56: 10000 | E56: 83550 | F56: 0 | G56: 0 | H56: ='Fórmulas Cotización'!Y39 -> 0 | I56: =(IF($L$13="Contratada",'Fórmulas Cotización'!$F$27,0)+IF($L$14="Contratada",'Fórmulas Cotización'!$E$27,0)+IF($L$15="Contratada",'Fórmulas Cotización'!$G$27,0)) -> 0 | J56: =SUM(E56:I56) -> 83550 | K56: 937.5 | L56: 8200.75 | M56: =J56+K56+L56 -> 92688.25 | N56: =M56*$AG$1 -> 14830.12 | O56: =M56+N56 -> 107518.37 | P56: 9956.739167 | Q56: 8869.239167
C57: 20000 | D57: 20000 | E57: 68500 | F57: 0 | G57: 0 | H57: ='Fórmulas Cotización'!Z39 -> 0 | I57: =(IF($L$13="Contratada",'Fórmulas Cotización'!$F$27,0)+IF($L$14="Contratada",'Fórmulas Cotización'!$E$27,0)+IF($L$15="Contratada",'Fórmulas Cotización'!$G$27,0)) -> 0 | J57: =SUM(E57:I57) -> 68500 | K57: 937.5 | L57: 6846.25 | M57: =J57+K57+L57 -> 76283.75 | N57: =M57*$AG$1 -> 12205.4 | O57: =M57+N57 -> 88489.15 | P57: 8370.970833 | Q57: 7283.470833
C60: Deducible (dentro/fuera país) | E60: Titular | F60: Cónyuge | G60: Dependientes | H60: Otros dependientes | I60: Cob. Adicionales | J60: Tarifa Total | K60: Derecho Póliza | L60: RPF +USAMED | M60: Prima neta | N60: IVA | O60: Prima Anual | P60: 1er. Recibo | Q60: Recibos Subsecuentes
B61: Total | C61: 1000 | D61: 2000 | E61: =TRANSPOSE('Fórmulas Cotización'!AH6:AL7) -> 206750 | F61: 0 | G61: =TRANSPOSE('Fórmulas Cotización'!AH13:AL13) -> 0 | H61: ='Fórmulas Cotización'!AH39 -> 0 | I61: =(IF($L$13="Contratada",'Fórmulas Cotización'!$F$28,0)+IF($L$14="Contratada",'Fórmulas Cotización'!$E$28,0)+IF($L$15="Contratada",'Fórmulas Cotización'!$G$28,0)) -> 0 | J61: =SUM(E61:I61) -> 206750 | K61: 937.5 | L61: =IF($AD$9=0,$L$18,((J61+IF($C$14<>0,$L$18,0))*$AD$9)+$L$18) -> 19288.75 | M61: =J61+K61+L61 -> 226976.25 | N61: =M61*$AG$1 -> 36316.2 | O61: =M61+N61 -> 263292.45 | P61: =(((J61 + (IF($C$14<>0,$L$18,0)))/$AE$9)*(1+$AD$9)+K61)*(1+$AG$1) -> 22937.9125 | Q61: =IF($C$17="Anual",0,(((J61+(IF($C$14<>0,$L$18,0)))/$AE$9)*(1+$AD$9))*(1+$AG$1)) -> 21850.4125
C62: 2000 | D62: 3000 | E62: 163925 | F62: 0 | G62: 0 | H62: ='Fórmulas Cotización'!AI39 -> 0 | I62: =(IF($L$13="Contratada",'Fórmulas Cotización'!$F$28,0)+IF($L$14="Contratada",'Fórmulas Cotización'!$E$28,0)+IF($L$15="Contratada",'Fórmulas Cotización'!$G$28,0)) -> 0 | J62: =SUM(E62:I62) -> 163925 | K62: 937.5 | L62: =IF($AD$9=0,$L$18,((J62+IF($C$14<>0,$L$18,0))*$AD$9)+$L$18) -> 15434.5 | M62: =J62+K62+L62 -> 180297 | N62: =M62*$AG$1 -> 28847.52 | O62: =M62+N62 -> 209144.52 | P62: =(((J62 + (IF($C$14<>0,$L$18,0)))/$AE$9)*(1+$AD$9)+K62)*(1+$AG$1) -> 18425.585 | Q62: =IF($C$17="Anual",0,(((J62+(IF($C$14<>0,$L$18,0)))/$AE$9)*(1+$AD$9))*(1+$AG$1)) -> 17338.085
C63: 5000 | D63: 5000 | E63: 107125 | F63: 0 | G63: 0 | H63: ='Fórmulas Cotización'!AJ39 -> 0 | I63: =(IF($L$13="Contratada",'Fórmulas Cotización'!$F$28,0)+IF($L$14="Contratada",'Fórmulas Cotización'!$E$28,0)+IF($L$15="Contratada",'Fórmulas Cotización'!$G$28,0)) -> 0 | J63: 107125 | K63: 937.5 | L63: 10322.5 | M63: =J63+K63+L63 -> 118385 | N63: =M63*$AG$1 -> 18941.6 | O63: =M63+N63 -> 137326.6 | P63: 12440.75833 | Q63: 11353.25833
C64: 10000 | D64: 10000 | E64: 89375 | F64: 0 | G64: 0 | H64: ='Fórmulas Cotización'!AK39 -> 0 | I64: =(IF($L$13="Contratada",'Fórmulas Cotización'!$F$28,0)+IF($L$14="Contratada",'Fórmulas Cotización'!$E$28,0)+IF($L$15="Contratada",'Fórmulas Cotización'!$G$28,0)) -> 0 | J64: 89375 | K64: 937.5 | L64: 8725 | M64: =J64+K64+L64 -> 99037.5 | N64: =M64*$AG$1 -> 15846 | O64: =M64+N64 -> 114883.5 | P64: 10570.5 | Q64: 9483
C65: 20000 | D65: 20000 | E65: 73487.5 | F65: 0 | G65: 0 | H65: ='Fórmulas Cotización'!AL39 -> 0 | I65: =(IF($L$13="Contratada",'Fórmulas Cotización'!$F$28,0)+IF($L$14="Contratada",'Fórmulas Cotización'!$E$28,0)+IF($L$15="Contratada",'Fórmulas Cotización'!$G$28,0)) -> 0 | J65: 73487.5 | K65: 937.5 | L65: 7295.125 | M65: =J65+K65+L65 -> 81720.125 | N65: =M65*$AG$1 -> 13075.22 | O65: =M65+N65 -> 94795.345 | P65: 8896.487083 | Q65: 7808.987083
B67: Los costos presentados son anuales y en pesos mexicanos.
B68: Se aplicarán los recargos por pagos fraccionados de acuerdo a la forma de pago elegida.
B69: Esta cotización tiene una vigencia de 30 días naturales a partir de la fecha de elaboración.
B70: La cobertura de Transplante de órganos está incluida en los planes Diamond y Complete como cobertura básica.
B71: La cobertura de Complicaciones de Maternidad no se ofrece para los planes Diamond y Complete en opciones de deducible 1,000/2,000 y 2,000/3,000
B73: La presente cotización es de carácter informativo, no constituye una solicitud de seguro y/o el monto de la prima definitiva y/o las condiciones de la misma y/o una oferta de aseguramiento en términos del artículo 5to de la Ley Sobre el Contrato de Seguro. La emisión de la póliza así como posibles cambios en la tarifa están sujetos a valoración del riesgo de acuerdo con las políticas de Suscripción de Bupa México y es susceptible de modificaciones, por lo que Bupa podrá aceptar o negar el aseguramiento del riesgo propuesto. Este cotizador es válido del 1 de Marzo del 2023 al 31 de Diciembre del 2023.
B81: Actualización - 2023

Sheet Versión
A1: Última actualización: 28 de abril
A2: Actualización porcentaje RPF

Sheet Fórmulas Cotización (hidden)
D2: Advantage | J2: Complete | P2: Diamond | V2: Essential | AB2: Secure | AH2: Total | AV2: Estado | AW2: Zona | AX2: Num | AY2: % Descuento | AZ2: % Secure
A3: Variables | D3: 2 | E3: =D3+1 -> 3 | F3: =E3+1 -> 4 | G3: =F3+1 -> 5 | H3: =G3+1 -> 6 | J3: 2 | K3: =J3+1 -> 3 | L3: =K3+1 -> 4 | M3: =L3+1 -> 5 | N3: =M3+1 -> 6 | P3: 2 | Q3: =P3+1 -> 3 | R3: =Q3+1 -> 4 | S3: =R3+1 -> 5 | T3: =S3+1 -> 6 | V3: 2 | W3: =V3+1 -> 3 | X3: =W3+1 -> 4 | Y3: =X3+1 -> 5 | Z3: =Y3+1 -> 6 | AB3: 2 | AC3: =AB3+1 -> 3 | AD3: =AC3+1 -> 4 | AE3: =AD3+1 -> 5 | AF3: =AE3+1 -> 6 | AH3: 2 | AI3: =AH3+1 -> 3 | AJ3: =AI3+1 -> 4 | AK3: =AJ3+1 -> 5 | AL3: =AK3+1 -> 6 | AV3: Franja Fronteriza Norte | AW3: Zona 1 | AX3: =MID(AW3,6,1) -> 1 | AY3: 0 | AZ3: =IF(TODAY()<DATE(2013,7,1),5%,0) -> 0
A4: Estado | B4: ='BUPA CARE PRODUCTS'!C11 -> Edo. Mexico (solo área metropolitana) | C4: =(VALUE(VLOOKUP(B4,$AV$3:$AX$39,3,FALSE))-1)*7 -> 0 | AV4: Aguascalientes | AW4: Zona 5 | AX4: 5 | AY4: 0 | AZ4: =IF(TODAY()<DATE(2013,7,1),5%,0) -> 0
A5: Franja fronteriza | B5: ='BUPA CARE PRODUCTS'!C12 -> No | D5: 1000 | E5: 2000 | F5: 5000 | G5: 10000 | H5: 20000 | J5: 1000 | K5: 2000 | L5: 5000 | M5: 10000 | N5: 20000 | P5: 1000 | Q5: 2000 | R5: 5000 | S5: 10000 | T5: 20000 | V5: 1000 | W5: 2000 | X5: 5000 | Y5: 10000 | Z5: 20000 | AB5: 1000 | AC5: 2000 | AD5: 5000 | AE5: 10000 | AF5: 20000 | AH5: 1000 | AI5: 2000 | AJ5: 5000 | AK5: 10000 | AL5: 20000 | AV5: Baja California Norte | AW5: Zona 2 | AX5: 2 | AY5: 0 | AZ5: 0
A6: Edad Titular | B6: ='BUPA CARE PRODUCTS'!C14 -> 54 | C6: =B6 -> 54 | D6: =VLOOKUP($C6,'Tarifas Advantage'!$A$105:$AH$174,'Fórmulas Cotización'!$C$4+'Fórmulas Cotización'!D$3,FALSE)-((VLOOKUP($C6,'Tarifas Advantage'!$A$105:$AH$174,'Fórmulas Cotización'!$C$4+'Fórmulas Cotización'!D$3,FALSE))*(VLOOKUP($B$4,$AV$3:$AY$39,4,0)))+($B$15) -> 350612.5 | E6: =VLOOKUP($C6,'Tarifas Advantage'!$A$105:$AH$174,'Fórmulas Cotización'!$C$4+'Fórmulas Cotización'!E$3,FALSE)-((VLOOKUP($C6,'Tarifas Advantage'!$A$105:$AH$174,'Fórmulas Cotización'!$C$4+'Fórmulas Cotización'!E$3,FALSE))*(VLOOKUP($B$4,$AV$3:$AY$39,4,0)))+($B$15) -> 267412.5 | F6: =VLOOKUP($C6,'Tarifas Advantage'!$A$105:$AH$174,'Fórmulas Cotización'!$C$4+'Fórmulas Cotización'!F$3,FALSE)-((VLOOKUP($C6,'Tarifas Advantage'!$A$105:$AH$174,'Fórmulas Cotización'!$C$4+'Fórmulas Cotización'!F$3,FALSE))*(VLOOKUP($B$4,$AV$3:$AY$39,4,0)))+($B$15) -> 210762.5 | G6: =VLOOKUP($C6,'Tarifas Advantage'!$A$105:$AH$174,'Fórmulas Cotización'!$C$4+'Fórmulas Cotización'!G$3,FALSE)-((VLOOKUP($C6,'Tarifas Advantage'!$A$105:$AH$174,'Fórmulas Cotización'!$C$4+'Fórmulas Cotización'!G$3,FALSE))*(VLOOKUP($B$4,$AV$3:$AY$39,4,0)))+($B$15) -> 210762.5 | H6: =VLOOKUP($C6,'Tarifas Advantage'!$A$105:$AH$174,'Fórmulas Cotización'!$C$4+'Fórmulas Cotización'!H$3,FALSE)-((VLOOKUP($C6,'Tarifas Advantage'!$A$105:$AH$174,'Fórmulas Cotización'!$C$4+'Fórmulas Cotización'!H$3,FALSE))*(VLOOKUP($B$4,$AV$3:$AY$39,4,0)))+($B$15) -> 122300 | J6: =VLOOKUP($C6,'Tarifas Complete'!$A$105:$AH$174,'Fórmulas Cotización'!$C$4+'Fórmulas Cotización'!J$3,FALSE)-((VLOOKUP($C6,'Tarifas Complete'!$A$105:$AH$174,'Fórmulas Cotización'!$C$4+'Fórmulas Cotización'!J$3,FALSE))*VLOOKUP($B$4,$AV$3:$AY$39,4,0))+($B$15) -> 441750 | K6: =VLOOKUP($C6,'Tarifas Complete'!$A$105:$AH$174,'Fórmulas Cotización'!$C$4+'Fórmulas Cotización'!K$3,FALSE)-((VLOOKUP($C6,'Tarifas Complete'!$A$105:$AH$174,'Fórmulas Cotización'!$C$4+'Fórmulas Cotización'!K$3,FALSE))*VLOOKUP($B$4,$AV$3:$AY$39,4,0))+($B$15) -> 325150 | L6: =VLOOKUP($C6,'Tarifas Complete'!$A$105:$AH$174,'Fórmulas Cotización'!$C$4+'Fórmulas Cotización'!L$3,FALSE)-((VLOOKUP($C6,'Tarifas Complete'!$A$105:$AH$174,'Fórmulas Cotización'!$C$4+'Fórmulas Cotización'!L$3,FALSE))*VLOOKUP($B$4,$AV$3:$AY$39,4,0))+($B$15) -> 242250 | M6: =VLOOKUP($C6,'Tarifas Complete'!$A$105:$AH$174,'Fórmulas Cotización'!$C$4+'Fórmulas Cotización'!M$3,FALSE)-((VLOOKUP($C6,'Tarifas Complete'!$A$105:$AH$174,'Fórmulas Cotización'!$C$4+'Fórmulas Cotización'!M$3,FALSE))*VLOOKUP($B$4,$AV$3:$AY$39,4,0))+($B$15) -> 186275 | N6: =VLOOKUP($C6,'Tarifas Complete'!$A$105:$AH$174,'Fórmulas Cotización'!$C$4+'Fórmulas Cotización'!N$3,FALSE)-((VLOOKUP($C6,'Tarifas Complete'!$A$105:$AH$174,'Fórmulas Cotización'!$C$4+'Fórmulas Cotización'!N$3,FALSE))*VLOOKUP($B$4,$AV$3:$AY$39,4,0))+($B$15) -> 143012.5 | P6: =VLOOKUP($C6,'Tarifas Diamond'!$A$105:$AH$174,'Fórmulas Cotización'!$C$4+'Fórmulas Cotización'!P$3,FALSE)-((VLOOKUP($C6,'Tarifas Diamond'!$A$105:$AH$174,'Fórmulas Cotización'!$C$4+'Fórmulas Cotización'!P$3,FALSE))*VLOOKUP($B$4,$AV$3:$AY$39,4,0))+($B$15) -> 489937.5 | Q6: =VLOOKUP($C6,'Tarifas Diamond'!$A$105:$AH$174,'Fórmulas Cotización'!$C$4+'Fórmulas Cotización'!Q$3,FALSE)-((VLOOKUP($C6,'Tarifas Diamond'!$A$105:$AH$174,'Fórmulas Cotización'!$C$4+'Fórmulas Cotización'!Q$3,FALSE))*VLOOKUP($B$4,$AV$3:$AY$39,4,0))+($B$15) -> 348525 | R6: =VLOOKUP($C6,'Tarifas Diamond'!$A$105:$AH$174,'Fórmulas Cotización'!$C$4+'Fórmulas Cotización'!R$3,FALSE)-((VLOOKUP($C6,'Tarifas Diamond'!$A$105:$AH$174,'Fórmulas Cotización'!$C$4+'Fórmulas Cotización'!R$3,FALSE))*VLOOKUP($B$4,$AV$3:$AY$39,4,0))+($B$15) -> 261250 | S6: =VLOOKUP($C6,'Tarifas Diamond'!$A$105:$AH$174,'Fórmulas Cotización'!$C$4+'Fórmulas Cotización'!S$3,FALSE)-((VLOOKUP($C6,'Tarifas Diamond'!$A$105:$AH$174,'Fórmulas Cotización'!$C$4+'Fórmulas Cotización'!S$3,FALSE))*VLOOKUP($B$4,$AV$3:$AY$39,4,0))+($B$15) -> 198837.5 | T6: =VLOOKUP($C6,'Tarifas Diamond'!$A$105:$AH$174,'Fórmulas Cotización'!$C$4+'Fórmulas Cotización'!T$3,FALSE)-((VLOOKUP($C6,'Tarifas Diamond'!$A$105:$AH$174,'Fórmulas Cotización'!$C$4+'Fórmulas Cotización'!T$3,FALSE))*VLOOKUP($B$4,$AV$3:$AY$39,4,0))+($B$15) -> 156950 | V6: =VLOOKUP($C6,'Tarifas Essential'!$A$105:$AH$174,'Fórmulas Cotización'!$C$4+'Fórmulas Cotización'!V$3,FALSE)-((VLOOKUP($C6,'Tarifas Essential'!$A$105:$AH$174,'Fórmulas Cotización'!$C$4+'Fórmulas Cotización'!V$3,FALSE))*VLOOKUP($B$4,$AV$3:$AY$39,4,0))+($B$15) -> 193025 | W6: =VLOOKUP($C6,'Tarifas Essential'!$A$105:$AH$174,'Fórmulas Cotización'!$C$4+'Fórmulas Cotización'!W$3,FALSE)-((VLOOKUP($C6,'Tarifas Essential'!$A$105:$AH$174,'Fórmulas Cotización'!$C$4+'Fórmulas Cotización'!W$3,FALSE))*VLOOKUP($B$4,$AV$3:$AY$39,4,0))+($B$15) -> 153112.5 | X6: =VLOOKUP($C6,'Tarifas Essential'!$A$105:$AH$174,'Fórmulas Cotización'!$C$4+'Fórmulas Cotización'!X$3,FALSE)-((VLOOKUP($C6,'Tarifas Essential'!$A$105:$AH$174,'Fórmulas Cotización'!$C$4+'Fórmulas Cotización'!X$3,FALSE))*VLOOKUP($B$4,$AV$3:$AY$39,4,0))+($B$15) -> 100050 | Y6: =VLOOKUP($C6,'Tarifas Essential'!$A$105:$AH$174,'Fórmulas Cotización'!$C$4+'Fórmulas Cotización'!Y$3,FALSE)-((VLOOKUP($C6,'Tarifas Essential'!$A$105:$AH$174,'Fórmulas Cotización'!$C$4+'Fórmulas Cotización'!Y$3,FALSE))*VLOOKUP($B$4,$AV$3:$AY$39,4,0))+($B$15) -> 83550 | Z6: =VLOOKUP($C6,'Tarifas Essential'!$A$105:$AH$174,'Fórmulas Cotización'!$C$4+'Fórmulas Cotización'!Z$3,FALSE)-((VLOOKUP($C6,'Tarifas Essential'!$A$105:$AH$174,'Fórmulas Cotización'!$C$4+'Fórmulas Cotización'!Z$3,FALSE))*VLOOKUP($B$4,$AV$3:$AY$39,4,0))+($B$15) -> 68500 | AB6: =VLOOKUP($C6,'Tarifas Secure'!$A$105:$AH$174,'Fórmulas Cotización'!$C$4+'Fórmulas Cotización'!AB$3,FALSE)-((VLOOKUP($C6,'Tarifas Secure'!$A$105:$AH$174,'Fórmulas Cotización'!$C$4+'Fórmulas Cotización'!AB$3,FALSE))*VLOOKUP($B$4,$AV$3:$AZ$39,5,0))+($B$15) -> 251637.5 | AC6: =VLOOKUP($C6,'Tarifas Secure'!$A$105:$AH$174,'Fórmulas Cotización'!$C$4+'Fórmulas Cotización'!AC$3,FALSE)-((VLOOKUP($C6,'Tarifas Secure'!$A$105:$AH$174,'Fórmulas Cotización'!$C$4+'Fórmulas Cotización'!AC$3,FALSE))*VLOOKUP($B$4,$AV$3:$AZ$39,5,0))+($B$15) -> 202087.5 | AD6: =VLOOKUP($C6,'Tarifas Secure'!$A$105:$AH$174,'Fórmulas Cotización'!$C$4+'Fórmulas Cotización'!AD$3,FALSE)-((VLOOKUP($C6,'Tarifas Secure'!$A$105:$AH$174,'Fórmulas Cotización'!$C$4+'Fórmulas Cotización'!AD$3,FALSE))*VLOOKUP($B$4,$AV$3:$AZ$39,5,0))+($B$15) -> 131350 | AE6: =VLOOKUP($C6,'Tarifas Secure'!$A$105:$AH$174,'Fórmulas Cotización'!$C$4+'Fórmulas Cotización'!AE$3,FALSE)-((VLOOKUP($C6,'Tarifas Secure'!$A$105:$AH$174,'Fórmulas Cotización'!$C$4+'Fórmulas Cotización'!AE$3,FALSE))*VLOOKUP($B$4,$AV$3:$AZ$39,5,0))+($B$15) -> 109600 | AF6: =VLOOKUP($C6,'Tarifas Secure'!$A$105:$AH$174,'Fórmulas Cotización'!$C$4+'Fórmulas Cotización'!AF$3,FALSE)-((VLOOKUP($C6,'Tarifas Secure'!$A$105:$AH$174,'Fórmulas Cotización'!$C$4+'Fórmulas Cotización'!AF$3,FALSE))*VLOOKUP($B$4,$AV$3:$AZ$39,5,0))+($B$15) -> 91125 | AH6: =VLOOKUP($C6,'Bupa Total'!$A$105:$AH$174,'Fórmulas Cotización'!$C$4+'Fórmulas Cotización'!AH$3,FALSE)-((VLOOKUP($C6,'Bupa Total'!$A$105:$AH$174,'Fórmulas Cotización'!$C$4+'Fórmulas Cotización'!AH$3,FALSE))*VLOOKUP($B$4,$AV$3:$AY$39,4,0))+($B$15) -> 206750 | AI6: =VLOOKUP($C6,'Bupa Total'!$A$105:$AH$174,'Fórmulas Cotización'!$C$4+'Fórmulas Cotización'!AI$3,FALSE)-((VLOOKUP($C6,'Bupa Total'!$A$105:$AH$174,'Fórmulas Cotización'!$C$4+'Fórmulas Cotización'!AI$3,FALSE))*VLOOKUP($B$4,$AV$3:$AY$39,4,0))+($B$15) -> 163925 | AJ6: =VLOOKUP($C6,'Bupa Total'!$A$105:$AH$174,'Fórmulas Cotización'!$C$4+'Fórmulas Cotización'!AJ$3,FALSE)-((VLOOKUP($C6,'Bupa Total'!$A$105:$AH$174,'Fórmulas Cotización'!$C$4+'Fórmulas Cotización'!AJ$3,FALSE))*VLOOKUP($B$4,$AV$3:$AY$39,4,0))+($B$15) -> 107125 | AK6: =VLOOKUP($C6,'Bupa Total'!$A$105:$AH$174,'Fórmulas Cotización'!$C$4+'Fórmulas Cotización'!AK$3,FALSE)-((VLOOKUP($C6,'Bupa Total'!$A$105:$AH$174,'Fórmulas Cotización'!$C$4+'Fórmulas Cotización'!AK$3,FALSE))*VLOOKUP($B$4,$AV$3:$AY$39,4,0))+($B$15) -> 89375 | AL6: =VLOOKUP($C6,'Bupa Total'!$A$105:$AH$174,'Fórmulas Cotización'!$C$4+'Fórmulas Cotización'!AL$3,FALSE)-((VLOOKUP($C6,'Bupa Total'!$A$105:$AH$174,'Fórmulas Cotización'!$C$4+'Fórmulas Cotización'!AL$3,FALSE))*VLOOKUP($B$4,$AV$3:$AY$39,4,0))+($B$15) -> 73487.5 | AV6: Baja California Sur | AW6: Zona 2 | AX6: 2 | AY6: 0 | AZ6: 0
A7: Edad Cónyuge | B7: =IF('BUPA CARE PRODUCTS'!C15="","",'BUPA CARE PRODUCTS'!C15) ->  | C7: =B7 ->  | D7: =IF(ISERROR(VLOOKUP($C7,'Tarifas Advantage'!$A$105:$AH$174,'Fórmulas Cotización'!$C$4+'Fórmulas Cotización'!D$3,FALSE)),0,VLOOKUP($C7,'Tarifas Advantage'!$A$105:$AH$174,'Fórmulas Cotización'!$C$4+'Fórmulas Cotización'!D$3,FALSE))-(IF(ISERROR(VLOOKUP($C7,'Tarifas Advantage'!$A$105:$AH$174,'Fórmulas Cotización'!$C$4+'Fórmulas Cotización'!D$3,FALSE)),0,VLOOKUP($C7,'Tarifas Advantage'!$A$105:$AH$174,'Fórmulas Cotización'!$C$4+'Fórmulas Cotización'!D$3,FALSE)-625)*(VLOOKUP($B$4,$AV$3:$AY$39,4,0)))+($B$15) -> 0 | E7: =IF(ISERROR(VLOOKUP($C7,'Tarifas Advantage'!$A$105:$AH$174,'Fórmulas Cotización'!$C$4+'Fórmulas Cotización'!E$3,FALSE)),0,VLOOKUP($C7,'Tarifas Advantage'!$A$105:$AH$174,'Fórmulas Cotización'!$C$4+'Fórmulas Cotización'!E$3,FALSE))-(IF(ISERROR(VLOOKUP($C7,'Tarifas Advantage'!$A$105:$AH$174,'Fórmulas Cotización'!$C$4+'Fórmulas Cotización'!E$3,FALSE)),0,VLOOKUP($C7,'Tarifas Advantage'!$A$105:$AH$174,'Fórmulas Cotización'!$C$4+'Fórmulas Cotización'!E$3,FALSE)-625)*(VLOOKUP($B$4,$AV$3:$AY$39,4,0)))+($B$15) -> 0 | F7: =IF(ISERROR(VLOOKUP($C7,'Tarifas Advantage'!$A$105:$AH$174,'Fórmulas Cotización'!$C$4+'Fórmulas Cotización'!F$3,FALSE)),0,VLOOKUP($C7,'Tarifas Advantage'!$A$105:$AH$174,'Fórmulas Cotización'!$C$4+'Fórmulas Cotización'!F$3,FALSE))-(IF(ISERROR(VLOOKUP($C7,'Tarifas Advantage'!$A$105:$AH$174,'Fórmulas Cotización'!$C$4+'Fórmulas Cotización'!F$3,FALSE)),0,VLOOKUP($C7,'Tarifas Advantage'!$A$105:$AH$174,'Fórmulas Cotización'!$C$4+'Fórmulas Cotización'!F$3,FALSE)-625)*(VLOOKUP($B$4,$AV$3:$AY$39,4,0)))+($B$15) -> 0 | G7: =IF(ISERROR(VLOOKUP($C7,'Tarifas Advantage'!$A$105:$AH$174,'Fórmulas Cotización'!$C$4+'Fórmulas Cotización'!G$3,FALSE)),0,VLOOKUP($C7,'Tarifas Advantage'!$A$105:$AH$174,'Fórmulas Cotización'!$C$4+'Fórmulas Cotización'!G$3,FALSE))-(IF(ISERROR(VLOOKUP($C7,'Tarifas Advantage'!$A$105:$AH$174,'Fórmulas Cotización'!$C$4+'Fórmulas Cotización'!G$3,FALSE)),0,VLOOKUP($C7,'Tarifas Advantage'!$A$105:$AH$174,'Fórmulas Cotización'!$C$4+'Fórmulas Cotización'!G$3,FALSE)-625)*(VLOOKUP($B$4,$AV$3:$AY$39,4,0)))+($B$15) -> 0 | H7: =IF(ISERROR(VLOOKUP($C7,'Tarifas Advantage'!$A$105:$AH$174,'Fórmulas Cotización'!$C$4+'Fórmulas Cotización'!H$3,FALSE)),0,VLOOKUP($C7,'Tarifas Advantage'!$A$105:$AH$174,'Fórmulas Cotización'!$C$4+'Fórmulas Cotización'!H$3,FALSE))-(IF(ISERROR(VLOOKUP($C7,'Tarifas Advantage'!$A$105:$AH$174,'Fórmulas Cotización'!$C$4+'Fórmulas Cotización'!H$3,FALSE)),0,VLOOKUP($C7,'Tarifas Advantage'!$A$105:$AH$174,'Fórmulas Cotización'!$C$4+'Fórmulas Cotización'!H$3,FALSE)-625)*(VLOOKUP($B$4,$AV$3:$AY$39,4,0)))+($B$15) -> 0 | J7: =IF(ISERROR(VLOOKUP($C7,'Tarifas Complete'!$A$105:$AH$174,'Fórmulas Cotización'!$C$4+'Fórmulas Cotización'!J$3,FALSE)),0,VLOOKUP($C7,'Tarifas Complete'!$A$105:$AH$174,'Fórmulas Cotización'!$C$4+'Fórmulas Cotización'!J$3,FALSE))-(IF(ISERROR(VLOOKUP($C7,'Tarifas Complete'!$A$105:$AH$174,'Fórmulas Cotización'!$C$4+'Fórmulas Cotización'!J$3,FALSE)),0,VLOOKUP($C7,'Tarifas Complete'!$A$105:$AH$174,'Fórmulas Cotización'!$C$4+'Fórmulas Cotización'!J$3,FALSE)-625)*VLOOKUP($B$4,$AV$3:$AY$39,4,0))+($B$15) -> 0 | K7: =IF(ISERROR(VLOOKUP($C7,'Tarifas Complete'!$A$105:$AH$174,'Fórmulas Cotización'!$C$4+'Fórmulas Cotización'!K$3,FALSE)),0,VLOOKUP($C7,'Tarifas Complete'!$A$105:$AH$174,'Fórmulas Cotización'!$C$4+'Fórmulas Cotización'!K$3,FALSE))-(IF(ISERROR(VLOOKUP($C7,'Tarifas Complete'!$A$105:$AH$174,'Fórmulas Cotización'!$C$4+'Fórmulas Cotización'!K$3,FALSE)),0,VLOOKUP($C7,'Tarifas Complete'!$A$105:$AH$174,'Fórmulas Cotización'!$C$4+'Fórmulas Cotización'!K$3,FALSE)-625)*VLOOKUP($B$4,$AV$3:$AY$39,4,0))+($B$15) -> 0 | L7: =IF(ISERROR(VLOOKUP($C7,'Tarifas Complete'!$A$105:$AH$174,'Fórmulas Cotización'!$C$4+'Fórmulas Cotización'!L$3,FALSE)),0,VLOOKUP($C7,'Tarifas Complete'!$A$105:$AH$174,'Fórmulas Cotización'!$C$4+'Fórmulas Cotización'!L$3,FALSE))-(IF(ISERROR(VLOOKUP($C7,'Tarifas Complete'!$A$105:$AH$174,'Fórmulas Cotización'!$C$4+'Fórmulas Cotización'!L$3,FALSE)),0,VLOOKUP($C7,'Tarifas Complete'!$A$105:$AH$174,'Fórmulas Cotización'!$C$4+'Fórmulas Cotización'!L$3,FALSE)-625)*VLOOKUP($B$4,$AV$3:$AY$39,4,0))+($B$15) -> 0 | M7: =IF(ISERROR(VLOOKUP($C7,'Tarifas Complete'!$A$105:$AH$174,'Fórmulas Cotización'!$C$4+'Fórmulas Cotización'!M$3,FALSE)),0,VLOOKUP($C7,'Tarifas Complete'!$A$105:$AH$174,'Fórmulas Cotización'!$C$4+'Fórmulas Cotización'!M$3,FALSE))-(IF(ISERROR(VLOOKUP($C7,'Tarifas Complete'!$A$105:$AH$174,'Fórmulas Cotización'!$C$4+'Fórmulas Cotización'!M$3,FALSE)),0,VLOOKUP($C7,'Tarifas Complete'!$A$105:$AH$174,'Fórmulas Cotización'!$C$4+'Fórmulas Cotización'!M$3,FALSE)-625)*VLOOKUP($B$4,$AV$3:$AY$39,4,0))+($B$15) -> 0 | N7: =IF(ISERROR(VLOOKUP($C7,'Tarifas Complete'!$A$105:$AH$174,'Fórmulas Cotización'!$C$4+'Fórmulas Cotización'!N$3,FALSE)),0,VLOOKUP($C7,'Tarifas Complete'!$A$105:$AH$174,'Fórmulas Cotización'!$C$4+'Fórmulas Cotización'!N$3,FALSE))-(IF(ISERROR(VLOOKUP($C7,'Tarifas Complete'!$A$105:$AH$174,'Fórmulas Cotización'!$C$4+'Fórmulas Cotización'!N$3,FALSE)),0,VLOOKUP($C7,'Tarifas Complete'!$A$105:$AH$174,'Fórmulas Cotización'!$C$4+'Fórmulas Cotización'!N$3,FALSE)-625)*VLOOKUP($B$4,$AV$3:$AY$39,4,0))+($B$15) -> 0 | P7: =IF(ISERROR(VLOOKUP($C7,'Tarifas Diamond'!$A$105:$AH$174,'Fórmulas Cotización'!$C$4+'Fórmulas Cotización'!P$3,FALSE)),0,VLOOKUP($C7,'Tarifas Diamond'!$A$105:$AH$174,'Fórmulas Cotización'!$C$4+'Fórmulas Cotización'!P$3,FALSE))-(IF(ISERROR(VLOOKUP($C7,'Tarifas Diamond'!$A$105:$AH$174,'Fórmulas Cotización'!$C$4+'Fórmulas Cotización'!P$3,FALSE)),0,VLOOKUP($C7,'Tarifas Diamond'!$A$105:$AH$174,'Fórmulas Cotización'!$C$4+'Fórmulas Cotización'!P$3,FALSE)-625)*VLOOKUP($B$4,$AV$3:$AY$39,4,0))+($B$15) -> 0 | Q7: =IF(ISERROR(VLOOKUP($C7,'Tarifas Diamond'!$A$105:$AH$174,'Fórmulas Cotización'!$C$4+'Fórmulas Cotización'!Q$3,FALSE)),0,VLOOKUP($C7,'Tarifas Diamond'!$A$105:$AH$174,'Fórmulas Cotización'!$C$4+'Fórmulas Cotización'!Q$3,FALSE))-(IF(ISERROR(VLOOKUP($C7,'Tarifas Diamond'!$A$105:$AH$174,'Fórmulas Cotización'!$C$4+'Fórmulas Cotización'!Q$3,FALSE)),0,VLOOKUP($C7,'Tarifas Diamond'!$A$105:$AH$174,'Fórmulas Cotización'!$C$4+'Fórmulas Cotización'!Q$3,FALSE)-625)*VLOOKUP($B$4,$AV$3:$AY$39,4,0))+($B$15) -> 0 | R7: =IF(ISERROR(VLOOKUP($C7,'Tarifas Diamond'!$A$105:$AH$174,'Fórmulas Cotización'!$C$4+'Fórmulas Cotización'!R$3,FALSE)),0,VLOOKUP($C7,'Tarifas Diamond'!$A$105:$AH$174,'Fórmulas Cotización'!$C$4+'Fórmulas Cotización'!R$3,FALSE))-(IF(ISERROR(VLOOKUP($C7,'Tarifas Diamond'!$A$105:$AH$174,'Fórmulas Cotización'!$C$4+'Fórmulas Cotización'!R$3,FALSE)),0,VLOOKUP($C7,'Tarifas Diamond'!$A$105:$AH$174,'Fórmulas Cotización'!$C$4+'Fórmulas Cotización'!R$3,FALSE)-625)*VLOOKUP($B$4,$AV$3:$AY$39,4,0))+($B$15) -> 0 | S7: =IF(ISERROR(VLOOKUP($C7,'Tarifas Diamond'!$A$105:$AH$174,'Fórmulas Cotización'!$C$4+'Fórmulas Cotización'!S$3,FALSE)),0,VLOOKUP($C7,'Tarifas Diamond'!$A$105:$AH$174,'Fórmulas Cotización'!$C$4+'Fórmulas Cotización'!S$3,FALSE))-(IF(ISERROR(VLOOKUP($C7,'Tarifas Diamond'!$A$105:$AH$174,'Fórmulas Cotización'!$C$4+'Fórmulas Cotización'!S$3,FALSE)),0,VLOOKUP($C7,'Tarifas Diamond'!$A$105:$AH$174,'Fórmulas Cotización'!$C$4+'Fórmulas Cotización'!S$3,FALSE)-625)*VLOOKUP($B$4,$AV$3:$AY$39,4,0))+($B$15) -> 0 | T7: =IF(ISERROR(VLOOKUP($C7,'Tarifas Diamond'!$A$105:$AH$174,'Fórmulas Cotización'!$C$4+'Fórmulas Cotización'!T$3,FALSE)),0,VLOOKUP($C7,'Tarifas Diamond'!$A$105:$AH$174,'Fórmulas Cotización'!$C$4+'Fórmulas Cotización'!T$3,FALSE))-(IF(ISERROR(VLOOKUP($C7,'Tarifas Diamond'!$A$105:$AH$174,'Fórmulas Cotización'!$C$4+'Fórmulas Cotización'!T$3,FALSE)),0,VLOOKUP($C7,'Tarifas Diamond'!$A$105:$AH$174,'Fórmulas Cotización'!$C$4+'Fórmulas Cotización'!T$3,FALSE)-625)*VLOOKUP($B$4,$AV$3:$AY$39,4,0))+($B$15) -> 0 | V7: =IF(ISERROR(VLOOKUP($C7,'Tarifas Essential'!$A$105:$AH$174,'Fórmulas Cotización'!$C$4+'Fórmulas Cotización'!V$3,FALSE)),0,VLOOKUP($C7,'Tarifas Essential'!$A$105:$AH$174,'Fórmulas Cotización'!$C$4+'Fórmulas Cotización'!V$3,FALSE))-(IF(ISERROR(VLOOKUP($C7,'Tarifas Essential'!$A$105:$AH$174,'Fórmulas Cotización'!$C$4+'Fórmulas Cotización'!V$3,FALSE)),0,VLOOKUP($C7,'Tarifas Essential'!$A$105:$AH$174,'Fórmulas Cotización'!$C$4+'Fórmulas Cotización'!V$3,FALSE)-625)*VLOOKUP($B$4,$AV$3:$AY$39,4,0))+($B$15) -> 0 | W7: =IF(ISERROR(VLOOKUP($C7,'Tarifas Essential'!$A$105:$AH$174,'Fórmulas Cotización'!$C$4+'Fórmulas Cotización'!W$3,FALSE)),0,VLOOKUP($C7,'Tarifas Essential'!$A$105:$AH$174,'Fórmulas Cotización'!$C$4+'Fórmulas Cotización'!W$3,FALSE))-(IF(ISERROR(VLOOKUP($C7,'Tarifas Essential'!$A$105:$AH$174,'Fórmulas Cotización'!$C$4+'Fórmulas Cotización'!W$3,FALSE)),0,VLOOKUP($C7,'Tarifas Essential'!$A$105:$AH$174,'Fórmulas Cotización'!$C$4+'Fórmulas Cotización'!W$3,FALSE)-625)*VLOOKUP($B$4,$AV$3:$AY$39,4,0))+($B$15) -> 0 | X7: =IF(ISERROR(VLOOKUP($C7,'Tarifas Essential'!$A$105:$AH$174,'Fórmulas Cotización'!$C$4+'Fórmulas Cotización'!X$3,FALSE)),0,VLOOKUP($C7,'Tarifas Essential'!$A$105:$AH$174,'Fórmulas Cotización'!$C$4+'Fórmulas Cotización'!X$3,FALSE))-(IF(ISERROR(VLOOKUP($C7,'Tarifas Essential'!$A$105:$AH$174,'Fórmulas Cotización'!$C$4+'Fórmulas Cotización'!X$3,FALSE)),0,VLOOKUP($C7,'Tarifas Essential'!$A$105:$AH$174,'Fórmulas Cotización'!$C$4+'Fórmulas Cotización'!X$3,FALSE)-625)*VLOOKUP($B$4,$AV$3:$AY$39,4,0))+($B$15) -> 0 | Y7: =IF(ISERROR(VLOOKUP($C7,'Tarifas Essential'!$A$105:$AH$174,'Fórmulas Cotización'!$C$4+'Fórmulas Cotización'!Y$3,FALSE)),0,VLOOKUP($C7,'Tarifas Essential'!$A$105:$AH$174,'Fórmulas Cotización'!$C$4+'Fórmulas Cotización'!Y$3,FALSE))-(IF(ISERROR(VLOOKUP($C7,'Tarifas Essential'!$A$105:$AH$174,'Fórmulas Cotización'!$C$4+'Fórmulas Cotización'!Y$3,FALSE)),0,VLOOKUP($C7,'Tarifas Essential'!$A$105:$AH$174,'Fórmulas Cotización'!$C$4+'Fórmulas Cotización'!Y$3,FALSE)-625)*VLOOKUP($B$4,$AV$3:$AY$39,4,0))+($B$15) -> 0 | Z7: =IF(ISERROR(VLOOKUP($C7,'Tarifas Essential'!$A$105:$AH$174,'Fórmulas Cotización'!$C$4+'Fórmulas Cotización'!Z$3,FALSE)),0,VLOOKUP($C7,'Tarifas Essential'!$A$105:$AH$174,'Fórmulas Cotización'!$C$4+'Fórmulas Cotización'!Z$3,FALSE))-(IF(ISERROR(VLOOKUP($C7,'Tarifas Essential'!$A$105:$AH$174,'Fórmulas Cotización'!$C$4+'Fórmulas Cotización'!Z$3,FALSE)),0,VLOOKUP($C7,'Tarifas Essential'!$A$105:$AH$174,'Fórmulas Cotización'!$C$4+'Fórmulas Cotización'!Z$3,FALSE)-625)*VLOOKUP($B$4,$AV$3:$AY$39,4,0))+($B$15) -> 0 | AB7: =IF(ISERROR(VLOOKUP($C7,'Tarifas Secure'!$A$105:$AH$174,'Fórmulas Cotización'!$C$4+'Fórmulas Cotización'!AB$3,FALSE)),0,VLOOKUP($C7,'Tarifas Secure'!$A$105:$AH$174,'Fórmulas Cotización'!$C$4+'Fórmulas Cotización'!AB$3,FALSE))-(IF(ISERROR(VLOOKUP($C7,'Tarifas Secure'!$A$105:$AH$174,'Fórmulas Cotización'!$C$4+'Fórmulas Cotización'!AB$3,FALSE)),0,VLOOKUP($C7,'Tarifas Secure'!$A$105:$AH$174,'Fórmulas Cotización'!$C$4+'Fórmulas Cotización'!AB$3,FALSE)-625)*VLOOKUP($B$4,$AV$3:$AZ$39,5,0))+($B$15) -> 0 | AC7: =IF(ISERROR(VLOOKUP($C7,'Tarifas Secure'!$A$105:$AH$174,'Fórmulas Cotización'!$C$4+'Fórmulas Cotización'!AC$3,FALSE)),0,VLOOKUP($C7,'Tarifas Secure'!$A$105:$AH$174,'Fórmulas Cotización'!$C$4+'Fórmulas Cotización'!AC$3,FALSE))-(IF(ISERROR(VLOOKUP($C7,'Tarifas Secure'!$A$105:$AH$174,'Fórmulas Cotización'!$C$4+'Fórmulas Cotización'!AC$3,FALSE)),0,VLOOKUP($C7,'Tarifas Secure'!$A$105:$AH$174,'Fórmulas Cotización'!$C$4+'Fórmulas Cotización'!AC$3,FALSE)-625)*VLOOKUP($B$4,$AV$3:$AZ$39,5,0))+($B$15) -> 0 | AD7: =IF(ISERROR(VLOOKUP($C7,'Tarifas Secure'!$A$105:$AH$174,'Fórmulas Cotización'!$C$4+'Fórmulas Cotización'!AD$3,FALSE)),0,VLOOKUP($C7,'Tarifas Secure'!$A$105:$AH$174,'Fórmulas Cotización'!$C$4+'Fórmulas Cotización'!AD$3,FALSE))-(IF(ISERROR(VLOOKUP($C7,'Tarifas Secure'!$A$105:$AH$174,'Fórmulas Cotización'!$C$4+'Fórmulas Cotización'!AD$3,FALSE)),0,VLOOKUP($C7,'Tarifas Secure'!$A$105:$AH$174,'Fórmulas Cotización'!$C$4+'Fórmulas Cotización'!AD$3,FALSE)-625)*VLOOKUP($B$4,$AV$3:$AZ$39,5,0))+($B$15) -> 0 | AE7: =IF(ISERROR(VLOOKUP($C7,'Tarifas Secure'!$A$105:$AH$174,'Fórmulas Cotización'!$C$4+'Fórmulas Cotización'!AE$3,FALSE)),0,VLOOKUP($C7,'Tarifas Secure'!$A$105:$AH$174,'Fórmulas Cotización'!$C$4+'Fórmulas Cotización'!AE$3,FALSE))-(IF(ISERROR(VLOOKUP($C7,'Tarifas Secure'!$A$105:$AH$174,'Fórmulas Cotización'!$C$4+'Fórmulas Cotización'!AE$3,FALSE)),0,VLOOKUP($C7,'Tarifas Secure'!$A$105:$AH$174,'Fórmulas Cotización'!$C$4+'Fórmulas Cotización'!AE$3,FALSE)-625)*VLOOKUP($B$4,$AV$3:$AZ$39,5,0))+($B$15) -> 0 | AF7: =IF(ISERROR(VLOOKUP($C7,'Tarifas Secure'!$A$105:$AH$174,'Fórmulas Cotización'!$C$4+'Fórmulas Cotización'!AF$3,FALSE)),0,VLOOKUP($C7,'Tarifas Secure'!$A$105:$AH$174,'Fórmulas Cotización'!$C$4+'Fórmulas Cotización'!AF$3,FALSE))-(IF(ISERROR(VLOOKUP($C7,'Tarifas Secure'!$A$105:$AH$174,'Fórmulas Cotización'!$C$4+'Fórmulas Cotización'!AF$3,FALSE)),0,VLOOKUP($C7,'Tarifas Secure'!$A$105:$AH$174,'Fórmulas Cotización'!$C$4+'Fórmulas Cotización'!AF$3,FALSE)-625)*VLOOKUP($B$4,$AV$3:$AZ$39,5,0))+($B$15) -> 0 | AH7: =IF(ISERROR(VLOOKUP($C7,'Bupa Total'!$A$105:$AH$174,'Fórmulas Cotización'!$C$4+'Fórmulas Cotización'!AH$3,FALSE)),0,VLOOKUP($C7,'Bupa Total'!$A$105:$AH$174,'Fórmulas Cotización'!$C$4+'Fórmulas Cotización'!AH$3,FALSE))-(IF(ISERROR(VLOOKUP($C7,'Bupa Total'!$A$105:$AH$174,'Fórmulas Cotización'!$C$4+'Fórmulas Cotización'!AH$3,FALSE)),0,VLOOKUP($C7,'Bupa Total'!$A$105:$AH$174,'Fórmulas Cotización'!$C$4+'Fórmulas Cotización'!AH$3,FALSE)-625)*VLOOKUP($B$4,$AV$3:$AY$39,4,0))+($B$15) -> 0 | AI7: =IF(ISERROR(VLOOKUP($C7,'Bupa Total'!$A$105:$AH$174,'Fórmulas Cotización'!$C$4+'Fórmulas Cotización'!AI$3,FALSE)),0,VLOOKUP($C7,'Bupa Total'!$A$105:$AH$174,'Fórmulas Cotización'!$C$4+'Fórmulas Cotización'!AI$3,FALSE))-(IF(ISERROR(VLOOKUP($C7,'Bupa Total'!$A$105:$AH$174,'Fórmulas Cotización'!$C$4+'Fórmulas Cotización'!AI$3,FALSE)),0,VLOOKUP($C7,'Bupa Total'!$A$105:$AH$174,'Fórmulas Cotización'!$C$4+'Fórmulas Cotización'!AI$3,FALSE)-625)*VLOOKUP($B$4,$AV$3:$AY$39,4,0))+($B$15) -> 0 | AJ7: =IF(ISERROR(VLOOKUP($C7,'Bupa Total'!$A$105:$AH$174,'Fórmulas Cotización'!$C$4+'Fórmulas Cotización'!AJ$3,FALSE)),0,VLOOKUP($C7,'Bupa Total'!$A$105:$AH$174,'Fórmulas Cotización'!$C$4+'Fórmulas Cotización'!AJ$3,FALSE))-(IF(ISERROR(VLOOKUP($C7,'Bupa Total'!$A$105:$AH$174,'Fórmulas Cotización'!$C$4+'Fórmulas Cotización'!AJ$3,FALSE)),0,VLOOKUP($C7,'Bupa Total'!$A$105:$AH$174,'Fórmulas Cotización'!$C$4+'Fórmulas Cotización'!AJ$3,FALSE)-625)*VLOOKUP($B$4,$AV$3:$AY$39,4,0))+($B$15) -> 0 | AK7: =IF(ISERROR(VLOOKUP($C7,'Bupa Total'!$A$105:$AH$174,'Fórmulas Cotización'!$C$4+'Fórmulas Cotización'!AK$3,FALSE)),0,VLOOKUP($C7,'Bupa Total'!$A$105:$AH$174,'Fórmulas Cotización'!$C$4+'Fórmulas Cotización'!AK$3,FALSE))-(IF(ISERROR(VLOOKUP($C7,'Bupa Total'!$A$105:$AH$174,'Fórmulas Cotización'!$C$4+'Fórmulas Cotización'!AK$3,FALSE)),0,VLOOKUP($C7,'Bupa Total'!$A$105:$AH$174,'Fórmulas Cotización'!$C$4+'Fórmulas Cotización'!AK$3,FALSE)-625)*VLOOKUP($B$4,$AV$3:$AY$39,4,0))+($B$15) -> 0 | AL7: =IF(ISERROR(VLOOKUP($C7,'Bupa Total'!$A$105:$AH$174,'Fórmulas Cotización'!$C$4+'Fórmulas Cotización'!AL$3,FALSE)),0,VLOOKUP($C7,'Bupa Total'!$A$105:$AH$174,'Fórmulas Cotización'!$C$4+'Fórmulas Cotización'!AL$3,FALSE))-(IF(ISERROR(VLOOKUP($C7,'Bupa Total'!$A$105:$AH$174,'Fórmulas Cotización'!$C$4+'Fórmulas Cotización'!AL$3,FALSE)),0,VLOOKUP($C7,'Bupa Total'!$A$105:$AH$174,'Fórmulas Cotización'!$C$4+'Fórmulas Cotización'!AL$3,FALSE)-625)*VLOOKUP($B$4,$AV$3:$AY$39,4,0))+($B$15) -> 0 | AV7: Campeche | AW7: Zona 5 | AX7: 5 | AY7: 0 | AZ7: 0
A8: Edad hijo1 | B8: =IF('BUPA CARE PRODUCTS'!C16="","",'BUPA CARE PRODUCTS'!C16) ->  | C8: =VLOOKUP(B8,$B$23:$C$25,2) ->  | D8: =IF(ISERROR(VLOOKUP($C8,'Tarifas Advantage'!$A$105:$AH$174,'Fórmulas Cotización'!$C$4+'Fórmulas Cotización'!D$3,FALSE)),0,VLOOKUP($C8,'Tarifas Advantage'!$A$105:$AH$174,'Fórmulas Cotización'!$C$4+'Fórmulas Cotización'!D$3,FALSE))-(IF(ISERROR(VLOOKUP($C8,'Tarifas Advantage'!$A$105:$AH$174,'Fórmulas Cotización'!$C$4+'Fórmulas Cotización'!D$3,FALSE)),0,VLOOKUP($C8,'Tarifas Advantage'!$A$105:$AH$174,'Fórmulas Cotización'!$C$4+'Fórmulas Cotización'!D$3,FALSE))*(VLOOKUP($B$4,$AV$3:$AY$39,4,0))) -> 0 | E8: =IF(ISERROR(VLOOKUP($C8,'Tarifas Advantage'!$A$105:$AH$174,'Fórmulas Cotización'!$C$4+'Fórmulas Cotización'!E$3,FALSE)),0,VLOOKUP($C8,'Tarifas Advantage'!$A$105:$AH$174,'Fórmulas Cotización'!$C$4+'Fórmulas Cotización'!E$3,FALSE))-(IF(ISERROR(VLOOKUP($C8,'Tarifas Advantage'!$A$105:$AH$174,'Fórmulas Cotización'!$C$4+'Fórmulas Cotización'!E$3,FALSE)),0,VLOOKUP($C8,'Tarifas Advantage'!$A$105:$AH$174,'Fórmulas Cotización'!$C$4+'Fórmulas Cotización'!E$3,FALSE))*(VLOOKUP($B$4,$AV$3:$AY$39,4,0))) -> 0 | F8: =IF(ISERROR(VLOOKUP($C8,'Tarifas Advantage'!$A$105:$AH$174,'Fórmulas Cotización'!$C$4+'Fórmulas Cotización'!F$3,FALSE)),0,VLOOKUP($C8,'Tarifas Advantage'!$A$105:$AH$174,'Fórmulas Cotización'!$C$4+'Fórmulas Cotización'!F$3,FALSE))-(IF(ISERROR(VLOOKUP($C8,'Tarifas Advantage'!$A$105:$AH$174,'Fórmulas Cotización'!$C$4+'Fórmulas Cotización'!F$3,FALSE)),0,VLOOKUP($C8,'Tarifas Advantage'!$A$105:$AH$174,'Fórmulas Cotización'!$C$4+'Fórmulas Cotización'!F$3,FALSE))*(VLOOKUP($B$4,$AV$3:$AY$39,4,0))) -> 0 | G8: =IF(ISERROR(VLOOKUP($C8,'Tarifas Advantage'!$A$105:$AH$174,'Fórmulas Cotización'!$C$4+'Fórmulas Cotización'!G$3,FALSE)),0,VLOOKUP($C8,'Tarifas Advantage'!$A$105:$AH$174,'Fórmulas Cotización'!$C$4+'Fórmulas Cotización'!G$3,FALSE))-(IF(ISERROR(VLOOKUP($C8,'Tarifas Advantage'!$A$105:$AH$174,'Fórmulas Cotización'!$C$4+'Fórmulas Cotización'!G$3,FALSE)),0,VLOOKUP($C8,'Tarifas Advantage'!$A$105:$AH$174,'Fórmulas Cotización'!$C$4+'Fórmulas Cotización'!G$3,FALSE))*(VLOOKUP($B$4,$AV$3:$AY$39,4,0))) -> 0 | H8: =IF(ISERROR(VLOOKUP($C8,'Tarifas Advantage'!$A$105:$AH$174,'Fórmulas Cotización'!$C$4+'Fórmulas Cotización'!H$3,FALSE)),0,VLOOKUP($C8,'Tarifas Advantage'!$A$105:$AH$174,'Fórmulas Cotización'!$C$4+'Fórmulas Cotización'!H$3,FALSE))-(IF(ISERROR(VLOOKUP($C8,'Tarifas Advantage'!$A$105:$AH$174,'Fórmulas Cotización'!$C$4+'Fórmulas Cotización'!H$3,FALSE)),0,VLOOKUP($C8,'Tarifas Advantage'!$A$105:$AH$174,'Fórmulas Cotización'!$C$4+'Fórmulas Cotización'!H$3,FALSE))*(VLOOKUP($B$4,$AV$3:$AY$39,4,0))) -> 0 | J8: =IF(ISERROR(VLOOKUP($C8,'Tarifas Complete'!$A$105:$AH$174,'Fórmulas Cotización'!$C$4+'Fórmulas Cotización'!J$3,FALSE)),0,VLOOKUP($C8,'Tarifas Complete'!$A$105:$AH$174,'Fórmulas Cotización'!$C$4+'Fórmulas Cotización'!J$3,FALSE))-(IF(ISERROR(VLOOKUP($C8,'Tarifas Complete'!$A$105:$AH$174,'Fórmulas Cotización'!$C$4+'Fórmulas Cotización'!J$3,FALSE)),0,VLOOKUP($C8,'Tarifas Complete'!$A$105:$AH$174,'Fórmulas Cotización'!$C$4+'Fórmulas Cotización'!J$3,FALSE))*VLOOKUP($B$4,$AV$3:$AY$39,4,0)) -> 0 | K8: =IF(ISERROR(VLOOKUP($C8,'Tarifas Complete'!$A$105:$AH$174,'Fórmulas Cotización'!$C$4+'Fórmulas Cotización'!K$3,FALSE)),0,VLOOKUP($C8,'Tarifas Complete'!$A$105:$AH$174,'Fórmulas Cotización'!$C$4+'Fórmulas Cotización'!K$3,FALSE))-(IF(ISERROR(VLOOKUP($C8,'Tarifas Complete'!$A$105:$AH$174,'Fórmulas Cotización'!$C$4+'Fórmulas Cotización'!K$3,FALSE)),0,VLOOKUP($C8,'Tarifas Complete'!$A$105:$AH$174,'Fórmulas Cotización'!$C$4+'Fórmulas Cotización'!K$3,FALSE))*VLOOKUP($B$4,$AV$3:$AY$39,4,0)) -> 0 | L8: =IF(ISERROR(VLOOKUP($C8,'Tarifas Complete'!$A$105:$AH$174,'Fórmulas Cotización'!$C$4+'Fórmulas Cotización'!L$3,FALSE)),0,VLOOKUP($C8,'Tarifas Complete'!$A$105:$AH$174,'Fórmulas Cotización'!$C$4+'Fórmulas Cotización'!L$3,FALSE))-(IF(ISERROR(VLOOKUP($C8,'Tarifas Complete'!$A$105:$AH$174,'Fórmulas Cotización'!$C$4+'Fórmulas Cotización'!L$3,FALSE)),0,VLOOKUP($C8,'Tarifas Complete'!$A$105:$AH$174,'Fórmulas Cotización'!$C$4+'Fórmulas Cotización'!L$3,FALSE))*VLOOKUP($B$4,$AV$3:$AY$39,4,0)) -> 0 | M8: =IF(ISERROR(VLOOKUP($C8,'Tarifas Complete'!$A$105:$AH$174,'Fórmulas Cotización'!$C$4+'Fórmulas Cotización'!M$3,FALSE)),0,VLOOKUP($C8,'Tarifas Complete'!$A$105:$AH$174,'Fórmulas Cotización'!$C$4+'Fórmulas Cotización'!M$3,FALSE))-(IF(ISERROR(VLOOKUP($C8,'Tarifas Complete'!$A$105:$AH$174,'Fórmulas Cotización'!$C$4+'Fórmulas Cotización'!M$3,FALSE)),0,VLOOKUP($C8,'Tarifas Complete'!$A$105:$AH$174,'Fórmulas Cotización'!$C$4+'Fórmulas Cotización'!M$3,FALSE))*VLOOKUP($B$4,$AV$3:$AY$39,4,0)) -> 0 | N8: =IF(ISERROR(VLOOKUP($C8,'Tarifas Complete'!$A$105:$AH$174,'Fórmulas Cotización'!$C$4+'Fórmulas Cotización'!N$3,FALSE)),0,VLOOKUP($C8,'Tarifas Complete'!$A$105:$AH$174,'Fórmulas Cotización'!$C$4+'Fórmulas Cotización'!N$3,FALSE))-(IF(ISERROR(VLOOKUP($C8,'Tarifas Complete'!$A$105:$AH$174,'Fórmulas Cotización'!$C$4+'Fórmulas Cotización'!N$3,FALSE)),0,VLOOKUP($C8,'Tarifas Complete'!$A$105:$AH$174,'Fórmulas Cotización'!$C$4+'Fórmulas Cotización'!N$3,FALSE))*VLOOKUP($B$4,$AV$3:$AY$39,4,0)) -> 0 | P8: =IF(ISERROR(VLOOKUP($C8,'Tarifas Diamond'!$A$105:$AH$174,'Fórmulas Cotización'!$C$4+'Fórmulas Cotización'!P$3,FALSE)),0,VLOOKUP($C8,'Tarifas Diamond'!$A$105:$AH$174,'Fórmulas Cotización'!$C$4+'Fórmulas Cotización'!P$3,FALSE))-(IF(ISERROR(VLOOKUP($C8,'Tarifas Diamond'!$A$105:$AH$174,'Fórmulas Cotización'!$C$4+'Fórmulas Cotización'!P$3,FALSE)),0,VLOOKUP($C8,'Tarifas Diamond'!$A$105:$AH$174,'Fórmulas Cotización'!$C$4+'Fórmulas Cotización'!P$3,FALSE))*VLOOKUP($B$4,$AV$3:$AY$39,4,0)) -> 0 | Q8: =IF(ISERROR(VLOOKUP($C8,'Tarifas Diamond'!$A$105:$AH$174,'Fórmulas Cotización'!$C$4+'Fórmulas Cotización'!Q$3,FALSE)),0,VLOOKUP($C8,'Tarifas Diamond'!$A$105:$AH$174,'Fórmulas Cotización'!$C$4+'Fórmulas Cotización'!Q$3,FALSE))-(IF(ISERROR(VLOOKUP($C8,'Tarifas Diamond'!$A$105:$AH$174,'Fórmulas Cotización'!$C$4+'Fórmulas Cotización'!Q$3,FALSE)),0,VLOOKUP($C8,'Tarifas Diamond'!$A$105:$AH$174,'Fórmulas Cotización'!$C$4+'Fórmulas Cotización'!Q$3,FALSE))*VLOOKUP($B$4,$AV$3:$AY$39,4,0)) -> 0 | R8: =IF(ISERROR(VLOOKUP($C8,'Tarifas Diamond'!$A$105:$AH$174,'Fórmulas Cotización'!$C$4+'Fórmulas Cotización'!R$3,FALSE)),0,VLOOKUP($C8,'Tarifas Diamond'!$A$105:$AH$174,'Fórmulas Cotización'!$C$4+'Fórmulas Cotización'!R$3,FALSE))-(IF(ISERROR(VLOOKUP($C8,'Tarifas Diamond'!$A$105:$AH$174,'Fórmulas Cotización'!$C$4+'Fórmulas Cotización'!R$3,FALSE)),0,VLOOKUP($C8,'Tarifas Diamond'!$A$105:$AH$174,'Fórmulas Cotización'!$C$4+'Fórmulas Cotización'!R$3,FALSE))*VLOOKUP($B$4,$AV$3:$AY$39,4,0)) -> 0 | S8: =IF(ISERROR(VLOOKUP($C8,'Tarifas Diamond'!$A$105:$AH$174,'Fórmulas Cotización'!$C$4+'Fórmulas Cotización'!S$3,FALSE)),0,VLOOKUP($C8,'Tarifas Diamond'!$A$105:$AH$174,'Fórmulas Cotización'!$C$4+'Fórmulas Cotización'!S$3,FALSE))-(IF(ISERROR(VLOOKUP($C8,'Tarifas Diamond'!$A$105:$AH$174,'Fórmulas Cotización'!$C$4+'Fórmulas Cotización'!S$3,FALSE)),0,VLOOKUP($C8,'Tarifas Diamond'!$A$105:$AH$174,'Fórmulas Cotización'!$C$4+'Fórmulas Cotización'!S$3,FALSE))*VLOOKUP($B$4,$AV$3:$AY$39,4,0)) -> 0 | T8: =IF(ISERROR(VLOOKUP($C8,'Tarifas Diamond'!$A$105:$AH$174,'Fórmulas Cotización'!$C$4+'Fórmulas Cotización'!T$3,FALSE)),0,VLOOKUP($C8,'Tarifas Diamond'!$A$105:$AH$174,'Fórmulas Cotización'!$C$4+'Fórmulas Cotización'!T$3,FALSE))-(IF(ISERROR(VLOOKUP($C8,'Tarifas Diamond'!$A$105:$AH$174,'Fórmulas Cotización'!$C$4+'Fórmulas Cotización'!T$3,FALSE)),0,VLOOKUP($C8,'Tarifas Diamond'!$A$105:$AH$174,'Fórmulas Cotización'!$C$4+'Fórmulas Cotización'!T$3,FALSE))*VLOOKUP($B$4,$AV$3:$AY$39,4,0)) -> 0 | V8: =IF(ISERROR(VLOOKUP($C8,'Tarifas Essential'!$A$105:$AH$174,'Fórmulas Cotización'!$C$4+'Fórmulas Cotización'!V$3,FALSE)),0,VLOOKUP($C8,'Tarifas Essential'!$A$105:$AH$174,'Fórmulas Cotización'!$C$4+'Fórmulas Cotización'!V$3,FALSE))-(IF(ISERROR(VLOOKUP($C8,'Tarifas Essential'!$A$105:$AH$174,'Fórmulas Cotización'!$C$4+'Fórmulas Cotización'!V$3,FALSE)),0,VLOOKUP($C8,'Tarifas Essential'!$A$105:$AH$174,'Fórmulas Cotización'!$C$4+'Fórmulas Cotización'!V$3,FALSE))*VLOOKUP($B$4,$AV$3:$AY$39,4,0)) -> 0 | W8: =IF(ISERROR(VLOOKUP($C8,'Tarifas Essential'!$A$105:$AH$174,'Fórmulas Cotización'!$C$4+'Fórmulas Cotización'!W$3,FALSE)),0,VLOOKUP($C8,'Tarifas Essential'!$A$105:$AH$174,'Fórmulas Cotización'!$C$4+'Fórmulas Cotización'!W$3,FALSE))-(IF(ISERROR(VLOOKUP($C8,'Tarifas Essential'!$A$105:$AH$174,'Fórmulas Cotización'!$C$4+'Fórmulas Cotización'!W$3,FALSE)),0,VLOOKUP($C8,'Tarifas Essential'!$A$105:$AH$174,'Fórmulas Cotización'!$C$4+'Fórmulas Cotización'!W$3,FALSE))*VLOOKUP($B$4,$AV$3:$AY$39,4,0)) -> 0 | X8: =IF(ISERROR(VLOOKUP($C8,'Tarifas Essential'!$A$105:$AH$174,'Fórmulas Cotización'!$C$4+'Fórmulas Cotización'!X$3,FALSE)),0,VLOOKUP($C8,'Tarifas Essential'!$A$105:$AH$174,'Fórmulas Cotización'!$C$4+'Fórmulas Cotización'!X$3,FALSE))-(IF(ISERROR(VLOOKUP($C8,'Tarifas Essential'!$A$105:$AH$174,'Fórmulas Cotización'!$C$4+'Fórmulas Cotización'!X$3,FALSE)),0,VLOOKUP($C8,'Tarifas Essential'!$A$105:$AH$174,'Fórmulas Cotización'!$C$4+'Fórmulas Cotización'!X$3,FALSE))*VLOOKUP($B$4,$AV$3:$AY$39,4,0)) -> 0 | Y8: =IF(ISERROR(VLOOKUP($C8,'Tarifas Essential'!$A$105:$AH$174,'Fórmulas Cotización'!$C$4+'Fórmulas Cotización'!Y$3,FALSE)),0,VLOOKUP($C8,'Tarifas Essential'!$A$105:$AH$174,'Fórmulas Cotización'!$C$4+'Fórmulas Cotización'!Y$3,FALSE))-(IF(ISERROR(VLOOKUP($C8,'Tarifas Essential'!$A$105:$AH$174,'Fórmulas Cotización'!$C$4+'Fórmulas Cotización'!Y$3,FALSE)),0,VLOOKUP($C8,'Tarifas Essential'!$A$105:$AH$174,'Fórmulas Cotización'!$C$4+'Fórmulas Cotización'!Y$3,FALSE))*VLOOKUP($B$4,$AV$3:$AY$39,4,0)) -> 0 | Z8: =IF(ISERROR(VLOOKUP($C8,'Tarifas Essential'!$A$105:$AH$174,'Fórmulas Cotización'!$C$4+'Fórmulas Cotización'!Z$3,FALSE)),0,VLOOKUP($C8,'Tarifas Essential'!$A$105:$AH$174,'Fórmulas Cotización'!$C$4+'Fórmulas Cotización'!Z$3,FALSE))-(IF(ISERROR(VLOOKUP($C8,'Tarifas Essential'!$A$105:$AH$174,'Fórmulas Cotización'!$C$4+'Fórmulas Cotización'!Z$3,FALSE)),0,VLOOKUP($C8,'Tarifas Essential'!$A$105:$AH$174,'Fórmulas Cotización'!$C$4+'Fórmulas Cotización'!Z$3,FALSE))*VLOOKUP($B$4,$AV$3:$AY$39,4,0)) -> 0 | AB8: =IF(ISERROR(VLOOKUP($C8,'Tarifas Secure'!$A$105:$AH$174,'Fórmulas Cotización'!$C$4+'Fórmulas Cotización'!AB$3,FALSE)),0,VLOOKUP($C8,'Tarifas Secure'!$A$105:$AH$174,'Fórmulas Cotización'!$C$4+'Fórmulas Cotización'!AB$3,FALSE))-(IF(ISERROR(VLOOKUP($C8,'Tarifas Secure'!$A$105:$AH$174,'Fórmulas Cotización'!$C$4+'Fórmulas Cotización'!AB$3,FALSE)),0,VLOOKUP($C8,'Tarifas Secure'!$A$105:$AH$174,'Fórmulas Cotización'!$C$4+'Fórmulas Cotización'!AB$3,FALSE))*VLOOKUP($B$4,$AV$3:$AZ$39,5,0)) -> 0 | AC8: =IF(ISERROR(VLOOKUP($C8,'Tarifas Secure'!$A$105:$AH$174,'Fórmulas Cotización'!$C$4+'Fórmulas Cotización'!AC$3,FALSE)),0,VLOOKUP($C8,'Tarifas Secure'!$A$105:$AH$174,'Fórmulas Cotización'!$C$4+'Fórmulas Cotización'!AC$3,FALSE))-IF(ISERROR(VLOOKUP($C8,'Tarifas Secure'!$A$105:$AH$174,'Fórmulas Cotización'!$C$4+'Fórmulas Cotización'!AC$3,FALSE)),0,VLOOKUP($C8,'Tarifas Secure'!$A$105:$AH$174,'Fórmulas Cotización'!$C$4+'Fórmulas Cotización'!AC$3,FALSE)*VLOOKUP($B$4,$AV$3:$AZ$39,5,0)) -> 0 | AD8: =IF(ISERROR(VLOOKUP($C8,'Tarifas Secure'!$A$105:$AH$174,'Fórmulas Cotización'!$C$4+'Fórmulas Cotización'!AD$3,FALSE)),0,VLOOKUP($C8,'Tarifas Secure'!$A$105:$AH$174,'Fórmulas Cotización'!$C$4+'Fórmulas Cotización'!AD$3,FALSE))-(IF(ISERROR(VLOOKUP($C8,'Tarifas Secure'!$A$105:$AH$174,'Fórmulas Cotización'!$C$4+'Fórmulas Cotización'!AD$3,FALSE)),0,VLOOKUP($C8,'Tarifas Secure'!$A$105:$AH$174,'Fórmulas Cotización'!$C$4+'Fórmulas Cotización'!AD$3,FALSE))*VLOOKUP($B$4,$AV$3:$AZ$39,5,0)) -> 0 | AE8: =IF(ISERROR(VLOOKUP($C8,'Tarifas Secure'!$A$105:$AH$174,'Fórmulas Cotización'!$C$4+'Fórmulas Cotización'!AE$3,FALSE)),0,VLOOKUP($C8,'Tarifas Secure'!$A$105:$AH$174,'Fórmulas Cotización'!$C$4+'Fórmulas Cotización'!AE$3,FALSE))-(IF(ISERROR(VLOOKUP($C8,'Tarifas Secure'!$A$105:$AH$174,'Fórmulas Cotización'!$C$4+'Fórmulas Cotización'!AE$3,FALSE)),0,VLOOKUP($C8,'Tarifas Secure'!$A$105:$AH$174,'Fórmulas Cotización'!$C$4+'Fórmulas Cotización'!AE$3,FALSE))*VLOOKUP($B$4,$AV$3:$AZ$39,5,0)) -> 0 | AF8: =IF(ISERROR(VLOOKUP($C8,'Tarifas Secure'!$A$105:$AH$174,'Fórmulas Cotización'!$C$4+'Fórmulas Cotización'!AF$3,FALSE)),0,VLOOKUP($C8,'Tarifas Secure'!$A$105:$AH$174,'Fórmulas Cotización'!$C$4+'Fórmulas Cotización'!AF$3,FALSE))-(IF(ISERROR(VLOOKUP($C8,'Tarifas Secure'!$A$105:$AH$174,'Fórmulas Cotización'!$C$4+'Fórmulas Cotización'!AF$3,FALSE)),0,VLOOKUP($C8,'Tarifas Secure'!$A$105:$AH$174,'Fórmulas Cotización'!$C$4+'Fórmulas Cotización'!AF$3,FALSE))*VLOOKUP($B$4,$AV$3:$AZ$39,5,0)) -> 0 | AH8: =IF(ISERROR(VLOOKUP($C8,'Bupa Total'!$A$105:$AH$174,'Fórmulas Cotización'!$C$4+'Fórmulas Cotización'!AH$3,FALSE)),0,VLOOKUP($C8,'Bupa Total'!$A$105:$AH$174,'Fórmulas Cotización'!$C$4+'Fórmulas Cotización'!AH$3,FALSE))-(IF(ISERROR(VLOOKUP($C8,'Bupa Total'!$A$105:$AH$174,'Fórmulas Cotización'!$C$4+'Fórmulas Cotización'!AH$3,FALSE)),0,VLOOKUP($C8,'Bupa Total'!$A$105:$AH$174,'Fórmulas Cotización'!$C$4+'Fórmulas Cotización'!AH$3,FALSE))*VLOOKUP($B$4,$AV$3:$AY$39,4,0)) -> 0 | AI8: =IF(ISERROR(VLOOKUP($C8,'Bupa Total'!$A$105:$AH$174,'Fórmulas Cotización'!$C$4+'Fórmulas Cotización'!AI$3,FALSE)),0,VLOOKUP($C8,'Bupa Total'!$A$105:$AH$174,'Fórmulas Cotización'!$C$4+'Fórmulas Cotización'!AI$3,FALSE))-(IF(ISERROR(VLOOKUP($C8,'Bupa Total'!$A$105:$AH$174,'Fórmulas Cotización'!$C$4+'Fórmulas Cotización'!AI$3,FALSE)),0,VLOOKUP($C8,'Bupa Total'!$A$105:$AH$174,'Fórmulas Cotización'!$C$4+'Fórmulas Cotización'!AI$3,FALSE))*VLOOKUP($B$4,$AV$3:$AY$39,4,0)) -> 0 | AJ8: =IF(ISERROR(VLOOKUP($C8,'Bupa Total'!$A$105:$AH$174,'Fórmulas Cotización'!$C$4+'Fórmulas Cotización'!AJ$3,FALSE)),0,VLOOKUP($C8,'Bupa Total'!$A$105:$AH$174,'Fórmulas Cotización'!$C$4+'Fórmulas Cotización'!AJ$3,FALSE))-(IF(ISERROR(VLOOKUP($C8,'Bupa Total'!$A$105:$AH$174,'Fórmulas Cotización'!$C$4+'Fórmulas Cotización'!AJ$3,FALSE)),0,VLOOKUP($C8,'Bupa Total'!$A$105:$AH$174,'Fórmulas Cotización'!$C$4+'Fórmulas Cotización'!AJ$3,FALSE))*VLOOKUP($B$4,$AV$3:$AY$39,4,0)) -> 0 | AK8: =IF(ISERROR(VLOOKUP($C8,'Bupa Total'!$A$105:$AH$174,'Fórmulas Cotización'!$C$4+'Fórmulas Cotización'!AK$3,FALSE)),0,VLOOKUP($C8,'Bupa Total'!$A$105:$AH$174,'Fórmulas Cotización'!$C$4+'Fórmulas Cotización'!AK$3,FALSE))-(IF(ISERROR(VLOOKUP($C8,'Bupa Total'!$A$105:$AH$174,'Fórmulas Cotización'!$C$4+'Fórmulas Cotización'!AK$3,FALSE)),0,VLOOKUP($C8,'Bupa Total'!$A$105:$AH$174,'Fórmulas Cotización'!$C$4+'Fórmulas Cotización'!AK$3,FALSE))*VLOOKUP($B$4,$AV$3:$AY$39,4,0)) -> 0 | AL8: =IF(ISERROR(VLOOKUP($C8,'Bupa Total'!$A$105:$AH$174,'Fórmulas Cotización'!$C$4+'Fórmulas Cotización'!AL$3,FALSE)),0,VLOOKUP($C8,'Bupa Total'!$A$105:$AH$174,'Fórmulas Cotización'!$C$4+'Fórmulas Cotización'!AL$3,FALSE))-(IF(ISERROR(VLOOKUP($C8,'Bupa Total'!$A$105:$AH$174,'Fórmulas Cotización'!$C$4+'Fórmulas Cotización'!AL$3,FALSE)),0,VLOOKUP($C8,'Bupa Total'!$A$105:$AH$174,'Fórmulas Cotización'!$C$4+'Fórmulas Cotización'!AL$3,FALSE))*VLOOKUP($B$4,$AV$3:$AY$39,4,0)) -> 0 | AV8: Cancún | AW8: Zona 4 | AX8: 4 | AY8: 0 | AZ8: 0
A9: Edad hijo2 | B9: =IF('BUPA CARE PRODUCTS'!#REF!="","",'BUPA CARE PRODUCTS'!#REF!) ->  | C9: =IF(B9<>"",IF(B9<18,$B$14&" Menor",B9),"") ->  | D9: =IF(ISERROR(VLOOKUP($C9,'Tarifas Advantage'!$A$105:$AH$174,'Fórmulas Cotización'!$C$4+'Fórmulas Cotización'!D$3,FALSE)),0,VLOOKUP($C9,'Tarifas Advantage'!$A$105:$AH$174,'Fórmulas Cotización'!$C$4+'Fórmulas Cotización'!D$3,FALSE)) -> 0 | E9: =IF(ISERROR(VLOOKUP($C9,'Tarifas Advantage'!$A$105:$AH$174,'Fórmulas Cotización'!$C$4+'Fórmulas Cotización'!E$3,FALSE)),0,VLOOKUP($C9,'Tarifas Advantage'!$A$105:$AH$174,'Fórmulas Cotización'!$C$4+'Fórmulas Cotización'!E$3,FALSE)) -> 0 | F9: =IF(ISERROR(VLOOKUP($C9,'Tarifas Advantage'!$A$105:$AH$174,'Fórmulas Cotización'!$C$4+'Fórmulas Cotización'!F$3,FALSE)),0,VLOOKUP($C9,'Tarifas Advantage'!$A$105:$AH$174,'Fórmulas Cotización'!$C$4+'Fórmulas Cotización'!F$3,FALSE)) -> 0 | G9: =IF(ISERROR(VLOOKUP($C9,'Tarifas Advantage'!$A$105:$AH$174,'Fórmulas Cotización'!$C$4+'Fórmulas Cotización'!G$3,FALSE)),0,VLOOKUP($C9,'Tarifas Advantage'!$A$105:$AH$174,'Fórmulas Cotización'!$C$4+'Fórmulas Cotización'!G$3,FALSE)) -> 0 | H9: =IF(ISERROR(VLOOKUP($C9,'Tarifas Advantage'!$A$105:$AH$174,'Fórmulas Cotización'!$C$4+'Fórmulas Cotización'!H$3,FALSE)),0,VLOOKUP($C9,'Tarifas Advantage'!$A$105:$AH$174,'Fórmulas Cotización'!$C$4+'Fórmulas Cotización'!H$3,FALSE)) -> 0 | J9: =IF(ISERROR(VLOOKUP($C9,'Tarifas Complete'!$A$105:$AH$174,'Fórmulas Cotización'!$C$4+'Fórmulas Cotización'!J$3,FALSE)),0,VLOOKUP($C9,'Tarifas Complete'!$A$105:$AH$174,'Fórmulas Cotización'!$C$4+'Fórmulas Cotización'!J$3,FALSE)) -> 0 | K9: =IF(ISERROR(VLOOKUP($C9,'Tarifas Complete'!$A$105:$AH$174,'Fórmulas Cotización'!$C$4+'Fórmulas Cotización'!K$3,FALSE)),0,VLOOKUP($C9,'Tarifas Complete'!$A$105:$AH$174,'Fórmulas Cotización'!$C$4+'Fórmulas Cotización'!K$3,FALSE)) -> 0 | L9: =IF(ISERROR(VLOOKUP($C9,'Tarifas Complete'!$A$105:$AH$174,'Fórmulas Cotización'!$C$4+'Fórmulas Cotización'!L$3,FALSE)),0,VLOOKUP($C9,'Tarifas Complete'!$A$105:$AH$174,'Fórmulas Cotización'!$C$4+'Fórmulas Cotización'!L$3,FALSE)) -> 0 | M9: =IF(ISERROR(VLOOKUP($C9,'Tarifas Complete'!$A$105:$AH$174,'Fórmulas Cotización'!$C$4+'Fórmulas Cotización'!M$3,FALSE)),0,VLOOKUP($C9,'Tarifas Complete'!$A$105:$AH$174,'Fórmulas Cotización'!$C$4+'Fórmulas Cotización'!M$3,FALSE)) -> 0 | N9: =IF(ISERROR(VLOOKUP($C9,'Tarifas Complete'!$A$105:$AH$174,'Fórmulas Cotización'!$C$4+'Fórmulas Cotización'!N$3,FALSE)),0,VLOOKUP($C9,'Tarifas Complete'!$A$105:$AH$174,'Fórmulas Cotización'!$C$4+'Fórmulas Cotización'!N$3,FALSE)) -> 0 | P9: =IF(ISERROR(VLOOKUP($C9,'Tarifas Diamond'!$A$105:$AH$174,'Fórmulas Cotización'!$C$4+'Fórmulas Cotización'!P$3,FALSE)),0,VLOOKUP($C9,'Tarifas Diamond'!$A$105:$AH$174,'Fórmulas Cotización'!$C$4+'Fórmulas Cotización'!P$3,FALSE)) -> 0 | Q9: =IF(ISERROR(VLOOKUP($C9,'Tarifas Diamond'!$A$105:$AH$174,'Fórmulas Cotización'!$C$4+'Fórmulas Cotización'!Q$3,FALSE)),0,VLOOKUP($C9,'Tarifas Diamond'!$A$105:$AH$174,'Fórmulas Cotización'!$C$4+'Fórmulas Cotización'!Q$3,FALSE)) -> 0 | R9: =IF(ISERROR(VLOOKUP($C9,'Tarifas Diamond'!$A$105:$AH$174,'Fórmulas Cotización'!$C$4+'Fórmulas Cotización'!R$3,FALSE)),0,VLOOKUP($C9,'Tarifas Diamond'!$A$105:$AH$174,'Fórmulas Cotización'!$C$4+'Fórmulas Cotización'!R$3,FALSE)) -> 0 | S9: =IF(ISERROR(VLOOKUP($C9,'Tarifas Diamond'!$A$105:$AH$174,'Fórmulas Cotización'!$C$4+'Fórmulas Cotización'!S$3,FALSE)),0,VLOOKUP($C9,'Tarifas Diamond'!$A$105:$AH$174,'Fórmulas Cotización'!$C$4+'Fórmulas Cotización'!S$3,FALSE)) -> 0 | T9: =IF(ISERROR(VLOOKUP($C9,'Tarifas Diamond'!$A$105:$AH$174,'Fórmulas Cotización'!$C$4+'Fórmulas Cotización'!T$3,FALSE)),0,VLOOKUP($C9,'Tarifas Diamond'!$A$105:$AH$174,'Fórmulas Cotización'!$C$4+'Fórmulas Cotización'!T$3,FALSE)) -> 0 | V9: =IF(ISERROR(VLOOKUP($C9,'Tarifas Essential'!$A$105:$AH$174,'Fórmulas Cotización'!$C$4+'Fórmulas Cotización'!V$3,FALSE)),0,VLOOKUP($C9,'Tarifas Essential'!$A$105:$AH$174,'Fórmulas Cotización'!$C$4+'Fórmulas Cotización'!V$3,FALSE)) -> 0 | W9: =IF(ISERROR(VLOOKUP($C9,'Tarifas Essential'!$A$105:$AH$174,'Fórmulas Cotización'!$C$4+'Fórmulas Cotización'!W$3,FALSE)),0,VLOOKUP($C9,'Tarifas Essential'!$A$105:$AH$174,'Fórmulas Cotización'!$C$4+'Fórmulas Cotización'!W$3,FALSE)) -> 0 | X9: =IF(ISERROR(VLOOKUP($C9,'Tarifas Essential'!$A$105:$AH$174,'Fórmulas Cotización'!$C$4+'Fórmulas Cotización'!X$3,FALSE)),0,VLOOKUP($C9,'Tarifas Essential'!$A$105:$AH$174,'Fórmulas Cotización'!$C$4+'Fórmulas Cotización'!X$3,FALSE)) -> 0 | Y9: =IF(ISERROR(VLOOKUP($C9,'Tarifas Essential'!$A$105:$AH$174,'Fórmulas Cotización'!$C$4+'Fórmulas Cotización'!Y$3,FALSE)),0,VLOOKUP($C9,'Tarifas Essential'!$A$105:$AH$174,'Fórmulas Cotización'!$C$4+'Fórmulas Cotización'!Y$3,FALSE)) -> 0 | Z9: =IF(ISERROR(VLOOKUP($C9,'Tarifas Essential'!$A$105:$AH$174,'Fórmulas Cotización'!$C$4+'Fórmulas Cotización'!Z$3,FALSE)),0,VLOOKUP($C9,'Tarifas Essential'!$A$105:$AH$174,'Fórmulas Cotización'!$C$4+'Fórmulas Cotización'!Z$3,FALSE)) -> 0 | AB9: =IF(ISERROR(VLOOKUP($C9,'Tarifas Secure'!$A$105:$AH$174,'Fórmulas Cotización'!$C$4+'Fórmulas Cotización'!AB$3,FALSE)),0,VLOOKUP($C9,'Tarifas Secure'!$A$105:$AH$174,'Fórmulas Cotización'!$C$4+'Fórmulas Cotización'!AB$3,FALSE)) -> 0 | AC9: =IF(ISERROR(VLOOKUP($C9,'Tarifas Secure'!$A$105:$AH$174,'Fórmulas Cotización'!$C$4+'Fórmulas Cotización'!AC$3,FALSE)),0,VLOOKUP($C9,'Tarifas Secure'!$A$105:$AH$174,'Fórmulas Cotización'!$C$4+'Fórmulas Cotización'!AC$3,FALSE)) -> 0 | AD9: =IF(ISERROR(VLOOKUP($C9,'Tarifas Secure'!$A$105:$AH$174,'Fórmulas Cotización'!$C$4+'Fórmulas Cotización'!AD$3,FALSE)),0,VLOOKUP($C9,'Tarifas Secure'!$A$105:$AH$174,'Fórmulas Cotización'!$C$4+'Fórmulas Cotización'!AD$3,FALSE)) -> 0 | AE9: =IF(ISERROR(VLOOKUP($C9,'Tarifas Secure'!$A$105:$AH$174,'Fórmulas Cotización'!$C$4+'Fórmulas Cotización'!AE$3,FALSE)),0,VLOOKUP($C9,'Tarifas Secure'!$A$105:$AH$174,'Fórmulas Cotización'!$C$4+'Fórmulas Cotización'!AE$3,FALSE)) -> 0 | AF9: =IF(ISERROR(VLOOKUP($C9,'Tarifas Secure'!$A$105:$AH$174,'Fórmulas Cotización'!$C$4+'Fórmulas Cotización'!AF$3,FALSE)),0,VLOOKUP($C9,'Tarifas Secure'!$A$105:$AH$174,'Fórmulas Cotización'!$C$4+'Fórmulas Cotización'!AF$3,FALSE)) -> 0 | AH9: =IF(ISERROR(VLOOKUP($C9,'Bupa Total'!$A$105:$AH$174,'Fórmulas Cotización'!$C$4+'Fórmulas Cotización'!AH$3,FALSE)),0,VLOOKUP($C9,'Bupa Total'!$A$105:$AH$174,'Fórmulas Cotización'!$C$4+'Fórmulas Cotización'!AH$3,FALSE)) -> 0 | AI9: =IF(ISERROR(VLOOKUP($C9,'Bupa Total'!$A$105:$AH$174,'Fórmulas Cotización'!$C$4+'Fórmulas Cotización'!AI$3,FALSE)),0,VLOOKUP($C9,'Bupa Total'!$A$105:$AH$174,'Fórmulas Cotización'!$C$4+'Fórmulas Cotización'!AI$3,FALSE)) -> 0 | AJ9: =IF(ISERROR(VLOOKUP($C9,'Bupa Total'!$A$105:$AH$174,'Fórmulas Cotización'!$C$4+'Fórmulas Cotización'!AJ$3,FALSE)),0,VLOOKUP($C9,'Bupa Total'!$A$105:$AH$174,'Fórmulas Cotización'!$C$4+'Fórmulas Cotización'!AJ$3,FALSE)) -> 0 | AK9: =IF(ISERROR(VLOOKUP($C9,'Bupa Total'!$A$105:$AH$174,'Fórmulas Cotización'!$C$4+'Fórmulas Cotización'!AK$3,FALSE)),0,VLOOKUP($C9,'Bupa Total'!$A$105:$AH$174,'Fórmulas Cotización'!$C$4+'Fórmulas Cotización'!AK$3,FALSE)) -> 0 | AL9: =IF(ISERROR(VLOOKUP($C9,'Bupa Total'!$A$105:$AH$174,'Fórmulas Cotización'!$C$4+'Fórmulas Cotización'!AL$3,FALSE)),0,VLOOKUP($C9,'Bupa Total'!$A$105:$AH$174,'Fórmulas Cotización'!$C$4+'Fórmulas Cotización'!AL$3,FALSE)) -> 0 | AV9: Coahuila | AW9: Zona 3 | AX9: =MID(AW9,6,1) -> 3 | AY9: 0 | AZ9: 0
A10: Edad hijo3 | B10: =IF('BUPA CARE PRODUCTS'!#REF!="","",'BUPA CARE PRODUCTS'!#REF!) ->  | C10: =IF(B10<>"",IF(B10<18,$B$14&" Menor",B10),"") ->  | D10: =IF(ISERROR(VLOOKUP($C10,'Tarifas Advantage'!$A$105:$AH$174,'Fórmulas Cotización'!$C$4+'Fórmulas Cotización'!D$3,FALSE)),0,VLOOKUP($C10,'Tarifas Advantage'!$A$105:$AH$174,'Fórmulas Cotización'!$C$4+'Fórmulas Cotización'!D$3,FALSE)) -> 0 | E10: =IF(ISERROR(VLOOKUP($C10,'Tarifas Advantage'!$A$105:$AH$174,'Fórmulas Cotización'!$C$4+'Fórmulas Cotización'!E$3,FALSE)),0,VLOOKUP($C10,'Tarifas Advantage'!$A$105:$AH$174,'Fórmulas Cotización'!$C$4+'Fórmulas Cotización'!E$3,FALSE)) -> 0 | F10: =IF(ISERROR(VLOOKUP($C10,'Tarifas Advantage'!$A$105:$AH$174,'Fórmulas Cotización'!$C$4+'Fórmulas Cotización'!F$3,FALSE)),0,VLOOKUP($C10,'Tarifas Advantage'!$A$105:$AH$174,'Fórmulas Cotización'!$C$4+'Fórmulas Cotización'!F$3,FALSE)) -> 0 | G10: =IF(ISERROR(VLOOKUP($C10,'Tarifas Advantage'!$A$105:$AH$174,'Fórmulas Cotización'!$C$4+'Fórmulas Cotización'!G$3,FALSE)),0,VLOOKUP($C10,'Tarifas Advantage'!$A$105:$AH$174,'Fórmulas Cotización'!$C$4+'Fórmulas Cotización'!G$3,FALSE)) -> 0 | H10: =IF(ISERROR(VLOOKUP($C10,'Tarifas Advantage'!$A$105:$AH$174,'Fórmulas Cotización'!$C$4+'Fórmulas Cotización'!H$3,FALSE)),0,VLOOKUP($C10,'Tarifas Advantage'!$A$105:$AH$174,'Fórmulas Cotización'!$C$4+'Fórmulas Cotización'!H$3,FALSE)) -> 0 | J10: =IF(ISERROR(VLOOKUP($C10,'Tarifas Complete'!$A$105:$AH$174,'Fórmulas Cotización'!$C$4+'Fórmulas Cotización'!J$3,FALSE)),0,VLOOKUP($C10,'Tarifas Complete'!$A$105:$AH$174,'Fórmulas Cotización'!$C$4+'Fórmulas Cotización'!J$3,FALSE)) -> 0 | K10: =IF(ISERROR(VLOOKUP($C10,'Tarifas Complete'!$A$105:$AH$174,'Fórmulas Cotización'!$C$4+'Fórmulas Cotización'!K$3,FALSE)),0,VLOOKUP($C10,'Tarifas Complete'!$A$105:$AH$174,'Fórmulas Cotización'!$C$4+'Fórmulas Cotización'!K$3,FALSE)) -> 0 | L10: =IF(ISERROR(VLOOKUP($C10,'Tarifas Complete'!$A$105:$AH$174,'Fórmulas Cotización'!$C$4+'Fórmulas Cotización'!L$3,FALSE)),0,VLOOKUP($C10,'Tarifas Complete'!$A$105:$AH$174,'Fórmulas Cotización'!$C$4+'Fórmulas Cotización'!L$3,FALSE)) -> 0 | M10: =IF(ISERROR(VLOOKUP($C10,'Tarifas Complete'!$A$105:$AH$174,'Fórmulas Cotización'!$C$4+'Fórmulas Cotización'!M$3,FALSE)),0,VLOOKUP($C10,'Tarifas Complete'!$A$105:$AH$174,'Fórmulas Cotización'!$C$4+'Fórmulas Cotización'!M$3,FALSE)) -> 0 | N10: =IF(ISERROR(VLOOKUP($C10,'Tarifas Complete'!$A$105:$AH$174,'Fórmulas Cotización'!$C$4+'Fórmulas Cotización'!N$3,FALSE)),0,VLOOKUP($C10,'Tarifas Complete'!$A$105:$AH$174,'Fórmulas Cotización'!$C$4+'Fórmulas Cotización'!N$3,FALSE)) -> 0 | P10: =IF(ISERROR(VLOOKUP($C10,'Tarifas Diamond'!$A$105:$AH$174,'Fórmulas Cotización'!$C$4+'Fórmulas Cotización'!P$3,FALSE)),0,VLOOKUP($C10,'Tarifas Diamond'!$A$105:$AH$174,'Fórmulas Cotización'!$C$4+'Fórmulas Cotización'!P$3,FALSE)) -> 0 | Q10: =IF(ISERROR(VLOOKUP($C10,'Tarifas Diamond'!$A$105:$AH$174,'Fórmulas Cotización'!$C$4+'Fórmulas Cotización'!Q$3,FALSE)),0,VLOOKUP($C10,'Tarifas Diamond'!$A$105:$AH$174,'Fórmulas Cotización'!$C$4+'Fórmulas Cotización'!Q$3,FALSE)) -> 0 | R10: =IF(ISERROR(VLOOKUP($C10,'Tarifas Diamond'!$A$105:$AH$174,'Fórmulas Cotización'!$C$4+'Fórmulas Cotización'!R$3,FALSE)),0,VLOOKUP($C10,'Tarifas Diamond'!$A$105:$AH$174,'Fórmulas Cotización'!$C$4+'Fórmulas Cotización'!R$3,FALSE)) -> 0 | S10: =IF(ISERROR(VLOOKUP($C10,'Tarifas Diamond'!$A$105:$AH$174,'Fórmulas Cotización'!$C$4+'Fórmulas Cotización'!S$3,FALSE)),0,VLOOKUP($C10,'Tarifas Diamond'!$A$105:$AH$174,'Fórmulas Cotización'!$C$4+'Fórmulas Cotización'!S$3,FALSE)) -> 0 | T10: =IF(ISERROR(VLOOKUP($C10,'Tarifas Diamond'!$A$105:$AH$174,'Fórmulas Cotización'!$C$4+'Fórmulas Cotización'!T$3,FALSE)),0,VLOOKUP($C10,'Tarifas Diamond'!$A$105:$AH$174,'Fórmulas Cotización'!$C$4+'Fórmulas Cotización'!T$3,FALSE)) -> 0 | V10: =IF(ISERROR(VLOOKUP($C10,'Tarifas Essential'!$A$105:$AH$174,'Fórmulas Cotización'!$C$4+'Fórmulas Cotización'!V$3,FALSE)),0,VLOOKUP($C10,'Tarifas Essential'!$A$105:$AH$174,'Fórmulas Cotización'!$C$4+'Fórmulas Cotización'!V$3,FALSE)) -> 0 | W10: =IF(ISERROR(VLOOKUP($C10,'Tarifas Essential'!$A$105:$AH$174,'Fórmulas Cotización'!$C$4+'Fórmulas Cotización'!W$3,FALSE)),0,VLOOKUP($C10,'Tarifas Essential'!$A$105:$AH$174,'Fórmulas Cotización'!$C$4+'Fórmulas Cotización'!W$3,FALSE)) -> 0 | X10: =IF(ISERROR(VLOOKUP($C10,'Tarifas Essential'!$A$105:$AH$174,'Fórmulas Cotización'!$C$4+'Fórmulas Cotización'!X$3,FALSE)),0,VLOOKUP($C10,'Tarifas Essential'!$A$105:$AH$174,'Fórmulas Cotización'!$C$4+'Fórmulas Cotización'!X$3,FALSE)) -> 0 | Y10: =IF(ISERROR(VLOOKUP($C10,'Tarifas Essential'!$A$105:$AH$174,'Fórmulas Cotización'!$C$4+'Fórmulas Cotización'!Y$3,FALSE)),0,VLOOKUP($C10,'Tarifas Essential'!$A$105:$AH$174,'Fórmulas Cotización'!$C$4+'Fórmulas Cotización'!Y$3,FALSE)) -> 0 | Z10: =IF(ISERROR(VLOOKUP($C10,'Tarifas Essential'!$A$105:$AH$174,'Fórmulas Cotización'!$C$4+'Fórmulas Cotización'!Z$3,FALSE)),0,VLOOKUP($C10,'Tarifas Essential'!$A$105:$AH$174,'Fórmulas Cotización'!$C$4+'Fórmulas Cotización'!Z$3,FALSE)) -> 0 | AB10: =IF(ISERROR(VLOOKUP($C10,'Tarifas Secure'!$A$105:$AH$174,'Fórmulas Cotización'!$C$4+'Fórmulas Cotización'!AB$3,FALSE)),0,VLOOKUP($C10,'Tarifas Secure'!$A$105:$AH$174,'Fórmulas Cotización'!$C$4+'Fórmulas Cotización'!AB$3,FALSE)) -> 0 | AC10: =IF(ISERROR(VLOOKUP($C10,'Tarifas Secure'!$A$105:$AH$174,'Fórmulas Cotización'!$C$4+'Fórmulas Cotización'!AC$3,FALSE)),0,VLOOKUP($C10,'Tarifas Secure'!$A$105:$AH$174,'Fórmulas Cotización'!$C$4+'Fórmulas Cotización'!AC$3,FALSE)) -> 0 | AD10: =IF(ISERROR(VLOOKUP($C10,'Tarifas Secure'!$A$105:$AH$174,'Fórmulas Cotización'!$C$4+'Fórmulas Cotización'!AD$3,FALSE)),0,VLOOKUP($C10,'Tarifas Secure'!$A$105:$AH$174,'Fórmulas Cotización'!$C$4+'Fórmulas Cotización'!AD$3,FALSE)) -> 0 | AE10: =IF(ISERROR(VLOOKUP($C10,'Tarifas Secure'!$A$105:$AH$174,'Fórmulas Cotización'!$C$4+'Fórmulas Cotización'!AE$3,FALSE)),0,VLOOKUP($C10,'Tarifas Secure'!$A$105:$AH$174,'Fórmulas Cotización'!$C$4+'Fórmulas Cotización'!AE$3,FALSE)) -> 0 | AF10: =IF(ISERROR(VLOOKUP($C10,'Tarifas Secure'!$A$105:$AH$174,'Fórmulas Cotización'!$C$4+'Fórmulas Cotización'!AF$3,FALSE)),0,VLOOKUP($C10,'Tarifas Secure'!$A$105:$AH$174,'Fórmulas Cotización'!$C$4+'Fórmulas Cotización'!AF$3,FALSE)) -> 0 | AH10: =IF(ISERROR(VLOOKUP($C10,'Bupa Total'!$A$105:$AH$174,'Fórmulas Cotización'!$C$4+'Fórmulas Cotización'!AH$3,FALSE)),0,VLOOKUP($C10,'Bupa Total'!$A$105:$AH$174,'Fórmulas Cotización'!$C$4+'Fórmulas Cotización'!AH$3,FALSE)) -> 0 | AI10: =IF(ISERROR(VLOOKUP($C10,'Bupa Total'!$A$105:$AH$174,'Fórmulas Cotización'!$C$4+'Fórmulas Cotización'!AI$3,FALSE)),0,VLOOKUP($C10,'Bupa Total'!$A$105:$AH$174,'Fórmulas Cotización'!$C$4+'Fórmulas Cotización'!AI$3,FALSE)) -> 0 | AJ10: =IF(ISERROR(VLOOKUP($C10,'Bupa Total'!$A$105:$AH$174,'Fórmulas Cotización'!$C$4+'Fórmulas Cotización'!AJ$3,FALSE)),0,VLOOKUP($C10,'Bupa Total'!$A$105:$AH$174,'Fórmulas Cotización'!$C$4+'Fórmulas Cotización'!AJ$3,FALSE)) -> 0 | AK10: =IF(ISERROR(VLOOKUP($C10,'Bupa Total'!$A$105:$AH$174,'Fórmulas Cotización'!$C$4+'Fórmulas Cotización'!AK$3,FALSE)),0,VLOOKUP($C10,'Bupa Total'!$A$105:$AH$174,'Fórmulas Cotización'!$C$4+'Fórmulas Cotización'!AK$3,FALSE)) -> 0 | AL10: =IF(ISERROR(VLOOKUP($C10,'Bupa Total'!$A$105:$AH$174,'Fórmulas Cotización'!$C$4+'Fórmulas Cotización'!AL$3,FALSE)),0,VLOOKUP($C10,'Bupa Total'!$A$105:$AH$174,'Fórmulas Cotización'!$C$4+'Fórmulas Cotización'!AL$3,FALSE)) -> 0 | AV10: Colima | AW10: Zona 4 | AX10: =MID(AW10,6,1) -> 4 | AY10: 0 | AZ10: 0
A11: Edad hijo4 | B11: =IF('BUPA CARE PRODUCTS'!#REF!="","",'BUPA CARE PRODUCTS'!#REF!) ->  | C11: =IF(B11<>"",IF(B11<18,$B$14&" Menor",B11),"") ->  | D11: =IF(ISERROR(VLOOKUP($C11,'Tarifas Advantage'!$A$105:$AH$174,'Fórmulas Cotización'!$C$4+'Fórmulas Cotización'!D$3,FALSE)),0,VLOOKUP($C11,'Tarifas Advantage'!$A$105:$AH$174,'Fórmulas Cotización'!$C$4+'Fórmulas Cotización'!D$3,FALSE)) -> 0 | E11: =IF(ISERROR(VLOOKUP($C11,'Tarifas Advantage'!$A$105:$AH$174,'Fórmulas Cotización'!$C$4+'Fórmulas Cotización'!E$3,FALSE)),0,VLOOKUP($C11,'Tarifas Advantage'!$A$105:$AH$174,'Fórmulas Cotización'!$C$4+'Fórmulas Cotización'!E$3,FALSE)) -> 0 | F11: =IF(ISERROR(VLOOKUP($C11,'Tarifas Advantage'!$A$105:$AH$174,'Fórmulas Cotización'!$C$4+'Fórmulas Cotización'!F$3,FALSE)),0,VLOOKUP($C11,'Tarifas Advantage'!$A$105:$AH$174,'Fórmulas Cotización'!$C$4+'Fórmulas Cotización'!F$3,FALSE)) -> 0 | G11: =IF(ISERROR(VLOOKUP($C11,'Tarifas Advantage'!$A$105:$AH$174,'Fórmulas Cotización'!$C$4+'Fórmulas Cotización'!G$3,FALSE)),0,VLOOKUP($C11,'Tarifas Advantage'!$A$105:$AH$174,'Fórmulas Cotización'!$C$4+'Fórmulas Cotización'!G$3,FALSE)) -> 0 | H11: =IF(ISERROR(VLOOKUP($C11,'Tarifas Advantage'!$A$105:$AH$174,'Fórmulas Cotización'!$C$4+'Fórmulas Cotización'!H$3,FALSE)),0,VLOOKUP($C11,'Tarifas Advantage'!$A$105:$AH$174,'Fórmulas Cotización'!$C$4+'Fórmulas Cotización'!H$3,FALSE)) -> 0 | J11: =IF(ISERROR(VLOOKUP($C11,'Tarifas Complete'!$A$105:$AH$174,'Fórmulas Cotización'!$C$4+'Fórmulas Cotización'!J$3,FALSE)),0,VLOOKUP($C11,'Tarifas Complete'!$A$105:$AH$174,'Fórmulas Cotización'!$C$4+'Fórmulas Cotización'!J$3,FALSE)) -> 0 | K11: =IF(ISERROR(VLOOKUP($C11,'Tarifas Complete'!$A$105:$AH$174,'Fórmulas Cotización'!$C$4+'Fórmulas Cotización'!K$3,FALSE)),0,VLOOKUP($C11,'Tarifas Complete'!$A$105:$AH$174,'Fórmulas Cotización'!$C$4+'Fórmulas Cotización'!K$3,FALSE)) -> 0 | L11: =IF(ISERROR(VLOOKUP($C11,'Tarifas Complete'!$A$105:$AH$174,'Fórmulas Cotización'!$C$4+'Fórmulas Cotización'!L$3,FALSE)),0,VLOOKUP($C11,'Tarifas Complete'!$A$105:$AH$174,'Fórmulas Cotización'!$C$4+'Fórmulas Cotización'!L$3,FALSE)) -> 0 | M11: =IF(ISERROR(VLOOKUP($C11,'Tarifas Complete'!$A$105:$AH$174,'Fórmulas Cotización'!$C$4+'Fórmulas Cotización'!M$3,FALSE)),0,VLOOKUP($C11,'Tarifas Complete'!$A$105:$AH$174,'Fórmulas Cotización'!$C$4+'Fórmulas Cotización'!M$3,FALSE)) -> 0 | N11: =IF(ISERROR(VLOOKUP($C11,'Tarifas Complete'!$A$105:$AH$174,'Fórmulas Cotización'!$C$4+'Fórmulas Cotización'!N$3,FALSE)),0,VLOOKUP($C11,'Tarifas Complete'!$A$105:$AH$174,'Fórmulas Cotización'!$C$4+'Fórmulas Cotización'!N$3,FALSE)) -> 0 | P11: =IF(ISERROR(VLOOKUP($C11,'Tarifas Diamond'!$A$105:$AH$174,'Fórmulas Cotización'!$C$4+'Fórmulas Cotización'!P$3,FALSE)),0,VLOOKUP($C11,'Tarifas Diamond'!$A$105:$AH$174,'Fórmulas Cotización'!$C$4+'Fórmulas Cotización'!P$3,FALSE)) -> 0 | Q11: =IF(ISERROR(VLOOKUP($C11,'Tarifas Diamond'!$A$105:$AH$174,'Fórmulas Cotización'!$C$4+'Fórmulas Cotización'!Q$3,FALSE)),0,VLOOKUP($C11,'Tarifas Diamond'!$A$105:$AH$174,'Fórmulas Cotización'!$C$4+'Fórmulas Cotización'!Q$3,FALSE)) -> 0 | R11: =IF(ISERROR(VLOOKUP($C11,'Tarifas Diamond'!$A$105:$AH$174,'Fórmulas Cotización'!$C$4+'Fórmulas Cotización'!R$3,FALSE)),0,VLOOKUP($C11,'Tarifas Diamond'!$A$105:$AH$174,'Fórmulas Cotización'!$C$4+'Fórmulas Cotización'!R$3,FALSE)) -> 0 | S11: =IF(ISERROR(VLOOKUP($C11,'Tarifas Diamond'!$A$105:$AH$174,'Fórmulas Cotización'!$C$4+'Fórmulas Cotización'!S$3,FALSE)),0,VLOOKUP($C11,'Tarifas Diamond'!$A$105:$AH$174,'Fórmulas Cotización'!$C$4+'Fórmulas Cotización'!S$3,FALSE)) -> 0 | T11: =IF(ISERROR(VLOOKUP($C11,'Tarifas Diamond'!$A$105:$AH$174,'Fórmulas Cotización'!$C$4+'Fórmulas Cotización'!T$3,FALSE)),0,VLOOKUP($C11,'Tarifas Diamond'!$A$105:$AH$174,'Fórmulas Cotización'!$C$4+'Fórmulas Cotización'!T$3,FALSE)) -> 0 | V11: =IF(ISERROR(VLOOKUP($C11,'Tarifas Essential'!$A$105:$AH$174,'Fórmulas Cotización'!$C$4+'Fórmulas Cotización'!V$3,FALSE)),0,VLOOKUP($C11,'Tarifas Essential'!$A$105:$AH$174,'Fórmulas Cotización'!$C$4+'Fórmulas Cotización'!V$3,FALSE)) -> 0 | W11: =IF(ISERROR(VLOOKUP($C11,'Tarifas Essential'!$A$105:$AH$174,'Fórmulas Cotización'!$C$4+'Fórmulas Cotización'!W$3,FALSE)),0,VLOOKUP($C11,'Tarifas Essential'!$A$105:$AH$174,'Fórmulas Cotización'!$C$4+'Fórmulas Cotización'!W$3,FALSE)) -> 0 | X11: =IF(ISERROR(VLOOKUP($C11,'Tarifas Essential'!$A$105:$AH$174,'Fórmulas Cotización'!$C$4+'Fórmulas Cotización'!X$3,FALSE)),0,VLOOKUP($C11,'Tarifas Essential'!$A$105:$AH$174,'Fórmulas Cotización'!$C$4+'Fórmulas Cotización'!X$3,FALSE)) -> 0 | Y11: =IF(ISERROR(VLOOKUP($C11,'Tarifas Essential'!$A$105:$AH$174,'Fórmulas Cotización'!$C$4+'Fórmulas Cotización'!Y$3,FALSE)),0,VLOOKUP($C11,'Tarifas Essential'!$A$105:$AH$174,'Fórmulas Cotización'!$C$4+'Fórmulas Cotización'!Y$3,FALSE)) -> 0 | Z11: =IF(ISERROR(VLOOKUP($C11,'Tarifas Essential'!$A$105:$AH$174,'Fórmulas Cotización'!$C$4+'Fórmulas Cotización'!Z$3,FALSE)),0,VLOOKUP($C11,'Tarifas Essential'!$A$105:$AH$174,'Fórmulas Cotización'!$C$4+'Fórmulas Cotización'!Z$3,FALSE)) -> 0 | AB11: =IF(ISERROR(VLOOKUP($C11,'Tarifas Secure'!$A$105:$AH$174,'Fórmulas Cotización'!$C$4+'Fórmulas Cotización'!AB$3,FALSE)),0,VLOOKUP($C11,'Tarifas Secure'!$A$105:$AH$174,'Fórmulas Cotización'!$C$4+'Fórmulas Cotización'!AB$3,FALSE)) -> 0 | AC11: =IF(ISERROR(VLOOKUP($C11,'Tarifas Secure'!$A$105:$AH$174,'Fórmulas Cotización'!$C$4+'Fórmulas Cotización'!AC$3,FALSE)),0,VLOOKUP($C11,'Tarifas Secure'!$A$105:$AH$174,'Fórmulas Cotización'!$C$4+'Fórmulas Cotización'!AC$3,FALSE)) -> 0 | AD11: =IF(ISERROR(VLOOKUP($C11,'Tarifas Secure'!$A$105:$AH$174,'Fórmulas Cotización'!$C$4+'Fórmulas Cotización'!AD$3,FALSE)),0,VLOOKUP($C11,'Tarifas Secure'!$A$105:$AH$174,'Fórmulas Cotización'!$C$4+'Fórmulas Cotización'!AD$3,FALSE)) -> 0 | AE11: =IF(ISERROR(VLOOKUP($C11,'Tarifas Secure'!$A$105:$AH$174,'Fórmulas Cotización'!$C$4+'Fórmulas Cotización'!AE$3,FALSE)),0,VLOOKUP($C11,'Tarifas Secure'!$A$105:$AH$174,'Fórmulas Cotización'!$C$4+'Fórmulas Cotización'!AE$3,FALSE)) -> 0 | AF11: =IF(ISERROR(VLOOKUP($C11,'Tarifas Secure'!$A$105:$AH$174,'Fórmulas Cotización'!$C$4+'Fórmulas Cotización'!AF$3,FALSE)),0,VLOOKUP($C11,'Tarifas Secure'!$A$105:$AH$174,'Fórmulas Cotización'!$C$4+'Fórmulas Cotización'!AF$3,FALSE)) -> 0 | AH11: =IF(ISERROR(VLOOKUP($C11,'Bupa Total'!$A$105:$AH$174,'Fórmulas Cotización'!$C$4+'Fórmulas Cotización'!AH$3,FALSE)),0,VLOOKUP($C11,'Bupa Total'!$A$105:$AH$174,'Fórmulas Cotización'!$C$4+'Fórmulas Cotización'!AH$3,FALSE)) -> 0 | AI11: =IF(ISERROR(VLOOKUP($C11,'Bupa Total'!$A$105:$AH$174,'Fórmulas Cotización'!$C$4+'Fórmulas Cotización'!AI$3,FALSE)),0,VLOOKUP($C11,'Bupa Total'!$A$105:$AH$174,'Fórmulas Cotización'!$C$4+'Fórmulas Cotización'!AI$3,FALSE)) -> 0 | AJ11: =IF(ISERROR(VLOOKUP($C11,'Bupa Total'!$A$105:$AH$174,'Fórmulas Cotización'!$C$4+'Fórmulas Cotización'!AJ$3,FALSE)),0,VLOOKUP($C11,'Bupa Total'!$A$105:$AH$174,'Fórmulas Cotización'!$C$4+'Fórmulas Cotización'!AJ$3,FALSE)) -> 0 | AK11: =IF(ISERROR(VLOOKUP($C11,'Bupa Total'!$A$105:$AH$174,'Fórmulas Cotización'!$C$4+'Fórmulas Cotización'!AK$3,FALSE)),0,VLOOKUP($C11,'Bupa Total'!$A$105:$AH$174,'Fórmulas Cotización'!$C$4+'Fórmulas Cotización'!AK$3,FALSE)) -> 0 | AL11: =IF(ISERROR(VLOOKUP($C11,'Bupa Total'!$A$105:$AH$174,'Fórmulas Cotización'!$C$4+'Fórmulas Cotización'!AL$3,FALSE)),0,VLOOKUP($C11,'Bupa Total'!$A$105:$AH$174,'Fórmulas Cotización'!$C$4+'Fórmulas Cotización'!AL$3,FALSE)) -> 0 | AV11: Chiapas | AW11: Zona 5 | AX11: 5 | AY11: 0 | AZ11: 0
A12: Edad hijo5 | B12: =IF('BUPA CARE PRODUCTS'!#REF!="","",'BUPA CARE PRODUCTS'!#REF!) ->  | C12: =IF(B12<>"",IF(B12<18,$B$14&" Menor",B12),"") ->  | D12: =IF(ISERROR(VLOOKUP($C12,'Tarifas Advantage'!$A$105:$AH$174,'Fórmulas Cotización'!$C$4+'Fórmulas Cotización'!D$3,FALSE)),0,VLOOKUP($C12,'Tarifas Advantage'!$A$105:$AH$174,'Fórmulas Cotización'!$C$4+'Fórmulas Cotización'!D$3,FALSE)) -> 0 | E12: =IF(ISERROR(VLOOKUP($C12,'Tarifas Advantage'!$A$105:$AH$174,'Fórmulas Cotización'!$C$4+'Fórmulas Cotización'!E$3,FALSE)),0,VLOOKUP($C12,'Tarifas Advantage'!$A$105:$AH$174,'Fórmulas Cotización'!$C$4+'Fórmulas Cotización'!E$3,FALSE)) -> 0 | F12: =IF(ISERROR(VLOOKUP($C12,'Tarifas Advantage'!$A$105:$AH$174,'Fórmulas Cotización'!$C$4+'Fórmulas Cotización'!F$3,FALSE)),0,VLOOKUP($C12,'Tarifas Advantage'!$A$105:$AH$174,'Fórmulas Cotización'!$C$4+'Fórmulas Cotización'!F$3,FALSE)) -> 0 | G12: =IF(ISERROR(VLOOKUP($C12,'Tarifas Advantage'!$A$105:$AH$174,'Fórmulas Cotización'!$C$4+'Fórmulas Cotización'!G$3,FALSE)),0,VLOOKUP($C12,'Tarifas Advantage'!$A$105:$AH$174,'Fórmulas Cotización'!$C$4+'Fórmulas Cotización'!G$3,FALSE)) -> 0 | H12: =IF(ISERROR(VLOOKUP($C12,'Tarifas Advantage'!$A$105:$AH$174,'Fórmulas Cotización'!$C$4+'Fórmulas Cotización'!H$3,FALSE)),0,VLOOKUP($C12,'Tarifas Advantage'!$A$105:$AH$174,'Fórmulas Cotización'!$C$4+'Fórmulas Cotización'!H$3,FALSE)) -> 0 | J12: =IF(ISERROR(VLOOKUP($C12,'Tarifas Complete'!$A$105:$AH$174,'Fórmulas Cotización'!$C$4+'Fórmulas Cotización'!J$3,FALSE)),0,VLOOKUP($C12,'Tarifas Complete'!$A$105:$AH$174,'Fórmulas Cotización'!$C$4+'Fórmulas Cotización'!J$3,FALSE)) -> 0 | K12: =IF(ISERROR(VLOOKUP($C12,'Tarifas Complete'!$A$105:$AH$174,'Fórmulas Cotización'!$C$4+'Fórmulas Cotización'!K$3,FALSE)),0,VLOOKUP($C12,'Tarifas Complete'!$A$105:$AH$174,'Fórmulas Cotización'!$C$4+'Fórmulas Cotización'!K$3,FALSE)) -> 0 | L12: =IF(ISERROR(VLOOKUP($C12,'Tarifas Complete'!$A$105:$AH$174,'Fórmulas Cotización'!$C$4+'Fórmulas Cotización'!L$3,FALSE)),0,VLOOKUP($C12,'Tarifas Complete'!$A$105:$AH$174,'Fórmulas Cotización'!$C$4+'Fórmulas Cotización'!L$3,FALSE)) -> 0 | M12: =IF(ISERROR(VLOOKUP($C12,'Tarifas Complete'!$A$105:$AH$174,'Fórmulas Cotización'!$C$4+'Fórmulas Cotización'!M$3,FALSE)),0,VLOOKUP($C12,'Tarifas Complete'!$A$105:$AH$174,'Fórmulas Cotización'!$C$4+'Fórmulas Cotización'!M$3,FALSE)) -> 0 | N12: =IF(ISERROR(VLOOKUP($C12,'Tarifas Complete'!$A$105:$AH$174,'Fórmulas Cotización'!$C$4+'Fórmulas Cotización'!N$3,FALSE)),0,VLOOKUP($C12,'Tarifas Complete'!$A$105:$AH$174,'Fórmulas Cotización'!$C$4+'Fórmulas Cotización'!N$3,FALSE)) -> 0 | P12: =IF(ISERROR(VLOOKUP($C12,'Tarifas Diamond'!$A$105:$AH$174,'Fórmulas Cotización'!$C$4+'Fórmulas Cotización'!P$3,FALSE)),0,VLOOKUP($C12,'Tarifas Diamond'!$A$105:$AH$174,'Fórmulas Cotización'!$C$4+'Fórmulas Cotización'!P$3,FALSE)) -> 0 | Q12: =IF(ISERROR(VLOOKUP($C12,'Tarifas Diamond'!$A$105:$AH$174,'Fórmulas Cotización'!$C$4+'Fórmulas Cotización'!Q$3,FALSE)),0,VLOOKUP($C12,'Tarifas Diamond'!$A$105:$AH$174,'Fórmulas Cotización'!$C$4+'Fórmulas Cotización'!Q$3,FALSE)) -> 0 | R12: =IF(ISERROR(VLOOKUP($C12,'Tarifas Diamond'!$A$105:$AH$174,'Fórmulas Cotización'!$C$4+'Fórmulas Cotización'!R$3,FALSE)),0,VLOOKUP($C12,'Tarifas Diamond'!$A$105:$AH$174,'Fórmulas Cotización'!$C$4+'Fórmulas Cotización'!R$3,FALSE)) -> 0 | S12: =IF(ISERROR(VLOOKUP($C12,'Tarifas Diamond'!$A$105:$AH$174,'Fórmulas Cotización'!$C$4+'Fórmulas Cotización'!S$3,FALSE)),0,VLOOKUP($C12,'Tarifas Diamond'!$A$105:$AH$174,'Fórmulas Cotización'!$C$4+'Fórmulas Cotización'!S$3,FALSE)) -> 0 | T12: =IF(ISERROR(VLOOKUP($C12,'Tarifas Diamond'!$A$105:$AH$174,'Fórmulas Cotización'!$C$4+'Fórmulas Cotización'!T$3,FALSE)),0,VLOOKUP($C12,'Tarifas Diamond'!$A$105:$AH$174,'Fórmulas Cotización'!$C$4+'Fórmulas Cotización'!T$3,FALSE)) -> 0 | V12: =IF(ISERROR(VLOOKUP($C12,'Tarifas Essential'!$A$105:$AH$174,'Fórmulas Cotización'!$C$4+'Fórmulas Cotización'!V$3,FALSE)),0,VLOOKUP($C12,'Tarifas Essential'!$A$105:$AH$174,'Fórmulas Cotización'!$C$4+'Fórmulas Cotización'!V$3,FALSE)) -> 0 | W12: =IF(ISERROR(VLOOKUP($C12,'Tarifas Essential'!$A$105:$AH$174,'Fórmulas Cotización'!$C$4+'Fórmulas Cotización'!W$3,FALSE)),0,VLOOKUP($C12,'Tarifas Essential'!$A$105:$AH$174,'Fórmulas Cotización'!$C$4+'Fórmulas Cotización'!W$3,FALSE)) -> 0 | X12: =IF(ISERROR(VLOOKUP($C12,'Tarifas Essential'!$A$105:$AH$174,'Fórmulas Cotización'!$C$4+'Fórmulas Cotización'!X$3,FALSE)),0,VLOOKUP($C12,'Tarifas Essential'!$A$105:$AH$174,'Fórmulas Cotización'!$C$4+'Fórmulas Cotización'!X$3,FALSE)) -> 0 | Y12: =IF(ISERROR(VLOOKUP($C12,'Tarifas Essential'!$A$105:$AH$174,'Fórmulas Cotización'!$C$4+'Fórmulas Cotización'!Y$3,FALSE)),0,VLOOKUP($C12,'Tarifas Essential'!$A$105:$AH$174,'Fórmulas Cotización'!$C$4+'Fórmulas Cotización'!Y$3,FALSE)) -> 0 | Z12: =IF(ISERROR(VLOOKUP($C12,'Tarifas Essential'!$A$105:$AH$174,'Fórmulas Cotización'!$C$4+'Fórmulas Cotización'!Z$3,FALSE)),0,VLOOKUP($C12,'Tarifas Essential'!$A$105:$AH$174,'Fórmulas Cotización'!$C$4+'Fórmulas Cotización'!Z$3,FALSE)) -> 0 | AB12: =IF(ISERROR(VLOOKUP($C12,'Tarifas Secure'!$A$105:$AH$174,'Fórmulas Cotización'!$C$4+'Fórmulas Cotización'!AB$3,FALSE)),0,VLOOKUP($C12,'Tarifas Secure'!$A$105:$AH$174,'Fórmulas Cotización'!$C$4+'Fórmulas Cotización'!AB$3,FALSE)) -> 0 | AC12: =IF(ISERROR(VLOOKUP($C12,'Tarifas Secure'!$A$105:$AH$174,'Fórmulas Cotización'!$C$4+'Fórmulas Cotización'!AC$3,FALSE)),0,VLOOKUP($C12,'Tarifas Secure'!$A$105:$AH$174,'Fórmulas Cotización'!$C$4+'Fórmulas Cotización'!AC$3,FALSE)) -> 0 | AD12: =IF(ISERROR(VLOOKUP($C12,'Tarifas Secure'!$A$105:$AH$174,'Fórmulas Cotización'!$C$4+'Fórmulas Cotización'!AD$3,FALSE)),0,VLOOKUP($C12,'Tarifas Secure'!$A$105:$AH$174,'Fórmulas Cotización'!$C$4+'Fórmulas Cotización'!AD$3,FALSE)) -> 0 | AE12: =IF(ISERROR(VLOOKUP($C12,'Tarifas Secure'!$A$105:$AH$174,'Fórmulas Cotización'!$C$4+'Fórmulas Cotización'!AE$3,FALSE)),0,VLOOKUP($C12,'Tarifas Secure'!$A$105:$AH$174,'Fórmulas Cotización'!$C$4+'Fórmulas Cotización'!AE$3,FALSE)) -> 0 | AF12: =IF(ISERROR(VLOOKUP($C12,'Tarifas Secure'!$A$105:$AH$174,'Fórmulas Cotización'!$C$4+'Fórmulas Cotización'!AF$3,FALSE)),0,VLOOKUP($C12,'Tarifas Secure'!$A$105:$AH$174,'Fórmulas Cotización'!$C$4+'Fórmulas Cotización'!AF$3,FALSE)) -> 0 | AH12: =IF(ISERROR(VLOOKUP($C12,'Bupa Total'!$A$105:$AH$174,'Fórmulas Cotización'!$C$4+'Fórmulas Cotización'!AH$3,FALSE)),0,VLOOKUP($C12,'Bupa Total'!$A$105:$AH$174,'Fórmulas Cotización'!$C$4+'Fórmulas Cotización'!AH$3,FALSE)) -> 0 | AI12: =IF(ISERROR(VLOOKUP($C12,'Bupa Total'!$A$105:$AH$174,'Fórmulas Cotización'!$C$4+'Fórmulas Cotización'!AI$3,FALSE)),0,VLOOKUP($C12,'Bupa Total'!$A$105:$AH$174,'Fórmulas Cotización'!$C$4+'Fórmulas Cotización'!AI$3,FALSE)) -> 0 | AJ12: =IF(ISERROR(VLOOKUP($C12,'Bupa Total'!$A$105:$AH$174,'Fórmulas Cotización'!$C$4+'Fórmulas Cotización'!AJ$3,FALSE)),0,VLOOKUP($C12,'Bupa Total'!$A$105:$AH$174,'Fórmulas Cotización'!$C$4+'Fórmulas Cotización'!AJ$3,FALSE)) -> 0 | AK12: =IF(ISERROR(VLOOKUP($C12,'Bupa Total'!$A$105:$AH$174,'Fórmulas Cotización'!$C$4+'Fórmulas Cotización'!AK$3,FALSE)),0,VLOOKUP($C12,'Bupa Total'!$A$105:$AH$174,'Fórmulas Cotización'!$C$4+'Fórmulas Cotización'!AK$3,FALSE)) -> 0 | AL12: =IF(ISERROR(VLOOKUP($C12,'Bupa Total'!$A$105:$AH$174,'Fórmulas Cotización'!$C$4+'Fórmulas Cotización'!AL$3,FALSE)),0,VLOOKUP($C12,'Bupa Total'!$A$105:$AH$174,'Fórmulas Cotización'!$C$4+'Fórmulas Cotización'!AL$3,FALSE)) -> 0 | AV12: Chihuahua | AW12: Zona 3 | AX12: 3 | AY12: 0 | AZ12: 0
D13: =SUM(D8:D12) -> 0 | E13: =SUM(E8:E12) -> 0 | F13: =SUM(F8:F12) -> 0 | G13: =SUM(G8:G12) -> 0 | H13: =SUM(H8:H12) -> 0 | J13: =SUM(J8:J12) -> 0 | K13: =SUM(K8:K12) -> 0 | L13: =SUM(L8:L12) -> 0 | M13: =SUM(M8:M12) -> 0 | N13: =SUM(N8:N12) -> 0 | P13: =SUM(P8:P12) -> 0 | Q13: =SUM(Q8:Q12) -> 0 | R13: =SUM(R8:R12) -> 0 | S13: =SUM(S8:S12) -> 0 | T13: =SUM(T8:T12) -> 0 | V13: =SUM(V8:V12) -> 0 | W13: =SUM(W8:W12) -> 0 | X13: =SUM(X8:X12) -> 0 | Y13: =SUM(Y8:Y12) -> 0 | Z13: =SUM(Z8:Z12) -> 0 | AB13: =SUM(AB8:AB12) -> 0 | AC13: =SUM(AC8:AC12) -> 0 | AD13: =SUM(AD8:AD12) -> 0 | AE13: =SUM(AE8:AE12) -> 0 | AF13: =SUM(AF8:AF12) -> 0 | AH13: =SUM(AH8:AH12) -> 0 | AI13: =SUM(AI8:AI12) -> 0 | AJ13: =SUM(AJ8:AJ12) -> 0 | AK13: =SUM(AK8:AK12) -> 0 | AL13: =SUM(AL8:AL12) -> 0 | AV13: Distrito Federal | AW13: Zona 1 | AX13: 1 | AY13: 0 | AZ13: 0
A14: Cantidad hijos | B14: =COUNTIF(B8:B12,"<18") -> 0 | AV14: Durango | AW14: Zona 4 | AX14: 4 | AY14: 0 | AZ14: 0
A15: Derechos póliza | B15: 0 | AV15: Guanajuato | AW15: Zona 4 | AX15: 4 | AY15: 0 | AZ15: 0
AV16: Guerrero (solo Acapulco y Zihuatanejo) | AW16: Zona 3 | AX16: =MID(AW16,6,1) -> 3 | AY16: 0 | AZ16: 0
AV17: Guerrero (excepto Acapulco y Zihuatanejo) | AW17: Zona 5 | AX17: 5 | AY17: 0 | AZ17: 0
AF18: =VLOOKUP($B$4,$AV$3:$AZ$39,5,0) -> 0 | AV18: Hidalgo | AW18: Zona 3 | AX18: 3 | AY18: 0 | AZ18: 0
C19: Complicaciones | D19: 2813 | V19: =VLOOKUP($B$4,$AV$3:$AY$39,4,0) -> 0 | AV19: Jalisco | AW19: Zona 3 | AX19: 3 | AY19: 0 | AZ19: 0
C20: Trasplantes | D20: 3525 | AV20: Edo. Mexico (solo área metropolitana) | AW20: Zona 1 | AX20: 1 | AY20: 0 | AZ20: 0
C21: Congénitos | D21: 3000 | F21: =MID(B4,1,16) -> Edo. Mexico (sol | AV21: Edo. Mexico (excepto área metropolitana) | AW21: Zona 3 | AX21: 3 | AY21: 0 | AZ21: 0
E22: complicaciones | F22: trans | G22: congenitas | AV22: Michoacán | AW22: Zona 5 | AX22: 5 | AY22: 0 | AZ22: 0
B23: 1 | C23: 1 Menor | D23: Diamond | E23: 3100 | F23: 3875 | G23: 3300 | AV23: Morelos | AW23: Zona 3 | AX23: 3 | AY23: 0 | AZ23: 0
B24: 2 | C24: 2 Menor | D24: complete | E24: 3100 | F24: 3875 | G24: 3300 | AV24: Nayarit | AW24: Zona 4 | AX24: 4 | AY24: 0 | AZ24: 0
B25: 3 | C25: 3 Menor | D25: advantage | E25: 3100 | F25: 3875 | G25: 3300 | AV25: Nuevo León | AW25: Zona 2 | AX25: 2 | AY25: 0 | AZ25: 0
D26: secure | E26: 3100 | F26: 3875 | G26: 3300 | AV26: Oaxaca | AW26: Zona 5 | AX26: 5 | AY26: 0 | AZ26: 0
D27: essential | E27: 3100 | F27: 3875 | G27: 3300 | AV27: Puebla | AW27: Zona 3 | AX27: 3 | AY27: 0 | AZ27: 0
D28: total | E28: 3100 | F28: 3875 | G28: 3300 | AV28: Querétaro | AW28: Zona 4 | AX28: 4 | AY28: 0 | AZ28: 0
AV29: Quintana Roo | AW29: Zona 4 | AX29: 4 | AY29: 0 | AZ29: 0
A31: Zona selecionada | B31: =VLOOKUP(B4,AV3:AX39,3,FALSE) -> 1 | D31: Advantage | J31: Complete | P31: Diamond | V31: Essential | AB31: Secure | AH31: Total | AV31: San Luis Potosí | AW31: Zona 5 | AX31: =MID(AW31,6,1) -> 5 | AY31: 0 | AZ31: 0
A32: Formulacion otros dependientes | D32: 2 | E32: =D32+1 -> 3 | F32: =E32+1 -> 4 | G32: =F32+1 -> 5 | H32: =G32+1 -> 6 | J32: 2 | K32: =J32+1 -> 3 | L32: =K32+1 -> 4 | M32: =L32+1 -> 5 | N32: =M32+1 -> 6 | P32: 2 | Q32: =P32+1 -> 3 | R32: =Q32+1 -> 4 | S32: =R32+1 -> 5 | T32: =S32+1 -> 6 | V32: 2 | W32: =V32+1 -> 3 | X32: =W32+1 -> 4 | Y32: =X32+1 -> 5 | Z32: =Y32+1 -> 6 | AB32: 2 | AC32: =AB32+1 -> 3 | AD32: =AC32+1 -> 4 | AE32: =AD32+1 -> 5 | AF32: =AE32+1 -> 6 | AH32: 2 | AI32: =AH32+1 -> 3 | AJ32: =AI32+1 -> 4 | AK32: =AJ32+1 -> 5 | AL32: =AK32+1 -> 6 | AV32: Sinaloa | AW32: Zona 4 | AX32: 4 | AY32: 0 | AZ32: 0
A33: ID | B33: EDAD | C33: Deducibles | D33: 1000 | E33: 2000 | F33: 5000 | G33: 10000 | H33: 20000 | J33: 1000 | K33: 2000 | L33: 5000 | M33: 10000 | N33: 20000 | P33: 1000 | Q33: 2000 | R33: 5000 | S33: 10000 | T33: 20000 | V33: 1000 | W33: 2000 | X33: 5000 | Y33: 10000 | Z33: 20000 | AB33: 1000 | AC33: 2000 | AD33: 5000 | AE33: 10000 | AF33: 20000 | AH33: 1000 | AI33: 2000 | AJ33: 5000 | AK33: 10000 | AL33: 20000 | AV33: Sonora | AW33: Zona 2 | AX33: 2 | AY33: 0 | AZ33: 0
A34: 1 | B34: ='BUPA CARE PRODUCTS'!H14 -> 0 | D34: =IF(B34>0,IF($B$32=1,IF($B34<18,'Tarifas Advantage'!$B$108,VLOOKUP('Fórmulas Cotización'!$B34,'Tarifas Advantage'!$A$108:$F$174,2)), IF($B$32=2,IF($B34<18,'Tarifas Advantage'!$I$108,VLOOKUP('Fórmulas Cotización'!$B34,'Tarifas Advantage'!$H$108:$M$174,2)), IF($B$32=3,IF($B34<18,'Tarifas Advantage'!$P$108,VLOOKUP('Fórmulas Cotización'!$B34,'Tarifas Advantage'!$O$108:$T$174,2)), IF($B$32=4,IF($B34<18,'Tarifas Advantage'!$W$108,VLOOKUP('Fórmulas Cotización'!$B34,'Tarifas Advantage'!$V$108:$AA$174,2)), IF($B34<18,'Tarifas Advantage'!$AD$108,VLOOKUP('Fórmulas Cotización'!$B34,'Tarifas Advantage'!$AC$108:$AH$174,2)))))),0) -> 0 | E34: =IF(B34>0,IF($B$32=1,IF($B34<18,'Tarifas Advantage'!$B$108,VLOOKUP('Fórmulas Cotización'!$B34,'Tarifas Advantage'!$A$108:$F$174,3)), IF($B$32=2,IF($B34<18,'Tarifas Advantage'!$I$108,VLOOKUP('Fórmulas Cotización'!$B34,'Tarifas Advantage'!$H$108:$M$174,3)), IF($B$32=3,IF($B34<18,'Tarifas Advantage'!$P$108,VLOOKUP('Fórmulas Cotización'!$B34,'Tarifas Advantage'!$O$108:$T$174,3)), IF($B$32=4,IF($B34<18,'Tarifas Advantage'!$W$108,VLOOKUP('Fórmulas Cotización'!$B34,'Tarifas Advantage'!$V$108:$AA$174,3)), IF($B34<18,'Tarifas Advantage'!$AE$108,VLOOKUP('Fórmulas Cotización'!$B34,'Tarifas Advantage'!$AC$108:$AH$174,3)))))),0) -> 0 | F34: =IF(B34>0,IF($B$32=1,IF($B34<18,'Tarifas Advantage'!$B$108,VLOOKUP('Fórmulas Cotización'!$B34,'Tarifas Advantage'!$A$108:$F$174,4)), IF($B$32=2,IF($B34<18,'Tarifas Advantage'!$I$108,VLOOKUP('Fórmulas Cotización'!$B34,'Tarifas Advantage'!$H$108:$M$174,4)), IF($B$32=3,IF($B34<18,'Tarifas Advantage'!$P$108,VLOOKUP('Fórmulas Cotización'!$B34,'Tarifas Advantage'!$O$108:$T$174,4)), IF($B$32=4,IF($B34<18,'Tarifas Advantage'!$W$108,VLOOKUP('Fórmulas Cotización'!$B34,'Tarifas Advantage'!$V$108:$AA$174,4)), IF($B34<18,'Tarifas Advantage'!$AF$108,VLOOKUP('Fórmulas Cotización'!$B34,'Tarifas Advantage'!$AC$108:$AH$174,4)))))),0) -> 0 | G34: =IF(B34>0,IF($B$32=1,IF($B34<18,'Tarifas Advantage'!$B$108,VLOOKUP('Fórmulas Cotización'!$B34,'Tarifas Advantage'!$A$108:$F$174,5)), IF($B$32=2,IF($B34<18,'Tarifas Advantage'!$I$108,VLOOKUP('Fórmulas Cotización'!$B34,'Tarifas Advantage'!$H$108:$M$174,5)), IF($B$32=3,IF($B34<18,'Tarifas Advantage'!$P$108,VLOOKUP('Fórmulas Cotización'!$B34,'Tarifas Advantage'!$O$108:$T$174,5)), IF($B$32=4,IF($B34<18,'Tarifas Advantage'!$W$108,VLOOKUP('Fórmulas Cotización'!$B34,'Tarifas Advantage'!$V$108:$AA$174,5)), IF($B34<18,'Tarifas Advantage'!$AG$108,VLOOKUP('Fórmulas Cotización'!$B34,'Tarifas Advantage'!$AC$108:$AH$174,5)))))),0) -> 0 | H34: =IF(B34>0,IF($B$32=1,IF($B34<18,'Tarifas Advantage'!$B$108,VLOOKUP('Fórmulas Cotización'!$B34,'Tarifas Advantage'!$A$108:$F$174,6)), IF($B$32=2,IF($B34<18,'Tarifas Advantage'!$I$108,VLOOKUP('Fórmulas Cotización'!$B34,'Tarifas Advantage'!$H$108:$M$174,6)), IF($B$32=3,IF($B34<18,'Tarifas Advantage'!$P$108,VLOOKUP('Fórmulas Cotización'!$B34,'Tarifas Advantage'!$O$108:$T$174,6)), IF($B$32=4,IF($B34<18,'Tarifas Advantage'!$W$108,VLOOKUP('Fórmulas Cotización'!$B34,'Tarifas Advantage'!$V$108:$AA$174,6)), IF($B34<18,'Tarifas Advantage'!$AH$108,VLOOKUP('Fórmulas Cotización'!$B34,'Tarifas Advantage'!$AC$108:$AH$174,6)))))),0) -> 0 | J34: =IF(B34>0,IF($B$32=1,IF($B34<18,'Tarifas Complete'!$B$108,VLOOKUP('Fórmulas Cotización'!$B34,'Tarifas Complete'!$A$108:$F$174,2)), IF($B$32=2,IF($B34<18,'Tarifas Complete'!$I$108,VLOOKUP('Fórmulas Cotización'!$B34,'Tarifas Complete'!$H$108:$M$174,2)), IF($B$32=3,IF($B34<18,'Tarifas Complete'!$P$108,VLOOKUP('Fórmulas Cotización'!$B34,'Tarifas Complete'!$O$108:$T$174,2)), IF($B$32=4,IF($B34<18,'Tarifas Complete'!$W$108,VLOOKUP('Fórmulas Cotización'!$B34,'Tarifas Complete'!$V$108:$AA$174,2)), IF($B34<18,'Tarifas Complete'!$AD$108,VLOOKUP('Fórmulas Cotización'!$B34,'Tarifas Complete'!$AC$108:$AH$174,2)))))),0) -> 0 | K34: =IF(B34>0,IF($B$32=1,IF($B34<18,'Tarifas Complete'!$B$108,VLOOKUP('Fórmulas Cotización'!$B34,'Tarifas Complete'!$A$108:$F$174,3)), IF($B$32=2,IF($B34<18,'Tarifas Complete'!$I$108,VLOOKUP('Fórmulas Cotización'!$B34,'Tarifas Complete'!$H$108:$M$174,3)), IF($B$32=3,IF($B34<18,'Tarifas Complete'!$P$108,VLOOKUP('Fórmulas Cotización'!$B34,'Tarifas Complete'!$O$108:$T$174,3)), IF($B$32=4,IF($B34<18,'Tarifas Complete'!$W$108,VLOOKUP('Fórmulas Cotización'!$B34,'Tarifas Complete'!$V$108:$AA$174,3)), IF($B34<18,'Tarifas Complete'!$AE$108,VLOOKUP('Fórmulas Cotización'!$B34,'Tarifas Complete'!$AC$108:$AH$174,3)))))),0) -> 0 | L34: =IF(B34>0,IF($B$32=1,IF($B34<18,'Tarifas Complete'!$B$108,VLOOKUP('Fórmulas Cotización'!$B34,'Tarifas Complete'!$A$108:$F$174,4)), IF($B$32=2,IF($B34<18,'Tarifas Complete'!$I$108,VLOOKUP('Fórmulas Cotización'!$B34,'Tarifas Complete'!$H$108:$M$174,4)), IF($B$32=3,IF($B34<18,'Tarifas Complete'!$P$108,VLOOKUP('Fórmulas Cotización'!$B34,'Tarifas Complete'!$O$108:$T$174,4)), IF($B$32=4,IF($B34<18,'Tarifas Complete'!$W$108,VLOOKUP('Fórmulas Cotización'!$B34,'Tarifas Complete'!$V$108:$AA$174,4)), IF($B34<18,'Tarifas Complete'!$AF$108,VLOOKUP('Fórmulas Cotización'!$B34,'Tarifas Complete'!$AC$108:$AH$174,4)))))),0) -> 0 | M34: =IF(B34>0,IF($B$32=1,IF($B34<18,'Tarifas Complete'!$B$108,VLOOKUP('Fórmulas Cotización'!$B34,'Tarifas Complete'!$A$108:$F$174,5)), IF($B$32=2,IF($B34<18,'Tarifas Complete'!$I$108,VLOOKUP('Fórmulas Cotización'!$B34,'Tarifas Complete'!$H$108:$M$174,5)), IF($B$32=3,IF($B34<18,'Tarifas Complete'!$P$108,VLOOKUP('Fórmulas Cotización'!$B34,'Tarifas Complete'!$O$108:$T$174,5)), IF($B$32=4,IF($B34<18,'Tarifas Complete'!$W$108,VLOOKUP('Fórmulas Cotización'!$B34,'Tarifas Complete'!$V$108:$AA$174,5)), IF($B34<18,'Tarifas Complete'!$AG$108,VLOOKUP('Fórmulas Cotización'!$B34,'Tarifas Complete'!$AC$108:$AH$174,5)))))),0) -> 0 | N34: =IF(B34>0,IF($B$32=1,IF($B34<18,'Tarifas Complete'!$B$108,VLOOKUP('Fórmulas Cotización'!$B34,'Tarifas Complete'!$A$108:$F$174,6)), IF($B$32=2,IF($B34<18,'Tarifas Complete'!$I$108,VLOOKUP('Fórmulas Cotización'!$B34,'Tarifas Complete'!$H$108:$M$174,6)), IF($B$32=3,IF($B34<18,'Tarifas Complete'!$P$108,VLOOKUP('Fórmulas Cotización'!$B34,'Tarifas Complete'!$O$108:$T$174,6)), IF($B$32=4,IF($B34<18,'Tarifas Complete'!$W$108,VLOOKUP('Fórmulas Cotización'!$B34,'Tarifas Complete'!$V$108:$AA$174,6)), IF($B34<18,'Tarifas Complete'!$AH$108,VLOOKUP('Fórmulas Cotización'!$B34,'Tarifas Complete'!$AC$108:$AH$174,6)))))),0) -> 0 | P34: =IF(B34>0,IF($B$32=1,IF($B34<18,'Tarifas Diamond'!$B$108,VLOOKUP('Fórmulas Cotización'!$B34,'Tarifas Diamond'!$A$108:$F$174,2)), IF($B$32=2,IF($B34<18,'Tarifas Diamond'!$I$108,VLOOKUP('Fórmulas Cotización'!$B34,'Tarifas Diamond'!$H$108:$M$174,2)), IF($B$32=3,IF($B34<18,'Tarifas Diamond'!$P$108,VLOOKUP('Fórmulas Cotización'!$B34,'Tarifas Diamond'!$O$108:$T$174,2)), IF($B$32=4,IF($B34<18,'Tarifas Diamond'!$W$108,VLOOKUP('Fórmulas Cotización'!$B34,'Tarifas Diamond'!$V$108:$AA$174,2)), IF($B34<18,'Tarifas Diamond'!$AD$108,VLOOKUP('Fórmulas Cotización'!$B34,'Tarifas Diamond'!$AC$108:$AH$174,2)))))),0) -> 0 | Q34: =IF(B34>0,IF($B$32=1,IF($B34<18,'Tarifas Diamond'!$B$108,VLOOKUP('Fórmulas Cotización'!$B34,'Tarifas Diamond'!$A$108:$F$174,3)), IF($B$32=2,IF($B34<18,'Tarifas Diamond'!$I$108,VLOOKUP('Fórmulas Cotización'!$B34,'Tarifas Diamond'!$H$108:$M$174,3)), IF($B$32=3,IF($B34<18,'Tarifas Diamond'!$P$108,VLOOKUP('Fórmulas Cotización'!$B34,'Tarifas Diamond'!$O$108:$T$174,3)), IF($B$32=4,IF($B34<18,'Tarifas Diamond'!$W$108,VLOOKUP('Fórmulas Cotización'!$B34,'Tarifas Diamond'!$V$108:$AA$174,3)), IF($B34<18,'Tarifas Diamond'!$AE$108,VLOOKUP('Fórmulas Cotización'!$B34,'Tarifas Diamond'!$AC$108:$AH$174,3)))))),0) -> 0 | R34: =IF(B34>0,IF($B$32=1,IF($B34<18,'Tarifas Diamond'!$B$108,VLOOKUP('Fórmulas Cotización'!$B34,'Tarifas Diamond'!$A$108:$F$174,4)), IF($B$32=2,IF($B34<18,'Tarifas Diamond'!$I$108,VLOOKUP('Fórmulas Cotización'!$B34,'Tarifas Diamond'!$H$108:$M$174,4)), IF($B$32=3,IF($B34<18,'Tarifas Diamond'!$P$108,VLOOKUP('Fórmulas Cotización'!$B34,'Tarifas Diamond'!$O$108:$T$174,4)), IF($B$32=4,IF($B34<18,'Tarifas Diamond'!$W$108,VLOOKUP('Fórmulas Cotización'!$B34,'Tarifas Diamond'!$V$108:$AA$174,4)), IF($B34<18,'Tarifas Diamond'!$AF$108,VLOOKUP('Fórmulas Cotización'!$B34,'Tarifas Diamond'!$AC$108:$AH$174,4)))))),0) -> 0 | S34: =IF(B34>0,IF($B$32=1,IF($B34<18,'Tarifas Diamond'!$B$108,VLOOKUP('Fórmulas Cotización'!$B34,'Tarifas Diamond'!$A$108:$F$174,5)), IF($B$32=2,IF($B34<18,'Tarifas Diamond'!$I$108,VLOOKUP('Fórmulas Cotización'!$B34,'Tarifas Diamond'!$H$108:$M$174,5)), IF($B$32=3,IF($B34<18,'Tarifas Diamond'!$P$108,VLOOKUP('Fórmulas Cotización'!$B34,'Tarifas Diamond'!$O$108:$T$174,5)), IF($B$32=4,IF($B34<18,'Tarifas Diamond'!$W$108,VLOOKUP('Fórmulas Cotización'!$B34,'Tarifas Diamond'!$V$108:$AA$174,5)), IF($B34<18,'Tarifas Diamond'!$AG$108,VLOOKUP('Fórmulas Cotización'!$B34,'Tarifas Diamond'!$AC$108:$AH$174,5)))))),0) -> 0 | T34: =IF(B34>0,IF($B$32=1,IF($B34<18,'Tarifas Diamond'!$B$108,VLOOKUP('Fórmulas Cotización'!$B34,'Tarifas Diamond'!$A$108:$F$174,6)), IF($B$32=2,IF($B34<18,'Tarifas Diamond'!$I$108,VLOOKUP('Fórmulas Cotización'!$B34,'Tarifas Diamond'!$H$108:$M$174,6)), IF($B$32=3,IF($B34<18,'Tarifas Diamond'!$P$108,VLOOKUP('Fórmulas Cotización'!$B34,'Tarifas Diamond'!$O$108:$T$174,6)), IF($B$32=4,IF($B34<18,'Tarifas Diamond'!$W$108,VLOOKUP('Fórmulas Cotización'!$B34,'Tarifas Diamond'!$V$108:$AA$174,6)), IF($B34<18,'Tarifas Diamond'!$AH$108,VLOOKUP('Fórmulas Cotización'!$B34,'Tarifas Diamond'!$AC$108:$AH$174,6)))))),0) -> 0 | V34: =IF(B34>0,IF($B$32=1,IF($B34<18,'Tarifas Essential'!$B$108,VLOOKUP('Fórmulas Cotización'!$B34,'Tarifas Essential'!$A$108:$F$174,2)), IF($B$32=2,IF($B34<18,'Tarifas Essential'!$I$108,VLOOKUP('Fórmulas Cotización'!$B34,'Tarifas Essential'!$H$108:$M$174,2)), IF($B$32=3,IF($B34<18,'Tarifas Essential'!$P$108,VLOOKUP('Fórmulas Cotización'!$B34,'Tarifas Essential'!$O$108:$T$174,2)), IF($B$32=4,IF($B34<18,'Tarifas Essential'!$W$108,VLOOKUP('Fórmulas Cotización'!$B34,'Tarifas Essential'!$V$108:$AA$174,2)), IF($B34<18,'Tarifas Essential'!$AD$108,VLOOKUP('Fórmulas Cotización'!$B34,'Tarifas Essential'!$AC$108:$AH$174,2)))))),0) -> 0 | W34: =IF(B34>0,IF($B$32=1,IF($B34<18,'Tarifas Essential'!$B$108,VLOOKUP('Fórmulas Cotización'!$B34,'Tarifas Essential'!$A$108:$F$174,3)), IF($B$32=2,IF($B34<18,'Tarifas Essential'!$I$108,VLOOKUP('Fórmulas Cotización'!$B34,'Tarifas Essential'!$H$108:$M$174,3)), IF($B$32=3,IF($B34<18,'Tarifas Essential'!$P$108,VLOOKUP('Fórmulas Cotización'!$B34,'Tarifas Essential'!$O$108:$T$174,3)), IF($B$32=4,IF($B34<18,'Tarifas Essential'!$W$108,VLOOKUP('Fórmulas Cotización'!$B34,'Tarifas Essential'!$V$108:$AA$174,3)), IF($B34<18,'Tarifas Essential'!$AE$108,VLOOKUP('Fórmulas Cotización'!$B34,'Tarifas Essential'!$AC$108:$AH$174,3)))))),0) -> 0 | X34: =IF(B34>0,IF($B$32=1,IF($B34<18,'Tarifas Essential'!$B$108,VLOOKUP('Fórmulas Cotización'!$B34,'Tarifas Essential'!$A$108:$F$174,4)), IF($B$32=2,IF($B34<18,'Tarifas Essential'!$I$108,VLOOKUP('Fórmulas Cotización'!$B34,'Tarifas Essential'!$H$108:$M$174,4)), IF($B$32=3,IF($B34<18,'Tarifas Essential'!$P$108,VLOOKUP('Fórmulas Cotización'!$B34,'Tarifas Essential'!$O$108:$T$174,4)), IF($B$32=4,IF($B34<18,'Tarifas Essential'!$W$108,VLOOKUP('Fórmulas Cotización'!$B34,'Tarifas Essential'!$V$108:$AA$174,4)), IF($B34<18,'Tarifas Essential'!$AF$108,VLOOKUP('Fórmulas Cotización'!$B34,'Tarifas Essential'!$AC$108:$AH$174,4)))))),0) -> 0 | Y34: =IF(B34>0,IF($B$32=1,IF($B34<18,'Tarifas Essential'!$B$108,VLOOKUP('Fórmulas Cotización'!$B34,'Tarifas Essential'!$A$108:$F$174,5)), IF($B$32=2,IF($B34<18,'Tarifas Essential'!$I$108,VLOOKUP('Fórmulas Cotización'!$B34,'Tarifas Essential'!$H$108:$M$174,5)), IF($B$32=3,IF($B34<18,'Tarifas Essential'!$P$108,VLOOKUP('Fórmulas Cotización'!$B34,'Tarifas Essential'!$O$108:$T$174,5)), IF($B$32=4,IF($B34<18,'Tarifas Essential'!$W$108,VLOOKUP('Fórmulas Cotización'!$B34,'Tarifas Essential'!$V$108:$AA$174,5)), IF($B34<18,'Tarifas Essential'!$AG$108,VLOOKUP('Fórmulas Cotización'!$B34,'Tarifas Essential'!$AC$108:$AH$174,5)))))),0) -> 0 | Z34: =IF(B34>0,IF($B$32=1,IF($B34<18,'Tarifas Essential'!$B$108,VLOOKUP('Fórmulas Cotización'!$B34,'Tarifas Essential'!$A$108:$F$174,6)), IF($B$32=2,IF($B34<18,'Tarifas Essential'!$I$108,VLOOKUP('Fórmulas Cotización'!$B34,'Tarifas Essential'!$H$108:$M$174,6)), IF($B$32=3,IF($B34<18,'Tarifas Essential'!$P$108,VLOOKUP('Fórmulas Cotización'!$B34,'Tarifas Essential'!$O$108:$T$174,6)), IF($B$32=4,IF($B34<18,'Tarifas Essential'!$W$108,VLOOKUP('Fórmulas Cotización'!$B34,'Tarifas Essential'!$V$108:$AA$174,6)), IF($B34<18,'Tarifas Essential'!$AH$108,VLOOKUP('Fórmulas Cotización'!$B34,'Tarifas Essential'!$AC$108:$AH$174,6)))))),0) -> 0 | AB34: =IF(B34>0,IF($B$32=1,IF($B34<18,'Tarifas Secure'!$B$108,VLOOKUP('Fórmulas Cotización'!$B34,'Tarifas Secure'!$A$108:$F$174,2)), IF($B$32=2,IF($B34<18,'Tarifas Secure'!$I$108,VLOOKUP('Fórmulas Cotización'!$B34,'Tarifas Secure'!$H$108:$M$174,2)), IF($B$32=3,IF($B34<18,'Tarifas Secure'!$P$108,VLOOKUP('Fórmulas Cotización'!$B34,'Tarifas Secure'!$O$108:$T$174,2)), IF($B$32=4,IF($B34<18,'Tarifas Secure'!$W$108,VLOOKUP('Fórmulas Cotización'!$B34,'Tarifas Secure'!$V$108:$AA$174,2)), IF($B34<18,'Tarifas Secure'!$AD$108,VLOOKUP('Fórmulas Cotización'!$B34,'Tarifas Secure'!$AC$108:$AH$174,2)))))),0) -> 0 | AC34: =IF(B34>0,IF($B$32=1,IF($B34<18,'Tarifas Secure'!$B$108,VLOOKUP('Fórmulas Cotización'!$B34,'Tarifas Secure'!$A$108:$F$174,3)), IF($B$32=2,IF($B34<18,'Tarifas Secure'!$I$108,VLOOKUP('Fórmulas Cotización'!$B34,'Tarifas Secure'!$H$108:$M$174,3)), IF($B$32=3,IF($B34<18,'Tarifas Secure'!$P$108,VLOOKUP('Fórmulas Cotización'!$B34,'Tarifas Secure'!$O$108:$T$174,3)), IF($B$32=4,IF($B34<18,'Tarifas Secure'!$W$108,VLOOKUP('Fórmulas Cotización'!$B34,'Tarifas Secure'!$V$108:$AA$174,3)), IF($B34<18,'Tarifas Secure'!$AE$108,VLOOKUP('Fórmulas Cotización'!$B34,'Tarifas Secure'!$AC$108:$AH$174,3)))))),0) -> 0 | AD34: =IF(B34>0,IF($B$32=1,IF($B34<18,'Tarifas Secure'!$B$108,VLOOKUP('Fórmulas Cotización'!$B34,'Tarifas Secure'!$A$108:$F$174,4)), IF($B$32=2,IF($B34<18,'Tarifas Secure'!$I$108,VLOOKUP('Fórmulas Cotización'!$B34,'Tarifas Secure'!$H$108:$M$174,4)), IF($B$32=3,IF($B34<18,'Tarifas Secure'!$P$108,VLOOKUP('Fórmulas Cotización'!$B34,'Tarifas Secure'!$O$108:$T$174,4)), IF($B$32=4,IF($B34<18,'Tarifas Secure'!$W$108,VLOOKUP('Fórmulas Cotización'!$B34,'Tarifas Secure'!$V$108:$AA$174,4)), IF($B34<18,'Tarifas Secure'!$AF$108,VLOOKUP('Fórmulas Cotización'!$B34,'Tarifas Secure'!$AC$108:$AH$174,4)))))),0) -> 0 | AE34: =IF(B34>0,IF($B$32=1,IF($B34<18,'Tarifas Secure'!$B$108,VLOOKUP('Fórmulas Cotización'!$B34,'Tarifas Secure'!$A$108:$F$174,5)), IF($B$32=2,IF($B34<18,'Tarifas Secure'!$I$108,VLOOKUP('Fórmulas Cotización'!$B34,'Tarifas Secure'!$H$108:$M$174,5)), IF($B$32=3,IF($B34<18,'Tarifas Secure'!$P$108,VLOOKUP('Fórmulas Cotización'!$B34,'Tarifas Secure'!$O$108:$T$174,5)), IF($B$32=4,IF($B34<18,'Tarifas Secure'!$W$108,VLOOKUP('Fórmulas Cotización'!$B34,'Tarifas Secure'!$V$108:$AA$174,5)), IF($B34<18,'Tarifas Secure'!$AG$108,VLOOKUP('Fórmulas Cotización'!$B34,'Tarifas Secure'!$AC$108:$AH$174,5)))))),0) -> 0 | AF34: =IF(B34>0,IF($B$32=1,IF($B34<18,'Tarifas Secure'!$B$108,VLOOKUP('Fórmulas Cotización'!$B34,'Tarifas Secure'!$A$108:$F$174,6)), IF($B$32=2,IF($B34<18,'Tarifas Secure'!$I$108,VLOOKUP('Fórmulas Cotización'!$B34,'Tarifas Secure'!$H$108:$M$174,6)), IF($B$32=3,IF($B34<18,'Tarifas Secure'!$P$108,VLOOKUP('Fórmulas Cotización'!$B34,'Tarifas Secure'!$O$108:$T$174,6)), IF($B$32=4,IF($B34<18,'Tarifas Secure'!$W$108,VLOOKUP('Fórmulas Cotización'!$B34,'Tarifas Secure'!$V$108:$AA$174,6)), IF($B34<18,'Tarifas Secure'!$AH$108,VLOOKUP('Fórmulas Cotización'!$B34,'Tarifas Secure'!$AC$108:$AH$174,6)))))),0) -> 0 | AH34: =IF(B34>0,IF($B$32=1,IF($B34<18,'Bupa Total'!$B$108,VLOOKUP('Fórmulas Cotización'!$B34,'Bupa Total'!$A$108:$F$174,2)), IF($B$32=2,IF($B34<18,'Bupa Total'!$I$108,VLOOKUP('Fórmulas Cotización'!$B34,'Bupa Total'!$H$108:$M$174,2)), IF($B$32=3,IF($B34<18,'Bupa Total'!$P$108,VLOOKUP('Fórmulas Cotización'!$B34,'Bupa Total'!$O$108:$T$174,2)), IF($B$32=4,IF($B34<18,'Bupa Total'!$W$108,VLOOKUP('Fórmulas Cotización'!$B34,'Bupa Total'!$V$108:$AA$174,2)), IF($B34<18,'Bupa Total'!$AD$108,VLOOKUP('Fórmulas Cotización'!$B34,'Bupa Total'!$AC$108:$AH$174,2)))))),0) -> 0 | AI34: =IF(B34>0,IF($B$32=1,IF($B34<18,'Bupa Total'!$B$108,VLOOKUP('Fórmulas Cotización'!$B34,'Bupa Total'!$A$108:$F$174,3)), IF($B$32=2,IF($B34<18,'Bupa Total'!$I$108,VLOOKUP('Fórmulas Cotización'!$B34,'Bupa Total'!$H$108:$M$174,3)), IF($B$32=3,IF($B34<18,'Bupa Total'!$P$108,VLOOKUP('Fórmulas Cotización'!$B34,'Bupa Total'!$O$108:$T$174,3)), IF($B$32=4,IF($B34<18,'Bupa Total'!$W$108,VLOOKUP('Fórmulas Cotización'!$B34,'Bupa Total'!$V$108:$AA$174,3)), IF($B34<18,'Bupa Total'!$AE$108,VLOOKUP('Fórmulas Cotización'!$B34,'Bupa Total'!$AC$108:$AH$174,3)))))),0) -> 0 | AJ34: =IF(B34>0,IF($B$32=1,IF($B34<18,'Bupa Total'!$B$108,VLOOKUP('Fórmulas Cotización'!$B34,'Bupa Total'!$A$108:$F$174,4)), IF($B$32=2,IF($B34<18,'Bupa Total'!$I$108,VLOOKUP('Fórmulas Cotización'!$B34,'Bupa Total'!$H$108:$M$174,4)), IF($B$32=3,IF($B34<18,'Bupa Total'!$P$108,VLOOKUP('Fórmulas Cotización'!$B34,'Bupa Total'!$O$108:$T$174,4)), IF($B$32=4,IF($B34<18,'Bupa Total'!$W$108,VLOOKUP('Fórmulas Cotización'!$B34,'Bupa Total'!$V$108:$AA$174,4)), IF($B34<18,'Bupa Total'!$AF$108,VLOOKUP('Fórmulas Cotización'!$B34,'Bupa Total'!$AC$108:$AH$174,4)))))),0) -> 0 | AK34: =IF(B34>0,IF($B$32=1,IF($B34<18,'Bupa Total'!$B$108,VLOOKUP('Fórmulas Cotización'!$B34,'Bupa Total'!$A$108:$F$174,5)), IF($B$32=2,IF($B34<18,'Bupa Total'!$I$108,VLOOKUP('Fórmulas Cotización'!$B34,'Bupa Total'!$H$108:$M$174,5)), IF($B$32=3,IF($B34<18,'Bupa Total'!$P$108,VLOOKUP('Fórmulas Cotización'!$B34,'Bupa Total'!$O$108:$T$174,5)), IF($B$32=4,IF($B34<18,'Bupa Total'!$W$108,VLOOKUP('Fórmulas Cotización'!$B34,'Bupa Total'!$V$108:$AA$174,5)), IF($B34<18,'Bupa Total'!$AG$108,VLOOKUP('Fórmulas Cotización'!$B34,'Bupa Total'!$AC$108:$AH$174,5)))))),0) -> 0 | AL34: =IF(B34>0,IF($B$32=1,IF($B34<18,'Bupa Total'!$B$108,VLOOKUP('Fórmulas Cotización'!$B34,'Bupa Total'!$A$108:$F$174,6)), IF($B$32=2,IF($B34<18,'Bupa Total'!$I$108,VLOOKUP('Fórmulas Cotización'!$B34,'Bupa Total'!$H$108:$M$174,6)), IF($B$32=3,IF($B34<18,'Bupa Total'!$P$108,VLOOKUP('Fórmulas Cotización'!$B34,'Bupa Total'!$O$108:$T$174,6)), IF($B$32=4,IF($B34<18,'Bupa Total'!$W$108,VLOOKUP('Fórmulas Cotización'!$B34,'Bupa Total'!$V$108:$AA$174,6)), IF($B34<18,'Bupa Total'!$AH$108,VLOOKUP('Fórmulas Cotización'!$B34,'Bupa Total'!$AC$108:$AH$174,6)))))),0) -> 0 | AV34: Tabasco | AW34: Zona 5 | AX34: 5 | AY34: 0 | AZ34: 0
A35: 2 | B35: ='BUPA CARE PRODUCTS'!H15 -> 0 | D35: =IF(B35>0,IF($B$32=1,IF($B35<18,'Tarifas Advantage'!$B$108,VLOOKUP('Fórmulas Cotización'!$B35,'Tarifas Advantage'!$A$108:$F$174,2)), IF($B$32=2,IF($B35<18,'Tarifas Advantage'!$I$108,VLOOKUP('Fórmulas Cotización'!$B35,'Tarifas Advantage'!$H$108:$M$174,2)), IF($B$32=3,IF($B35<18,'Tarifas Advantage'!$P$108,VLOOKUP('Fórmulas Cotización'!$B35,'Tarifas Advantage'!$O$108:$T$174,2)), IF($B$32=4,IF($B35<18,'Tarifas Advantage'!$W$108,VLOOKUP('Fórmulas Cotización'!$B35,'Tarifas Advantage'!$V$108:$AA$174,2)), IF($B35<18,'Tarifas Advantage'!$AD$108,VLOOKUP('Fórmulas Cotización'!$B35,'Tarifas Advantage'!$AC$108:$AH$174,2)))))),0) -> 0 | E35: =IF(B35>0,IF($B$32=1,IF($B35<18,'Tarifas Advantage'!$B$108,VLOOKUP('Fórmulas Cotización'!$B35,'Tarifas Advantage'!$A$108:$F$174,3)), IF($B$32=2,IF($B35<18,'Tarifas Advantage'!$I$108,VLOOKUP('Fórmulas Cotización'!$B35,'Tarifas Advantage'!$H$108:$M$174,3)), IF($B$32=3,IF($B35<18,'Tarifas Advantage'!$P$108,VLOOKUP('Fórmulas Cotización'!$B35,'Tarifas Advantage'!$O$108:$T$174,3)), IF($B$32=4,IF($B35<18,'Tarifas Advantage'!$W$108,VLOOKUP('Fórmulas Cotización'!$B35,'Tarifas Advantage'!$V$108:$AA$174,3)), IF($B35<18,'Tarifas Advantage'!$AE$108,VLOOKUP('Fórmulas Cotización'!$B35,'Tarifas Advantage'!$AC$108:$AH$174,3)))))),0) -> 0 | F35: =IF(B35>0,IF($B$32=1,IF($B35<18,'Tarifas Advantage'!$B$108,VLOOKUP('Fórmulas Cotización'!$B35,'Tarifas Advantage'!$A$108:$F$174,4)), IF($B$32=2,IF($B35<18,'Tarifas Advantage'!$I$108,VLOOKUP('Fórmulas Cotización'!$B35,'Tarifas Advantage'!$H$108:$M$174,4)), IF($B$32=3,IF($B35<18,'Tarifas Advantage'!$P$108,VLOOKUP('Fórmulas Cotización'!$B35,'Tarifas Advantage'!$O$108:$T$174,4)), IF($B$32=4,IF($B35<18,'Tarifas Advantage'!$W$108,VLOOKUP('Fórmulas Cotización'!$B35,'Tarifas Advantage'!$V$108:$AA$174,4)), IF($B35<18,'Tarifas Advantage'!$AF$108,VLOOKUP('Fórmulas Cotización'!$B35,'Tarifas Advantage'!$AC$108:$AH$174,4)))))),0) -> 0 | G35: =IF(B35>0,IF($B$32=1,IF($B35<18,'Tarifas Advantage'!$B$108,VLOOKUP('Fórmulas Cotización'!$B35,'Tarifas Advantage'!$A$108:$F$174,5)), IF($B$32=2,IF($B35<18,'Tarifas Advantage'!$I$108,VLOOKUP('Fórmulas Cotización'!$B35,'Tarifas Advantage'!$H$108:$M$174,5)), IF($B$32=3,IF($B35<18,'Tarifas Advantage'!$P$108,VLOOKUP('Fórmulas Cotización'!$B35,'Tarifas Advantage'!$O$108:$T$174,5)), IF($B$32=4,IF($B35<18,'Tarifas Advantage'!$W$108,VLOOKUP('Fórmulas Cotización'!$B35,'Tarifas Advantage'!$V$108:$AA$174,5)), IF($B35<18,'Tarifas Advantage'!$AG$108,VLOOKUP('Fórmulas Cotización'!$B35,'Tarifas Advantage'!$AC$108:$AH$174,5)))))),0) -> 0 | H35: =IF(B35>0,IF($B$32=1,IF($B35<18,'Tarifas Advantage'!$B$108,VLOOKUP('Fórmulas Cotización'!$B35,'Tarifas Advantage'!$A$108:$F$174,6)), IF($B$32=2,IF($B35<18,'Tarifas Advantage'!$I$108,VLOOKUP('Fórmulas Cotización'!$B35,'Tarifas Advantage'!$H$108:$M$174,6)), IF($B$32=3,IF($B35<18,'Tarifas Advantage'!$P$108,VLOOKUP('Fórmulas Cotización'!$B35,'Tarifas Advantage'!$O$108:$T$174,6)), IF($B$32=4,IF($B35<18,'Tarifas Advantage'!$W$108,VLOOKUP('Fórmulas Cotización'!$B35,'Tarifas Advantage'!$V$108:$AA$174,6)), IF($B35<18,'Tarifas Advantage'!$AH$108,VLOOKUP('Fórmulas Cotización'!$B35,'Tarifas Advantage'!$AC$108:$AH$174,6)))))),0) -> 0 | J35: =IF(B35>0,IF($B$32=1,IF($B35<18,'Tarifas Complete'!$B$108,VLOOKUP('Fórmulas Cotización'!$B35,'Tarifas Complete'!$A$108:$F$174,2)), IF($B$32=2,IF($B35<18,'Tarifas Complete'!$I$108,VLOOKUP('Fórmulas Cotización'!$B35,'Tarifas Complete'!$H$108:$M$174,2)), IF($B$32=3,IF($B35<18,'Tarifas Complete'!$P$108,VLOOKUP('Fórmulas Cotización'!$B35,'Tarifas Complete'!$O$108:$T$174,2)), IF($B$32=4,IF($B35<18,'Tarifas Complete'!$W$108,VLOOKUP('Fórmulas Cotización'!$B35,'Tarifas Complete'!$V$108:$AA$174,2)), IF($B35<18,'Tarifas Complete'!$AD$108,VLOOKUP('Fórmulas Cotización'!$B35,'Tarifas Complete'!$AC$108:$AH$174,3)))))),0) -> 0 | K35: =IF(B35>0,IF($B$32=1,IF($B35<18,'Tarifas Complete'!$B$108,VLOOKUP('Fórmulas Cotización'!$B35,'Tarifas Complete'!$A$108:$F$174,3)), IF($B$32=2,IF($B35<18,'Tarifas Complete'!$I$108,VLOOKUP('Fórmulas Cotización'!$B35,'Tarifas Complete'!$H$108:$M$174,3)), IF($B$32=3,IF($B35<18,'Tarifas Complete'!$P$108,VLOOKUP('Fórmulas Cotización'!$B35,'Tarifas Complete'!$O$108:$T$174,3)), IF($B$32=4,IF($B35<18,'Tarifas Complete'!$W$108,VLOOKUP('Fórmulas Cotización'!$B35,'Tarifas Complete'!$V$108:$AA$174,3)), IF($B35<18,'Tarifas Complete'!$AE$108,VLOOKUP('Fórmulas Cotización'!$B35,'Tarifas Complete'!$AC$108:$AH$174,3)))))),0) -> 0 | L35: =IF(B35>0,IF($B$32=1,IF($B35<18,'Tarifas Complete'!$B$108,VLOOKUP('Fórmulas Cotización'!$B35,'Tarifas Complete'!$A$108:$F$174,4)), IF($B$32=2,IF($B35<18,'Tarifas Complete'!$I$108,VLOOKUP('Fórmulas Cotización'!$B35,'Tarifas Complete'!$H$108:$M$174,4)), IF($B$32=3,IF($B35<18,'Tarifas Complete'!$P$108,VLOOKUP('Fórmulas Cotización'!$B35,'Tarifas Complete'!$O$108:$T$174,4)), IF($B$32=4,IF($B35<18,'Tarifas Complete'!$W$108,VLOOKUP('Fórmulas Cotización'!$B35,'Tarifas Complete'!$V$108:$AA$174,4)), IF($B35<18,'Tarifas Complete'!$AF$108,VLOOKUP('Fórmulas Cotización'!$B35,'Tarifas Complete'!$AC$108:$AH$174,4)))))),0) -> 0 | M35: =IF(B35>0,IF($B$32=1,IF($B35<18,'Tarifas Complete'!$B$108,VLOOKUP('Fórmulas Cotización'!$B35,'Tarifas Complete'!$A$108:$F$174,5)), IF($B$32=2,IF($B35<18,'Tarifas Complete'!$I$108,VLOOKUP('Fórmulas Cotización'!$B35,'Tarifas Complete'!$H$108:$M$174,5)), IF($B$32=3,IF($B35<18,'Tarifas Complete'!$P$108,VLOOKUP('Fórmulas Cotización'!$B35,'Tarifas Complete'!$O$108:$T$174,5)), IF($B$32=4,IF($B35<18,'Tarifas Complete'!$W$108,VLOOKUP('Fórmulas Cotización'!$B35,'Tarifas Complete'!$V$108:$AA$174,5)), IF($B35<18,'Tarifas Complete'!$AG$108,VLOOKUP('Fórmulas Cotización'!$B35,'Tarifas Complete'!$AC$108:$AH$174,5)))))),0) -> 0 | N35: =IF(B35>0,IF($B$32=1,IF($B35<18,'Tarifas Complete'!$B$108,VLOOKUP('Fórmulas Cotización'!$B35,'Tarifas Complete'!$A$108:$F$174,6)), IF($B$32=2,IF($B35<18,'Tarifas Complete'!$I$108,VLOOKUP('Fórmulas Cotización'!$B35,'Tarifas Complete'!$H$108:$M$174,6)), IF($B$32=3,IF($B35<18,'Tarifas Complete'!$P$108,VLOOKUP('Fórmulas Cotización'!$B35,'Tarifas Complete'!$O$108:$T$174,6)), IF($B$32=4,IF($B35<18,'Tarifas Complete'!$W$108,VLOOKUP('Fórmulas Cotización'!$B35,'Tarifas Complete'!$V$108:$AA$174,6)), IF($B35<18,'Tarifas Complete'!$AH$108,VLOOKUP('Fórmulas Cotización'!$B35,'Tarifas Complete'!$AC$108:$AH$174,6)))))),0) -> 0 | P35: =IF(B35>0,IF($B$32=1,IF($B35<18,'Tarifas Diamond'!$B$108,VLOOKUP('Fórmulas Cotización'!$B35,'Tarifas Diamond'!$A$108:$F$174,2)), IF($B$32=2,IF($B35<18,'Tarifas Diamond'!$I$108,VLOOKUP('Fórmulas Cotización'!$B35,'Tarifas Diamond'!$H$108:$M$174,2)), IF($B$32=3,IF($B35<18,'Tarifas Diamond'!$P$108,VLOOKUP('Fórmulas Cotización'!$B35,'Tarifas Diamond'!$O$108:$T$174,2)), IF($B$32=4,IF($B35<18,'Tarifas Diamond'!$W$108,VLOOKUP('Fórmulas Cotización'!$B35,'Tarifas Diamond'!$V$108:$AA$174,2)), IF($B35<18,'Tarifas Diamond'!$AD$108,VLOOKUP('Fórmulas Cotización'!$B35,'Tarifas Diamond'!$AC$108:$AH$174,2)))))),0) -> 0 | Q35: =IF(B35>0,IF($B$32=1,IF($B35<18,'Tarifas Diamond'!$B$108,VLOOKUP('Fórmulas Cotización'!$B35,'Tarifas Diamond'!$A$108:$F$174,3)), IF($B$32=2,IF($B35<18,'Tarifas Diamond'!$I$108,VLOOKUP('Fórmulas Cotización'!$B35,'Tarifas Diamond'!$H$108:$M$174,3)), IF($B$32=3,IF($B35<18,'Tarifas Diamond'!$P$108,VLOOKUP('Fórmulas Cotización'!$B35,'Tarifas Diamond'!$O$108:$T$174,3)), IF($B$32=4,IF($B35<18,'Tarifas Diamond'!$W$108,VLOOKUP('Fórmulas Cotización'!$B35,'Tarifas Diamond'!$V$108:$AA$174,3)), IF($B35<18,'Tarifas Diamond'!$AE$108,VLOOKUP('Fórmulas Cotización'!$B35,'Tarifas Diamond'!$AC$108:$AH$174,3)))))),0) -> 0 | R35: =IF(B35>0,IF($B$32=1,IF($B35<18,'Tarifas Diamond'!$B$108,VLOOKUP('Fórmulas Cotización'!$B35,'Tarifas Diamond'!$A$108:$F$174,4)), IF($B$32=2,IF($B35<18,'Tarifas Diamond'!$I$108,VLOOKUP('Fórmulas Cotización'!$B35,'Tarifas Diamond'!$H$108:$M$174,4)), IF($B$32=3,IF($B35<18,'Tarifas Diamond'!$P$108,VLOOKUP('Fórmulas Cotización'!$B35,'Tarifas Diamond'!$O$108:$T$174,4)), IF($B$32=4,IF($B35<18,'Tarifas Diamond'!$W$108,VLOOKUP('Fórmulas Cotización'!$B35,'Tarifas Diamond'!$V$108:$AA$174,4)), IF($B35<18,'Tarifas Diamond'!$AF$108,VLOOKUP('Fórmulas Cotización'!$B35,'Tarifas Diamond'!$AC$108:$AH$174,4)))))),0) -> 0 | S35: =IF(B35>0,IF($B$32=1,IF($B35<18,'Tarifas Diamond'!$B$108,VLOOKUP('Fórmulas Cotización'!$B35,'Tarifas Diamond'!$A$108:$F$174,5)), IF($B$32=2,IF($B35<18,'Tarifas Diamond'!$I$108,VLOOKUP('Fórmulas Cotización'!$B35,'Tarifas Diamond'!$H$108:$M$174,5)), IF($B$32=3,IF($B35<18,'Tarifas Diamond'!$P$108,VLOOKUP('Fórmulas Cotización'!$B35,'Tarifas Diamond'!$O$108:$T$174,5)), IF($B$32=4,IF($B35<18,'Tarifas Diamond'!$W$108,VLOOKUP('Fórmulas Cotización'!$B35,'Tarifas Diamond'!$V$108:$AA$174,5)), IF($B35<18,'Tarifas Diamond'!$AG$108,VLOOKUP('Fórmulas Cotización'!$B35,'Tarifas Diamond'!$AC$108:$AH$174,5)))))),0) -> 0 | T35: =IF(B35>0,IF($B$32=1,IF($B35<18,'Tarifas Diamond'!$B$108,VLOOKUP('Fórmulas Cotización'!$B35,'Tarifas Diamond'!$A$108:$F$174,6)), IF($B$32=2,IF($B35<18,'Tarifas Diamond'!$I$108,VLOOKUP('Fórmulas Cotización'!$B35,'Tarifas Diamond'!$H$108:$M$174,6)), IF($B$32=3,IF($B35<18,'Tarifas Diamond'!$P$108,VLOOKUP('Fórmulas Cotización'!$B35,'Tarifas Diamond'!$O$108:$T$174,6)), IF($B$32=4,IF($B35<18,'Tarifas Diamond'!$W$108,VLOOKUP('Fórmulas Cotización'!$B35,'Tarifas Diamond'!$V$108:$AA$174,6)), IF($B35<18,'Tarifas Diamond'!$AH$108,VLOOKUP('Fórmulas Cotización'!$B35,'Tarifas Diamond'!$AC$108:$AH$174,6)))))),0) -> 0 | V35: =IF(B35>0,IF($B$32=1,IF($B35<18,'Tarifas Essential'!$B$108,VLOOKUP('Fórmulas Cotización'!$B35,'Tarifas Essential'!$A$108:$F$174,2)), IF($B$32=2,IF($B35<18,'Tarifas Essential'!$I$108,VLOOKUP('Fórmulas Cotización'!$B35,'Tarifas Essential'!$H$108:$M$174,2)), IF($B$32=3,IF($B35<18,'Tarifas Essential'!$P$108,VLOOKUP('Fórmulas Cotización'!$B35,'Tarifas Essential'!$O$108:$T$174,2)), IF($B$32=4,IF($B35<18,'Tarifas Essential'!$W$108,VLOOKUP('Fórmulas Cotización'!$B35,'Tarifas Essential'!$V$108:$AA$174,2)), IF($B35<18,'Tarifas Essential'!$AD$108,VLOOKUP('Fórmulas Cotización'!$B35,'Tarifas Essential'!$AC$108:$AH$174,2)))))),0) -> 0 | W35: =IF(B35>0,IF($B$32=1,IF($B35<18,'Tarifas Essential'!$B$108,VLOOKUP('Fórmulas Cotización'!$B35,'Tarifas Essential'!$A$108:$F$174,3)), IF($B$32=2,IF($B35<18,'Tarifas Essential'!$I$108,VLOOKUP('Fórmulas Cotización'!$B35,'Tarifas Essential'!$H$108:$M$174,3)), IF($B$32=3,IF($B35<18,'Tarifas Essential'!$P$108,VLOOKUP('Fórmulas Cotización'!$B35,'Tarifas Essential'!$O$108:$T$174,3)), IF($B$32=4,IF($B35<18,'Tarifas Essential'!$W$108,VLOOKUP('Fórmulas Cotización'!$B35,'Tarifas Essential'!$V$108:$AA$174,3)), IF($B35<18,'Tarifas Essential'!$AE$108,VLOOKUP('Fórmulas Cotización'!$B35,'Tarifas Essential'!$AC$108:$AH$174,3)))))),0) -> 0 | X35: =IF(B35>0,IF($B$32=1,IF($B35<18,'Tarifas Essential'!$B$108,VLOOKUP('Fórmulas Cotización'!$B35,'Tarifas Essential'!$A$108:$F$174,4)), IF($B$32=2,IF($B35<18,'Tarifas Essential'!$I$108,VLOOKUP('Fórmulas Cotización'!$B35,'Tarifas Essential'!$H$108:$M$174,4)), IF($B$32=3,IF($B35<18,'Tarifas Essential'!$P$108,VLOOKUP('Fórmulas Cotización'!$B35,'Tarifas Essential'!$O$108:$T$174,4)), IF($B$32=4,IF($B35<18,'Tarifas Essential'!$W$108,VLOOKUP('Fórmulas Cotización'!$B35,'Tarifas Essential'!$V$108:$AA$174,4)), IF($B35<18,'Tarifas Essential'!$AF$108,VLOOKUP('Fórmulas Cotización'!$B35,'Tarifas Essential'!$AC$108:$AH$174,4)))))),0) -> 0 | Y35: =IF(B35>0,IF($B$32=1,IF($B35<18,'Tarifas Essential'!$B$108,VLOOKUP('Fórmulas Cotización'!$B35,'Tarifas Essential'!$A$108:$F$174,5)), IF($B$32=2,IF($B35<18,'Tarifas Essential'!$I$108,VLOOKUP('Fórmulas Cotización'!$B35,'Tarifas Essential'!$H$108:$M$174,5)), IF($B$32=3,IF($B35<18,'Tarifas Essential'!$P$108,VLOOKUP('Fórmulas Cotización'!$B35,'Tarifas Essential'!$O$108:$T$174,5)), IF($B$32=4,IF($B35<18,'Tarifas Essential'!$W$108,VLOOKUP('Fórmulas Cotización'!$B35,'Tarifas Essential'!$V$108:$AA$174,5)), IF($B35<18,'Tarifas Essential'!$AG$108,VLOOKUP('Fórmulas Cotización'!$B35,'Tarifas Essential'!$AC$108:$AH$174,5)))))),0) -> 0 | Z35: =IF(B35>0,IF($B$32=1,IF($B35<18,'Tarifas Essential'!$B$108,VLOOKUP('Fórmulas Cotización'!$B35,'Tarifas Essential'!$A$108:$F$174,6)), IF($B$32=2,IF($B35<18,'Tarifas Essential'!$I$108,VLOOKUP('Fórmulas Cotización'!$B35,'Tarifas Essential'!$H$108:$M$174,6)), IF($B$32=3,IF($B35<18,'Tarifas Essential'!$P$108,VLOOKUP('Fórmulas Cotización'!$B35,'Tarifas Essential'!$O$108:$T$174,6)), IF($B$32=4,IF($B35<18,'Tarifas Essential'!$W$108,VLOOKUP('Fórmulas Cotización'!$B35,'Tarifas Essential'!$V$108:$AA$174,6)), IF($B35<18,'Tarifas Essential'!$AH$108,VLOOKUP('Fórmulas Cotización'!$B35,'Tarifas Essential'!$AC$108:$AH$174,6)))))),0) -> 0 | AB35: =IF(B35>0,IF($B$32=1,IF($B35<18,'Tarifas Secure'!$B$108,VLOOKUP('Fórmulas Cotización'!$B35,'Tarifas Secure'!$A$108:$F$174,2)), IF($B$32=2,IF($B35<18,'Tarifas Secure'!$I$108,VLOOKUP('Fórmulas Cotización'!$B35,'Tarifas Secure'!$H$108:$M$174,2)), IF($B$32=3,IF($B35<18,'Tarifas Secure'!$P$108,VLOOKUP('Fórmulas Cotización'!$B35,'Tarifas Secure'!$O$108:$T$174,2)), IF($B$32=4,IF($B35<18,'Tarifas Secure'!$W$108,VLOOKUP('Fórmulas Cotización'!$B35,'Tarifas Secure'!$V$108:$AA$174,2)), IF($B35<18,'Tarifas Secure'!$AD$108,VLOOKUP('Fórmulas Cotización'!$B35,'Tarifas Secure'!$AC$108:$AH$174,2)))))),0) -> 0 | AC35: =IF(B35>0,IF($B$32=1,IF($B35<18,'Tarifas Secure'!$B$108,VLOOKUP('Fórmulas Cotización'!$B35,'Tarifas Secure'!$A$108:$F$174,3)), IF($B$32=2,IF($B35<18,'Tarifas Secure'!$I$108,VLOOKUP('Fórmulas Cotización'!$B35,'Tarifas Secure'!$H$108:$M$174,3)), IF($B$32=3,IF($B35<18,'Tarifas Secure'!$P$108,VLOOKUP('Fórmulas Cotización'!$B35,'Tarifas Secure'!$O$108:$T$174,3)), IF($B$32=4,IF($B35<18,'Tarifas Secure'!$W$108,VLOOKUP('Fórmulas Cotización'!$B35,'Tarifas Secure'!$V$108:$AA$174,3)), IF($B35<18,'Tarifas Secure'!$AE$108,VLOOKUP('Fórmulas Cotización'!$B35,'Tarifas Secure'!$AC$108:$AH$174,3)))))),0) -> 0 | AD35: =IF(B35>0,IF($B$32=1,IF($B35<18,'Tarifas Secure'!$B$108,VLOOKUP('Fórmulas Cotización'!$B35,'Tarifas Secure'!$A$108:$F$174,4)), IF($B$32=2,IF($B35<18,'Tarifas Secure'!$I$108,VLOOKUP('Fórmulas Cotización'!$B35,'Tarifas Secure'!$H$108:$M$174,4)), IF($B$32=3,IF($B35<18,'Tarifas Secure'!$P$108,VLOOKUP('Fórmulas Cotización'!$B35,'Tarifas Secure'!$O$108:$T$174,4)), IF($B$32=4,IF($B35<18,'Tarifas Secure'!$W$108,VLOOKUP('Fórmulas Cotización'!$B35,'Tarifas Secure'!$V$108:$AA$174,4)), IF($B35<18,'Tarifas Secure'!$AF$108,VLOOKUP('Fórmulas Cotización'!$B35,'Tarifas Secure'!$AC$108:$AH$174,4)))))),0) -> 0 | AE35: =IF(B35>0,IF($B$32=1,IF($B35<18,'Tarifas Secure'!$B$108,VLOOKUP('Fórmulas Cotización'!$B35,'Tarifas Secure'!$A$108:$F$174,5)), IF($B$32=2,IF($B35<18,'Tarifas Secure'!$I$108,VLOOKUP('Fórmulas Cotización'!$B35,'Tarifas Secure'!$H$108:$M$174,5)), IF($B$32=3,IF($B35<18,'Tarifas Secure'!$P$108,VLOOKUP('Fórmulas Cotización'!$B35,'Tarifas Secure'!$O$108:$T$174,5)), IF($B$32=4,IF($B35<18,'Tarifas Secure'!$W$108,VLOOKUP('Fórmulas Cotización'!$B35,'Tarifas Secure'!$V$108:$AA$174,5)), IF($B35<18,'Tarifas Secure'!$AG$108,VLOOKUP('Fórmulas Cotización'!$B35,'Tarifas Secure'!$AC$108:$AH$174,5)))))),0) -> 0 | AF35: =IF(B35>0,IF($B$32=1,IF($B35<18,'Tarifas Secure'!$B$108,VLOOKUP('Fórmulas Cotización'!$B35,'Tarifas Secure'!$A$108:$F$174,6)), IF($B$32=2,IF($B35<18,'Tarifas Secure'!$I$108,VLOOKUP('Fórmulas Cotización'!$B35,'Tarifas Secure'!$H$108:$M$174,6)), IF($B$32=3,IF($B35<18,'Tarifas Secure'!$P$108,VLOOKUP('Fórmulas Cotización'!$B35,'Tarifas Secure'!$O$108:$T$174,6)), IF($B$32=4,IF($B35<18,'Tarifas Secure'!$W$108,VLOOKUP('Fórmulas Cotización'!$B35,'Tarifas Secure'!$V$108:$AA$174,6)), IF($B35<18,'Tarifas Secure'!$AH$108,VLOOKUP('Fórmulas Cotización'!$B35,'Tarifas Secure'!$AC$108:$AH$174,6)))))),0) -> 0 | AH35: =IF(B35>0,IF($B$32=1,IF($B35<18,'Bupa Total'!$B$108,VLOOKUP('Fórmulas Cotización'!$B35,'Bupa Total'!$A$108:$F$174,2)), IF($B$32=2,IF($B35<18,'Bupa Total'!$I$108,VLOOKUP('Fórmulas Cotización'!$B35,'Bupa Total'!$H$108:$M$174,2)), IF($B$32=3,IF($B35<18,'Bupa Total'!$P$108,VLOOKUP('Fórmulas Cotización'!$B35,'Bupa Total'!$O$108:$T$174,2)), IF($B$32=4,IF($B35<18,'Bupa Total'!$W$108,VLOOKUP('Fórmulas Cotización'!$B35,'Bupa Total'!$V$108:$AA$174,2)), IF($B35<18,'Bupa Total'!$AD$108,VLOOKUP('Fórmulas Cotización'!$B35,'Bupa Total'!$AC$108:$AH$174,2)))))),0) -> 0 | AI35: =IF(B35>0,IF($B$32=1,IF($B35<18,'Bupa Total'!$B$108,VLOOKUP('Fórmulas Cotización'!$B35,'Bupa Total'!$A$108:$F$174,3)), IF($B$32=2,IF($B35<18,'Bupa Total'!$I$108,VLOOKUP('Fórmulas Cotización'!$B35,'Bupa Total'!$H$108:$M$174,3)), IF($B$32=3,IF($B35<18,'Bupa Total'!$P$108,VLOOKUP('Fórmulas Cotización'!$B35,'Bupa Total'!$O$108:$T$174,3)), IF($B$32=4,IF($B35<18,'Bupa Total'!$W$108,VLOOKUP('Fórmulas Cotización'!$B35,'Bupa Total'!$V$108:$AA$174,3)), IF($B35<18,'Bupa Total'!$AE$108,VLOOKUP('Fórmulas Cotización'!$B35,'Bupa Total'!$AC$108:$AH$174,3)))))),0) -> 0 | AJ35: =IF(B35>0,IF($B$32=1,IF($B35<18,'Bupa Total'!$B$108,VLOOKUP('Fórmulas Cotización'!$B35,'Bupa Total'!$A$108:$F$174,4)), IF($B$32=2,IF($B35<18,'Bupa Total'!$I$108,VLOOKUP('Fórmulas Cotización'!$B35,'Bupa Total'!$H$108:$M$174,4)), IF($B$32=3,IF($B35<18,'Bupa Total'!$P$108,VLOOKUP('Fórmulas Cotización'!$B35,'Bupa Total'!$O$108:$T$174,4)), IF($B$32=4,IF($B35<18,'Bupa Total'!$W$108,VLOOKUP('Fórmulas Cotización'!$B35,'Bupa Total'!$V$108:$AA$174,4)), IF($B35<18,'Bupa Total'!$AF$108,VLOOKUP('Fórmulas Cotización'!$B35,'Bupa Total'!$AC$108:$AH$174,4)))))),0) -> 0 | AK35: =IF(B35>0,IF($B$32=1,IF($B35<18,'Bupa Total'!$B$108,VLOOKUP('Fórmulas Cotización'!$B35,'Bupa Total'!$A$108:$F$174,5)), IF($B$32=2,IF($B35<18,'Bupa Total'!$I$108,VLOOKUP('Fórmulas Cotización'!$B35,'Bupa Total'!$H$108:$M$174,5)), IF($B$32=3,IF($B35<18,'Bupa Total'!$P$108,VLOOKUP('Fórmulas Cotización'!$B35,'Bupa Total'!$O$108:$T$174,5)), IF($B$32=4,IF($B35<18,'Bupa Total'!$W$108,VLOOKUP('Fórmulas Cotización'!$B35,'Bupa Total'!$V$108:$AA$174,5)), IF($B35<18,'Bupa Total'!$AG$108,VLOOKUP('Fórmulas Cotización'!$B35,'Bupa Total'!$AC$108:$AH$174,5)))))),0) -> 0 | AL35: =IF(B35>0,IF($B$32=1,IF($B35<18,'Bupa Total'!$B$108,VLOOKUP('Fórmulas Cotización'!$B35,'Bupa Total'!$A$108:$F$174,6)), IF($B$32=2,IF($B35<18,'Bupa Total'!$I$108,VLOOKUP('Fórmulas Cotización'!$B35,'Bupa Total'!$H$108:$M$174,6)), IF($B$32=3,IF($B35<18,'Bupa Total'!$P$108,VLOOKUP('Fórmulas Cotización'!$B35,'Bupa Total'!$O$108:$T$174,6)), IF($B$32=4,IF($B35<18,'Bupa Total'!$W$108,VLOOKUP('Fórmulas Cotización'!$B35,'Bupa Total'!$V$108:$AA$174,6)), IF($B35<18,'Bupa Total'!$AH$108,VLOOKUP('Fórmulas Cotización'!$B35,'Bupa Total'!$AC$108:$AH$174,6)))))),0) -> 0 | AV35: Tamaulipas | AW35: Zona 3 | AX35: 3 | AY35: 0 | AZ35: 0
A36: 3 | B36: ='BUPA CARE PRODUCTS'!H16 -> 0 | D36: =IF(B36>0,IF($B$32=1,IF($B36<18,'Tarifas Advantage'!$B$108,VLOOKUP('Fórmulas Cotización'!$B36,'Tarifas Advantage'!$A$108:$F$174,2)), IF($B$32=2,IF($B36<18,'Tarifas Advantage'!$I$108,VLOOKUP('Fórmulas Cotización'!$B36,'Tarifas Advantage'!$H$108:$M$174,2)), IF($B$32=3,IF($B36<18,'Tarifas Advantage'!$P$108,VLOOKUP('Fórmulas Cotización'!$B36,'Tarifas Advantage'!$O$108:$T$174,2)), IF($B$32=4,IF($B36<18,'Tarifas Advantage'!$W$108,VLOOKUP('Fórmulas Cotización'!$B36,'Tarifas Advantage'!$V$108:$AA$174,2)), IF($B36<18,'Tarifas Advantage'!$AD$108,VLOOKUP('Fórmulas Cotización'!$B36,'Tarifas Advantage'!$AC$108:$AH$174,2)))))),0) -> 0 | E36: =IF(B36>0,IF($B$32=1,IF($B36<18,'Tarifas Advantage'!$B$108,VLOOKUP('Fórmulas Cotización'!$B36,'Tarifas Advantage'!$A$108:$F$174,3)), IF($B$32=2,IF($B36<18,'Tarifas Advantage'!$I$108,VLOOKUP('Fórmulas Cotización'!$B36,'Tarifas Advantage'!$H$108:$M$174,3)), IF($B$32=3,IF($B36<18,'Tarifas Advantage'!$P$108,VLOOKUP('Fórmulas Cotización'!$B36,'Tarifas Advantage'!$O$108:$T$174,3)), IF($B$32=4,IF($B36<18,'Tarifas Advantage'!$W$108,VLOOKUP('Fórmulas Cotización'!$B36,'Tarifas Advantage'!$V$108:$AA$174,3)), IF($B36<18,'Tarifas Advantage'!$AE$108,VLOOKUP('Fórmulas Cotización'!$B36,'Tarifas Advantage'!$AC$108:$AH$174,3)))))),0) -> 0 | F36: =IF(B36>0,IF($B$32=1,IF($B36<18,'Tarifas Advantage'!$B$108,VLOOKUP('Fórmulas Cotización'!$B36,'Tarifas Advantage'!$A$108:$F$174,4)), IF($B$32=2,IF($B36<18,'Tarifas Advantage'!$I$108,VLOOKUP('Fórmulas Cotización'!$B36,'Tarifas Advantage'!$H$108:$M$174,4)), IF($B$32=3,IF($B36<18,'Tarifas Advantage'!$P$108,VLOOKUP('Fórmulas Cotización'!$B36,'Tarifas Advantage'!$O$108:$T$174,4)), IF($B$32=4,IF($B36<18,'Tarifas Advantage'!$W$108,VLOOKUP('Fórmulas Cotización'!$B36,'Tarifas Advantage'!$V$108:$AA$174,4)), IF($B36<18,'Tarifas Advantage'!$AF$108,VLOOKUP('Fórmulas Cotización'!$B36,'Tarifas Advantage'!$AC$108:$AH$174,4)))))),0) -> 0 | G36: =IF(B36>0,IF($B$32=1,IF($B36<18,'Tarifas Advantage'!$B$108,VLOOKUP('Fórmulas Cotización'!$B36,'Tarifas Advantage'!$A$108:$F$174,5)), IF($B$32=2,IF($B36<18,'Tarifas Advantage'!$I$108,VLOOKUP('Fórmulas Cotización'!$B36,'Tarifas Advantage'!$H$108:$M$174,5)), IF($B$32=3,IF($B36<18,'Tarifas Advantage'!$P$108,VLOOKUP('Fórmulas Cotización'!$B36,'Tarifas Advantage'!$O$108:$T$174,5)), IF($B$32=4,IF($B36<18,'Tarifas Advantage'!$W$108,VLOOKUP('Fórmulas Cotización'!$B36,'Tarifas Advantage'!$V$108:$AA$174,5)), IF($B36<18,'Tarifas Advantage'!$AG$108,VLOOKUP('Fórmulas Cotización'!$B36,'Tarifas Advantage'!$AC$108:$AH$174,5)))))),0) -> 0 | H36: =IF(B36>0,IF($B$32=1,IF($B36<18,'Tarifas Advantage'!$B$108,VLOOKUP('Fórmulas Cotización'!$B36,'Tarifas Advantage'!$A$108:$F$174,6)), IF($B$32=2,IF($B36<18,'Tarifas Advantage'!$I$108,VLOOKUP('Fórmulas Cotización'!$B36,'Tarifas Advantage'!$H$108:$M$174,6)), IF($B$32=3,IF($B36<18,'Tarifas Advantage'!$P$108,VLOOKUP('Fórmulas Cotización'!$B36,'Tarifas Advantage'!$O$108:$T$174,6)), IF($B$32=4,IF($B36<18,'Tarifas Advantage'!$W$108,VLOOKUP('Fórmulas Cotización'!$B36,'Tarifas Advantage'!$V$108:$AA$174,6)), IF($B36<18,'Tarifas Advantage'!$AH$108,VLOOKUP('Fórmulas Cotización'!$B36,'Tarifas Advantage'!$AC$108:$AH$174,6)))))),0) -> 0 | J36: =IF(B36>0,IF($B$32=1,IF($B36<18,'Tarifas Complete'!$B$108,VLOOKUP('Fórmulas Cotización'!$B36,'Tarifas Complete'!$A$108:$F$174,2)), IF($B$32=2,IF($B36<18,'Tarifas Complete'!$I$108,VLOOKUP('Fórmulas Cotización'!$B36,'Tarifas Complete'!$H$108:$M$174,2)), IF($B$32=3,IF($B36<18,'Tarifas Complete'!$P$108,VLOOKUP('Fórmulas Cotización'!$B36,'Tarifas Complete'!$O$108:$T$174,2)), IF($B$32=4,IF($B36<18,'Tarifas Complete'!$W$108,VLOOKUP('Fórmulas Cotización'!$B36,'Tarifas Complete'!$V$108:$AA$174,2)), IF($B36<18,'Tarifas Complete'!$AD$108,VLOOKUP('Fórmulas Cotización'!$B36,'Tarifas Complete'!$AC$108:$AH$174,3)))))),0) -> 0 | K36: =IF(B36>0,IF($B$32=1,IF($B36<18,'Tarifas Complete'!$B$108,VLOOKUP('Fórmulas Cotización'!$B36,'Tarifas Complete'!$A$108:$F$174,3)), IF($B$32=2,IF($B36<18,'Tarifas Complete'!$I$108,VLOOKUP('Fórmulas Cotización'!$B36,'Tarifas Complete'!$H$108:$M$174,3)), IF($B$32=3,IF($B36<18,'Tarifas Complete'!$P$108,VLOOKUP('Fórmulas Cotización'!$B36,'Tarifas Complete'!$O$108:$T$174,3)), IF($B$32=4,IF($B36<18,'Tarifas Complete'!$W$108,VLOOKUP('Fórmulas Cotización'!$B36,'Tarifas Complete'!$V$108:$AA$174,3)), IF($B36<18,'Tarifas Complete'!$AE$108,VLOOKUP('Fórmulas Cotización'!$B36,'Tarifas Complete'!$AC$108:$AH$174,3)))))),0) -> 0 | L36: =IF(B36>0,IF($B$32=1,IF($B36<18,'Tarifas Complete'!$B$108,VLOOKUP('Fórmulas Cotización'!$B36,'Tarifas Complete'!$A$108:$F$174,4)), IF($B$32=2,IF($B36<18,'Tarifas Complete'!$I$108,VLOOKUP('Fórmulas Cotización'!$B36,'Tarifas Complete'!$H$108:$M$174,4)), IF($B$32=3,IF($B36<18,'Tarifas Complete'!$P$108,VLOOKUP('Fórmulas Cotización'!$B36,'Tarifas Complete'!$O$108:$T$174,4)), IF($B$32=4,IF($B36<18,'Tarifas Complete'!$W$108,VLOOKUP('Fórmulas Cotización'!$B36,'Tarifas Complete'!$V$108:$AA$174,4)), IF($B36<18,'Tarifas Complete'!$AF$108,VLOOKUP('Fórmulas Cotización'!$B36,'Tarifas Complete'!$AC$108:$AH$174,4)))))),0) -> 0 | M36: =IF(B36>0,IF($B$32=1,IF($B36<18,'Tarifas Complete'!$B$108,VLOOKUP('Fórmulas Cotización'!$B36,'Tarifas Complete'!$A$108:$F$174,5)), IF($B$32=2,IF($B36<18,'Tarifas Complete'!$I$108,VLOOKUP('Fórmulas Cotización'!$B36,'Tarifas Complete'!$H$108:$M$174,5)), IF($B$32=3,IF($B36<18,'Tarifas Complete'!$P$108,VLOOKUP('Fórmulas Cotización'!$B36,'Tarifas Complete'!$O$108:$T$174,5)), IF($B$32=4,IF($B36<18,'Tarifas Complete'!$W$108,VLOOKUP('Fórmulas Cotización'!$B36,'Tarifas Complete'!$V$108:$AA$174,5)), IF($B36<18,'Tarifas Complete'!$AG$108,VLOOKUP('Fórmulas Cotización'!$B36,'Tarifas Complete'!$AC$108:$AH$174,5)))))),0) -> 0 | N36: =IF(B36>0,IF($B$32=1,IF($B36<18,'Tarifas Complete'!$B$108,VLOOKUP('Fórmulas Cotización'!$B36,'Tarifas Complete'!$A$108:$F$174,6)), IF($B$32=2,IF($B36<18,'Tarifas Complete'!$I$108,VLOOKUP('Fórmulas Cotización'!$B36,'Tarifas Complete'!$H$108:$M$174,6)), IF($B$32=3,IF($B36<18,'Tarifas Complete'!$P$108,VLOOKUP('Fórmulas Cotización'!$B36,'Tarifas Complete'!$O$108:$T$174,6)), IF($B$32=4,IF($B36<18,'Tarifas Complete'!$W$108,VLOOKUP('Fórmulas Cotización'!$B36,'Tarifas Complete'!$V$108:$AA$174,6)), IF($B36<18,'Tarifas Complete'!$AH$108,VLOOKUP('Fórmulas Cotización'!$B36,'Tarifas Complete'!$AC$108:$AH$174,6)))))),0) -> 0 | P36: =IF(B36>0,IF($B$32=1,IF($B36<18,'Tarifas Diamond'!$B$108,VLOOKUP('Fórmulas Cotización'!$B36,'Tarifas Diamond'!$A$108:$F$174,2)), IF($B$32=2,IF($B36<18,'Tarifas Diamond'!$I$108,VLOOKUP('Fórmulas Cotización'!$B36,'Tarifas Diamond'!$H$108:$M$174,2)), IF($B$32=3,IF($B36<18,'Tarifas Diamond'!$P$108,VLOOKUP('Fórmulas Cotización'!$B36,'Tarifas Diamond'!$O$108:$T$174,2)), IF($B$32=4,IF($B36<18,'Tarifas Diamond'!$W$108,VLOOKUP('Fórmulas Cotización'!$B36,'Tarifas Diamond'!$V$108:$AA$174,2)), IF($B36<18,'Tarifas Diamond'!$AD$108,VLOOKUP('Fórmulas Cotización'!$B36,'Tarifas Diamond'!$AC$108:$AH$174,2)))))),0) -> 0 | Q36: =IF(B36>0,IF($B$32=1,IF($B36<18,'Tarifas Diamond'!$B$108,VLOOKUP('Fórmulas Cotización'!$B36,'Tarifas Diamond'!$A$108:$F$174,3)), IF($B$32=2,IF($B36<18,'Tarifas Diamond'!$I$108,VLOOKUP('Fórmulas Cotización'!$B36,'Tarifas Diamond'!$H$108:$M$174,3)), IF($B$32=3,IF($B36<18,'Tarifas Diamond'!$P$108,VLOOKUP('Fórmulas Cotización'!$B36,'Tarifas Diamond'!$O$108:$T$174,3)), IF($B$32=4,IF($B36<18,'Tarifas Diamond'!$W$108,VLOOKUP('Fórmulas Cotización'!$B36,'Tarifas Diamond'!$V$108:$AA$174,3)), IF($B36<18,'Tarifas Diamond'!$AE$108,VLOOKUP('Fórmulas Cotización'!$B36,'Tarifas Diamond'!$AC$108:$AH$174,3)))))),0) -> 0 | R36: =IF(B36>0,IF($B$32=1,IF($B36<18,'Tarifas Diamond'!$B$108,VLOOKUP('Fórmulas Cotización'!$B36,'Tarifas Diamond'!$A$108:$F$174,4)), IF($B$32=2,IF($B36<18,'Tarifas Diamond'!$I$108,VLOOKUP('Fórmulas Cotización'!$B36,'Tarifas Diamond'!$H$108:$M$174,4)), IF($B$32=3,IF($B36<18,'Tarifas Diamond'!$P$108,VLOOKUP('Fórmulas Cotización'!$B36,'Tarifas Diamond'!$O$108:$T$174,4)), IF($B$32=4,IF($B36<18,'Tarifas Diamond'!$W$108,VLOOKUP('Fórmulas Cotización'!$B36,'Tarifas Diamond'!$V$108:$AA$174,4)), IF($B36<18,'Tarifas Diamond'!$AF$108,VLOOKUP('Fórmulas Cotización'!$B36,'Tarifas Diamond'!$AC$108:$AH$174,4)))))),0) -> 0 | S36: =IF(B36>0,IF($B$32=1,IF($B36<18,'Tarifas Diamond'!$B$108,VLOOKUP('Fórmulas Cotización'!$B36,'Tarifas Diamond'!$A$108:$F$174,5)), IF($B$32=2,IF($B36<18,'Tarifas Diamond'!$I$108,VLOOKUP('Fórmulas Cotización'!$B36,'Tarifas Diamond'!$H$108:$M$174,5)), IF($B$32=3,IF($B36<18,'Tarifas Diamond'!$P$108,VLOOKUP('Fórmulas Cotización'!$B36,'Tarifas Diamond'!$O$108:$T$174,5)), IF($B$32=4,IF($B36<18,'Tarifas Diamond'!$W$108,VLOOKUP('Fórmulas Cotización'!$B36,'Tarifas Diamond'!$V$108:$AA$174,5)), IF($B36<18,'Tarifas Diamond'!$AG$108,VLOOKUP('Fórmulas Cotización'!$B36,'Tarifas Diamond'!$AC$108:$AH$174,5)))))),0) -> 0 | T36: =IF(B36>0,IF($B$32=1,IF($B36<18,'Tarifas Diamond'!$B$108,VLOOKUP('Fórmulas Cotización'!$B36,'Tarifas Diamond'!$A$108:$F$174,6)), IF($B$32=2,IF($B36<18,'Tarifas Diamond'!$I$108,VLOOKUP('Fórmulas Cotización'!$B36,'Tarifas Diamond'!$H$108:$M$174,6)), IF($B$32=3,IF($B36<18,'Tarifas Diamond'!$P$108,VLOOKUP('Fórmulas Cotización'!$B36,'Tarifas Diamond'!$O$108:$T$174,6)), IF($B$32=4,IF($B36<18,'Tarifas Diamond'!$W$108,VLOOKUP('Fórmulas Cotización'!$B36,'Tarifas Diamond'!$V$108:$AA$174,6)), IF($B36<18,'Tarifas Diamond'!$AH$108,VLOOKUP('Fórmulas Cotización'!$B36,'Tarifas Diamond'!$AC$108:$AH$174,6)))))),0) -> 0 | V36: =IF(B36>0,IF($B$32=1,IF($B36<18,'Tarifas Essential'!$B$108,VLOOKUP('Fórmulas Cotización'!$B36,'Tarifas Essential'!$A$108:$F$174,2)), IF($B$32=2,IF($B36<18,'Tarifas Essential'!$I$108,VLOOKUP('Fórmulas Cotización'!$B36,'Tarifas Essential'!$H$108:$M$174,2)), IF($B$32=3,IF($B36<18,'Tarifas Essential'!$P$108,VLOOKUP('Fórmulas Cotización'!$B36,'Tarifas Essential'!$O$108:$T$174,2)), IF($B$32=4,IF($B36<18,'Tarifas Essential'!$W$108,VLOOKUP('Fórmulas Cotización'!$B36,'Tarifas Essential'!$V$108:$AA$174,2)), IF($B36<18,'Tarifas Essential'!$AD$108,VLOOKUP('Fórmulas Cotización'!$B36,'Tarifas Essential'!$AC$108:$AH$174,2)))))),0) -> 0 | W36: =IF(B36>0,IF($B$32=1,IF($B36<18,'Tarifas Essential'!$B$108,VLOOKUP('Fórmulas Cotización'!$B36,'Tarifas Essential'!$A$108:$F$174,3)), IF($B$32=2,IF($B36<18,'Tarifas Essential'!$I$108,VLOOKUP('Fórmulas Cotización'!$B36,'Tarifas Essential'!$H$108:$M$174,3)), IF($B$32=3,IF($B36<18,'Tarifas Essential'!$P$108,VLOOKUP('Fórmulas Cotización'!$B36,'Tarifas Essential'!$O$108:$T$174,3)), IF($B$32=4,IF($B36<18,'Tarifas Essential'!$W$108,VLOOKUP('Fórmulas Cotización'!$B36,'Tarifas Essential'!$V$108:$AA$174,3)), IF($B36<18,'Tarifas Essential'!$AE$108,VLOOKUP('Fórmulas Cotización'!$B36,'Tarifas Essential'!$AC$108:$AH$174,3)))))),0) -> 0 | X36: =IF(B36>0,IF($B$32=1,IF($B36<18,'Tarifas Essential'!$B$108,VLOOKUP('Fórmulas Cotización'!$B36,'Tarifas Essential'!$A$108:$F$174,4)), IF($B$32=2,IF($B36<18,'Tarifas Essential'!$I$108,VLOOKUP('Fórmulas Cotización'!$B36,'Tarifas Essential'!$H$108:$M$174,4)), IF($B$32=3,IF($B36<18,'Tarifas Essential'!$P$108,VLOOKUP('Fórmulas Cotización'!$B36,'Tarifas Essential'!$O$108:$T$174,4)), IF($B$32=4,IF($B36<18,'Tarifas Essential'!$W$108,VLOOKUP('Fórmulas Cotización'!$B36,'Tarifas Essential'!$V$108:$AA$174,4)), IF($B36<18,'Tarifas Essential'!$AF$108,VLOOKUP('Fórmulas Cotización'!$B36,'Tarifas Essential'!$AC$108:$AH$174,4)))))),0) -> 0 | Y36: =IF(B36>0,IF($B$32=1,IF($B36<18,'Tarifas Essential'!$B$108,VLOOKUP('Fórmulas Cotización'!$B36,'Tarifas Essential'!$A$108:$F$174,5)), IF($B$32=2,IF($B36<18,'Tarifas Essential'!$I$108,VLOOKUP('Fórmulas Cotización'!$B36,'Tarifas Essential'!$H$108:$M$174,5)), IF($B$32=3,IF($B36<18,'Tarifas Essential'!$P$108,VLOOKUP('Fórmulas Cotización'!$B36,'Tarifas Essential'!$O$108:$T$174,5)), IF($B$32=4,IF($B36<18,'Tarifas Essential'!$W$108,VLOOKUP('Fórmulas Cotización'!$B36,'Tarifas Essential'!$V$108:$AA$174,5)), IF($B36<18,'Tarifas Essential'!$AG$108,VLOOKUP('Fórmulas Cotización'!$B36,'Tarifas Essential'!$AC$108:$AH$174,5)))))),0) -> 0 | Z36: =IF(B36>0,IF($B$32=1,IF($B36<18,'Tarifas Essential'!$B$108,VLOOKUP('Fórmulas Cotización'!$B36,'Tarifas Essential'!$A$108:$F$174,6)), IF($B$32=2,IF($B36<18,'Tarifas Essential'!$I$108,VLOOKUP('Fórmulas Cotización'!$B36,'Tarifas Essential'!$H$108:$M$174,6)), IF($B$32=3,IF($B36<18,'Tarifas Essential'!$P$108,VLOOKUP('Fórmulas Cotización'!$B36,'Tarifas Essential'!$O$108:$T$174,6)), IF($B$32=4,IF($B36<18,'Tarifas Essential'!$W$108,VLOOKUP('Fórmulas Cotización'!$B36,'Tarifas Essential'!$V$108:$AA$174,6)), IF($B36<18,'Tarifas Essential'!$AH$108,VLOOKUP('Fórmulas Cotización'!$B36,'Tarifas Essential'!$AC$108:$AH$174,6)))))),0) -> 0 | AB36: =IF(B36>0,IF($B$32=1,IF($B36<18,'Tarifas Secure'!$B$108,VLOOKUP('Fórmulas Cotización'!$B36,'Tarifas Secure'!$A$108:$F$174,2)), IF($B$32=2,IF($B36<18,'Tarifas Secure'!$I$108,VLOOKUP('Fórmulas Cotización'!$B36,'Tarifas Secure'!$H$108:$M$174,2)), IF($B$32=3,IF($B36<18,'Tarifas Secure'!$P$108,VLOOKUP('Fórmulas Cotización'!$B36,'Tarifas Secure'!$O$108:$T$174,2)), IF($B$32=4,IF($B36<18,'Tarifas Secure'!$W$108,VLOOKUP('Fórmulas Cotización'!$B36,'Tarifas Secure'!$V$108:$AA$174,2)), IF($B36<18,'Tarifas Secure'!$AD$108,VLOOKUP('Fórmulas Cotización'!$B36,'Tarifas Secure'!$AC$108:$AH$174,2)))))),0) -> 0 | AC36: =IF(B36>0,IF($B$32=1,IF($B36<18,'Tarifas Secure'!$B$108,VLOOKUP('Fórmulas Cotización'!$B36,'Tarifas Secure'!$A$108:$F$174,3)), IF($B$32=2,IF($B36<18,'Tarifas Secure'!$I$108,VLOOKUP('Fórmulas Cotización'!$B36,'Tarifas Secure'!$H$108:$M$174,3)), IF($B$32=3,IF($B36<18,'Tarifas Secure'!$P$108,VLOOKUP('Fórmulas Cotización'!$B36,'Tarifas Secure'!$O$108:$T$174,3)), IF($B$32=4,IF($B36<18,'Tarifas Secure'!$W$108,VLOOKUP('Fórmulas Cotización'!$B36,'Tarifas Secure'!$V$108:$AA$174,3)), IF($B36<18,'Tarifas Secure'!$AE$108,VLOOKUP('Fórmulas Cotización'!$B36,'Tarifas Secure'!$AC$108:$AH$174,3)))))),0) -> 0 | AD36: =IF(B36>0,IF($B$32=1,IF($B36<18,'Tarifas Secure'!$B$108,VLOOKUP('Fórmulas Cotización'!$B36,'Tarifas Secure'!$A$108:$F$174,4)), IF($B$32=2,IF($B36<18,'Tarifas Secure'!$I$108,VLOOKUP('Fórmulas Cotización'!$B36,'Tarifas Secure'!$H$108:$M$174,4)), IF($B$32=3,IF($B36<18,'Tarifas Secure'!$P$108,VLOOKUP('Fórmulas Cotización'!$B36,'Tarifas Secure'!$O$108:$T$174,4)), IF($B$32=4,IF($B36<18,'Tarifas Secure'!$W$108,VLOOKUP('Fórmulas Cotización'!$B36,'Tarifas Secure'!$V$108:$AA$174,4)), IF($B36<18,'Tarifas Secure'!$AF$108,VLOOKUP('Fórmulas Cotización'!$B36,'Tarifas Secure'!$AC$108:$AH$174,4)))))),0) -> 0 | AE36: =IF(B36>0,IF($B$32=1,IF($B36<18,'Tarifas Secure'!$B$108,VLOOKUP('Fórmulas Cotización'!$B36,'Tarifas Secure'!$A$108:$F$174,5)), IF($B$32=2,IF($B36<18,'Tarifas Secure'!$I$108,VLOOKUP('Fórmulas Cotización'!$B36,'Tarifas Secure'!$H$108:$M$174,5)), IF($B$32=3,IF($B36<18,'Tarifas Secure'!$P$108,VLOOKUP('Fórmulas Cotización'!$B36,'Tarifas Secure'!$O$108:$T$174,5)), IF($B$32=4,IF($B36<18,'Tarifas Secure'!$W$108,VLOOKUP('Fórmulas Cotización'!$B36,'Tarifas Secure'!$V$108:$AA$174,5)), IF($B36<18,'Tarifas Secure'!$AG$108,VLOOKUP('Fórmulas Cotización'!$B36,'Tarifas Secure'!$AC$108:$AH$174,5)))))),0) -> 0 | AF36: =IF(B36>0,IF($B$32=1,IF($B36<18,'Tarifas Secure'!$B$108,VLOOKUP('Fórmulas Cotización'!$B36,'Tarifas Secure'!$A$108:$F$174,6)), IF($B$32=2,IF($B36<18,'Tarifas Secure'!$I$108,VLOOKUP('Fórmulas Cotización'!$B36,'Tarifas Secure'!$H$108:$M$174,6)), IF($B$32=3,IF($B36<18,'Tarifas Secure'!$P$108,VLOOKUP('Fórmulas Cotización'!$B36,'Tarifas Secure'!$O$108:$T$174,6)), IF($B$32=4,IF($B36<18,'Tarifas Secure'!$W$108,VLOOKUP('Fórmulas Cotización'!$B36,'Tarifas Secure'!$V$108:$AA$174,6)), IF($B36<18,'Tarifas Secure'!$AH$108,VLOOKUP('Fórmulas Cotización'!$B36,'Tarifas Secure'!$AC$108:$AH$174,6)))))),0) -> 0 | AH36: =IF(B36>0,IF($B$32=1,IF($B36<18,'Bupa Total'!$B$108,VLOOKUP('Fórmulas Cotización'!$B36,'Bupa Total'!$A$108:$F$174,2)), IF($B$32=2,IF($B36<18,'Bupa Total'!$I$108,VLOOKUP('Fórmulas Cotización'!$B36,'Bupa Total'!$H$108:$M$174,2)), IF($B$32=3,IF($B36<18,'Bupa Total'!$P$108,VLOOKUP('Fórmulas Cotización'!$B36,'Bupa Total'!$O$108:$T$174,2)), IF($B$32=4,IF($B36<18,'Bupa Total'!$W$108,VLOOKUP('Fórmulas Cotización'!$B36,'Bupa Total'!$V$108:$AA$174,2)), IF($B36<18,'Bupa Total'!$AD$108,VLOOKUP('Fórmulas Cotización'!$B36,'Bupa Total'!$AC$108:$AH$174,2)))))),0) -> 0 | AI36: =IF(B36>0,IF($B$32=1,IF($B36<18,'Bupa Total'!$B$108,VLOOKUP('Fórmulas Cotización'!$B36,'Bupa Total'!$A$108:$F$174,3)), IF($B$32=2,IF($B36<18,'Bupa Total'!$I$108,VLOOKUP('Fórmulas Cotización'!$B36,'Bupa Total'!$H$108:$M$174,3)), IF($B$32=3,IF($B36<18,'Bupa Total'!$P$108,VLOOKUP('Fórmulas Cotización'!$B36,'Bupa Total'!$O$108:$T$174,3)), IF($B$32=4,IF($B36<18,'Bupa Total'!$W$108,VLOOKUP('Fórmulas Cotización'!$B36,'Bupa Total'!$V$108:$AA$174,3)), IF($B36<18,'Bupa Total'!$AE$108,VLOOKUP('Fórmulas Cotización'!$B36,'Bupa Total'!$AC$108:$AH$174,3)))))),0) -> 0 | AJ36: =IF(B36>0,IF($B$32=1,IF($B36<18,'Bupa Total'!$B$108,VLOOKUP('Fórmulas Cotización'!$B36,'Bupa Total'!$A$108:$F$174,4)), IF($B$32=2,IF($B36<18,'Bupa Total'!$I$108,VLOOKUP('Fórmulas Cotización'!$B36,'Bupa Total'!$H$108:$M$174,4)), IF($B$32=3,IF($B36<18,'Bupa Total'!$P$108,VLOOKUP('Fórmulas Cotización'!$B36,'Bupa Total'!$O$108:$T$174,4)), IF($B$32=4,IF($B36<18,'Bupa Total'!$W$108,VLOOKUP('Fórmulas Cotización'!$B36,'Bupa Total'!$V$108:$AA$174,4)), IF($B36<18,'Bupa Total'!$AF$108,VLOOKUP('Fórmulas Cotización'!$B36,'Bupa Total'!$AC$108:$AH$174,4)))))),0) -> 0 | AK36: =IF(B36>0,IF($B$32=1,IF($B36<18,'Bupa Total'!$B$108,VLOOKUP('Fórmulas Cotización'!$B36,'Bupa Total'!$A$108:$F$174,5)), IF($B$32=2,IF($B36<18,'Bupa Total'!$I$108,VLOOKUP('Fórmulas Cotización'!$B36,'Bupa Total'!$H$108:$M$174,5)), IF($B$32=3,IF($B36<18,'Bupa Total'!$P$108,VLOOKUP('Fórmulas Cotización'!$B36,'Bupa Total'!$O$108:$T$174,5)), IF($B$32=4,IF($B36<18,'Bupa Total'!$W$108,VLOOKUP('Fórmulas Cotización'!$B36,'Bupa Total'!$V$108:$AA$174,5)), IF($B36<18,'Bupa Total'!$AG$108,VLOOKUP('Fórmulas Cotización'!$B36,'Bupa Total'!$AC$108:$AH$174,5)))))),0) -> 0 | AL36: =IF(B36>0,IF($B$32=1,IF($B36<18,'Bupa Total'!$B$108,VLOOKUP('Fórmulas Cotización'!$B36,'Bupa Total'!$A$108:$F$174,6)), IF($B$32=2,IF($B36<18,'Bupa Total'!$I$108,VLOOKUP('Fórmulas Cotización'!$B36,'Bupa Total'!$H$108:$M$174,6)), IF($B$32=3,IF($B36<18,'Bupa Total'!$P$108,VLOOKUP('Fórmulas Cotización'!$B36,'Bupa Total'!$O$108:$T$174,6)), IF($B$32=4,IF($B36<18,'Bupa Total'!$W$108,VLOOKUP('Fórmulas Cotización'!$B36,'Bupa Total'!$V$108:$AA$174,6)), IF($B36<18,'Bupa Total'!$AH$108,VLOOKUP('Fórmulas Cotización'!$B36,'Bupa Total'!$AC$108:$AH$174,6)))))),0) -> 0 | AV36: Tlaxcala | AW36: Zona 5 | AX36: 5 | AY36: 0 | AZ36: 0
A37: 4 | B37: ='BUPA CARE PRODUCTS'!H17 -> 0 | D37: =IF(B37>0,IF($B$32=1,IF($B37<18,'Tarifas Advantage'!$B$108,VLOOKUP('Fórmulas Cotización'!$B37,'Tarifas Advantage'!$A$108:$F$174,2)), IF($B$32=2,IF($B37<18,'Tarifas Advantage'!$I$108,VLOOKUP('Fórmulas Cotización'!$B37,'Tarifas Advantage'!$H$108:$M$174,2)), IF($B$32=3,IF($B37<18,'Tarifas Advantage'!$P$108,VLOOKUP('Fórmulas Cotización'!$B37,'Tarifas Advantage'!$O$108:$T$174,2)), IF($B$32=4,IF($B37<18,'Tarifas Advantage'!$W$108,VLOOKUP('Fórmulas Cotización'!$B37,'Tarifas Advantage'!$V$108:$AA$174,2)), IF($B37<18,'Tarifas Advantage'!$AD$108,VLOOKUP('Fórmulas Cotización'!$B37,'Tarifas Advantage'!$AC$108:$AH$174,2)))))),0) -> 0 | E37: =IF(B37>0,IF($B$32=1,IF($B37<18,'Tarifas Advantage'!$B$108,VLOOKUP('Fórmulas Cotización'!$B37,'Tarifas Advantage'!$A$108:$F$174,3)), IF($B$32=2,IF($B37<18,'Tarifas Advantage'!$I$108,VLOOKUP('Fórmulas Cotización'!$B37,'Tarifas Advantage'!$H$108:$M$174,3)), IF($B$32=3,IF($B37<18,'Tarifas Advantage'!$P$108,VLOOKUP('Fórmulas Cotización'!$B37,'Tarifas Advantage'!$O$108:$T$174,3)), IF($B$32=4,IF($B37<18,'Tarifas Advantage'!$W$108,VLOOKUP('Fórmulas Cotización'!$B37,'Tarifas Advantage'!$V$108:$AA$174,3)), IF($B37<18,'Tarifas Advantage'!$AE$108,VLOOKUP('Fórmulas Cotización'!$B37,'Tarifas Advantage'!$AC$108:$AH$174,3)))))),0) -> 0 | F37: =IF(B37>0,IF($B$32=1,IF($B37<18,'Tarifas Advantage'!$B$108,VLOOKUP('Fórmulas Cotización'!$B37,'Tarifas Advantage'!$A$108:$F$174,4)), IF($B$32=2,IF($B37<18,'Tarifas Advantage'!$I$108,VLOOKUP('Fórmulas Cotización'!$B37,'Tarifas Advantage'!$H$108:$M$174,4)), IF($B$32=3,IF($B37<18,'Tarifas Advantage'!$P$108,VLOOKUP('Fórmulas Cotización'!$B37,'Tarifas Advantage'!$O$108:$T$174,4)), IF($B$32=4,IF($B37<18,'Tarifas Advantage'!$W$108,VLOOKUP('Fórmulas Cotización'!$B37,'Tarifas Advantage'!$V$108:$AA$174,4)), IF($B37<18,'Tarifas Advantage'!$AF$108,VLOOKUP('Fórmulas Cotización'!$B37,'Tarifas Advantage'!$AC$108:$AH$174,4)))))),0) -> 0 | G37: =IF(B37>0,IF($B$32=1,IF($B37<18,'Tarifas Advantage'!$B$108,VLOOKUP('Fórmulas Cotización'!$B37,'Tarifas Advantage'!$A$108:$F$174,5)), IF($B$32=2,IF($B37<18,'Tarifas Advantage'!$I$108,VLOOKUP('Fórmulas Cotización'!$B37,'Tarifas Advantage'!$H$108:$M$174,5)), IF($B$32=3,IF($B37<18,'Tarifas Advantage'!$P$108,VLOOKUP('Fórmulas Cotización'!$B37,'Tarifas Advantage'!$O$108:$T$174,5)), IF($B$32=4,IF($B37<18,'Tarifas Advantage'!$W$108,VLOOKUP('Fórmulas Cotización'!$B37,'Tarifas Advantage'!$V$108:$AA$174,5)), IF($B37<18,'Tarifas Advantage'!$AG$108,VLOOKUP('Fórmulas Cotización'!$B37,'Tarifas Advantage'!$AC$108:$AH$174,5)))))),0) -> 0 | H37: =IF(B37>0,IF($B$32=1,IF($B37<18,'Tarifas Advantage'!$B$108,VLOOKUP('Fórmulas Cotización'!$B37,'Tarifas Advantage'!$A$108:$F$174,6)), IF($B$32=2,IF($B37<18,'Tarifas Advantage'!$I$108,VLOOKUP('Fórmulas Cotización'!$B37,'Tarifas Advantage'!$H$108:$M$174,6)), IF($B$32=3,IF($B37<18,'Tarifas Advantage'!$P$108,VLOOKUP('Fórmulas Cotización'!$B37,'Tarifas Advantage'!$O$108:$T$174,6)), IF($B$32=4,IF($B37<18,'Tarifas Advantage'!$W$108,VLOOKUP('Fórmulas Cotización'!$B37,'Tarifas Advantage'!$V$108:$AA$174,6)), IF($B37<18,'Tarifas Advantage'!$AH$108,VLOOKUP('Fórmulas Cotización'!$B37,'Tarifas Advantage'!$AC$108:$AH$174,6)))))),0) -> 0 | J37: =IF(B37>0,IF($B$32=1,IF($B37<18,'Tarifas Complete'!$B$108,VLOOKUP('Fórmulas Cotización'!$B37,'Tarifas Complete'!$A$108:$F$174,2)), IF($B$32=2,IF($B37<18,'Tarifas Complete'!$I$108,VLOOKUP('Fórmulas Cotización'!$B37,'Tarifas Complete'!$H$108:$M$174,2)), IF($B$32=3,IF($B37<18,'Tarifas Complete'!$P$108,VLOOKUP('Fórmulas Cotización'!$B37,'Tarifas Complete'!$O$108:$T$174,2)), IF($B$32=4,IF($B37<18,'Tarifas Complete'!$W$108,VLOOKUP('Fórmulas Cotización'!$B37,'Tarifas Complete'!$V$108:$AA$174,2)), IF($B37<18,'Tarifas Complete'!$AD$108,VLOOKUP('Fórmulas Cotización'!$B37,'Tarifas Complete'!$AC$108:$AH$174,3)))))),0) -> 0 | K37: =IF(B37>0,IF($B$32=1,IF($B37<18,'Tarifas Complete'!$B$108,VLOOKUP('Fórmulas Cotización'!$B37,'Tarifas Complete'!$A$108:$F$174,3)), IF($B$32=2,IF($B37<18,'Tarifas Complete'!$I$108,VLOOKUP('Fórmulas Cotización'!$B37,'Tarifas Complete'!$H$108:$M$174,3)), IF($B$32=3,IF($B37<18,'Tarifas Complete'!$P$108,VLOOKUP('Fórmulas Cotización'!$B37,'Tarifas Complete'!$O$108:$T$174,3)), IF($B$32=4,IF($B37<18,'Tarifas Complete'!$W$108,VLOOKUP('Fórmulas Cotización'!$B37,'Tarifas Complete'!$V$108:$AA$174,3)), IF($B37<18,'Tarifas Complete'!$AE$108,VLOOKUP('Fórmulas Cotización'!$B37,'Tarifas Complete'!$AC$108:$AH$174,3)))))),0) -> 0 | L37: =IF(B37>0,IF($B$32=1,IF($B37<18,'Tarifas Complete'!$B$108,VLOOKUP('Fórmulas Cotización'!$B37,'Tarifas Complete'!$A$108:$F$174,4)), IF($B$32=2,IF($B37<18,'Tarifas Complete'!$I$108,VLOOKUP('Fórmulas Cotización'!$B37,'Tarifas Complete'!$H$108:$M$174,4)), IF($B$32=3,IF($B37<18,'Tarifas Complete'!$P$108,VLOOKUP('Fórmulas Cotización'!$B37,'Tarifas Complete'!$O$108:$T$174,4)), IF($B$32=4,IF($B37<18,'Tarifas Complete'!$W$108,VLOOKUP('Fórmulas Cotización'!$B37,'Tarifas Complete'!$V$108:$AA$174,4)), IF($B37<18,'Tarifas Complete'!$AF$108,VLOOKUP('Fórmulas Cotización'!$B37,'Tarifas Complete'!$AC$108:$AH$174,4)))))),0) -> 0 | M37: =IF(B37>0,IF($B$32=1,IF($B37<18,'Tarifas Complete'!$B$108,VLOOKUP('Fórmulas Cotización'!$B37,'Tarifas Complete'!$A$108:$F$174,5)), IF($B$32=2,IF($B37<18,'Tarifas Complete'!$I$108,VLOOKUP('Fórmulas Cotización'!$B37,'Tarifas Complete'!$H$108:$M$174,5)), IF($B$32=3,IF($B37<18,'Tarifas Complete'!$P$108,VLOOKUP('Fórmulas Cotización'!$B37,'Tarifas Complete'!$O$108:$T$174,5)), IF($B$32=4,IF($B37<18,'Tarifas Complete'!$W$108,VLOOKUP('Fórmulas Cotización'!$B37,'Tarifas Complete'!$V$108:$AA$174,5)), IF($B37<18,'Tarifas Complete'!$AG$108,VLOOKUP('Fórmulas Cotización'!$B37,'Tarifas Complete'!$AC$108:$AH$174,5)))))),0) -> 0 | N37: =IF(B37>0,IF($B$32=1,IF($B37<18,'Tarifas Complete'!$B$108,VLOOKUP('Fórmulas Cotización'!$B37,'Tarifas Complete'!$A$108:$F$174,6)), IF($B$32=2,IF($B37<18,'Tarifas Complete'!$I$108,VLOOKUP('Fórmulas Cotización'!$B37,'Tarifas Complete'!$H$108:$M$174,6)), IF($B$32=3,IF($B37<18,'Tarifas Complete'!$P$108,VLOOKUP('Fórmulas Cotización'!$B37,'Tarifas Complete'!$O$108:$T$174,6)), IF($B$32=4,IF($B37<18,'Tarifas Complete'!$W$108,VLOOKUP('Fórmulas Cotización'!$B37,'Tarifas Complete'!$V$108:$AA$174,6)), IF($B37<18,'Tarifas Complete'!$AH$108,VLOOKUP('Fórmulas Cotización'!$B37,'Tarifas Complete'!$AC$108:$AH$174,6)))))),0) -> 0 | P37: =IF(B37>0,IF($B$32=1,IF($B37<18,'Tarifas Diamond'!$B$108,VLOOKUP('Fórmulas Cotización'!$B37,'Tarifas Diamond'!$A$108:$F$174,2)), IF($B$32=2,IF($B37<18,'Tarifas Diamond'!$I$108,VLOOKUP('Fórmulas Cotización'!$B37,'Tarifas Diamond'!$H$108:$M$174,2)), IF($B$32=3,IF($B37<18,'Tarifas Diamond'!$P$108,VLOOKUP('Fórmulas Cotización'!$B37,'Tarifas Diamond'!$O$108:$T$174,2)), IF($B$32=4,IF($B37<18,'Tarifas Diamond'!$W$108,VLOOKUP('Fórmulas Cotización'!$B37,'Tarifas Diamond'!$V$108:$AA$174,2)), IF($B37<18,'Tarifas Diamond'!$AD$108,VLOOKUP('Fórmulas Cotización'!$B37,'Tarifas Diamond'!$AC$108:$AH$174,2)))))),0) -> 0 | Q37: =IF(B37>0,IF($B$32=1,IF($B37<18,'Tarifas Diamond'!$B$108,VLOOKUP('Fórmulas Cotización'!$B37,'Tarifas Diamond'!$A$108:$F$174,3)), IF($B$32=2,IF($B37<18,'Tarifas Diamond'!$I$108,VLOOKUP('Fórmulas Cotización'!$B37,'Tarifas Diamond'!$H$108:$M$174,3)), IF($B$32=3,IF($B37<18,'Tarifas Diamond'!$P$108,VLOOKUP('Fórmulas Cotización'!$B37,'Tarifas Diamond'!$O$108:$T$174,3)), IF($B$32=4,IF($B37<18,'Tarifas Diamond'!$W$108,VLOOKUP('Fórmulas Cotización'!$B37,'Tarifas Diamond'!$V$108:$AA$174,3)), IF($B37<18,'Tarifas Diamond'!$AE$108,VLOOKUP('Fórmulas Cotización'!$B37,'Tarifas Diamond'!$AC$108:$AH$174,3)))))),0) -> 0 | R37: =IF(B37>0,IF($B$32=1,IF($B37<18,'Tarifas Diamond'!$B$108,VLOOKUP('Fórmulas Cotización'!$B37,'Tarifas Diamond'!$A$108:$F$174,4)), IF($B$32=2,IF($B37<18,'Tarifas Diamond'!$I$108,VLOOKUP('Fórmulas Cotización'!$B37,'Tarifas Diamond'!$H$108:$M$174,4)), IF($B$32=3,IF($B37<18,'Tarifas Diamond'!$P$108,VLOOKUP('Fórmulas Cotización'!$B37,'Tarifas Diamond'!$O$108:$T$174,4)), IF($B$32=4,IF($B37<18,'Tarifas Diamond'!$W$108,VLOOKUP('Fórmulas Cotización'!$B37,'Tarifas Diamond'!$V$108:$AA$174,4)), IF($B37<18,'Tarifas Diamond'!$AF$108,VLOOKUP('Fórmulas Cotización'!$B37,'Tarifas Diamond'!$AC$108:$AH$174,4)))))),0) -> 0 | S37: =IF(B37>0,IF($B$32=1,IF($B37<18,'Tarifas Diamond'!$B$108,VLOOKUP('Fórmulas Cotización'!$B37,'Tarifas Diamond'!$A$108:$F$174,5)), IF($B$32=2,IF($B37<18,'Tarifas Diamond'!$I$108,VLOOKUP('Fórmulas Cotización'!$B37,'Tarifas Diamond'!$H$108:$M$174,5)), IF($B$32=3,IF($B37<18,'Tarifas Diamond'!$P$108,VLOOKUP('Fórmulas Cotización'!$B37,'Tarifas Diamond'!$O$108:$T$174,5)), IF($B$32=4,IF($B37<18,'Tarifas Diamond'!$W$108,VLOOKUP('Fórmulas Cotización'!$B37,'Tarifas Diamond'!$V$108:$AA$174,5)), IF($B37<18,'Tarifas Diamond'!$AG$108,VLOOKUP('Fórmulas Cotización'!$B37,'Tarifas Diamond'!$AC$108:$AH$174,5)))))),0) -> 0 | T37: =IF(B37>0,IF($B$32=1,IF($B37<18,'Tarifas Diamond'!$B$108,VLOOKUP('Fórmulas Cotización'!$B37,'Tarifas Diamond'!$A$108:$F$174,6)), IF($B$32=2,IF($B37<18,'Tarifas Diamond'!$I$108,VLOOKUP('Fórmulas Cotización'!$B37,'Tarifas Diamond'!$H$108:$M$174,6)), IF($B$32=3,IF($B37<18,'Tarifas Diamond'!$P$108,VLOOKUP('Fórmulas Cotización'!$B37,'Tarifas Diamond'!$O$108:$T$174,6)), IF($B$32=4,IF($B37<18,'Tarifas Diamond'!$W$108,VLOOKUP('Fórmulas Cotización'!$B37,'Tarifas Diamond'!$V$108:$AA$174,6)), IF($B37<18,'Tarifas Diamond'!$AH$108,VLOOKUP('Fórmulas Cotización'!$B37,'Tarifas Diamond'!$AC$108:$AH$174,6)))))),0) -> 0 | V37: =IF(B37>0,IF($B$32=1,IF($B37<18,'Tarifas Essential'!$B$108,VLOOKUP('Fórmulas Cotización'!$B37,'Tarifas Essential'!$A$108:$F$174,2)), IF($B$32=2,IF($B37<18,'Tarifas Essential'!$I$108,VLOOKUP('Fórmulas Cotización'!$B37,'Tarifas Essential'!$H$108:$M$174,2)), IF($B$32=3,IF($B37<18,'Tarifas Essential'!$P$108,VLOOKUP('Fórmulas Cotización'!$B37,'Tarifas Essential'!$O$108:$T$174,2)), IF($B$32=4,IF($B37<18,'Tarifas Essential'!$W$108,VLOOKUP('Fórmulas Cotización'!$B37,'Tarifas Essential'!$V$108:$AA$174,2)), IF($B37<18,'Tarifas Essential'!$AD$108,VLOOKUP('Fórmulas Cotización'!$B37,'Tarifas Essential'!$AC$108:$AH$174,2)))))),0) -> 0 | W37: =IF(B37>0,IF($B$32=1,IF($B37<18,'Tarifas Essential'!$B$108,VLOOKUP('Fórmulas Cotización'!$B37,'Tarifas Essential'!$A$108:$F$174,3)), IF($B$32=2,IF($B37<18,'Tarifas Essential'!$I$108,VLOOKUP('Fórmulas Cotización'!$B37,'Tarifas Essential'!$H$108:$M$174,3)), IF($B$32=3,IF($B37<18,'Tarifas Essential'!$P$108,VLOOKUP('Fórmulas Cotización'!$B37,'Tarifas Essential'!$O$108:$T$174,3)), IF($B$32=4,IF($B37<18,'Tarifas Essential'!$W$108,VLOOKUP('Fórmulas Cotización'!$B37,'Tarifas Essential'!$V$108:$AA$174,3)), IF($B37<18,'Tarifas Essential'!$AE$108,VLOOKUP('Fórmulas Cotización'!$B37,'Tarifas Essential'!$AC$108:$AH$174,3)))))),0) -> 0 | X37: =IF(B37>0,IF($B$32=1,IF($B37<18,'Tarifas Essential'!$B$108,VLOOKUP('Fórmulas Cotización'!$B37,'Tarifas Essential'!$A$108:$F$174,4)), IF($B$32=2,IF($B37<18,'Tarifas Essential'!$I$108,VLOOKUP('Fórmulas Cotización'!$B37,'Tarifas Essential'!$H$108:$M$174,4)), IF($B$32=3,IF($B37<18,'Tarifas Essential'!$P$108,VLOOKUP('Fórmulas Cotización'!$B37,'Tarifas Essential'!$O$108:$T$174,4)), IF($B$32=4,IF($B37<18,'Tarifas Essential'!$W$108,VLOOKUP('Fórmulas Cotización'!$B37,'Tarifas Essential'!$V$108:$AA$174,4)), IF($B37<18,'Tarifas Essential'!$AF$108,VLOOKUP('Fórmulas Cotización'!$B37,'Tarifas Essential'!$AC$108:$AH$174,4)))))),0) -> 0 | Y37: =IF(B37>0,IF($B$32=1,IF($B37<18,'Tarifas Essential'!$B$108,VLOOKUP('Fórmulas Cotización'!$B37,'Tarifas Essential'!$A$108:$F$174,5)), IF($B$32=2,IF($B37<18,'Tarifas Essential'!$I$108,VLOOKUP('Fórmulas Cotización'!$B37,'Tarifas Essential'!$H$108:$M$174,5)), IF($B$32=3,IF($B37<18,'Tarifas Essential'!$P$108,VLOOKUP('Fórmulas Cotización'!$B37,'Tarifas Essential'!$O$108:$T$174,5)), IF($B$32=4,IF($B37<18,'Tarifas Essential'!$W$108,VLOOKUP('Fórmulas Cotización'!$B37,'Tarifas Essential'!$V$108:$AA$174,5)), IF($B37<18,'Tarifas Essential'!$AG$108,VLOOKUP('Fórmulas Cotización'!$B37,'Tarifas Essential'!$AC$108:$AH$174,5)))))),0) -> 0 | Z37: =IF(B37>0,IF($B$32=1,IF($B37<18,'Tarifas Essential'!$B$108,VLOOKUP('Fórmulas Cotización'!$B37,'Tarifas Essential'!$A$108:$F$174,6)), IF($B$32=2,IF($B37<18,'Tarifas Essential'!$I$108,VLOOKUP('Fórmulas Cotización'!$B37,'Tarifas Essential'!$H$108:$M$174,6)), IF($B$32=3,IF($B37<18,'Tarifas Essential'!$P$108,VLOOKUP('Fórmulas Cotización'!$B37,'Tarifas Essential'!$O$108:$T$174,6)), IF($B$32=4,IF($B37<18,'Tarifas Essential'!$W$108,VLOOKUP('Fórmulas Cotización'!$B37,'Tarifas Essential'!$V$108:$AA$174,6)), IF($B37<18,'Tarifas Essential'!$AH$108,VLOOKUP('Fórmulas Cotización'!$B37,'Tarifas Essential'!$AC$108:$AH$174,6)))))),0) -> 0 | AB37: =IF(B37>0,IF($B$32=1,IF($B37<18,'Tarifas Secure'!$B$108,VLOOKUP('Fórmulas Cotización'!$B37,'Tarifas Secure'!$A$108:$F$174,2)), IF($B$32=2,IF($B37<18,'Tarifas Secure'!$I$108,VLOOKUP('Fórmulas Cotización'!$B37,'Tarifas Secure'!$H$108:$M$174,2)), IF($B$32=3,IF($B37<18,'Tarifas Secure'!$P$108,VLOOKUP('Fórmulas Cotización'!$B37,'Tarifas Secure'!$O$108:$T$174,2)), IF($B$32=4,IF($B37<18,'Tarifas Secure'!$W$108,VLOOKUP('Fórmulas Cotización'!$B37,'Tarifas Secure'!$V$108:$AA$174,2)), IF($B37<18,'Tarifas Secure'!$AD$108,VLOOKUP('Fórmulas Cotización'!$B37,'Tarifas Secure'!$AC$108:$AH$174,2)))))),0) -> 0 | AC37: =IF(B37>0,IF($B$32=1,IF($B37<18,'Tarifas Secure'!$B$108,VLOOKUP('Fórmulas Cotización'!$B37,'Tarifas Secure'!$A$108:$F$174,3)), IF($B$32=2,IF($B37<18,'Tarifas Secure'!$I$108,VLOOKUP('Fórmulas Cotización'!$B37,'Tarifas Secure'!$H$108:$M$174,3)), IF($B$32=3,IF($B37<18,'Tarifas Secure'!$P$108,VLOOKUP('Fórmulas Cotización'!$B37,'Tarifas Secure'!$O$108:$T$174,3)), IF($B$32=4,IF($B37<18,'Tarifas Secure'!$W$108,VLOOKUP('Fórmulas Cotización'!$B37,'Tarifas Secure'!$V$108:$AA$174,3)), IF($B37<18,'Tarifas Secure'!$AE$108,VLOOKUP('Fórmulas Cotización'!$B37,'Tarifas Secure'!$AC$108:$AH$174,3)))))),0) -> 0 | AD37: =IF(B37>0,IF($B$32=1,IF($B37<18,'Tarifas Secure'!$B$108,VLOOKUP('Fórmulas Cotización'!$B37,'Tarifas Secure'!$A$108:$F$174,4)), IF($B$32=2,IF($B37<18,'Tarifas Secure'!$I$108,VLOOKUP('Fórmulas Cotización'!$B37,'Tarifas Secure'!$H$108:$M$174,4)), IF($B$32=3,IF($B37<18,'Tarifas Secure'!$P$108,VLOOKUP('Fórmulas Cotización'!$B37,'Tarifas Secure'!$O$108:$T$174,4)), IF($B$32=4,IF($B37<18,'Tarifas Secure'!$W$108,VLOOKUP('Fórmulas Cotización'!$B37,'Tarifas Secure'!$V$108:$AA$174,4)), IF($B37<18,'Tarifas Secure'!$AF$108,VLOOKUP('Fórmulas Cotización'!$B37,'Tarifas Secure'!$AC$108:$AH$174,4)))))),0) -> 0 | AE37: =IF(B37>0,IF($B$32=1,IF($B37<18,'Tarifas Secure'!$B$108,VLOOKUP('Fórmulas Cotización'!$B37,'Tarifas Secure'!$A$108:$F$174,5)), IF($B$32=2,IF($B37<18,'Tarifas Secure'!$I$108,VLOOKUP('Fórmulas Cotización'!$B37,'Tarifas Secure'!$H$108:$M$174,5)), IF($B$32=3,IF($B37<18,'Tarifas Secure'!$P$108,VLOOKUP('Fórmulas Cotización'!$B37,'Tarifas Secure'!$O$108:$T$174,5)), IF($B$32=4,IF($B37<18,'Tarifas Secure'!$W$108,VLOOKUP('Fórmulas Cotización'!$B37,'Tarifas Secure'!$V$108:$AA$174,5)), IF($B37<18,'Tarifas Secure'!$AG$108,VLOOKUP('Fórmulas Cotización'!$B37,'Tarifas Secure'!$AC$108:$AH$174,5)))))),0) -> 0 | AF37: =IF(B37>0,IF($B$32=1,IF($B37<18,'Tarifas Secure'!$B$108,VLOOKUP('Fórmulas Cotización'!$B37,'Tarifas Secure'!$A$108:$F$174,6)), IF($B$32=2,IF($B37<18,'Tarifas Secure'!$I$108,VLOOKUP('Fórmulas Cotización'!$B37,'Tarifas Secure'!$H$108:$M$174,6)), IF($B$32=3,IF($B37<18,'Tarifas Secure'!$P$108,VLOOKUP('Fórmulas Cotización'!$B37,'Tarifas Secure'!$O$108:$T$174,6)), IF($B$32=4,IF($B37<18,'Tarifas Secure'!$W$108,VLOOKUP('Fórmulas Cotización'!$B37,'Tarifas Secure'!$V$108:$AA$174,6)), IF($B37<18,'Tarifas Secure'!$AH$108,VLOOKUP('Fórmulas Cotización'!$B37,'Tarifas Secure'!$AC$108:$AH$174,6)))))),0) -> 0 | AH37: =IF(B37>0,IF($B$32=1,IF($B37<18,'Bupa Total'!$B$108,VLOOKUP('Fórmulas Cotización'!$B37,'Bupa Total'!$A$108:$F$174,2)), IF($B$32=2,IF($B37<18,'Bupa Total'!$I$108,VLOOKUP('Fórmulas Cotización'!$B37,'Bupa Total'!$H$108:$M$174,2)), IF($B$32=3,IF($B37<18,'Bupa Total'!$P$108,VLOOKUP('Fórmulas Cotización'!$B37,'Bupa Total'!$O$108:$T$174,2)), IF($B$32=4,IF($B37<18,'Bupa Total'!$W$108,VLOOKUP('Fórmulas Cotización'!$B37,'Bupa Total'!$V$108:$AA$174,2)), IF($B37<18,'Bupa Total'!$AD$108,VLOOKUP('Fórmulas Cotización'!$B37,'Bupa Total'!$AC$108:$AH$174,2)))))),0) -> 0 | AI37: =IF(B37>0,IF($B$32=1,IF($B37<18,'Bupa Total'!$B$108,VLOOKUP('Fórmulas Cotización'!$B37,'Bupa Total'!$A$108:$F$174,3)), IF($B$32=2,IF($B37<18,'Bupa Total'!$I$108,VLOOKUP('Fórmulas Cotización'!$B37,'Bupa Total'!$H$108:$M$174,3)), IF($B$32=3,IF($B37<18,'Bupa Total'!$P$108,VLOOKUP('Fórmulas Cotización'!$B37,'Bupa Total'!$O$108:$T$174,3)), IF($B$32=4,IF($B37<18,'Bupa Total'!$W$108,VLOOKUP('Fórmulas Cotización'!$B37,'Bupa Total'!$V$108:$AA$174,3)), IF($B37<18,'Bupa Total'!$AE$108,VLOOKUP('Fórmulas Cotización'!$B37,'Bupa Total'!$AC$108:$AH$174,3)))))),0) -> 0 | AJ37: =IF(B37>0,IF($B$32=1,IF($B37<18,'Bupa Total'!$B$108,VLOOKUP('Fórmulas Cotización'!$B37,'Bupa Total'!$A$108:$F$174,4)), IF($B$32=2,IF($B37<18,'Bupa Total'!$I$108,VLOOKUP('Fórmulas Cotización'!$B37,'Bupa Total'!$H$108:$M$174,4)), IF($B$32=3,IF($B37<18,'Bupa Total'!$P$108,VLOOKUP('Fórmulas Cotización'!$B37,'Bupa Total'!$O$108:$T$174,4)), IF($B$32=4,IF($B37<18,'Bupa Total'!$W$108,VLOOKUP('Fórmulas Cotización'!$B37,'Bupa Total'!$V$108:$AA$174,4)), IF($B37<18,'Bupa Total'!$AF$108,VLOOKUP('Fórmulas Cotización'!$B37,'Bupa Total'!$AC$108:$AH$174,4)))))),0) -> 0 | AK37: =IF(B37>0,IF($B$32=1,IF($B37<18,'Bupa Total'!$B$108,VLOOKUP('Fórmulas Cotización'!$B37,'Bupa Total'!$A$108:$F$174,5)), IF($B$32=2,IF($B37<18,'Bupa Total'!$I$108,VLOOKUP('Fórmulas Cotización'!$B37,'Bupa Total'!$H$108:$M$174,5)), IF($B$32=3,IF($B37<18,'Bupa Total'!$P$108,VLOOKUP('Fórmulas Cotización'!$B37,'Bupa Total'!$O$108:$T$174,5)), IF($B$32=4,IF($B37<18,'Bupa Total'!$W$108,VLOOKUP('Fórmulas Cotización'!$B37,'Bupa Total'!$V$108:$AA$174,5)), IF($B37<18,'Bupa Total'!$AG$108,VLOOKUP('Fórmulas Cotización'!$B37,'Bupa Total'!$AC$108:$AH$174,5)))))),0) -> 0 | AL37: =IF(B37>0,IF($B$32=1,IF($B37<18,'Bupa Total'!$B$108,VLOOKUP('Fórmulas Cotización'!$B37,'Bupa Total'!$A$108:$F$174,6)), IF($B$32=2,IF($B37<18,'Bupa Total'!$I$108,VLOOKUP('Fórmulas Cotización'!$B37,'Bupa Total'!$H$108:$M$174,6)), IF($B$32=3,IF($B37<18,'Bupa Total'!$P$108,VLOOKUP('Fórmulas Cotización'!$B37,'Bupa Total'!$O$108:$T$174,6)), IF($B$32=4,IF($B37<18,'Bupa Total'!$W$108,VLOOKUP('Fórmulas Cotización'!$B37,'Bupa Total'!$V$108:$AA$174,6)), IF($B37<18,'Bupa Total'!$AH$108,VLOOKUP('Fórmulas Cotización'!$B37,'Bupa Total'!$AC$108:$AH$174,6)))))),0) -> 0 | AV37: Veracruz | AW37: Zona 5 | AX37: 5 | AY37: 0 | AZ37: 0
A38: 5 | B38: ='BUPA CARE PRODUCTS'!H18 -> 0 | D38: =IF(B38>0,IF($B$32=1,IF($B38<18,'Tarifas Advantage'!$B$108,VLOOKUP('Fórmulas Cotización'!$B38,'Tarifas Advantage'!$A$108:$F$174,2)), IF($B$32=2,IF($B38<18,'Tarifas Advantage'!$I$108,VLOOKUP('Fórmulas Cotización'!$B38,'Tarifas Advantage'!$H$108:$M$174,2)), IF($B$32=3,IF($B38<18,'Tarifas Advantage'!$P$108,VLOOKUP('Fórmulas Cotización'!$B38,'Tarifas Advantage'!$O$108:$T$174,2)), IF($B$32=4,IF($B38<18,'Tarifas Advantage'!$W$108,VLOOKUP('Fórmulas Cotización'!$B38,'Tarifas Advantage'!$V$108:$AA$174,2)), IF($B38<18,'Tarifas Advantage'!$AD$108,VLOOKUP('Fórmulas Cotización'!$B38,'Tarifas Advantage'!$AC$108:$AH$174,2)))))),0) -> 0 | E38: =IF(B38>0,IF($B$32=1,IF($B38<18,'Tarifas Advantage'!$B$108,VLOOKUP('Fórmulas Cotización'!$B38,'Tarifas Advantage'!$A$108:$F$174,3)), IF($B$32=2,IF($B38<18,'Tarifas Advantage'!$I$108,VLOOKUP('Fórmulas Cotización'!$B38,'Tarifas Advantage'!$H$108:$M$174,3)), IF($B$32=3,IF($B38<18,'Tarifas Advantage'!$P$108,VLOOKUP('Fórmulas Cotización'!$B38,'Tarifas Advantage'!$O$108:$T$174,3)), IF($B$32=4,IF($B38<18,'Tarifas Advantage'!$W$108,VLOOKUP('Fórmulas Cotización'!$B38,'Tarifas Advantage'!$V$108:$AA$174,3)), IF($B38<18,'Tarifas Advantage'!$AE$108,VLOOKUP('Fórmulas Cotización'!$B38,'Tarifas Advantage'!$AC$108:$AH$174,3)))))),0) -> 0 | F38: =IF(B38>0,IF($B$32=1,IF($B38<18,'Tarifas Advantage'!$B$108,VLOOKUP('Fórmulas Cotización'!$B38,'Tarifas Advantage'!$A$108:$F$174,4)), IF($B$32=2,IF($B38<18,'Tarifas Advantage'!$I$108,VLOOKUP('Fórmulas Cotización'!$B38,'Tarifas Advantage'!$H$108:$M$174,4)), IF($B$32=3,IF($B38<18,'Tarifas Advantage'!$P$108,VLOOKUP('Fórmulas Cotización'!$B38,'Tarifas Advantage'!$O$108:$T$174,4)), IF($B$32=4,IF($B38<18,'Tarifas Advantage'!$W$108,VLOOKUP('Fórmulas Cotización'!$B38,'Tarifas Advantage'!$V$108:$AA$174,4)), IF($B38<18,'Tarifas Advantage'!$AF$108,VLOOKUP('Fórmulas Cotización'!$B38,'Tarifas Advantage'!$AC$108:$AH$174,4)))))),0) -> 0 | G38: =IF(B38>0,IF($B$32=1,IF($B38<18,'Tarifas Advantage'!$B$108,VLOOKUP('Fórmulas Cotización'!$B38,'Tarifas Advantage'!$A$108:$F$174,5)), IF($B$32=2,IF($B38<18,'Tarifas Advantage'!$I$108,VLOOKUP('Fórmulas Cotización'!$B38,'Tarifas Advantage'!$H$108:$M$174,5)), IF($B$32=3,IF($B38<18,'Tarifas Advantage'!$P$108,VLOOKUP('Fórmulas Cotización'!$B38,'Tarifas Advantage'!$O$108:$T$174,5)), IF($B$32=4,IF($B38<18,'Tarifas Advantage'!$W$108,VLOOKUP('Fórmulas Cotización'!$B38,'Tarifas Advantage'!$V$108:$AA$174,5)), IF($B38<18,'Tarifas Advantage'!$AG$108,VLOOKUP('Fórmulas Cotización'!$B38,'Tarifas Advantage'!$AC$108:$AH$174,5)))))),0) -> 0 | H38: =IF(B38>0,IF($B$32=1,IF($B38<18,'Tarifas Advantage'!$B$108,VLOOKUP('Fórmulas Cotización'!$B38,'Tarifas Advantage'!$A$108:$F$174,6)), IF($B$32=2,IF($B38<18,'Tarifas Advantage'!$I$108,VLOOKUP('Fórmulas Cotización'!$B38,'Tarifas Advantage'!$H$108:$M$174,6)), IF($B$32=3,IF($B38<18,'Tarifas Advantage'!$P$108,VLOOKUP('Fórmulas Cotización'!$B38,'Tarifas Advantage'!$O$108:$T$174,6)), IF($B$32=4,IF($B38<18,'Tarifas Advantage'!$W$108,VLOOKUP('Fórmulas Cotización'!$B38,'Tarifas Advantage'!$V$108:$AA$174,6)), IF($B38<18,'Tarifas Advantage'!$AH$108,VLOOKUP('Fórmulas Cotización'!$B38,'Tarifas Advantage'!$AC$108:$AH$174,6)))))),0) -> 0 | J38: =IF(B38>0,IF($B$32=1,IF($B38<18,'Tarifas Complete'!$B$108,VLOOKUP('Fórmulas Cotización'!$B38,'Tarifas Complete'!$A$108:$F$174,2)), IF($B$32=2,IF($B38<18,'Tarifas Complete'!$I$108,VLOOKUP('Fórmulas Cotización'!$B38,'Tarifas Complete'!$H$108:$M$174,2)), IF($B$32=3,IF($B38<18,'Tarifas Complete'!$P$108,VLOOKUP('Fórmulas Cotización'!$B38,'Tarifas Complete'!$O$108:$T$174,2)), IF($B$32=4,IF($B38<18,'Tarifas Complete'!$W$108,VLOOKUP('Fórmulas Cotización'!$B38,'Tarifas Complete'!$V$108:$AA$174,2)), IF($B38<18,'Tarifas Complete'!$AD$108,VLOOKUP('Fórmulas Cotización'!$B38,'Tarifas Complete'!$AC$108:$AH$174,3)))))),0) -> 0 | K38: =IF(B38>0,IF($B$32=1,IF($B38<18,'Tarifas Complete'!$B$108,VLOOKUP('Fórmulas Cotización'!$B38,'Tarifas Complete'!$A$108:$F$174,3)), IF($B$32=2,IF($B38<18,'Tarifas Complete'!$I$108,VLOOKUP('Fórmulas Cotización'!$B38,'Tarifas Complete'!$H$108:$M$174,3)), IF($B$32=3,IF($B38<18,'Tarifas Complete'!$P$108,VLOOKUP('Fórmulas Cotización'!$B38,'Tarifas Complete'!$O$108:$T$174,3)), IF($B$32=4,IF($B38<18,'Tarifas Complete'!$W$108,VLOOKUP('Fórmulas Cotización'!$B38,'Tarifas Complete'!$V$108:$AA$174,3)), IF($B38<18,'Tarifas Complete'!$AE$108,VLOOKUP('Fórmulas Cotización'!$B38,'Tarifas Complete'!$AC$108:$AH$174,3)))))),0) -> 0 | L38: =IF(B38>0,IF($B$32=1,IF($B38<18,'Tarifas Complete'!$B$108,VLOOKUP('Fórmulas Cotización'!$B38,'Tarifas Complete'!$A$108:$F$174,4)), IF($B$32=2,IF($B38<18,'Tarifas Complete'!$I$108,VLOOKUP('Fórmulas Cotización'!$B38,'Tarifas Complete'!$H$108:$M$174,4)), IF($B$32=3,IF($B38<18,'Tarifas Complete'!$P$108,VLOOKUP('Fórmulas Cotización'!$B38,'Tarifas Complete'!$O$108:$T$174,4)), IF($B$32=4,IF($B38<18,'Tarifas Complete'!$W$108,VLOOKUP('Fórmulas Cotización'!$B38,'Tarifas Complete'!$V$108:$AA$174,4)), IF($B38<18,'Tarifas Complete'!$AF$108,VLOOKUP('Fórmulas Cotización'!$B38,'Tarifas Complete'!$AC$108:$AH$174,4)))))),0) -> 0 | M38: =IF(B38>0,IF($B$32=1,IF($B38<18,'Tarifas Complete'!$B$108,VLOOKUP('Fórmulas Cotización'!$B38,'Tarifas Complete'!$A$108:$F$174,5)), IF($B$32=2,IF($B38<18,'Tarifas Complete'!$I$108,VLOOKUP('Fórmulas Cotización'!$B38,'Tarifas Complete'!$H$108:$M$174,5)), IF($B$32=3,IF($B38<18,'Tarifas Complete'!$P$108,VLOOKUP('Fórmulas Cotización'!$B38,'Tarifas Complete'!$O$108:$T$174,5)), IF($B$32=4,IF($B38<18,'Tarifas Complete'!$W$108,VLOOKUP('Fórmulas Cotización'!$B38,'Tarifas Complete'!$V$108:$AA$174,5)), IF($B38<18,'Tarifas Complete'!$AG$108,VLOOKUP('Fórmulas Cotización'!$B38,'Tarifas Complete'!$AC$108:$AH$174,5)))))),0) -> 0 | N38: =IF(B38>0,IF($B$32=1,IF($B38<18,'Tarifas Complete'!$B$108,VLOOKUP('Fórmulas Cotización'!$B38,'Tarifas Complete'!$A$108:$F$174,6)), IF($B$32=2,IF($B38<18,'Tarifas Complete'!$I$108,VLOOKUP('Fórmulas Cotización'!$B38,'Tarifas Complete'!$H$108:$M$174,6)), IF($B$32=3,IF($B38<18,'Tarifas Complete'!$P$108,VLOOKUP('Fórmulas Cotización'!$B38,'Tarifas Complete'!$O$108:$T$174,6)), IF($B$32=4,IF($B38<18,'Tarifas Complete'!$W$108,VLOOKUP('Fórmulas Cotización'!$B38,'Tarifas Complete'!$V$108:$AA$174,6)), IF($B38<18,'Tarifas Complete'!$AH$108,VLOOKUP('Fórmulas Cotización'!$B38,'Tarifas Complete'!$AC$108:$AH$174,6)))))),0) -> 0 | P38: =IF(B38>0,IF($B$32=1,IF($B38<18,'Tarifas Diamond'!$B$108,VLOOKUP('Fórmulas Cotización'!$B38,'Tarifas Diamond'!$A$108:$F$174,2)), IF($B$32=2,IF($B38<18,'Tarifas Diamond'!$I$108,VLOOKUP('Fórmulas Cotización'!$B38,'Tarifas Diamond'!$H$108:$M$174,2)), IF($B$32=3,IF($B38<18,'Tarifas Diamond'!$P$108,VLOOKUP('Fórmulas Cotización'!$B38,'Tarifas Diamond'!$O$108:$T$174,2)), IF($B$32=4,IF($B38<18,'Tarifas Diamond'!$W$108,VLOOKUP('Fórmulas Cotización'!$B38,'Tarifas Diamond'!$V$108:$AA$174,2)), IF($B38<18,'Tarifas Diamond'!$AD$108,VLOOKUP('Fórmulas Cotización'!$B38,'Tarifas Diamond'!$AC$108:$AH$174,2)))))),0) -> 0 | Q38: =IF(B38>0,IF($B$32=1,IF($B38<18,'Tarifas Diamond'!$B$108,VLOOKUP('Fórmulas Cotización'!$B38,'Tarifas Diamond'!$A$108:$F$174,3)), IF($B$32=2,IF($B38<18,'Tarifas Diamond'!$I$108,VLOOKUP('Fórmulas Cotización'!$B38,'Tarifas Diamond'!$H$108:$M$174,3)), IF($B$32=3,IF($B38<18,'Tarifas Diamond'!$P$108,VLOOKUP('Fórmulas Cotización'!$B38,'Tarifas Diamond'!$O$108:$T$174,3)), IF($B$32=4,IF($B38<18,'Tarifas Diamond'!$W$108,VLOOKUP('Fórmulas Cotización'!$B38,'Tarifas Diamond'!$V$108:$AA$174,3)), IF($B38<18,'Tarifas Diamond'!$AE$108,VLOOKUP('Fórmulas Cotización'!$B38,'Tarifas Diamond'!$AC$108:$AH$174,3)))))),0) -> 0 | R38: =IF(B38>0,IF($B$32=1,IF($B38<18,'Tarifas Diamond'!$B$108,VLOOKUP('Fórmulas Cotización'!$B38,'Tarifas Diamond'!$A$108:$F$174,4)), IF($B$32=2,IF($B38<18,'Tarifas Diamond'!$I$108,VLOOKUP('Fórmulas Cotización'!$B38,'Tarifas Diamond'!$H$108:$M$174,4)), IF($B$32=3,IF($B38<18,'Tarifas Diamond'!$P$108,VLOOKUP('Fórmulas Cotización'!$B38,'Tarifas Diamond'!$O$108:$T$174,4)), IF($B$32=4,IF($B38<18,'Tarifas Diamond'!$W$108,VLOOKUP('Fórmulas Cotización'!$B38,'Tarifas Diamond'!$V$108:$AA$174,4)), IF($B38<18,'Tarifas Diamond'!$AF$108,VLOOKUP('Fórmulas Cotización'!$B38,'Tarifas Diamond'!$AC$108:$AH$174,4)))))),0) -> 0 | S38: =IF(B38>0,IF($B$32=1,IF($B38<18,'Tarifas Diamond'!$B$108,VLOOKUP('Fórmulas Cotización'!$B38,'Tarifas Diamond'!$A$108:$F$174,5)), IF($B$32=2,IF($B38<18,'Tarifas Diamond'!$I$108,VLOOKUP('Fórmulas Cotización'!$B38,'Tarifas Diamond'!$H$108:$M$174,5)), IF($B$32=3,IF($B38<18,'Tarifas Diamond'!$P$108,VLOOKUP('Fórmulas Cotización'!$B38,'Tarifas Diamond'!$O$108:$T$174,5)), IF($B$32=4,IF($B38<18,'Tarifas Diamond'!$W$108,VLOOKUP('Fórmulas Cotización'!$B38,'Tarifas Diamond'!$V$108:$AA$174,5)), IF($B38<18,'Tarifas Diamond'!$AG$108,VLOOKUP('Fórmulas Cotización'!$B38,'Tarifas Diamond'!$AC$108:$AH$174,5)))))),0) -> 0 | T38: =IF(B38>0,IF($B$32=1,IF($B38<18,'Tarifas Diamond'!$B$108,VLOOKUP('Fórmulas Cotización'!$B38,'Tarifas Diamond'!$A$108:$F$174,6)), IF($B$32=2,IF($B38<18,'Tarifas Diamond'!$I$108,VLOOKUP('Fórmulas Cotización'!$B38,'Tarifas Diamond'!$H$108:$M$174,6)), IF($B$32=3,IF($B38<18,'Tarifas Diamond'!$P$108,VLOOKUP('Fórmulas Cotización'!$B38,'Tarifas Diamond'!$O$108:$T$174,6)), IF($B$32=4,IF($B38<18,'Tarifas Diamond'!$W$108,VLOOKUP('Fórmulas Cotización'!$B38,'Tarifas Diamond'!$V$108:$AA$174,6)), IF($B38<18,'Tarifas Diamond'!$AH$108,VLOOKUP('Fórmulas Cotización'!$B38,'Tarifas Diamond'!$AC$108:$AH$174,6)))))),0) -> 0 | V38: =IF(B38>0,IF($B$32=1,IF($B38<18,'Tarifas Essential'!$B$108,VLOOKUP('Fórmulas Cotización'!$B38,'Tarifas Essential'!$A$108:$F$174,2)), IF($B$32=2,IF($B38<18,'Tarifas Essential'!$I$108,VLOOKUP('Fórmulas Cotización'!$B38,'Tarifas Essential'!$H$108:$M$174,2)), IF($B$32=3,IF($B38<18,'Tarifas Essential'!$P$108,VLOOKUP('Fórmulas Cotización'!$B38,'Tarifas Essential'!$O$108:$T$174,2)), IF($B$32=4,IF($B38<18,'Tarifas Essential'!$W$108,VLOOKUP('Fórmulas Cotización'!$B38,'Tarifas Essential'!$V$108:$AA$174,2)), IF($B38<18,'Tarifas Essential'!$AD$108,VLOOKUP('Fórmulas Cotización'!$B38,'Tarifas Essential'!$AC$108:$AH$174,2)))))),0) -> 0 | W38: =IF(B38>0,IF($B$32=1,IF($B38<18,'Tarifas Essential'!$B$108,VLOOKUP('Fórmulas Cotización'!$B38,'Tarifas Essential'!$A$108:$F$174,3)), IF($B$32=2,IF($B38<18,'Tarifas Essential'!$I$108,VLOOKUP('Fórmulas Cotización'!$B38,'Tarifas Essential'!$H$108:$M$174,3)), IF($B$32=3,IF($B38<18,'Tarifas Essential'!$P$108,VLOOKUP('Fórmulas Cotización'!$B38,'Tarifas Essential'!$O$108:$T$174,3)), IF($B$32=4,IF($B38<18,'Tarifas Essential'!$W$108,VLOOKUP('Fórmulas Cotización'!$B38,'Tarifas Essential'!$V$108:$AA$174,3)), IF($B38<18,'Tarifas Essential'!$AE$108,VLOOKUP('Fórmulas Cotización'!$B38,'Tarifas Essential'!$AC$108:$AH$174,3)))))),0) -> 0 | X38: =IF(B38>0,IF($B$32=1,IF($B38<18,'Tarifas Essential'!$B$108,VLOOKUP('Fórmulas Cotización'!$B38,'Tarifas Essential'!$A$108:$F$174,4)), IF($B$32=2,IF($B38<18,'Tarifas Essential'!$I$108,VLOOKUP('Fórmulas Cotización'!$B38,'Tarifas Essential'!$H$108:$M$174,4)), IF($B$32=3,IF($B38<18,'Tarifas Essential'!$P$108,VLOOKUP('Fórmulas Cotización'!$B38,'Tarifas Essential'!$O$108:$T$174,4)), IF($B$32=4,IF($B38<18,'Tarifas Essential'!$W$108,VLOOKUP('Fórmulas Cotización'!$B38,'Tarifas Essential'!$V$108:$AA$174,4)), IF($B38<18,'Tarifas Essential'!$AF$108,VLOOKUP('Fórmulas Cotización'!$B38,'Tarifas Essential'!$AC$108:$AH$174,4)))))),0) -> 0 | Y38: =IF(B38>0,IF($B$32=1,IF($B38<18,'Tarifas Essential'!$B$108,VLOOKUP('Fórmulas Cotización'!$B38,'Tarifas Essential'!$A$108:$F$174,5)), IF($B$32=2,IF($B38<18,'Tarifas Essential'!$I$108,VLOOKUP('Fórmulas Cotización'!$B38,'Tarifas Essential'!$H$108:$M$174,5)), IF($B$32=3,IF($B38<18,'Tarifas Essential'!$P$108,VLOOKUP('Fórmulas Cotización'!$B38,'Tarifas Essential'!$O$108:$T$174,5)), IF($B$32=4,IF($B38<18,'Tarifas Essential'!$W$108,VLOOKUP('Fórmulas Cotización'!$B38,'Tarifas Essential'!$V$108:$AA$174,5)), IF($B38<18,'Tarifas Essential'!$AG$108,VLOOKUP('Fórmulas Cotización'!$B38,'Tarifas Essential'!$AC$108:$AH$174,5)))))),0) -> 0 | Z38: =IF(B38>0,IF($B$32=1,IF($B38<18,'Tarifas Essential'!$B$108,VLOOKUP('Fórmulas Cotización'!$B38,'Tarifas Essential'!$A$108:$F$174,6)), IF($B$32=2,IF($B38<18,'Tarifas Essential'!$I$108,VLOOKUP('Fórmulas Cotización'!$B38,'Tarifas Essential'!$H$108:$M$174,6)), IF($B$32=3,IF($B38<18,'Tarifas Essential'!$P$108,VLOOKUP('Fórmulas Cotización'!$B38,'Tarifas Essential'!$O$108:$T$174,6)), IF($B$32=4,IF($B38<18,'Tarifas Essential'!$W$108,VLOOKUP('Fórmulas Cotización'!$B38,'Tarifas Essential'!$V$108:$AA$174,6)), IF($B38<18,'Tarifas Essential'!$AH$108,VLOOKUP('Fórmulas Cotización'!$B38,'Tarifas Essential'!$AC$108:$AH$174,6)))))),0) -> 0 | AB38: =IF(B38>0,IF($B$32=1,IF($B38<18,'Tarifas Secure'!$B$108,VLOOKUP('Fórmulas Cotización'!$B38,'Tarifas Secure'!$A$108:$F$174,2)), IF($B$32=2,IF($B38<18,'Tarifas Secure'!$I$108,VLOOKUP('Fórmulas Cotización'!$B38,'Tarifas Secure'!$H$108:$M$174,2)), IF($B$32=3,IF($B38<18,'Tarifas Secure'!$P$108,VLOOKUP('Fórmulas Cotización'!$B38,'Tarifas Secure'!$O$108:$T$174,2)), IF($B$32=4,IF($B38<18,'Tarifas Secure'!$W$108,VLOOKUP('Fórmulas Cotización'!$B38,'Tarifas Secure'!$V$108:$AA$174,2)), IF($B38<18,'Tarifas Secure'!$AD$108,VLOOKUP('Fórmulas Cotización'!$B38,'Tarifas Secure'!$AC$108:$AH$174,2)))))),0) -> 0 | AC38: =IF(B38>0,IF($B$32=1,IF($B38<18,'Tarifas Secure'!$B$108,VLOOKUP('Fórmulas Cotización'!$B38,'Tarifas Secure'!$A$108:$F$174,3)), IF($B$32=2,IF($B38<18,'Tarifas Secure'!$I$108,VLOOKUP('Fórmulas Cotización'!$B38,'Tarifas Secure'!$H$108:$M$174,3)), IF($B$32=3,IF($B38<18,'Tarifas Secure'!$P$108,VLOOKUP('Fórmulas Cotización'!$B38,'Tarifas Secure'!$O$108:$T$174,3)), IF($B$32=4,IF($B38<18,'Tarifas Secure'!$W$108,VLOOKUP('Fórmulas Cotización'!$B38,'Tarifas Secure'!$V$108:$AA$174,3)), IF($B38<18,'Tarifas Secure'!$AE$108,VLOOKUP('Fórmulas Cotización'!$B38,'Tarifas Secure'!$AC$108:$AH$174,3)))))),0) -> 0 | AD38: =IF(B38>0,IF($B$32=1,IF($B38<18,'Tarifas Secure'!$B$108,VLOOKUP('Fórmulas Cotización'!$B38,'Tarifas Secure'!$A$108:$F$174,4)), IF($B$32=2,IF($B38<18,'Tarifas Secure'!$I$108,VLOOKUP('Fórmulas Cotización'!$B38,'Tarifas Secure'!$H$108:$M$174,4)), IF($B$32=3,IF($B38<18,'Tarifas Secure'!$P$108,VLOOKUP('Fórmulas Cotización'!$B38,'Tarifas Secure'!$O$108:$T$174,4)), IF($B$32=4,IF($B38<18,'Tarifas Secure'!$W$108,VLOOKUP('Fórmulas Cotización'!$B38,'Tarifas Secure'!$V$108:$AA$174,4)), IF($B38<18,'Tarifas Secure'!$AF$108,VLOOKUP('Fórmulas Cotización'!$B38,'Tarifas Secure'!$AC$108:$AH$174,4)))))),0) -> 0 | AE38: =IF(B38>0,IF($B$32=1,IF($B38<18,'Tarifas Secure'!$B$108,VLOOKUP('Fórmulas Cotización'!$B38,'Tarifas Secure'!$A$108:$F$174,5)), IF($B$32=2,IF($B38<18,'Tarifas Secure'!$I$108,VLOOKUP('Fórmulas Cotización'!$B38,'Tarifas Secure'!$H$108:$M$174,5)), IF($B$32=3,IF($B38<18,'Tarifas Secure'!$P$108,VLOOKUP('Fórmulas Cotización'!$B38,'Tarifas Secure'!$O$108:$T$174,5)), IF($B$32=4,IF($B38<18,'Tarifas Secure'!$W$108,VLOOKUP('Fórmulas Cotización'!$B38,'Tarifas Secure'!$V$108:$AA$174,5)), IF($B38<18,'Tarifas Secure'!$AG$108,VLOOKUP('Fórmulas Cotización'!$B38,'Tarifas Secure'!$AC$108:$AH$174,5)))))),0) -> 0 | AF38: =IF(B38>0,IF($B$32=1,IF($B38<18,'Tarifas Secure'!$B$108,VLOOKUP('Fórmulas Cotización'!$B38,'Tarifas Secure'!$A$108:$F$174,6)), IF($B$32=2,IF($B38<18,'Tarifas Secure'!$I$108,VLOOKUP('Fórmulas Cotización'!$B38,'Tarifas Secure'!$H$108:$M$174,6)), IF($B$32=3,IF($B38<18,'Tarifas Secure'!$P$108,VLOOKUP('Fórmulas Cotización'!$B38,'Tarifas Secure'!$O$108:$T$174,6)), IF($B$32=4,IF($B38<18,'Tarifas Secure'!$W$108,VLOOKUP('Fórmulas Cotización'!$B38,'Tarifas Secure'!$V$108:$AA$174,6)), IF($B38<18,'Tarifas Secure'!$AH$108,VLOOKUP('Fórmulas Cotización'!$B38,'Tarifas Secure'!$AC$108:$AH$174,6)))))),0) -> 0 | AH38: =IF(B38>0,IF($B$32=1,IF($B38<18,'Bupa Total'!$B$108,VLOOKUP('Fórmulas Cotización'!$B38,'Bupa Total'!$A$108:$F$174,2)), IF($B$32=2,IF($B38<18,'Bupa Total'!$I$108,VLOOKUP('Fórmulas Cotización'!$B38,'Bupa Total'!$H$108:$M$174,2)), IF($B$32=3,IF($B38<18,'Bupa Total'!$P$108,VLOOKUP('Fórmulas Cotización'!$B38,'Bupa Total'!$O$108:$T$174,2)), IF($B$32=4,IF($B38<18,'Bupa Total'!$W$108,VLOOKUP('Fórmulas Cotización'!$B38,'Bupa Total'!$V$108:$AA$174,2)), IF($B38<18,'Bupa Total'!$AD$108,VLOOKUP('Fórmulas Cotización'!$B38,'Bupa Total'!$AC$108:$AH$174,2)))))),0) -> 0 | AI38: =IF(B38>0,IF($B$32=1,IF($B38<18,'Bupa Total'!$B$108,VLOOKUP('Fórmulas Cotización'!$B38,'Bupa Total'!$A$108:$F$174,3)), IF($B$32=2,IF($B38<18,'Bupa Total'!$I$108,VLOOKUP('Fórmulas Cotización'!$B38,'Bupa Total'!$H$108:$M$174,3)), IF($B$32=3,IF($B38<18,'Bupa Total'!$P$108,VLOOKUP('Fórmulas Cotización'!$B38,'Bupa Total'!$O$108:$T$174,3)), IF($B$32=4,IF($B38<18,'Bupa Total'!$W$108,VLOOKUP('Fórmulas Cotización'!$B38,'Bupa Total'!$V$108:$AA$174,3)), IF($B38<18,'Bupa Total'!$AE$108,VLOOKUP('Fórmulas Cotización'!$B38,'Bupa Total'!$AC$108:$AH$174,3)))))),0) -> 0 | AJ38: =IF(B38>0,IF($B$32=1,IF($B38<18,'Bupa Total'!$B$108,VLOOKUP('Fórmulas Cotización'!$B38,'Bupa Total'!$A$108:$F$174,4)), IF($B$32=2,IF($B38<18,'Bupa Total'!$I$108,VLOOKUP('Fórmulas Cotización'!$B38,'Bupa Total'!$H$108:$M$174,4)), IF($B$32=3,IF($B38<18,'Bupa Total'!$P$108,VLOOKUP('Fórmulas Cotización'!$B38,'Bupa Total'!$O$108:$T$174,4)), IF($B$32=4,IF($B38<18,'Bupa Total'!$W$108,VLOOKUP('Fórmulas Cotización'!$B38,'Bupa Total'!$V$108:$AA$174,4)), IF($B38<18,'Bupa Total'!$AF$108,VLOOKUP('Fórmulas Cotización'!$B38,'Bupa Total'!$AC$108:$AH$174,4)))))),0) -> 0 | AK38: =IF(B38>0,IF($B$32=1,IF($B38<18,'Bupa Total'!$B$108,VLOOKUP('Fórmulas Cotización'!$B38,'Bupa Total'!$A$108:$F$174,5)), IF($B$32=2,IF($B38<18,'Bupa Total'!$I$108,VLOOKUP('Fórmulas Cotización'!$B38,'Bupa Total'!$H$108:$M$174,5)), IF($B$32=3,IF($B38<18,'Bupa Total'!$P$108,VLOOKUP('Fórmulas Cotización'!$B38,'Bupa Total'!$O$108:$T$174,5)), IF($B$32=4,IF($B38<18,'Bupa Total'!$W$108,VLOOKUP('Fórmulas Cotización'!$B38,'Bupa Total'!$V$108:$AA$174,5)), IF($B38<18,'Bupa Total'!$AG$108,VLOOKUP('Fórmulas Cotización'!$B38,'Bupa Total'!$AC$108:$AH$174,5)))))),0) -> 0 | AL38: =IF(B38>0,IF($B$32=1,IF($B38<18,'Bupa Total'!$B$108,VLOOKUP('Fórmulas Cotización'!$B38,'Bupa Total'!$A$108:$F$174,6)), IF($B$32=2,IF($B38<18,'Bupa Total'!$I$108,VLOOKUP('Fórmulas Cotización'!$B38,'Bupa Total'!$H$108:$M$174,6)), IF($B$32=3,IF($B38<18,'Bupa Total'!$P$108,VLOOKUP('Fórmulas Cotización'!$B38,'Bupa Total'!$O$108:$T$174,6)), IF($B$32=4,IF($B38<18,'Bupa Total'!$W$108,VLOOKUP('Fórmulas Cotización'!$B38,'Bupa Total'!$V$108:$AA$174,6)), IF($B38<18,'Bupa Total'!$AH$108,VLOOKUP('Fórmulas Cotización'!$B38,'Bupa Total'!$AC$108:$AH$174,6)))))),0) -> 0 | AV38: Yucatán | AW38: Zona 5 | AX38: 5 | AY38: 0 | AZ38: 0
D39: =SUM(D34:D38) -> 0 | E39: =SUM(E34:E38) -> 0 | F39: 0 | G39: 0 | H39: 0 | J39: =SUM(J34:J38) -> 0 | K39: =SUM(K34:K38) -> 0 | L39: 0 | M39: 0 | N39: 0 | P39: =SUM(P34:P38) -> 0 | Q39: =SUM(Q34:Q38) -> 0 | R39: 0 | S39: 0 | T39: 0 | V39: =SUM(V34:V38) -> 0 | W39: =SUM(W34:W38) -> 0 | X39: 0 | Y39: 0 | Z39: 0 | AB39: =SUM(AB34:AB38) -> 0 | AC39: =SUM(AC34:AC38) -> 0 | AD39: 0 | AE39: 0 | AF39: 0 | AH39: =SUM(AH34:AH38) -> 0 | AI39: =SUM(AI34:AI38) -> 0 | AJ39: 0 | AK39: 0 | AL39: 0 | AV39: Zacatecas | AW39: Zona 5 | AX39: 5 | AY39: 0 | AZ39: 0
AV41: Estados con IVA Franja Fronteriza
AV42: Baja California Norte
AV43: Baja California Sur
AV44: Campeche
AV45: Cancún
AV46: Chiapas
AV47: Chihuahua
AV48: Coahuila
AV49: Franja Fronteriza Norte
AV50: Oaxaca
AV51: Quintana Roo
AV52: Sonora
AV53: Tamaulipas

Sheet Tarifas Advantage (hidden)
A1: Zona 1: Ciudad de México (D.F. y área metropolitana) y franja fronteriza norte | H1: Zona 2: Nuevo León, Sonora, Coahuila, Chihuahua, Tamaulipas, Baja California Norte y Baja California Sur | O1: Zona 3: Jalisco, Puebla, Morelos, Estado de México (excepto Área Metropolitana), Quintana Roo, Guerrero (Acapulco y Zihuatanejo), Hidalgo y Querétaro | V1: Zona 4: Sinaloa, Guanajuato, San Luis Potosí, Durango, Aguascalientes, Nayarit, Michoacán, Colima, Zacatecas | AC1: Zona 5: Guerrero (excepto Acapulco y Zihuatanejo), Veracruz, Chiapas, Tabasco, Campeche, Oaxaca, Tlaxcala, Yucatán
A2: Primas de riesgo expresadas en pesos mexicanos | H2: Primas de riesgo expresadas en pesos mexicanos | O2: Primas de riesgo expresadas en pesos mexicanos | V2: Primas de riesgo expresadas en pesos mexicanos | AC2: Primas de riesgo expresadas en pesos mexicanos
A3: Edad | B3: AW21 | C3: AW31 | D3: AW41 | E3: AW51 | F3: AW61 | H3: Edad | I3: AW22 | J3: AW32 | K3: AW42 | L3: AW52 | M3: AW62 | O3: Edad | P3: AW23 | Q3: AW33 | R3: AW43 | S3: AW53 | T3: AW63 | V3: Edad | W3: AW24 | X3: AW34 | Y3: AW44 | Z3: AW54 | AA3: AW64 | AC3: Edad | AD3: AW25 | AE3: AW35 | AF3: AW45 | AG3: AW55 | AH3: AW65
A4: 1 menor | B4: =B105*0.6 -> 34905 | C4: =C105*0.6 -> 26625 | D4: =D105*0.6 -> 20985 | E4: =E105*0.6 -> 16627.5 | F4: =F105*0.6 -> 12172.5 | H4: 1 menor | I4: =I105*0.6 -> 30712.5 | J4: =J105*0.6 -> 23430 | K4: =K105*0.6 -> 18465 | L4: =L105*0.6 -> 14632.5 | M4: =M105*0.6 -> 10717.5 | O4: 1 menor | P4: =P105*0.6 -> 27577.5 | Q4: =Q105*0.6 -> 21030 | R4: =R105*0.6 -> 16575 | S4: =S105*0.6 -> 13132.5 | T4: =T105*0.6 -> 9615 | V4: 1 menor | W4: =W105*0.6 -> 9615 | X4: =X105*0.6 -> 19432.5 | Y4: =Y105*0.6 -> 15315 | Z4: =Z105*0.6 -> 12135 | AA4: =AA105*0.6 -> 8887.5 | AC4: 1 menor | AD4: =AD105*0.6 -> 23737.5 | AE4: =AE105*0.6 -> 18105 | AF4: =AF105*0.6 -> 14265 | AG4: =AG105*0.6 -> 11302.5 | AH4: =AH105*0.6 -> 8280
A5: 2 menor | B5: =B106*0.6 -> 54997.5 | C5: =C106*0.6 -> 41947.5 | D5: 33060 | E5: 26197.5 | F5: 19185 | H5: 2 menores | I5: =I106*0.6 -> 48397.5 | J5: 36915 | K5: 29092.5 | L5: 23047.5 | M5: 16882.5 | O5: 2 menores | P5: =P106*0.6 -> 43447.5 | Q5: 33135 | R5: 26115 | S5: 20692.5 | T5: 15157.5 | V5: 2 menores | W5: =W106*0.6 -> 15157.5 | X5: 30622.5 | Y5: 24135 | Z5: 19125 | AA5: 14002.5 | AC5: 2 menores | AD5: =AD106*0.6 -> 37395 | AE5: 28522.5 | AF5: 22477.5 | AG5: 17812.5 | AH5: 13042.5
A6: 3 menor | B6: =B107*0.6 -> 80242.5 | C6: 61200 | D6: 48232.5 | E6: 38220 | F6: 27990 | H6: 3 ó más menores | I6: 70612.5 | J6: 53857.5 | K6: 42450 | L6: 33630 | M6: 24630 | O6: 3 ó más menores | P6: 63390 | Q6: 48352.5 | R6: 38107.5 | S6: 30195 | T6: 22110 | V6: 3 ó más menores | W6: 22110 | X6: 44677.5 | Y6: 35212.5 | Z6: 27900 | AA6: 20430 | AC6: 3 ó más menores | AD6: 54562.5 | AE6: 41617.5 | AF6: 32797.5 | AG6: 25987.5 | AH6: 19035
A7: 18 | B7: =B108*0.6 -> 80512.5 | C7: 61410 | D7: 48397.5 | E7: 48397.5 | F7: 28087.5 | H7: 18 | I7: 70852.5 | J7: 54037.5 | K7: 42592.5 | L7: 33750 | M7: 24712.5 | O7: 18 | P7: 63607.5 | Q7: 48510 | R7: 38235 | S7: 30292.5 | T7: 22185 | V7: 18 | W7: 58777.5 | X7: 44827.5 | Y7: 35332.5 | Z7: 27997.5 | AA7: 20505 | AC7: 18 | AD7: 54750 | AE7: 41760 | AF7: 32910 | AG7: 26077.5 | AH7: 19095
A8: 19 | B8: =B109*0.6 -> 83055 | C8: 63345 | D8: 49927.5 | E8: 49927.5 | F8: 28972.5 | H8: 19 | I8: 73087.5 | J8: 55747.5 | K8: 43935 | L8: 34815 | M8: 25492.5 | O8: 19 | P8: 65617.5 | Q8: 50047.5 | R8: 39442.5 | S8: 31252.5 | T8: 22890 | V8: 19 | W8: 60630 | X8: 46245 | Y8: 36450 | Z8: 28875 | AA8: 21150 | AC8: 19 | AD8: 56475 | AE8: 43080 | AF8: 33952.5 | AG8: 26902.5 | AH8: 19702.5
A9: 20 | B9: =B110*0.6 -> 85680 | C9: 65347.5 | D9: 51502.5 | E9: 51502.5 | F9: 29887.5 | H9: 20 | I9: 75397.5 | J9: 57510 | K9: 45322.5 | L9: 35910 | M9: 26302.5 | O9: 20 | P9: 67687.5 | Q9: 51622.5 | R9: 40687.5 | S9: 32235 | T9: 23610 | V9: 20 | W9: 62542.5 | X9: 47707.5 | Y9: 37597.5 | Z9: 29790 | AA9: 21817.5 | AC9: 20 | AD9: 58260 | AE9: 44437.5 | AF9: 35025 | AG9: 27750 | AH9: 20325
A10: 21 | B10: 88380 | C10: 67410 | D10: 53130 | E10: 53130 | F10: 30832.5 | H10: 21 | I10: 77775 | J10: 59325 | K10: 46755 | L10: 37042.5 | M10: 27127.5 | O10: 21 | P10: 69825 | Q10: 53257.5 | R10: 41970 | S10: 33255 | T10: 24352.5 | V10: 21 | W10: 64522.5 | X10: 49207.5 | Y10: 38782.5 | Z10: 30727.5 | AA10: 22507.5 | AC10: 21 | AD10: 60097.5 | AE10: 45840 | AF10: 36127.5 | AG10: 28627.5 | AH10: 20962.5
A11: 22 | B11: 91170 | C11: 69540 | D11: 54810 | E11: 54810 | F11: 31800 | H11: 22 | I11: 80235 | J11: 61192.5 | K11: 48232.5 | L11: 38212.5 | M11: 27990 | O11: 22 | P11: 72030 | Q11: 54937.5 | R11: 43297.5 | S11: 34305 | T11: 25125 | V11: 22 | W11: 66555 | X11: 50767.5 | Y11: 40005 | Z11: 31702.5 | AA11: 23220 | AC11: 22 | AD11: 61995 | AE11: 47287.5 | AF11: 37267.5 | AG11: 29527.5 | AH11: 21622.5
A12: 23 | B12: 94050 | C12: 71737.5 | D12: 56535 | E12: 56535 | F12: 32805 | H12: 23 | I12: 82762.5 | J12: 63127.5 | K12: 49755 | L12: 39420 | M12: 28867.5 | O12: 23 | P12: 74302.5 | Q12: 56670 | R12: 44662.5 | S12: 35385 | T12: 25920 | V12: 23 | W12: 68655 | X12: 52365 | Y12: 41272.5 | Z12: 32700 | AA12: 23947.5 | AC12: 23 | AD12: 63952.5 | AE12: 48780 | AF12: 38445 | AG12: 30457.5 | AH12: 22305
A13: 24 | B13: 97020 | C13: 74002.5 | D13: 58320 | E13: 58320 | F13: 33840 | H13: 24 | I13: 85380 | J13: 65122.5 | K13: 51322.5 | L13: 40665 | M13: 29782.5 | O13: 24 | P13: 76650 | Q13: 58462.5 | R13: 46072.5 | S13: 36502.5 | T13: 26737.5 | V13: 24 | W13: 70822.5 | X13: 54022.5 | Y13: 42577.5 | Z13: 33735 | AA13: 24705 | AC13: 24 | AD13: 65977.5 | AE13: 50317.5 | AF13: 39660 | AG13: 31425 | AH13: 23010
A14: 25 | B14: 100087.5 | C14: 76335 | D14: 60165 | E14: 60165 | F14: 34912.5 | H14: 25 | I14: 88072.5 | J14: 67177.5 | K14: 52942.5 | L14: 41947.5 | M14: 30720 | O14: 25 | P14: 79065 | Q14: 60307.5 | R14: 47527.5 | S14: 37657.5 | T14: 27577.5 | V14: 25 | W14: 73057.5 | X14: 55725 | Y14: 43920 | Z14: 34800 | AA14: 25485 | AC14: 25 | AD14: 68055 | AE14: 51907.5 | AF14: 40912.5 | AG14: 32415 | AH14: 23737.5
A15: 26 | B15: 103245 | C15: 78742.5 | D15: 62062.5 | E15: 62062.5 | F15: 36015 | H15: 26 | I15: 90855 | J15: 69300 | K15: 54615 | L15: 43275 | M15: 31695 | O15: 26 | P15: 81562.5 | Q15: 62212.5 | R15: 49027.5 | S15: 38850 | T15: 28447.5 | V15: 26 | W15: 75367.5 | X15: 57487.5 | Y15: 45307.5 | Z15: 35895 | AA15: 26287.5 | AC15: 26 | AD15: 70207.5 | AE15: 53550 | AF15: 42202.5 | AG15: 33435 | AH15: 24487.5
A16: 27 | B16: 106500 | C16: 81232.5 | D16: 64020 | E16: 64020 | F16: 37147.5 | H16: 27 | I16: 93720 | J16: 71482.5 | K16: 56340 | L16: 44640 | M16: 32692.5 | O16: 27 | P16: 84135 | Q16: 64170 | R16: 50580 | S16: 40072.5 | T16: 29347.5 | V16: 27 | W16: 77745 | X16: 59302.5 | Y16: 46740 | Z16: 37027.5 | AA16: 27120 | AC16: 27 | AD16: 72420 | AE16: 55237.5 | AF16: 43537.5 | AG16: 34492.5 | AH16: 25260
A17: 28 | B17: 109867.5 | C17: 83797.5 | D17: 66045 | E17: 66045 | F17: 38325 | H17: 28 | I17: 96682.5 | J17: 73740 | K17: 58117.5 | L17: 46050 | M17: 33727.5 | O17: 28 | P17: 86797.5 | Q17: 66202.5 | R17: 52170 | S17: 41340 | T17: 30277.5 | V17: 28 | W17: 80205 | X17: 61170 | Y17: 48210 | Z17: 38197.5 | AA17: 27975 | AC17: 28 | AD17: 74707.5 | AE17: 56985 | AF17: 44910 | AG17: 35580 | AH17: 26062.5
A18: 29 | B18: 113332.5 | C18: 86445 | D18: 68130 | E18: 68130 | F18: 39532.5 | H18: 29 | I18: 99735 | J18: 76072.5 | K18: 59955 | L18: 47505 | M18: 34785 | O18: 29 | P18: 89535 | Q18: 68287.5 | R18: 53820 | S18: 42645 | T18: 31230 | V18: 29 | W18: 82732.5 | X18: 63105 | Y18: 49732.5 | Z18: 39405 | AA18: 28860 | AC18: 29 | AD18: 77070 | AE18: 58785 | AF18: 46327.5 | AG18: 36705 | AH18: 26880
A19: 30 | B19: 116910 | C19: 89175 | D19: 70275 | E19: 70275 | F19: 40777.5 | H19: 30 | I19: 102885 | J19: 78472.5 | K19: 61845 | L19: 49005 | M19: 35887.5 | O19: 30 | P19: 92362.5 | Q19: 70447.5 | R19: 55522.5 | S19: 43987.5 | T19: 32220 | V19: 30 | W19: 85342.5 | X19: 65092.5 | Y19: 51300 | Z19: 40650 | AA19: 29767.5 | AC19: 30 | AD19: 79500 | AE19: 60637.5 | AF19: 47790 | AG19: 37867.5 | AH19: 27735
A20: 31 | B20: 120600 | C20: 91987.5 | D20: 72495 | E20: 72495 | F20: 42067.5 | H20: 31 | I20: 106132.5 | J20: 80947.5 | K20: 63795 | L20: 50550 | M20: 37020 | O20: 31 | P20: 95280 | Q20: 72667.5 | R20: 57270 | S20: 45375 | T20: 33232.5 | V20: 31 | W20: 88042.5 | X20: 67147.5 | Y20: 52920 | Z20: 41932.5 | AA20: 30712.5 | AC20: 31 | AD20: 82012.5 | AE20: 62550 | AF20: 49297.5 | AG20: 39060 | AH20: 28605
A21: 32 | B21: =B122*0.6 -> 124410 | C21: 94890 | D21: 74790 | E21: 74790 | F21: 43395 | H21: 32 | I21: =I122*0.6 -> 109485 | J21: 83505 | K21: 65812.5 | L21: 52147.5 | M21: 38190 | O21: 32 | P21: =P122*0.6 -> 98287.5 | Q21: 74962.5 | R21: 59085 | S21: 46815 | T21: 34282.5 | V21: 32 | W21: =W122*0.6 -> 90817.5 | X21: 69270 | Y21: 54592.5 | Z21: 43252.5 | AA21: 31680 | AC21: 32 | AD21: =AD122*0.6 -> 84600 | AE21: 64522.5 | AF21: 50857.5 | AG21: 40290 | AH21: 29512.5
A22: 33 | B22: 128340 | C22: 97890 | D22: 77145 | E22: 77145 | F22: 44767.5 | H22: 33 | I22: 112935 | J22: 86137.5 | K22: 67890 | L22: 53790 | M22: 39397.5 | O22: 33 | P22: 101385 | Q22: 77332.5 | R22: 60945 | S22: 48292.5 | T22: 35362.5 | V22: 33 | W22: 93690 | X22: 71460 | Y22: 56317.5 | Z22: 44625 | AA22: 32677.5 | AC22: 33 | AD22: 87270 | AE22: 66562.5 | AF22: 52462.5 | AG22: 41565 | AH22: 30442.5
A23: 34 | B23: 132390 | C23: 100980 | D23: 79582.5 | E23: 79582.5 | F23: 46177.5 | H23: 34 | I23: 116505 | J23: 88860 | K23: 70035 | L23: 55485 | M23: 40635 | O23: 34 | P23: 104587.5 | Q23: 79770 | R23: 62872.5 | S23: 49815 | T23: 36480 | V23: 34 | W23: 96645 | X23: 73710 | Y23: 58095 | Z23: 46027.5 | AA23: 33712.5 | AC23: 34 | AD23: 90022.5 | AE23: 68662.5 | AF23: 54120 | AG23: 42877.5 | AH23: 31402.5
A24: 35 | B24: 133072.5 | C24: 101497.5 | D24: 79995 | E24: 79995 | F24: 46417.5 | H24: 35 | I24: 117105 | J24: 89317.5 | K24: 70395 | L24: 55777.5 | M24: 40852.5 | O24: 35 | P24: 105127.5 | Q24: 80182.5 | R24: 63195 | S24: 50070 | T24: 36675 | V24: 35 | W24: 97147.5 | X24: 74092.5 | Y24: 58395 | Z24: 46267.5 | AA24: 33885 | AC24: 35 | AD24: 90495 | AE24: 69022.5 | AF24: 54397.5 | AG24: 43102.5 | AH24: 31567.5
A25: 36 | B25: 136117.5 | C25: 103822.5 | D25: 81825 | E25: 81825 | F25: 47482.5 | H25: 36 | I25: 119790 | J25: 91365 | K25: 72007.5 | L25: 57052.5 | M25: 41782.5 | O25: 36 | P25: 107535 | Q25: 82020 | R25: 64642.5 | S25: 51217.5 | T25: 37507.5 | V25: 36 | W25: 99367.5 | X25: 75787.5 | Y25: 59730 | Z25: 47325 | AA25: 34665 | AC25: 36 | AD25: 92565 | AE25: 70597.5 | AF25: 55642.5 | AG25: 44085 | AH25: 32287.5
A26: 37 | B26: 139237.5 | C26: 106200 | D26: 83700 | E26: 83700 | F26: 48570 | H26: 37 | I26: 122527.5 | J26: 93457.5 | K26: 73657.5 | L26: 58357.5 | M26: 42742.5 | O26: 37 | P26: 109995 | Q26: 83895 | R26: 66120 | S26: 52387.5 | T26: 38370 | V26: 37 | W26: 101640 | X26: 77527.5 | Y26: 61102.5 | Z26: 48412.5 | AA26: 35452.5 | AC26: 37 | AD26: 94680 | AE26: 72217.5 | AF26: 56917.5 | AG26: 45097.5 | AH26: 33022.5
A27: 38 | B27: 142425 | C27: 108630 | D27: 85612.5 | E27: 85612.5 | F27: 49680 | H27: 38 | I27: 125332.5 | J27: 95595 | K27: 75337.5 | L27: 59692.5 | M27: 43717.5 | O27: 38 | P27: 112515 | Q27: 85815 | R27: 67635 | S27: 53587.5 | T27: 39247.5 | V27: 38 | W27: 103965 | X27: 79297.5 | Y27: 62497.5 | Z27: 49515 | AA27: 36262.5 | AC27: 38 | AD27: 96847.5 | AE27: 73867.5 | AF27: 58215 | AG27: 46125 | AH27: 33780
A28: 39 | B28: 145680 | C28: 111112.5 | D28: 87570 | E28: 87570 | F28: 50812.5 | H28: 39 | I28: 128197.5 | J28: 97777.5 | K28: 77062.5 | L28: 61057.5 | M28: 44715 | O28: 39 | P28: 115087.5 | Q28: 87780 | R28: 69180 | S28: 54817.5 | T28: 40147.5 | V28: 39 | W28: 106350 | X28: 81112.5 | Y28: 63930 | Z28: 50655 | AA28: 37095 | AC28: 39 | AD28: 99060 | AE28: 75555 | AF28: 59550 | AG28: 47182.5 | AH28: 34552.5
A29: 40 | B29: 149017.5 | C29: 113655 | D29: 89580 | E29: 89580 | F29: 51982.5 | H29: 40 | I29: 131130 | J29: 100020 | K29: 78825 | L29: 62460 | M29: 45742.5 | O29: 40 | P29: 117720 | Q29: 89790 | R29: 70762.5 | S29: 56070 | T29: 41062.5 | V29: 40 | W29: 108780 | X29: 82972.5 | Y29: 65392.5 | Z29: 51810 | AA29: 37942.5 | AC29: 40 | AD29: 101332.5 | AE29: 77287.5 | AF29: 60915 | AG29: 48262.5 | AH29: 35347.5
A30: 41 | B30: 152422.5 | C30: 116257.5 | D30: 91627.5 | E30: 91627.5 | F30: 53167.5 | H30: 41 | I30: 134130 | J30: 102307.5 | K30: 80632.5 | L30: 63885 | M30: 46785 | O30: 41 | P30: 120412.5 | Q30: 91845 | R30: 72382.5 | S30: 57352.5 | T30: 42000 | V30: 41 | W30: 111270 | X30: 84870 | Y30: 66885 | Z30: 52995 | AA30: 38812.5 | AC30: 41 | AD30: 103650 | AE30: 79057.5 | AF30: 62310 | AG30: 49365 | AH30: 36157.5
A31: 42 | B31: 155910 | C31: 118920 | D31: 93720 | E31: 93720 | F31: 54382.5 | H31: 42 | I31: 137205 | J31: 104647.5 | K31: 82477.5 | L31: 65347.5 | M31: 47857.5 | O31: 42 | P31: 123172.5 | Q31: 93945 | R31: 74040 | S31: 58665 | T31: 42967.5 | V31: 42 | W31: 113820 | X31: 86812.5 | Y31: 68415 | Z31: 54210 | AA31: 39697.5 | AC31: 42 | AD31: 106020 | AE31: 80865 | AF31: 63735 | AG31: 50497.5 | AH31: 36982.5
A32: 43 | B32: 159480 | C32: 121642.5 | D32: 95865 | E32: 95865 | F32: 55627.5 | H32: 43 | I32: 140340 | J32: 107040 | K32: 84360 | L32: 66840 | M32: 48952.5 | O32: 43 | P32: 125992.5 | Q32: 96097.5 | R32: 75735 | S32: 60007.5 | T32: 43950 | V32: 43 | W32: 116422.5 | X32: 88800 | Y32: 69982.5 | Z32: 55447.5 | AA32: 40612.5 | AC32: 43 | AD32: 108450 | AE32: 82717.5 | AF32: 65190 | AG32: 51652.5 | AH32: 37830
A33: 44 | B33: 163132.5 | C33: 124425 | D33: 98062.5 | E33: 98062.5 | F33: 56902.5 | H33: 44 | I33: 143557.5 | J33: 109492.5 | K33: 86295 | L33: 68370 | M33: 50077.5 | O33: 44 | P33: 128872.5 | Q33: 98295 | R33: 77467.5 | S33: 61380 | T33: 44955 | V33: 44 | W33: 119085 | X33: 90825 | Y33: 71587.5 | Z33: 56715 | AA33: 41535 | AC33: 44 | AD33: 110925 | AE33: 84607.5 | AF33: 66682.5 | AG33: 52830 | AH33: 38692.5
A34: 45 | B34: 166860 | C34: 127267.5 | D34: 100305 | E34: 100305 | F34: 58207.5 | H34: 45 | I34: 146842.5 | J34: 111997.5 | K34: 88267.5 | L34: 69937.5 | M34: 51217.5 | O34: 45 | P34: 131820 | Q34: 100545 | R34: 79245 | S34: 62782.5 | T34: 45982.5 | V34: 45 | W34: 121807.5 | X34: 92910 | Y34: 73222.5 | Z34: 58020 | AA34: 42487.5 | AC34: 45 | AD34: 113467.5 | AE34: 86542.5 | AF34: 68205 | AG34: 54045 | AH34: 39577.5
A35: 46 | B35: 170685 | C35: 130185 | D35: 102600 | E35: 102600 | F35: 59535 | H35: 46 | I35: 150202.5 | J35: 114562.5 | K35: 90292.5 | L35: 71535 | M35: 52395 | O35: 46 | P35: 134835 | Q35: 102847.5 | R35: 81052.5 | S35: 64222.5 | T35: 47032.5 | V35: 46 | W35: 124597.5 | X35: 95032.5 | Y35: 74895 | Z35: 59347.5 | AA35: 43462.5 | AC35: 46 | AD35: 116062.5 | AE35: 88522.5 | AF35: 69772.5 | AG35: 55282.5 | AH35: 40485
A36: 47 | B36: 174585 | C36: 133162.5 | D36: 104947.5 | E36: 104947.5 | F36: 60900 | H36: 47 | I36: 153637.5 | J36: 117180 | K36: 92355 | L36: 73177.5 | M36: 53587.5 | O36: 47 | P36: 137925 | Q36: 105195 | R36: 82912.5 | S36: 65692.5 | T36: 48112.5 | V36: 47 | W36: 127447.5 | X36: 97207.5 | Y36: 76612.5 | Z36: 60705 | AA36: 44452.5 | AC36: 47 | AD36: 118717.5 | AE36: 90547.5 | AF36: 71362.5 | AG36: 56542.5 | AH36: 41415
A37: 48 | B37: =B138*0.6 -> 178582.5 | C37: 136207.5 | D37: 107347.5 | E37: 107347.5 | F37: 62295 | H37: 48 | I37: =I138*0.6 -> 157155 | J37: 119865 | K37: 94470 | L37: 74850 | M37: 54817.5 | O37: 48 | P37: =P138*0.6 -> 141082.5 | Q37: 107602.5 | R37: 84810 | S37: 67192.5 | T37: 49215 | V37: 48 | W37: =W138*0.6 -> 130365 | X37: 99435 | Y37: 78367.5 | Z37: 62092.5 | AA37: 45472.5 | AC37: 48 | AD37: =AD138*0.6 -> 121432.5 | AE37: 92625 | AF37: 72997.5 | AG37: 57840 | AH37: 42360
A38: 49 | B38: 182670 | C38: 139327.5 | D38: 109807.5 | E38: 109807.5 | F38: 63720 | H38: 49 | I38: 160747.5 | J38: 122610 | K38: 96630 | L38: 76560 | M38: 56070 | O38: 49 | P38: 144307.5 | Q38: 110070 | R38: 86745 | S38: 68730 | T38: 50340 | V38: 49 | W38: 133350 | X38: 101707.5 | Y38: 80160 | Z38: 63510 | AA38: 46515 | AC38: 49 | AD38: 124215 | AE38: 94740 | AF38: 74670 | AG38: 59160 | AH38: 43327.5
A39: 50 | B39: 186847.5 | C39: 142515 | D39: 112320 | E39: 112320 | F39: 65175 | H39: 50 | I39: 164430 | J39: 125415 | K39: 98842.5 | L39: 78315 | M39: 57352.5 | O39: 50 | P39: 147607.5 | Q39: 112590 | R39: 88732.5 | S39: 70305 | T39: 51487.5 | V39: 50 | W39: 136402.5 | X39: 104032.5 | Y39: 81990 | Z39: 64965 | AA39: 47580 | AC39: 50 | AD39: 127057.5 | AE39: 96907.5 | AF39: 76380 | AG39: 60517.5 | AH39: 44317.5
A40: 51 | B40: 191122.5 | C40: 145777.5 | D40: 114892.5 | E40: 114892.5 | F40: 66667.5 | H40: 51 | I40: 168187.5 | J40: 128280 | K40: 101100 | L40: 80107.5 | M40: 58665 | O40: 51 | P40: 150990 | Q40: 115162.5 | R40: 90765 | S40: 71917.5 | T40: 52665 | V40: 51 | W40: 139522.5 | X40: 106417.5 | Y40: 83872.5 | Z40: 66450 | AA40: 48667.5 | AC40: 51 | AD40: 129967.5 | AE40: 99127.5 | AF40: 78127.5 | AG40: 61897.5 | AH40: 45337.5
A41: 52 | B41: 195495 | C41: 149115 | D41: 117517.5 | E41: 117517.5 | F41: 68190 | H41: 52 | I41: 172035 | J41: 131220 | K41: 103417.5 | L41: 81937.5 | M41: 60007.5 | O41: 52 | P41: 154440 | Q41: 117795 | R41: 92842.5 | S41: 73560 | T41: 53872.5 | V41: 52 | W41: 142717.5 | X41: 108855 | Y41: 85792.5 | Z41: 67972.5 | AA41: 49777.5 | AC41: 52 | AD41: 132937.5 | AE41: 101392.5 | AF41: 79912.5 | AG41: 63315 | AH41: 46372.5
A42: 53 | B42: 199972.5 | C42: 152520 | D42: 120210 | E42: 120210 | F42: 69750 | H42: 53 | I42: 175972.5 | J42: 134220 | K42: 105780 | L42: 83812.5 | M42: 61380 | O42: 53 | P42: 157980 | Q42: 120495 | R42: 94965 | S42: 75240 | T42: 55102.5 | V42: 53 | W42: 145980 | X42: 111345 | Y42: 87750 | Z42: 69525 | AA42: 50917.5 | AC42: 53 | AD42: 135982.5 | AE42: 103717.5 | AF42: 81742.5 | AG42: 64762.5 | AH42: 47430
A43: 54 | B43: 210367.5 | C43: 160447.5 | D43: 126457.5 | E43: 126457.5 | F43: 73380 | H43: 54 | I43: 185122.5 | J43: 141195 | K43: 111285 | L43: 88170 | M43: 64575 | O43: 54 | P43: 166185 | Q43: 126757.5 | R43: 99900 | S43: 79155 | T43: 57967.5 | V43: 54 | W43: 153570 | X43: 117127.5 | Y43: 92310 | Z43: 73140 | AA43: 53565 | AC43: 54 | AD43: 143047.5 | AE43: 109110 | AF43: 85987.5 | AG43: 68130 | AH43: 49897.5
A44: 55 | B44: 222885 | C44: 170002.5 | D44: 133980 | E44: 133980 | F44: 77745 | H44: 55 | I44: 196140 | J44: 149602.5 | K44: 117907.5 | L44: 93420 | M44: 68415 | O44: 55 | P44: 176077.5 | Q44: 134302.5 | R44: 105847.5 | S44: 83865 | T44: 61417.5 | V44: 55 | W44: 162705 | X44: 124102.5 | Y44: 97807.5 | Z44: 77497.5 | AA44: 56752.5 | AC44: 55 | AD44: 151560 | AE44: 115597.5 | AF44: 91110 | AG44: 72187.5 | AH44: 52867.5
A45: 56 | B45: 230197.5 | C45: 175575 | D45: 138375 | E45: 138375 | F45: 80295 | H45: 56 | I45: 202575 | J45: 154507.5 | K45: 121770 | L45: 96480 | M45: 70665 | O45: 56 | P45: 181852.5 | Q45: 138705 | R45: 109320 | S45: 86617.5 | T45: 63435 | V45: 56 | W45: 168045 | X45: 128175 | Y45: 101017.5 | Z45: 80040 | AA45: 58620 | AC45: 56 | AD45: 156532.5 | AE45: 119392.5 | AF45: 94095 | AG45: 74557.5 | AH45: 54600
A46: 57 | B46: 243900 | C46: 186030 | D46: 146610 | E46: 146610 | F46: 85072.5 | H46: 57 | I46: 214627.5 | J46: 163702.5 | K46: 129022.5 | L46: 102225 | M46: 74865 | O46: 57 | P46: 192675 | Q46: 146962.5 | R46: 115822.5 | S46: 91770 | T46: 67207.5 | V46: 57 | W46: 178042.5 | X46: 135802.5 | Y46: 107025 | Z46: 84802.5 | AA46: 62107.5 | AC46: 57 | AD46: 165847.5 | AE46: 126495 | AF46: 99697.5 | AG46: 78990 | AH46: 57855
A47: 58 | B47: 258412.5 | C47: 197100 | D47: 155340 | E47: 155340 | F47: 90142.5 | H47: 58 | I47: 227407.5 | J47: 173445 | K47: 136695 | L47: 108307.5 | M47: 79320 | O47: 58 | P47: 204150 | Q47: 155707.5 | R47: 122715 | S47: 97230 | T47: 71212.5 | V47: 58 | W47: 188640 | X47: 143880 | Y47: 113400 | Z47: 89850 | AA47: 65805 | AC47: 58 | AD47: 175725 | AE47: 134025 | AF47: 105630 | AG47: 83692.5 | AH47: 61297.5
A48: 59 | B48: 273795 | C48: 208830 | D48: 164587.5 | E48: 164587.5 | F48: 95505 | H48: 59 | I48: 240937.5 | J48: 183772.5 | K48: 144832.5 | L48: 114757.5 | M48: 84045 | O48: 59 | P48: 216300 | Q48: 164977.5 | R48: 130020 | S48: 103020 | T48: 75450 | V48: 59 | W48: 199867.5 | X48: 152445 | Y48: 120150 | Z48: 95197.5 | AA48: 69720 | AC48: 59 | AD48: 186180 | AE48: 142005 | AF48: 111915 | AG48: 88672.5 | AH48: 64942.5
A49: 60 | B49: 290085 | C49: 221257.5 | D49: 174382.5 | E49: 174382.5 | F49: 101190 | H49: 60 | I49: 255277.5 | J49: 194707.5 | K49: 153457.5 | L49: 121582.5 | M49: 89047.5 | O49: 60 | P49: 229170 | Q49: 174795 | R49: 137760 | S49: 109147.5 | T49: 79935 | V49: 60 | W49: 211762.5 | X49: 161520 | Y49: 127297.5 | Z49: 100860 | AA49: 73867.5 | AC49: 60 | AD49: 197257.5 | AE49: 150457.5 | AF49: 118575 | AG49: 93952.5 | AH49: 68805
A50: 61 | B50: 307357.5 | C50: 234427.5 | D50: 184755 | E50: 184755 | F50: 107212.5 | H50: 61 | I50: 270472.5 | J50: 206295 | K50: 162585 | L50: 128820 | M50: 94342.5 | O50: 61 | P50: 242812.5 | Q50: 185197.5 | R50: 145957.5 | S50: 115650 | T50: 84697.5 | V50: 61 | W50: 224370 | X50: 171135 | Y50: 134872.5 | Z50: 106860 | AA50: 78262.5 | AC50: 61 | AD50: 209002.5 | AE50: 159412.5 | AF50: 125632.5 | AG50: 99547.5 | AH50: 72900
A51: 62 | B51: 325650 | C51: 248377.5 | D51: 195757.5 | E51: 195757.5 | F51: 113587.5 | H51: 62 | I51: 286567.5 | J51: 218572.5 | K51: 172267.5 | L51: 136485 | M51: 99960 | O51: 62 | P51: 257257.5 | Q51: 196222.5 | R51: 154642.5 | S51: 122527.5 | T51: 89737.5 | V51: 62 | W51: 237720 | X51: 181320 | Y51: 142897.5 | Z51: 113227.5 | AA51: 82920 | AC51: 62 | AD51: 221437.5 | AE51: 168900 | AF51: 133110 | AG51: 105465 | AH51: 77242.5
A52: 63 | B52: 345030 | C52: 263160 | D52: 207405 | E52: 207405 | F52: 120352.5 | H52: 63 | I52: 303622.5 | J52: 231585 | K52: 182520 | L52: 144615 | M52: 105907.5 | O52: 63 | P52: 272572.5 | Q52: 207900 | R52: 163852.5 | S52: 129825 | T52: 95077.5 | V52: 63 | W52: 251872.5 | X52: 192105 | Y52: 151402.5 | Z52: 119962.5 | AA52: 87855 | AC52: 63 | AD52: 234615 | AE52: 178950 | AF52: 141037.5 | AG52: 111742.5 | AH52: 81840
A53: 64 | B53: =B154*0.6 -> 365565 | C53: 278820 | D53: 219750 | E53: 219750 | F53: 127515 | H53: 64 | I53: =I154*0.6 -> 321697.5 | J53: 245362.5 | K53: 193380 | L53: 153217.5 | M53: 112215 | O53: 64 | P53: =P154*0.6 -> 288795 | Q53: 220267.5 | R53: 173602.5 | S53: 137550 | T53: 100732.5 | V53: 64 | W53: =W154*0.6 -> 266857.5 | X53: 203542.5 | Y53: 160417.5 | Z53: 127102.5 | AA53: 93082.5 | AC53: 64 | AD53: =AD154*0.6 -> 248580 | AE53: 189600 | AF53: 149430 | AG53: 118395 | AH53: 86707.5
A54: 65 | B54: 387322.5 | C54: 295417.5 | D54: 232830 | E54: 232830 | F54: 135105 | H54: 65 | I54: 340845 | J54: 259965 | K54: 204885 | L54: 162337.5 | M54: 118890 | O54: 65 | P54: 305985 | Q54: 233377.5 | R54: 183937.5 | S54: 145732.5 | T54: 106732.5 | V54: 65 | W54: 282742.5 | X54: 215655 | Y54: 169965 | Z54: 134670 | AA54: 98625 | AC54: 65 | AD54: 263377.5 | AE54: 200887.5 | AF54: 158325 | AG54: 125445 | AH54: 91867.5
A55: 66 | B55: 410370 | C55: 312997.5 | D55: 246682.5 | E55: 246682.5 | F55: 143145 | H55: 66 | I55: 361125 | J55: 275437.5 | K55: 217080 | L55: 171997.5 | M55: 125970 | O55: 66 | P55: 324195 | Q55: 247267.5 | R55: 194880 | S55: 154410 | T55: 113085 | V55: 66 | W55: 299572.5 | X55: 228487.5 | Y55: 180082.5 | Z55: 142680 | AA55: 104497.5 | AC55: 66 | AD55: 279052.5 | AE55: 212842.5 | AF55: 167745 | AG55: 132907.5 | AH55: 97335
A56: 67 | B56: 434797.5 | C56: 331627.5 | D56: 261367.5 | E56: 261367.5 | F56: 151665 | H56: 67 | I56: 382620 | J56: 291832.5 | K56: 230002.5 | L56: 182235 | M56: 133462.5 | O56: 67 | P56: 343485 | Q56: 261990 | R56: 206482.5 | S56: 163597.5 | T56: 119812.5 | V56: 67 | W56: 317400 | X56: 242092.5 | Y56: 190800 | Z56: 151170 | AA56: 110715 | AC56: 67 | AD56: 295657.5 | AE56: 225510 | AF56: 177727.5 | AG56: 140820 | AH56: 103132.5
A57: 68 | B57: 460672.5 | C57: 351367.5 | D57: 276922.5 | E57: 276922.5 | F57: 160687.5 | H57: 68 | I57: 405390 | J57: 309202.5 | K57: 243690 | L57: 193080 | M57: 141405 | O57: 68 | P57: 363930 | Q57: 277582.5 | R57: 218767.5 | S57: 173332.5 | T57: 126945 | V57: 68 | W57: 336292.5 | X57: 256500 | Y57: 202155 | Z57: 160170 | AA57: 117300 | AC57: 68 | AD57: 313260 | AE57: 238927.5 | AF57: 188310 | AG57: 149197.5 | AH57: 109267.5
A58: 69 | B58: 500715 | C58: 381907.5 | D58: 300990 | E58: 300990 | F58: 174660 | H58: 69 | I58: 440625 | J58: 336075 | K58: 264870 | L58: 209865 | M58: 153697.5 | O58: 69 | P58: 395565 | Q58: 301702.5 | R58: 237780 | S58: 188400 | T58: 137977.5 | V58: 69 | W58: 365520 | X58: 278790 | Y58: 219720 | Z58: 174090 | AA58: 127500 | AC58: 69 | AD58: 340485 | AE58: 259695 | AF58: 204675 | AG58: 162165 | AH58: 118770
A59: 70 | B59: 530512.5 | C59: 404632.5 | D59: 318907.5 | E59: 318907.5 | F59: 185055 | H59: 70 | I59: 466852.5 | J59: 356077.5 | K59: 280635 | L59: 222352.5 | M59: 162847.5 | O59: 70 | P59: 419107.5 | Q59: 319665 | R59: 251932.5 | S59: 199612.5 | T59: 146190 | V59: 70 | W59: 387277.5 | X59: 295387.5 | Y59: 232800 | Z59: 184455 | AA59: 135090 | AC59: 70 | AD59: 360750 | AE59: 275152.5 | AF59: 216855 | AG59: 171817.5 | AH59: 125835
A60: 71 | B60: 562087.5 | C60: 428715 | D60: 337882.5 | E60: 337882.5 | F60: 196065 | H60: 71 | I60: 494640 | J60: 377272.5 | K60: 297337.5 | L60: 235590 | M60: 172537.5 | O60: 71 | P60: 444052.5 | Q60: 338685 | R60: 266932.5 | S60: 211492.5 | T60: 154890 | V60: 71 | W60: 410325 | X60: 312967.5 | Y60: 246660 | Z60: 195435 | AA60: 143130 | AC60: 71 | AD60: 382222.5 | AE60: 291525 | AF60: 229762.5 | AG60: 182047.5 | AH60: 133327.5
A61: 72 | B61: 595545 | C61: 454237.5 | D61: 357997.5 | E61: 357997.5 | F61: 207735 | H61: 72 | I61: 524077.5 | J61: 399727.5 | K61: 315037.5 | L61: 249607.5 | M61: 182805 | O61: 72 | P61: 470475 | Q61: 358845 | R61: 282817.5 | S61: 224085 | T61: 164107.5 | V61: 72 | W61: 434745 | X61: 331590 | Y61: 261337.5 | Z61: 207060 | AA61: 151650 | AC61: 72 | AD61: 404970 | AE61: 308880 | AF61: 243435 | AG61: 192877.5 | AH61: 141262.5
A62: 73 | B62: 630990 | C62: 481267.5 | D62: 379305 | E62: 379305 | F62: 220095 | H62: 73 | I62: 555270 | J62: 423517.5 | K62: 333787.5 | L62: 264465 | M62: 193687.5 | O62: 73 | P62: 498480 | Q62: 380205 | R62: 299647.5 | S62: 237420 | T62: 173880 | V62: 73 | W62: 460620 | X62: 351322.5 | Y62: 276892.5 | Z62: 219390 | AA62: 160672.5 | AC62: 73 | AD62: 429067.5 | AE62: 327262.5 | AF62: 257925 | AG62: 204360 | AH62: 149670
A63: 74 | B63: 668542.5 | C63: 509910 | D63: 401880 | E63: 401880 | F63: 233197.5 | H63: 74 | I63: 588315 | J63: 448725 | K63: 353655 | L63: 280207.5 | M63: 205215 | O63: 74 | P63: 528150 | Q63: 402832.5 | R63: 317482.5 | S63: 251550 | T63: 184230 | V63: 74 | W63: 488032.5 | X63: 372232.5 | Y63: 293370 | Z63: 232447.5 | AA63: 170235 | AC63: 74 | AD63: 454605 | AE63: 346740 | AF63: 273277.5 | AG63: 216525 | AH63: 158572.5
A64: 75 | B64: 716002.5 | C64: 546112.5 | D64: 430410 | E64: 430410 | F64: 249750 | H64: 75 | I64: 630082.5 | J64: 480577.5 | K64: 378757.5 | L64: 300097.5 | M64: 219780 | O64: 75 | P64: 565642.5 | Q64: 431430 | R64: 340020 | S64: 269407.5 | T64: 197302.5 | V64: 75 | W64: 522682.5 | X64: 398662.5 | Y64: 314197.5 | Z64: 248947.5 | AA64: 182317.5 | AC64: 75 | AD64: 486885 | AE64: 371355 | AF64: 292680 | AG64: 231892.5 | AH64: 169830
A65: 76 | B65: 750225 | C65: 572212.5 | D65: 450975 | E65: 450975 | F65: 261690 | H65: 76 | I65: 660195 | J65: 503550 | K65: 396862.5 | L65: 314445 | M65: 230287.5 | O65: 76 | P65: 592680 | Q65: 452047.5 | R65: 356272.5 | S65: 282285 | T65: 206737.5 | V65: 76 | W65: 547665 | X65: 417712.5 | Y65: 329212.5 | Z65: 260842.5 | AA65: 191032.5 | AC65: 76 | AD65: 510150 | AE65: 389107.5 | AF65: 306667.5 | AG65: 242977.5 | AH65: 177952.5
A66: 77 | B66: 786082.5 | C66: 599565 | D66: 472530 | E66: 472530 | F66: 274200 | H66: 77 | I66: 691747.5 | J66: 527617.5 | K66: 415830 | L66: 329467.5 | M66: 241297.5 | O66: 77 | P66: 621000 | Q66: 473655 | R66: 373305 | S66: 295777.5 | T66: 216615 | V66: 77 | W66: 573840 | X66: 437677.5 | Y66: 344947.5 | Z66: 273315 | AA66: 200167.5 | AC66: 77 | AD66: 534532.5 | AE66: 407700 | AF66: 321322.5 | AG66: 254595 | AH66: 186457.5
A67: 78 | B67: 823650 | C67: 628215 | D67: 495120 | E67: 495120 | F67: 287302.5 | H67: 78 | I67: 724815 | J67: 552832.5 | K67: 435705 | L67: 345217.5 | M67: 252825 | O67: 78 | P67: 650685 | Q67: 496290 | R67: 391140 | S67: 309915 | T67: 226972.5 | V67: 78 | W67: 601267.5 | X67: 458602.5 | Y67: 361440 | Z67: 286372.5 | AA67: 209730 | AC67: 78 | AD67: 560085 | AE67: 427185 | AF67: 336682.5 | AG67: 266760 | AH67: 195367.5
A68: 79 | B68: 863017.5 | C68: 658245 | D68: 518782.5 | E68: 518782.5 | F68: 301035 | H68: 79 | I68: 759457.5 | J68: 579255 | K68: 456525 | L68: 361717.5 | M68: 264907.5 | O68: 79 | P68: 681780 | Q68: 520012.5 | R68: 409837.5 | S68: 324720 | T68: 237817.5 | V68: 79 | W68: 630000 | X68: 480517.5 | Y68: 378712.5 | Z68: 300060 | AA68: 219757.5 | AC68: 79 | AD68: 586852.5 | AE68: 447607.5 | AF68: 352770 | AG68: 279510 | AH68: 204705
A69: 80 | B69: =B170*0.6 -> 904267.5 | C69: 689707.5 | D69: 543577.5 | E69: 543577.5 | F69: 315420 | H69: 80 | I69: =I170*0.6 -> 795750 | J69: 606937.5 | K69: 478350 | L69: 379005 | M69: 277575 | O69: 80 | P69: =P170*0.6 -> 714367.5 | Q69: 544867.5 | R69: 429427.5 | S69: 340245 | T69: 249180 | V69: 80 | W69: =W170*0.6 -> 660112.5 | X69: 503482.5 | Y69: 396810 | Z69: 314400 | AA69: 230257.5 | AC69: 80 | AD69: =AD170*0.6 -> 614902.5 | AE69: 468997.5 | AF69: 369630 | AG69: 292867.5 | AH69: 214485
A70: 81 | B70: 947482.5 | C70: 722670 | D70: 569557.5 | E70: 569557.5 | F70: 330495 | H70: 81 | I70: 833782.5 | J70: 635947.5 | K70: 501210 | L70: 397117.5 | M70: 290835 | O70: 81 | P70: 748507.5 | Q70: 570907.5 | R70: 449947.5 | S70: 356505 | T70: 261090 | V70: 81 | W70: 691665 | X70: 527550 | Y70: 415777.5 | Z70: 329430 | AA70: 241260 | AC70: 81 | AD70: 644287.5 | AE70: 491415 | AF70: 387300 | AG70: 306862.5 | AH70: 224737.5
A71: 82 | B71: 992767.5 | C71: 757207.5 | D71: 596775 | E71: 596775 | F71: 346290 | H71: 82 | I71: 873637.5 | J71: 666345 | K71: 525165 | L71: 416100 | M71: 304740 | O71: 82 | P71: 784290 | Q71: 598192.5 | R71: 471457.5 | S71: 373545 | T71: 273570 | V71: 82 | W71: 724717.5 | X71: 552765 | Y71: 435645 | Z71: 345172.5 | AA71: 252795 | AC71: 82 | AD71: 675082.5 | AE71: 514905 | AF71: 405810 | AG71: 321532.5 | AH71: 235477.5
A72: 83 | B72: 1040212.5 | C72: 793395 | D72: 625297.5 | E72: 625297.5 | F72: 362842.5 | H72: 83 | I72: 915390 | J72: 698190 | K72: 550267.5 | L72: 435990 | M72: 319305 | O72: 83 | P72: 821767.5 | Q72: 626782.5 | R72: 493987.5 | S72: 391395 | T72: 286650 | V72: 83 | W72: 759360 | X72: 579180 | Y72: 456472.5 | Z72: 361672.5 | AA72: 264877.5 | AC72: 83 | AD72: 707347.5 | AE72: 539512.5 | AF72: 425205 | AG72: 336900 | AH72: 246735
A73: 84 | B73: 1089930 | C73: 831315 | D73: 655185 | E73: 655185 | F73: 380190 | H73: 84 | I73: 959137.5 | J73: 731557.5 | K73: 576562.5 | L73: 456825 | M73: 334560 | O73: 84 | P73: 861045 | Q73: 656745 | R73: 517597.5 | S73: 410107.5 | T73: 300345 | V73: 84 | W73: 795652.5 | X73: 606862.5 | Y73: 478290 | Z73: 378960 | AA73: 277537.5 | AC73: 84 | AD73: 741157.5 | AE73: 565297.5 | AF73: 445530 | AG73: 353002.5 | AH73: 258525
A98: Annual Rates
A99: Copy Annual Rates from here
A102: Zona 1: Ciudad de México (D.F. y área metropolitana) y franja fronteriza | H102: Zona 2: Nuevo León, Sonora, Coahuila, Chihuahua, Tamaulipas, Baja California Norte y Baja California Sur | O102: Zona 3: Jalisco, Puebla, Morelos, Estado de México (excepto Área Metropolitana), Quintana Roo, Guerrero (Acapulco y Zihuatanejo), Hidalgo y Querétaro | V102: Zona 4: Sinaloa, Guanajuato, San Luis Potosí, Durango, Aguascalientes, Nayarit, Michoacán, Colima, Zacatecas | AC102: Zona 5: Guerrero (excepto Acapulco y Zihuatanejo), Veracruz, Chiapas, Tabasco, Campeche, Oaxaca, Tlaxcala, Yucatán
A103: Primas de tarifa expresadas en pesos mexicanos | H103: Primas de tarifa expresadas en pesos mexicanos | O103: Primas de tarifa expresadas en pesos mexicanos | V103: Primas de tarifa expresadas en pesos mexicanos | AC103: Primas de tarifa expresadas en pesos mexicanos
A104: Edad | B104: AW21 | C104: AW31 | D104: AW41 | E104: AW51 | F104: AW61 | H104: Edad | I104: AW22 | J104: AW32 | K104: AW42 | L104: AW52 | M104: AW62 | O104: Edad | P104: AW23 | Q104: AW33 | R104: AW43 | S104: AW53 | T104: AW63 | V104: Edad | W104: AW24 | X104: AW34 | Y104: AW44 | Z104: AW54 | AA104: AW64 | AC104: Edad | AD104: AW25 | AE104: AW35 | AF104: AW45 | AG104: AW55 | AH104: AW65
A105: 1 menor | B105: 58175 | C105: 44375 | D105: 34975 | E105: 27712.5 | F105: 20287.5 | H105: 1 menor | I105: 51187.5 | J105: 39050 | K105: 30775 | L105: 24387.5 | M105: 17862.5 | O105: 1 menor | P105: 45962.5 | Q105: 35050 | R105: 27625 | S105: 21887.5 | T105: 16025 | V105: 1 menor | W105: 16025 | X105: 32387.5 | Y105: 25525 | Z105: 20225 | AA105: 14812.5 | AC105: 1 menor | AD105: 39562.5 | AE105: 30175 | AF105: 23775 | AG105: 18837.5 | AH105: 13800
A106: 2 menor | B106: 91662.5 | C106: 69912.5 | D106: 55100 | E106: 43662.5 | F106: 31975 | H106: 2 menores | I106: 80662.5 | J106: 61525 | K106: 48487.5 | L106: 38412.5 | M106: 28137.5 | O106: 2 menores | P106: 72412.5 | Q106: 55225 | R106: 43525 | S106: 34487.5 | T106: 25262.5 | V106: 2 menores | W106: 25262.5 | X106: 51037.5 | Y106: 40225 | Z106: 31875 | AA106: 23337.5 | AC106: 2 menores | AD106: 62325 | AE106: 47537.5 | AF106: 37462.5 | AG106: 29687.5 | AH106: 21737.5
A107: 3 menor | B107: 133737.5 | C107: 102000 | D107: 80387.5 | E107: 63700 | F107: 46650 | H107: 3 ó más menores | I107: 117687.5 | J107: 89762.5 | K107: 70750 | L107: 56050 | M107: 41050 | O107: 3 ó más menores | P107: 105650 | Q107: 80587.5 | R107: 63512.5 | S107: 50325 | T107: 36850 | V107: 3 ó más menores | W107: 36850 | X107: 74462.5 | Y107: 58687.5 | Z107: 46500 | AA107: 34050 | AC107: 3 ó más menores | AD107: 90937.5 | AE107: 69362.5 | AF107: 54662.5 | AG107: 43312.5 | AH107: 31725
A108: 18 | B108: 134187.5 | C108: 102350 | D108: 80662.5 | E108: 80662.5 | F108: 46812.5 | H108: 18 | I108: 118087.5 | J108: 90062.5 | K108: 70987.5 | L108: 56250 | M108: 41187.5 | O108: 18 | P108: 106012.5 | Q108: 80850 | R108: 63725 | S108: 50487.5 | T108: 36975 | V108: 18 | W108: 97962.5 | X108: 74712.5 | Y108: 58887.5 | Z108: 46662.5 | AA108: 34175 | AC108: 18 | AD108: 91250 | AE108: 69600 | AF108: 54850 | AG108: 43462.5 | AH108: 31825
A109: 19 | B109: 138425 | C109: 105575 | D109: 83212.5 | E109: 83212.5 | F109: 48287.5 | H109: 19 | I109: 121812.5 | J109: 92912.5 | K109: 73225 | L109: 58025 | M109: 42487.5 | O109: 19 | P109: 109362.5 | Q109: 83412.5 | R109: 65737.5 | S109: 52087.5 | T109: 38150 | V109: 19 | W109: 101050 | X109: 77075 | Y109: 60750 | Z109: 48125 | AA109: 35250 | AC109: 19 | AD109: 94125 | AE109: 71800 | AF109: 56587.5 | AG109: 44837.5 | AH109: 32837.5
A110: 20 | B110: 142800 | C110: 108912.5 | D110: 85837.5 | E110: 85837.5 | F110: 49812.5 | H110: 20 | I110: 125662.5 | J110: 95850 | K110: 75537.5 | L110: 59850 | M110: 43837.5 | O110: 20 | P110: 112812.5 | Q110: 86037.5 | R110: 67812.5 | S110: 53725 | T110: 39350 | V110: 20 | W110: 104237.5 | X110: 79512.5 | Y110: 62662.5 | Z110: 49650 | AA110: 36362.5 | AC110: 20 | AD110: 97100 | AE110: 74062.5 | AF110: 58375 | AG110: 46250 | AH110: 33875
A111: 21 | B111: 147300 | C111: 112350 | D111: 88550 | E111: 88550 | F111: 51387.5 | H111: 21 | I111: 129625 | J111: 98875 | K111: 77925 | L111: 61737.5 | M111: 45212.5 | O111: 21 | P111: 116375 | Q111: 88762.5 | R111: 69950 | S111: 55425 | T111: 40587.5 | V111: 21 | W111: 107537.5 | X111: 82012.5 | Y111: 64637.5 | Z111: 51212.5 | AA111: 37512.5 | AC111: 21 | AD111: 100162.5 | AE111: 76400 | AF111: 60212.5 | AG111: 47712.5 | AH111: 34937.5
A112: 22 | B112: 151950 | C112: 115900 | D112: 91350 | E112: 91350 | F112: 53000 | H112: 22 | I112: 133725 | J112: 101987.5 | K112: 80387.5 | L112: 63687.5 | M112: 46650 | O112: 22 | P112: 120050 | Q112: 91562.5 | R112: 72162.5 | S112: 57175 | T112: 41875 | V112: 22 | W112: 110925 | X112: 84612.5 | Y112: 66675 | Z112: 52837.5 | AA112: 38700 | AC112: 22 | AD112: 103325 | AE112: 78812.5 | AF112: 62112.5 | AG112: 49212.5 | AH112: 36037.5
A113: 23 | B113: 156750 | C113: 119562.5 | D113: 94225 | E113: 94225 | F113: 54675 | H113: 23 | I113: 137937.5 | J113: 105212.5 | K113: 82925 | L113: 65700 | M113: 48112.5 | O113: 23 | P113: 123837.5 | Q113: 94450 | R113: 74437.5 | S113: 58975 | T113: 43200 | V113: 23 | W113: 114425 | X113: 87275 | Y113: 68787.5 | Z113: 54500 | AA113: 39912.5 | AC113: 23 | AD113: 106587.5 | AE113: 81300 | AF113: 64075 | AG113: 50762.5 | AH113: 37175
A114: 24 | B114: 161700 | C114: 123337.5 | D114: 97200 | E114: 97200 | F114: 56400 | H114: 24 | I114: 142300 | J114: 108537.5 | K114: 85537.5 | L114: 67775 | M114: 49637.5 | O114: 24 | P114: 127750 | Q114: 97437.5 | R114: 76787.5 | S114: 60837.5 | T114: 44562.5 | V114: 24 | W114: 118037.5 | X114: 90037.5 | Y114: 70962.5 | Z114: 56225 | AA114: 41175 | AC114: 24 | AD114: 109962.5 | AE114: 83862.5 | AF114: 66100 | AG114: 52375 | AH114: 38350
A115: 25 | B115: 166812.5 | C115: 127225 | D115: 100275 | E115: 100275 | F115: 58187.5 | H115: 25 | I115: 146787.5 | J115: 111962.5 | K115: 88237.5 | L115: 69912.5 | M115: 51200 | O115: 25 | P115: 131775 | Q115: 100512.5 | R115: 79212.5 | S115: 62762.5 | T115: 45962.5 | V115: 25 | W115: 121762.5 | X115: 92875 | Y115: 73200 | Z115: 58000 | AA115: 42475 | AC115: 25 | AD115: 113425 | AE115: 86512.5 | AF115: 68187.5 | AG115: 54025 | AH115: 39562.5
A116: 26 | B116: 172075 | C116: 131237.5 | D116: 103437.5 | E116: 103437.5 | F116: 60025 | H116: 26 | I116: 151425 | J116: 115500 | K116: 91025 | L116: 72125 | M116: 52825 | O116: 26 | P116: 135937.5 | Q116: 103687.5 | R116: 81712.5 | S116: 64750 | T116: 47412.5 | V116: 26 | W116: 125612.5 | X116: 95812.5 | Y116: 75512.5 | Z116: 59825 | AA116: 43812.5 | AC116: 26 | AD116: 117012.5 | AE116: 89250 | AF116: 70337.5 | AG116: 55725 | AH116: 40812.5
A117: 27 | B117: 177500 | C117: 135387.5 | D117: 106700 | E117: 106700 | F117: 61912.5 | H117: 27 | I117: 156200 | J117: 119137.5 | K117: 93900 | L117: 74400 | M117: 54487.5 | O117: 27 | P117: 140225 | Q117: 106950 | R117: 84300 | S117: 66787.5 | T117: 48912.5 | V117: 27 | W117: 129575 | X117: 98837.5 | Y117: 77900 | Z117: 61712.5 | AA117: 45200 | AC117: 27 | AD117: 120700 | AE117: 92062.5 | AF117: 72562.5 | AG117: 57487.5 | AH117: 42100
A118: 28 | B118: 183112.5 | C118: 139662.5 | D118: 110075 | E118: 110075 | F118: 63875 | H118: 28 | I118: 161137.5 | J118: 122900 | K118: 96862.5 | L118: 76750 | M118: 56212.5 | O118: 28 | P118: 144662.5 | Q118: 110337.5 | R118: 86950 | S118: 68900 | T118: 50462.5 | V118: 28 | W118: 133675 | X118: 101950 | Y118: 80350 | Z118: 63662.5 | AA118: 46625 | AC118: 28 | AD118: 124512.5 | AE118: 94975 | AF118: 74850 | AG118: 59300 | AH118: 43437.5
A119: 29 | B119: 188887.5 | C119: 144075 | D119: 113550 | E119: 113550 | F119: 65887.5 | H119: 29 | I119: 166225 | J119: 126787.5 | K119: 99925 | L119: 79175 | M119: 57975 | O119: 29 | P119: 149225 | Q119: 113812.5 | R119: 89700 | S119: 71075 | T119: 52050 | V119: 29 | W119: 137887.5 | X119: 105175 | Y119: 82887.5 | Z119: 65675 | AA119: 48100 | AC119: 29 | AD119: 128450 | AE119: 97975 | AF119: 77212.5 | AG119: 61175 | AH119: 44800
A120: 30 | B120: 194850 | C120: 148625 | D120: 117125 | E120: 117125 | F120: 67962.5 | H120: 30 | I120: 171475 | J120: 130787.5 | K120: 103075 | L120: 81675 | M120: 59812.5 | O120: 30 | P120: 153937.5 | Q120: 117412.5 | R120: 92537.5 | S120: 73312.5 | T120: 53700 | V120: 30 | W120: 142237.5 | X120: 108487.5 | Y120: 85500 | Z120: 67750 | AA120: 49612.5 | AC120: 30 | AD120: 132500 | AE120: 101062.5 | AF120: 79650 | AG120: 63112.5 | AH120: 46225
A121: 31 | B121: 201000 | C121: 153312.5 | D121: 120825 | E121: 120825 | F121: 70112.5 | H121: 31 | I121: 176887.5 | J121: 134912.5 | K121: 106325 | L121: 84250 | M121: 61700 | O121: 31 | P121: 158800 | Q121: 121112.5 | R121: 95450 | S121: 75625 | T121: 55387.5 | V121: 31 | W121: 146737.5 | X121: 111912.5 | Y121: 88200 | Z121: 69887.5 | AA121: 51187.5 | AC121: 31 | AD121: 136687.5 | AE121: 104250 | AF121: 82162.5 | AG121: 65100 | AH121: 47675
A122: 32 | B122: 207350 | C122: 158150 | D122: 124650 | E122: 124650 | F122: 72325 | H122: 32 | I122: 182475 | J122: 139175 | K122: 109687.5 | L122: 86912.5 | M122: 63650 | O122: 32 | P122: 163812.5 | Q122: 124937.5 | R122: 98475 | S122: 78025 | T122: 57137.5 | V122: 32 | W122: 151362.5 | X122: 115450 | Y122: 90987.5 | Z122: 72087.5 | AA122: 52800 | AC122: 32 | AD122: 141000 | AE122: 107537.5 | AF122: 84762.5 | AG122: 67150 | AH122: 49187.5
A123: 33 | B123: 213900 | C123: 163150 | D123: 128575 | E123: 128575 | F123: 74612.5 | H123: 33 | I123: 188225 | J123: 143562.5 | K123: 113150 | L123: 89650 | M123: 65662.5 | O123: 33 | P123: 168975 | Q123: 128887.5 | R123: 101575 | S123: 80487.5 | T123: 58937.5 | V123: 33 | W123: 156150 | X123: 119100 | Y123: 93862.5 | Z123: 74375 | AA123: 54462.5 | AC123: 33 | AD123: 145450 | AE123: 110937.5 | AF123: 87437.5 | AG123: 69275 | AH123: 50737.5
A124: 34 | B124: 220650 | C124: 168300 | D124: 132637.5 | E124: 132637.5 | F124: 76962.5 | H124: 34 | I124: 194175 | J124: 148100 | K124: 116725 | L124: 92475 | M124: 67725 | O124: 34 | P124: 174312.5 | Q124: 132950 | R124: 104787.5 | S124: 83025 | T124: 60800 | V124: 34 | W124: 161075 | X124: 122850 | Y124: 96825 | Z124: 76712.5 | AA124: 56187.5 | AC124: 34 | AD124: 150037.5 | AE124: 114437.5 | AF124: 90200 | AG124: 71462.5 | AH124: 52337.5
A125: 35 | B125: 221787.5 | C125: 169162.5 | D125: 133325 | E125: 133325 | F125: 77362.5 | H125: 35 | I125: 195175 | J125: 148862.5 | K125: 117325 | L125: 92962.5 | M125: 68087.5 | O125: 35 | P125: 175212.5 | Q125: 133637.5 | R125: 105325 | S125: 83450 | T125: 61125 | V125: 35 | W125: 161912.5 | X125: 123487.5 | Y125: 97325 | Z125: 77112.5 | AA125: 56475 | AC125: 35 | AD125: 150825 | AE125: 115037.5 | AF125: 90662.5 | AG125: 71837.5 | AH125: 52612.5
A126: 36 | B126: 226862.5 | C126: 173037.5 | D126: 136375 | E126: 136375 | F126: 79137.5 | H126: 36 | I126: 199650 | J126: 152275 | K126: 120012.5 | L126: 95087.5 | M126: 69637.5 | O126: 36 | P126: 179225 | Q126: 136700 | R126: 107737.5 | S126: 85362.5 | T126: 62512.5 | V126: 36 | W126: 165612.5 | X126: 126312.5 | Y126: 99550 | Z126: 78875 | AA126: 57775 | AC126: 36 | AD126: 154275 | AE126: 117662.5 | AF126: 92737.5 | AG126: 73475 | AH126: 53812.5
A127: 37 | B127: 232062.5 | C127: 177000 | D127: 139500 | E127: 139500 | F127: 80950 | H127: 37 | I127: 204212.5 | J127: 155762.5 | K127: 122762.5 | L127: 97262.5 | M127: 71237.5 | O127: 37 | P127: 183325 | Q127: 139825 | R127: 110200 | S127: 87312.5 | T127: 63950 | V127: 37 | W127: 169400 | X127: 129212.5 | Y127: 101837.5 | Z127: 80687.5 | AA127: 59087.5 | AC127: 37 | AD127: 157800 | AE127: 120362.5 | AF127: 94862.5 | AG127: 75162.5 | AH127: 55037.5
A128: 38 | B128: 237375 | C128: 181050 | D128: 142687.5 | E128: 142687.5 | F128: 82800 | H128: 38 | I128: 208887.5 | J128: 159325 | K128: 125562.5 | L128: 99487.5 | M128: 72862.5 | O128: 38 | P128: 187525 | Q128: 143025 | R128: 112725 | S128: 89312.5 | T128: 65412.5 | V128: 38 | W128: 173275 | X128: 132162.5 | Y128: 104162.5 | Z128: 82525 | AA128: 60437.5 | AC128: 38 | AD128: 161412.5 | AE128: 123112.5 | AF128: 97025 | AG128: 76875 | AH128: 56300
A129: 39 | B129: 242800 | C129: 185187.5 | D129: 145950 | E129: 145950 | F129: 84687.5 | H129: 39 | I129: 213662.5 | J129: 162962.5 | K129: 128437.5 | L129: 101762.5 | M129: 74525 | O129: 39 | P129: 191812.5 | Q129: 146300 | R129: 115300 | S129: 91362.5 | T129: 66912.5 | V129: 39 | W129: 177250 | X129: 135187.5 | Y129: 106550 | Z129: 84425 | AA129: 61825 | AC129: 39 | AD129: 165100 | AE129: 125925 | AF129: 99250 | AG129: 78637.5 | AH129: 57587.5
A130: 40 | B130: 248362.5 | C130: 189425 | D130: 149300 | E130: 149300 | F130: 86637.5 | H130: 40 | I130: 218550 | J130: 166700 | K130: 131375 | L130: 104100 | M130: 76237.5 | O130: 40 | P130: 196200 | Q130: 149650 | R130: 117937.5 | S130: 93450 | T130: 68437.5 | V130: 40 | W130: 181300 | X130: 138287.5 | Y130: 108987.5 | Z130: 86350 | AA130: 63237.5 | AC130: 40 | AD130: 168887.5 | AE130: 128812.5 | AF130: 101525 | AG130: 80437.5 | AH130: 58912.5
A131: 41 | B131: 254037.5 | C131: 193762.5 | D131: 152712.5 | E131: 152712.5 | F131: 88612.5 | H131: 41 | I131: 223550 | J131: 170512.5 | K131: 134387.5 | L131: 106475 | M131: 77975 | O131: 41 | P131: 200687.5 | Q131: 153075 | R131: 120637.5 | S131: 95587.5 | T131: 70000 | V131: 41 | W131: 185450 | X131: 141450 | Y131: 111475 | Z131: 88325 | AA131: 64687.5 | AC131: 41 | AD131: 172750 | AE131: 131762.5 | AF131: 103850 | AG131: 82275 | AH131: 60262.5
A132: 42 | B132: 259850 | C132: 198200 | D132: 156200 | E132: 156200 | F132: 90637.5 | H132: 42 | I132: 228675 | J132: 174412.5 | K132: 137462.5 | L132: 108912.5 | M132: 79762.5 | O132: 42 | P132: 205287.5 | Q132: 156575 | R132: 123400 | S132: 97775 | T132: 71612.5 | V132: 42 | W132: 189700 | X132: 144687.5 | Y132: 114025 | Z132: 90350 | AA132: 66162.5 | AC132: 42 | AD132: 176700 | AE132: 134775 | AF132: 106225 | AG132: 84162.5 | AH132: 61637.5
A133: 43 | B133: 265800 | C133: 202737.5 | D133: 159775 | E133: 159775 | F133: 92712.5 | H133: 43 | I133: 233900 | J133: 178400 | K133: 140600 | L133: 111400 | M133: 81587.5 | O133: 43 | P133: 209987.5 | Q133: 160162.5 | R133: 126225 | S133: 100012.5 | T133: 73250 | V133: 43 | W133: 194037.5 | X133: 148000 | Y133: 116637.5 | Z133: 92412.5 | AA133: 67687.5 | AC133: 43 | AD133: 180750 | AE133: 137862.5 | AF133: 108650 | AG133: 86087.5 | AH133: 63050
A134: 44 | B134: 271887.5 | C134: 207375 | D134: 163437.5 | E134: 163437.5 | F134: 94837.5 | H134: 44 | I134: 239262.5 | J134: 182487.5 | K134: 143825 | L134: 113950 | M134: 83462.5 | O134: 44 | P134: 214787.5 | Q134: 163825 | R134: 129112.5 | S134: 102300 | T134: 74925 | V134: 44 | W134: 198475 | X134: 151375 | Y134: 119312.5 | Z134: 94525 | AA134: 69225 | AC134: 44 | AD134: 184875 | AE134: 141012.5 | AF134: 111137.5 | AG134: 88050 | AH134: 64487.5
A135: 45 | B135: 278100 | C135: 212112.5 | D135: 167175 | E135: 167175 | F135: 97012.5 | H135: 45 | I135: 244737.5 | J135: 186662.5 | K135: 147112.5 | L135: 116562.5 | M135: 85362.5 | O135: 45 | P135: 219700 | Q135: 167575 | R135: 132075 | S135: 104637.5 | T135: 76637.5 | V135: 45 | W135: 203012.5 | X135: 154850 | Y135: 122037.5 | Z135: 96700 | AA135: 70812.5 | AC135: 45 | AD135: 189112.5 | AE135: 144237.5 | AF135: 113675 | AG135: 90075 | AH135: 65962.5
A136: 46 | B136: 284475 | C136: 216975 | D136: 171000 | E136: 171000 | F136: 99225 | H136: 46 | I136: 250337.5 | J136: 190937.5 | K136: 150487.5 | L136: 119225 | M136: 87325 | O136: 46 | P136: 224725 | Q136: 171412.5 | R136: 135087.5 | S136: 107037.5 | T136: 78387.5 | V136: 46 | W136: 207662.5 | X136: 158387.5 | Y136: 124825 | Z136: 98912.5 | AA136: 72437.5 | AC136: 46 | AD136: 193437.5 | AE136: 147537.5 | AF136: 116287.5 | AG136: 92137.5 | AH136: 67475
A137: 47 | B137: 290975 | C137: 221937.5 | D137: 174912.5 | E137: 174912.5 | F137: 101500 | H137: 47 | I137: 256062.5 | J137: 195300 | K137: 153925 | L137: 121962.5 | M137: 89312.5 | O137: 47 | P137: 229875 | Q137: 175325 | R137: 138187.5 | S137: 109487.5 | T137: 80187.5 | V137: 47 | W137: 212412.5 | X137: 162012.5 | Y137: 127687.5 | Z137: 101175 | AA137: 74087.5 | AC137: 47 | AD137: 197862.5 | AE137: 150912.5 | AF137: 118937.5 | AG137: 94237.5 | AH137: 69025
A138: 48 | B138: 297637.5 | C138: 227012.5 | D138: 178912.5 | E138: 178912.5 | F138: 103825 | H138: 48 | I138: 261925 | J138: 199775 | K138: 157450 | L138: 124750 | M138: 91362.5 | O138: 48 | P138: 235137.5 | Q138: 179337.5 | R138: 141350 | S138: 111987.5 | T138: 82025 | V138: 48 | W138: 217275 | X138: 165725 | Y138: 130612.5 | Z138: 103487.5 | AA138: 75787.5 | AC138: 48 | AD138: 202387.5 | AE138: 154375 | AF138: 121662.5 | AG138: 96400 | AH138: 70600
A139: 49 | B139: 304450 | C139: 232212.5 | D139: 183012.5 | E139: 183012.5 | F139: 106200 | H139: 49 | I139: 267912.5 | J139: 204350 | K139: 161050 | L139: 127600 | M139: 93450 | O139: 49 | P139: 240512.5 | Q139: 183450 | R139: 144575 | S139: 114550 | T139: 83900 | V139: 49 | W139: 222250 | X139: 169512.5 | Y139: 133600 | Z139: 105850 | AA139: 77525 | AC139: 49 | AD139: 207025 | AE139: 157900 | AF139: 124450 | AG139: 98600 | AH139: 72212.5
A140: 50 | B140: 311412.5 | C140: 237525 | D140: 187200 | E140: 187200 | F140: 108625 | H140: 50 | I140: 274050 | J140: 209025 | K140: 164737.5 | L140: 130525 | M140: 95587.5 | O140: 50 | P140: 246012.5 | Q140: 187650 | R140: 147887.5 | S140: 117175 | T140: 85812.5 | V140: 50 | W140: 227337.5 | X140: 173387.5 | Y140: 136650 | Z140: 108275 | AA140: 79300 | AC140: 50 | AD140: 211762.5 | AE140: 161512.5 | AF140: 127300 | AG140: 100862.5 | AH140: 73862.5
A141: 51 | B141: 318537.5 | C141: 242962.5 | D141: 191487.5 | E141: 191487.5 | F141: 111112.5 | H141: 51 | I141: 280312.5 | J141: 213800 | K141: 168500 | L141: 133512.5 | M141: 97775 | O141: 51 | P141: 251650 | Q141: 191937.5 | R141: 151275 | S141: 119862.5 | T141: 87775 | V141: 51 | W141: 232537.5 | X141: 177362.5 | Y141: 139787.5 | Z141: 110750 | AA141: 81112.5 | AC141: 51 | AD141: 216612.5 | AE141: 165212.5 | AF141: 130212.5 | AG141: 103162.5 | AH141: 75562.5
A142: 52 | B142: 325825 | C142: 248525 | D142: 195862.5 | E142: 195862.5 | F142: 113650 | H142: 52 | I142: 286725 | J142: 218700 | K142: 172362.5 | L142: 136562.5 | M142: 100012.5 | O142: 52 | P142: 257400 | Q142: 196325 | R142: 154737.5 | S142: 122600 | T142: 89787.5 | V142: 52 | W142: 237862.5 | X142: 181425 | Y142: 142987.5 | Z142: 113287.5 | AA142: 82962.5 | AC142: 52 | AD142: 221562.5 | AE142: 168987.5 | AF142: 133187.5 | AG142: 105525 | AH142: 77287.5
A143: 53 | B143: 333287.5 | C143: 254200 | D143: 200350 | E143: 200350 | F143: 116250 | H143: 53 | I143: 293287.5 | J143: 223700 | K143: 176300 | L143: 139687.5 | M143: 102300 | O143: 53 | P143: 263300 | Q143: 200825 | R143: 158275 | S143: 125400 | T143: 91837.5 | V143: 53 | W143: 243300 | X143: 185575 | Y143: 146250 | Z143: 115875 | AA143: 84862.5 | AC143: 53 | AD143: 226637.5 | AE143: 172862.5 | AF143: 136237.5 | AG143: 107937.5 | AH143: 79050
A144: 54 | B144: 350612.5 | C144: 267412.5 | D144: 210762.5 | E144: 210762.5 | F144: 122300 | H144: 54 | I144: 308537.5 | J144: 235325 | K144: 185475 | L144: 146950 | M144: 107625 | O144: 54 | P144: 276975 | Q144: 211262.5 | R144: 166500 | S144: 131925 | T144: 96612.5 | V144: 54 | W144: 255950 | X144: 195212.5 | Y144: 153850 | Z144: 121900 | AA144: 89275 | AC144: 54 | AD144: 238412.5 | AE144: 181850 | AF144: 143312.5 | AG144: 113550 | AH144: 83162.5
A145: 55 | B145: 371475 | C145: 283337.5 | D145: 223300 | E145: 223300 | F145: 129575 | H145: 55 | I145: 326900 | J145: 249337.5 | K145: 196512.5 | L145: 155700 | M145: 114025 | O145: 55 | P145: 293462.5 | Q145: 223837.5 | R145: 176412.5 | S145: 139775 | T145: 102362.5 | V145: 55 | W145: 271175 | X145: 206837.5 | Y145: 163012.5 | Z145: 129162.5 | AA145: 94587.5 | AC145: 55 | AD145: 252600 | AE145: 192662.5 | AF145: 151850 | AG145: 120312.5 | AH145: 88112.5
A146: 56 | B146: 383662.5 | C146: 292625 | D146: 230625 | E146: 230625 | F146: 133825 | H146: 56 | I146: 337625 | J146: 257512.5 | K146: 202950 | L146: 160800 | M146: 117775 | O146: 56 | P146: 303087.5 | Q146: 231175 | R146: 182200 | S146: 144362.5 | T146: 105725 | V146: 56 | W146: 280075 | X146: 213625 | Y146: 168362.5 | Z146: 133400 | AA146: 97700 | AC146: 56 | AD146: 260887.5 | AE146: 198987.5 | AF146: 156825 | AG146: 124262.5 | AH146: 91000
A147: 57 | B147: 406500 | C147: 310050 | D147: 244350 | E147: 244350 | F147: 141787.5 | H147: 57 | I147: 357712.5 | J147: 272837.5 | K147: 215037.5 | L147: 170375 | M147: 124775 | O147: 57 | P147: 321125 | Q147: 244937.5 | R147: 193037.5 | S147: 152950 | T147: 112012.5 | V147: 57 | W147: 296737.5 | X147: 226337.5 | Y147: 178375 | Z147: 141337.5 | AA147: 103512.5 | AC147: 57 | AD147: 276412.5 | AE147: 210825 | AF147: 166162.5 | AG147: 131650 | AH147: 96425
A148: 58 | B148: 430687.5 | C148: 328500 | D148: 258900 | E148: 258900 | F148: 150237.5 | H148: 58 | I148: 379012.5 | J148: 289075 | K148: 227825 | L148: 180512.5 | M148: 132200 | O148: 58 | P148: 340250 | Q148: 259512.5 | R148: 204525 | S148: 162050 | T148: 118687.5 | V148: 58 | W148: 314400 | X148: 239800 | Y148: 189000 | Z148: 149750 | AA148: 109675 | AC148: 58 | AD148: 292875 | AE148: 223375 | AF148: 176050 | AG148: 139487.5 | AH148: 102162.5
A149: 59 | B149: 456325 | C149: 348050 | D149: 274312.5 | E149: 274312.5 | F149: 159175 | H149: 59 | I149: 401562.5 | J149: 306287.5 | K149: 241387.5 | L149: 191262.5 | M149: 140075 | O149: 59 | P149: 360500 | Q149: 274962.5 | R149: 216700 | S149: 171700 | T149: 125750 | V149: 59 | W149: 333112.5 | X149: 254075 | Y149: 200250 | Z149: 158662.5 | AA149: 116200 | AC149: 59 | AD149: 310300 | AE149: 236675 | AF149: 186525 | AG149: 147787.5 | AH149: 108237.5
A150: 60 | B150: 483475 | C150: 368762.5 | D150: 290637.5 | E150: 290637.5 | F150: 168650 | H150: 60 | I150: 425462.5 | J150: 324512.5 | K150: 255762.5 | L150: 202637.5 | M150: 148412.5 | O150: 60 | P150: 381950 | Q150: 291325 | R150: 229600 | S150: 181912.5 | T150: 133225 | V150: 60 | W150: 352937.5 | X150: 269200 | Y150: 212162.5 | Z150: 168100 | AA150: 123112.5 | AC150: 60 | AD150: 328762.5 | AE150: 250762.5 | AF150: 197625 | AG150: 156587.5 | AH150: 114675
A151: 61 | B151: 512262.5 | C151: 390712.5 | D151: 307925 | E151: 307925 | F151: 178687.5 | H151: 61 | I151: 450787.5 | J151: 343825 | K151: 270975 | L151: 214700 | M151: 157237.5 | O151: 61 | P151: 404687.5 | Q151: 308662.5 | R151: 243262.5 | S151: 192750 | T151: 141162.5 | V151: 61 | W151: 373950 | X151: 285225 | Y151: 224787.5 | Z151: 178100 | AA151: 130437.5 | AC151: 61 | AD151: 348337.5 | AE151: 265687.5 | AF151: 209387.5 | AG151: 165912.5 | AH151: 121500
A152: 62 | B152: 542750 | C152: 413962.5 | D152: 326262.5 | E152: 326262.5 | F152: 189312.5 | H152: 62 | I152: 477612.5 | J152: 364287.5 | K152: 287112.5 | L152: 227475 | M152: 166600 | O152: 62 | P152: 428762.5 | Q152: 327037.5 | R152: 257737.5 | S152: 204212.5 | T152: 149562.5 | V152: 62 | W152: 396200 | X152: 302200 | Y152: 238162.5 | Z152: 188712.5 | AA152: 138200 | AC152: 62 | AD152: 369062.5 | AE152: 281500 | AF152: 221850 | AG152: 175775 | AH152: 128737.5
A153: 63 | B153: 575050 | C153: 438600 | D153: 345675 | E153: 345675 | F153: 200587.5 | H153: 63 | I153: 506037.5 | J153: 385975 | K153: 304200 | L153: 241025 | M153: 176512.5 | O153: 63 | P153: 454287.5 | Q153: 346500 | R153: 273087.5 | S153: 216375 | T153: 158462.5 | V153: 63 | W153: 419787.5 | X153: 320175 | Y153: 252337.5 | Z153: 199937.5 | AA153: 146425 | AC153: 63 | AD153: 391025 | AE153: 298250 | AF153: 235062.5 | AG153: 186237.5 | AH153: 136400
A154: 64 | B154: 609275 | C154: 464700 | D154: 366250 | E154: 366250 | F154: 212525 | H154: 64 | I154: 536162.5 | J154: 408937.5 | K154: 322300 | L154: 255362.5 | M154: 187025 | O154: 64 | P154: 481325 | Q154: 367112.5 | R154: 289337.5 | S154: 229250 | T154: 167887.5 | V154: 64 | W154: 444762.5 | X154: 339237.5 | Y154: 267362.5 | Z154: 211837.5 | AA154: 155137.5 | AC154: 64 | AD154: 414300 | AE154: 316000 | AF154: 249050 | AG154: 197325 | AH154: 144512.5
A155: 65 | B155: 645537.5 | C155: 492362.5 | D155: 388050 | E155: 388050 | F155: 225175 | H155: 65 | I155: 568075 | J155: 433275 | K155: 341475 | L155: 270562.5 | M155: 198150 | O155: 65 | P155: 509975 | Q155: 388962.5 | R155: 306562.5 | S155: 242887.5 | T155: 177887.5 | V155: 65 | W155: 471237.5 | X155: 359425 | Y155: 283275 | Z155: 224450 | AA155: 164375 | AC155: 65 | AD155: 438962.5 | AE155: 334812.5 | AF155: 263875 | AG155: 209075 | AH155: 153112.5
A156: 66 | B156: 683950 | C156: 521662.5 | D156: 411137.5 | E156: 411137.5 | F156: 238575 | H156: 66 | I156: 601875 | J156: 459062.5 | K156: 361800 | L156: 286662.5 | M156: 209950 | O156: 66 | P156: 540325 | Q156: 412112.5 | R156: 324800 | S156: 257350 | T156: 188475 | V156: 66 | W156: 499287.5 | X156: 380812.5 | Y156: 300137.5 | Z156: 237800 | AA156: 174162.5 | AC156: 66 | AD156: 465087.5 | AE156: 354737.5 | AF156: 279575 | AG156: 221512.5 | AH156: 162225
A157: 67 | B157: 724662.5 | C157: 552712.5 | D157: 435612.5 | E157: 435612.5 | F157: 252775 | H157: 67 | I157: 637700 | J157: 486387.5 | K157: 383337.5 | L157: 303725 | M157: 222437.5 | O157: 67 | P157: 572475 | Q157: 436650 | R157: 344137.5 | S157: 272662.5 | T157: 199687.5 | V157: 67 | W157: 529000 | X157: 403487.5 | Y157: 318000 | Z157: 251950 | AA157: 184525 | AC157: 67 | AD157: 492762.5 | AE157: 375850 | AF157: 296212.5 | AG157: 234700 | AH157: 171887.5
A158: 68 | B158: 767787.5 | C158: 585612.5 | D158: 461537.5 | E158: 461537.5 | F158: 267812.5 | H158: 68 | I158: 675650 | J158: 515337.5 | K158: 406150 | L158: 321800 | M158: 235675 | O158: 68 | P158: 606550 | Q158: 462637.5 | R158: 364612.5 | S158: 288887.5 | T158: 211575 | V158: 68 | W158: 560487.5 | X158: 427500 | Y158: 336925 | Z158: 266950 | AA158: 195500 | AC158: 68 | AD158: 522100 | AE158: 398212.5 | AF158: 313850 | AG158: 248662.5 | AH158: 182112.5
A159: 69 | B159: 834525 | C159: 636512.5 | D159: 501650 | E159: 501650 | F159: 291100 | H159: 69 | I159: 734375 | J159: 560125 | K159: 441450 | L159: 349775 | M159: 256162.5 | O159: 69 | P159: 659275 | Q159: 502837.5 | R159: 396300 | S159: 314000 | T159: 229962.5 | V159: 69 | W159: 609200 | X159: 464650 | Y159: 366200 | Z159: 290150 | AA159: 212500 | AC159: 69 | AD159: 567475 | AE159: 432825 | AF159: 341125 | AG159: 270275 | AH159: 197950
A160: 70 | B160: 884187.5 | C160: 674387.5 | D160: 531512.5 | E160: 531512.5 | F160: 308425 | H160: 70 | I160: 778087.5 | J160: 593462.5 | K160: 467725 | L160: 370587.5 | M160: 271412.5 | O160: 70 | P160: 698512.5 | Q160: 532775 | R160: 419887.5 | S160: 332687.5 | T160: 243650 | V160: 70 | W160: 645462.5 | X160: 492312.5 | Y160: 388000 | Z160: 307425 | AA160: 225150 | AC160: 70 | AD160: 601250 | AE160: 458587.5 | AF160: 361425 | AG160: 286362.5 | AH160: 209725
A161: 71 | B161: 936812.5 | C161: 714525 | D161: 563137.5 | E161: 563137.5 | F161: 326775 | H161: 71 | I161: 824400 | J161: 628787.5 | K161: 495562.5 | L161: 392650 | M161: 287562.5 | O161: 71 | P161: 740087.5 | Q161: 564475 | R161: 444887.5 | S161: 352487.5 | T161: 258150 | V161: 71 | W161: 683875 | X161: 521612.5 | Y161: 411100 | Z161: 325725 | AA161: 238550 | AC161: 71 | AD161: 637037.5 | AE161: 485875 | AF161: 382937.5 | AG161: 303412.5 | AH161: 222212.5
A162: 72 | B162: 992575 | C162: 757062.5 | D162: 596662.5 | E162: 596662.5 | F162: 346225 | H162: 72 | I162: 873462.5 | J162: 666212.5 | K162: 525062.5 | L162: 416012.5 | M162: 304675 | O162: 72 | P162: 784125 | Q162: 598075 | R162: 471362.5 | S162: 373475 | T162: 273512.5 | V162: 72 | W162: 724575 | X162: 552650 | Y162: 435562.5 | Z162: 345100 | AA162: 252750 | AC162: 72 | AD162: 674950 | AE162: 514800 | AF162: 405725 | AG162: 321462.5 | AH162: 235437.5
A163: 73 | B163: 1051650 | C163: 802112.5 | D163: 632175 | E163: 632175 | F163: 366825 | H163: 73 | I163: 925450 | J163: 705862.5 | K163: 556312.5 | L163: 440775 | M163: 322812.5 | O163: 73 | P163: 830800 | Q163: 633675 | R163: 499412.5 | S163: 395700 | T163: 289800 | V163: 73 | W163: 767700 | X163: 585537.5 | Y163: 461487.5 | Z163: 365650 | AA163: 267787.5 | AC163: 73 | AD163: 715112.5 | AE163: 545437.5 | AF163: 429875 | AG163: 340600 | AH163: 249450
A164: 74 | B164: 1114237.5 | C164: 849850 | D164: 669800 | E164: 669800 | F164: 388662.5 | H164: 74 | I164: 980525 | J164: 747875 | K164: 589425 | L164: 467012.5 | M164: 342025 | O164: 74 | P164: 880250 | Q164: 671387.5 | R164: 529137.5 | S164: 419250 | T164: 307050 | V164: 74 | W164: 813387.5 | X164: 620387.5 | Y164: 488950 | Z164: 387412.5 | AA164: 283725 | AC164: 74 | AD164: 757675 | AE164: 577900 | AF164: 455462.5 | AG164: 360875 | AH164: 264287.5
A165: 75 | B165: 1193337.5 | C165: 910187.5 | D165: 717350 | E165: 717350 | F165: 416250 | H165: 75 | I165: 1050137.5 | J165: 800962.5 | K165: 631262.5 | L165: 500162.5 | M165: 366300 | O165: 75 | P165: 942737.5 | Q165: 719050 | R165: 566700 | S165: 449012.5 | T165: 328837.5 | V165: 75 | W165: 871137.5 | X165: 664437.5 | Y165: 523662.5 | Z165: 414912.5 | AA165: 303862.5 | AC165: 75 | AD165: 811475 | AE165: 618925 | AF165: 487800 | AG165: 386487.5 | AH165: 283050
A166: 76 | B166: 1250375 | C166: 953687.5 | D166: 751625 | E166: 751625 | F166: 436150 | H166: 76 | I166: 1100325 | J166: 839250 | K166: 661437.5 | L166: 524075 | M166: 383812.5 | O166: 76 | P166: 987800 | Q166: 753412.5 | R166: 593787.5 | S166: 470475 | T166: 344562.5 | V166: 76 | W166: 912775 | X166: 696187.5 | Y166: 548687.5 | Z166: 434737.5 | AA166: 318387.5 | AC166: 76 | AD166: 850250 | AE166: 648512.5 | AF166: 511112.5 | AG166: 404962.5 | AH166: 296587.5
A167: 77 | B167: 1310137.5 | C167: 999275 | D167: 787550 | E167: 787550 | F167: 457000 | H167: 77 | I167: 1152912.5 | J167: 879362.5 | K167: 693050 | L167: 549112.5 | M167: 402162.5 | O167: 77 | P167: 1035000 | Q167: 789425 | R167: 622175 | S167: 492962.5 | T167: 361025 | V167: 77 | W167: 956400 | X167: 729462.5 | Y167: 574912.5 | Z167: 455525 | AA167: 333612.5 | AC167: 77 | AD167: 890887.5 | AE167: 679500 | AF167: 535537.5 | AG167: 424325 | AH167: 310762.5
A168: 78 | B168: 1372750 | C168: 1047025 | D168: 825200 | E168: 825200 | F168: 478837.5 | H168: 78 | I168: 1208025 | J168: 921387.5 | K168: 726175 | L168: 575362.5 | M168: 421375 | O168: 78 | P168: 1084475 | Q168: 827150 | R168: 651900 | S168: 516525 | T168: 378287.5 | V168: 78 | W168: 1002112.5 | X168: 764337.5 | Y168: 602400 | Z168: 477287.5 | AA168: 349550 | AC168: 78 | AD168: 933475 | AE168: 711975 | AF168: 561137.5 | AG168: 444600 | AH168: 325612.5
A169: 79 | B169: 1438362.5 | C169: 1097075 | D169: 864637.5 | E169: 864637.5 | F169: 501725 | H169: 79 | I169: 1265762.5 | J169: 965425 | K169: 760875 | L169: 602862.5 | M169: 441512.5 | O169: 79 | P169: 1136300 | Q169: 866687.5 | R169: 683062.5 | S169: 541200 | T169: 396362.5 | V169: 79 | W169: 1050000 | X169: 800862.5 | Y169: 631187.5 | Z169: 500100 | AA169: 366262.5 | AC169: 79 | AD169: 978087.5 | AE169: 746012.5 | AF169: 587950 | AG169: 465850 | AH169: 341175
A170: 80 | B170: 1507112.5 | C170: 1149512.5 | D170: 905962.5 | E170: 905962.5 | F170: 525700 | H170: 80 | I170: 1326250 | J170: 1011562.5 | K170: 797250 | L170: 631675 | M170: 462625 | O170: 80 | P170: 1190612.5 | Q170: 908112.5 | R170: 715712.5 | S170: 567075 | T170: 415300 | V170: 80 | W170: 1100187.5 | X170: 839137.5 | Y170: 661350 | Z170: 524000 | AA170: 383762.5 | AC170: 80 | AD170: 1024837.5 | AE170: 781662.5 | AF170: 616050 | AG170: 488112.5 | AH170: 357475
A171: 81 | B171: 1579137.5 | C171: 1204450 | D171: 949262.5 | E171: 949262.5 | F171: 550825 | H171: 81 | I171: 1389637.5 | J171: 1059912.5 | K171: 835350 | L171: 661862.5 | M171: 484725 | O171: 81 | P171: 1247512.5 | Q171: 951512.5 | R171: 749912.5 | S171: 594175 | T171: 435150 | V171: 81 | W171: 1152775 | X171: 879250 | Y171: 692962.5 | Z171: 549050 | AA171: 402100 | AC171: 81 | AD171: 1073812.5 | AE171: 819025 | AF171: 645500 | AG171: 511437.5 | AH171: 374562.5
A172: 82 | B172: 1654612.5 | C172: 1262012.5 | D172: 994625 | E172: 994625 | F172: 577150 | H172: 82 | I172: 1456062.5 | J172: 1110575 | K172: 875275 | L172: 693500 | M172: 507900 | O172: 82 | P172: 1307150 | Q172: 996987.5 | R172: 785762.5 | S172: 622575 | T172: 455950 | V172: 82 | W172: 1207862.5 | X172: 921275 | Y172: 726075 | Z172: 575287.5 | AA172: 421325 | AC172: 82 | AD172: 1125137.5 | AE172: 858175 | AF172: 676350 | AG172: 535887.5 | AH172: 392462.5
A173: 83 | B173: 1733687.5 | C173: 1322325 | D173: 1042162.5 | E173: 1042162.5 | F173: 604737.5 | H173: 83 | I173: 1525650 | J173: 1163650 | K173: 917112.5 | L173: 726650 | M173: 532175 | O173: 83 | P173: 1369612.5 | Q173: 1044637.5 | R173: 823312.5 | S173: 652325 | T173: 477750 | V173: 83 | W173: 1265600 | X173: 965300 | Y173: 760787.5 | Z173: 602787.5 | AA173: 441462.5 | AC173: 83 | AD173: 1178912.5 | AE173: 899187.5 | AF173: 708675 | AG173: 561500 | AH173: 411225
A174: 84 | B174: 1816550 | C174: 1385525 | D174: 1091975 | E174: 1091975 | F174: 633650 | H174: 84 | I174: 1598562.5 | J174: 1219262.5 | K174: 960937.5 | L174: 761375 | M174: 557600 | O174: 84 | P174: 1435075 | Q174: 1094575 | R174: 862662.5 | S174: 683512.5 | T174: 500575 | V174: 84 | W174: 1326087.5 | X174: 1011437.5 | Y174: 797150 | Z174: 631600 | AA174: 462562.5 | AC174: 84 | AD174: 1235262.5 | AE174: 942162.5 | AF174: 742550 | AG174: 588337.5 | AH174: 430875

Sheet Tarifas Complete (hidden)
A1: Zona 1: Ciudad de México (D.F. y área metropolitana) y franja fronteriza norte | H1: Zona 2: Nuevo León, Sonora, Coahuila, Chihuahua, Tamaulipas, Baja California Norte y Baja California Sur | O1: Zona 3: Jalisco, Puebla, Morelos, Estado de México (excepto Área Metropolitana), Guerrero (Acapulco y Zihuatanejo), Hidalgo y Querétaro | V1: Zona 4: Sinaloa, Guanajuato, San Luis Potosí, Durango, Aguascalientes, Nayarit, Michoacán, Colima, Quintana Roo, Zacatecas | AC1: Zona 5: Guerrero (excepto Acapulco y Zihuatanejo), Veracruz, Chiapas, Tabasco, Campeche, Oaxaca, Tlaxcala, Yucatán
A2: Primas de riesgo expresadas en pesos mexicanos | H2: Primas de riesgo expresadas en pesos mexicanos | O2: Primas de riesgo expresadas en pesos mexicanos | V2: Primas de riesgo expresadas en pesos mexicanos | AC2: Primas de riesgo expresadas en pesos mexicanos
A3: Edad | B3: CW11 | C3: CW21 | D3: CW31 | E3: CW41 | F3: CW51 | H3: Edad | I3: CW12 | J3: CW22 | K3: CW32 | L3: CW42 | M3: CW52 | O3: Edad | P3: CW13 | Q3: CW23 | R3: CW33 | S3: CW43 | T3: CW53 | V3: Edad | W3: CW14 | X3: CW24 | Y3: CW34 | Z3: CW44 | AA3: CW54 | AC3: Edad | AD3: CW15 | AE3: CW25 | AF3: CW35 | AG3: CW45 | AH3: CW55
A4: 1 menor | B4: =B105*0.6 -> 43230 | C4: =C105*0.5 -> 26518.75 | D4: 19756.25 | E4: 15193.75 | F4: 11662.5 | H4: 1 menor | I4: =I105*0.6 -> 38092.5 | J4: =J105*0.5 -> 23362.5 | K4: =K105*0.5 -> 17406.25 | L4: =L105*0.5 -> 13387.5 | M4: =M105*0.5 -> 10275 | O4: 1 menor | P4: =P105*0.6 -> 33862.5 | Q4: =Q105*0.6 -> 24922.5 | R4: =R105*0.6 -> 18570 | S4: =S105*0.6 -> 14280 | T4: =T105*0.6 -> 10965 | V4: 1 menor | W4: =W105*0.6 -> 31410 | X4: =X105*0.6 -> 23115 | Y4: =Y105*0.6 -> 17220 | Z4: =Z105*0.6 -> 13245 | AA4: =AA105*0.6 -> 10170 | AC4: 1 menor | AD4: =AD105*0.6 -> 28950 | AE4: =AE105*0.6 -> 21307.5 | AF4: =AF105*0.6 -> 15877.5 | AG4: =AG105*0.6 -> 12210 | AH4: =AH105*0.6 -> 9375
A5: 2 menor | B5: 56762.5 | C5: 41781.25 | D5: 31131.25 | E5: 23937.5 | F5: 18375 | H5: 2 menores | I5: =I106*0.5 -> 50012.5 | J5: 36812.5 | K5: 27425 | L5: 21087.5 | M5: 16187.5 | O5: 2 menores | P5: =P106*0.5 -> 44462.5 | Q5: =Q106*0.6 -> 39270 | R5: 29257.5 | S5: 22500 | T5: 17272.5 | V5: 2 menores | W5: =W106*0.6 -> 49485 | X5: 36420 | Y5: 27135 | Z5: 20865 | AA5: 16020 | AC5: 2 menores | AD5: =AD106*0.6 -> 45622.5 | AE5: 33577.5 | AF5: 25020 | AG5: 19237.5 | AH5: 14767.5
A6: 3 menor | B6: 82825 | C6: 60962.5 | D6: 45418.75 | E6: 34925 | F6: 26812.5 | H6: 3 ó más menores | I6: 72968.75 | J6: 53706.25 | K6: 40012.5 | L6: 30768.75 | M6: 23625 | O6: 3 ó más menores | P6: 64868.75 | Q6: 57292.5 | R6: 42690 | S6: 32827.5 | T6: 25200 | V6: 3 ó más menores | W6: 72202.5 | X6: 53145 | Y6: 39592.5 | Z6: 30450 | AA6: 23377.5 | AC6: 3 ó más menores | AD6: 66562.5 | AE6: 48990 | AF6: 36502.5 | AG6: 28065 | AH6: 21547.5
A7: 18 | B7: 83106.25 | C7: 61168.75 | D7: 45575 | E7: 35043.75 | F7: 26906.25 | H7: 18 | I7: 73218.75 | J7: 53887.5 | K7: 40150 | L7: 30875 | M7: 23700 | O7: 18 | P7: 65087.5 | Q7: 57487.5 | R7: 42832.5 | S7: 32940 | T7: 25290 | V7: 18 | W7: 72450 | X7: 53325 | Y7: 39727.5 | Z7: 30547.5 | AA7: 23452.5 | AC7: 18 | AD7: 66787.5 | AE7: 49155 | AF7: 36622.5 | AG7: 28162.5 | AH7: 21622.5
A8: 19 | B8: 85731.25 | C8: 63100 | D8: 47012.5 | E8: 36150 | F8: 27756.25 | H8: 19 | I8: 75531.25 | J8: 55593.75 | K8: 41418.75 | L8: 31850 | M8: 24450 | O8: 19 | P8: 67143.75 | Q8: 59302.5 | R8: 44182.5 | S8: 33975 | T8: 26085 | V8: 19 | W8: 74737.5 | X8: 55005 | Y8: 40980 | Z8: 31515 | AA8: 24195 | AC8: 19 | AD8: 68895 | AE8: 50707.5 | AF8: 37777.5 | AG8: 29055 | AH8: 22305
A9: 20 | B9: 88437.5 | C9: 65093.75 | D9: 48493.75 | E9: 37293.75 | F9: 28631.25 | H9: 20 | I9: 77912.5 | J9: 57343.75 | K9: 42725 | L9: 32856.25 | M9: 25225 | O9: 20 | P9: 69262.5 | Q9: 61177.5 | R9: 45577.5 | S9: 35047.5 | T9: 26910 | V9: 20 | W9: 77092.5 | X9: 56745 | Y9: 42277.5 | Z9: 32512.5 | AA9: 24960 | AC9: 20 | AD9: 71070 | AE9: 52312.5 | AF9: 38970 | AG9: 29970 | AH9: 23010
A10: 21 | B10: 91225 | C10: 67143.75 | D10: 50025 | E10: 38468.75 | F10: 29531.25 | H10: 21 | I10: 80375 | J10: 59156.25 | K10: 44075 | L10: 33893.75 | M10: 26018.75 | O10: 21 | P10: 71450 | Q10: 63112.5 | R10: 47017.5 | S10: 36157.5 | T10: 27757.5 | V10: 21 | W10: 79530 | X10: 58537.5 | Y10: 43612.5 | Z10: 33540 | AA10: 25747.5 | AC10: 21 | AD10: 73312.5 | AE10: 53962.5 | AF10: 40200 | AG10: 30915 | AH10: 23737.5
A11: 22 | B11: 94106.25 | C11: 69262.5 | D11: 51606.25 | E11: 39681.25 | F11: 30468.75 | H11: 22 | I11: 82912.5 | J11: 61025 | K11: 45462.5 | L11: 34962.5 | M11: 26843.75 | O11: 22 | P11: 73706.25 | Q11: 65100 | R11: 48502.5 | S11: 37297.5 | T11: 28635 | V11: 22 | W11: 82042.5 | X11: 60382.5 | Y11: 44992.5 | Z11: 34597.5 | AA11: 26557.5 | AC11: 22 | AD11: 75630 | AE11: 55665 | AF11: 41475 | AG11: 31890 | AH11: 24487.5
A12: 23 | B12: 97075 | C12: 71450 | D12: 53237.5 | E12: 40937.5 | F12: 31425 | H12: 23 | I12: 85525 | J12: 62950 | K12: 46900 | L12: 36062.5 | M12: 27687.5 | O12: 23 | P12: 76037.5 | Q12: 67155 | R12: 50032.5 | S12: 38475 | T12: 29535 | V12: 23 | W12: 84630 | X12: 62287.5 | Y12: 46410 | Z12: 35685 | AA12: 27397.5 | AC12: 23 | AD12: 78015 | AE12: 57420 | AF12: 42780 | AG12: 32895 | AH12: 25260
A13: 24 | B13: 100143.75 | C13: 73706.25 | D13: 54918.75 | E13: 42225 | F13: 32418.75 | H13: 24 | I13: 88225 | J13: 64937.5 | K13: 48381.25 | L13: 37206.25 | M13: 28562.5 | O13: 24 | P13: 78437.5 | Q13: 69277.5 | R13: 51615 | S13: 39690 | T13: 30472.5 | V13: 24 | W13: 87300 | X13: 64260 | Y13: 47872.5 | Z13: 36810 | AA13: 28260 | AC13: 24 | AD13: 80475 | AE13: 59235 | AF13: 44130 | AG13: 33937.5 | AH13: 26055
A14: 25 | B14: 103306.25 | C14: 76037.5 | D14: 56650 | E14: 43562.5 | F14: 33443.75 | H14: 25 | I14: 91012.5 | J14: 66987.5 | K14: 49906.25 | L14: 38375 | M14: 29462.5 | O14: 25 | P14: 80912.5 | Q14: 71467.5 | R14: 53242.5 | S14: 40942.5 | T14: 31432.5 | V14: 25 | W14: 90060 | X14: 66285 | Y14: 49387.5 | Z14: 37972.5 | AA14: 29152.5 | AC14: 25 | AD14: 83017.5 | AE14: 61102.5 | AF14: 45525 | AG14: 35010 | AH14: 26880
A15: 26 | B15: 106568.75 | C15: 78437.5 | D15: 58437.5 | E15: 44937.5 | F15: 34500 | H15: 26 | I15: 93887.5 | J15: 69106.25 | K15: 51487.5 | L15: 39587.5 | M15: 30393.75 | O15: 26 | P15: 83468.75 | Q15: 73717.5 | R15: 54922.5 | S15: 42232.5 | T15: 32422.5 | V15: 26 | W15: 92902.5 | X15: 68377.5 | Y15: 50947.5 | Z15: 39172.5 | AA15: 30075 | AC15: 26 | AD15: 85642.5 | AE15: 63030 | AF15: 46965 | AG15: 36112.5 | AH15: 27727.5
A16: 27 | B16: 109931.25 | C16: 80912.5 | D16: 60281.25 | E16: 46356.25 | F16: 35587.5 | H16: 27 | I16: 96850 | J16: 71287.5 | K16: 53112.5 | L16: 40837.5 | M16: 31356.25 | O16: 27 | P16: 86100 | Q16: 76050 | R16: 56655 | S16: 43567.5 | T16: 33450 | V16: 27 | W16: 95835 | X16: 70537.5 | Y16: 52552.5 | Z16: 40410 | AA16: 31027.5 | AC16: 27 | AD16: 88342.5 | AE16: 65025 | AF16: 48442.5 | AG16: 37252.5 | AH16: 28597.5
A17: 28 | B17: 113400 | C17: 83468.75 | D17: 62187.5 | E17: 47818.75 | F17: 36712.5 | H17: 28 | I17: 99906.25 | J17: 73537.5 | K17: 54787.5 | L17: 42131.25 | M17: 32343.75 | O17: 28 | P17: 88818.75 | Q17: 78450 | R17: 58447.5 | S17: 44940 | T17: 34507.5 | V17: 28 | W17: 98857.5 | X17: 72765 | Y17: 54210 | Z17: 41685 | AA17: 32002.5 | AC17: 28 | AD17: 91132.5 | AE17: 67080 | AF17: 49972.5 | AG17: 38430 | AH17: 29505
A18: 29 | B18: 119000 | C18: 87587.5 | D18: 65256.25 | E18: 50181.25 | F18: 38525 | H18: 29 | I18: 104837.5 | J18: 77162.5 | K18: 57493.75 | L18: 44206.25 | M18: 33943.75 | O18: 29 | P18: 93200 | Q18: 82320 | R18: 61335 | S18: 47160 | T18: 36210 | V18: 29 | W18: 103740 | X18: 76357.5 | Y18: 56887.5 | Z18: 43747.5 | AA18: 33585 | AC18: 29 | AD18: 95632.5 | AE18: 70387.5 | AF18: 52440 | AG18: 40327.5 | AH18: 30960
A19: 30 | B19: 122756.25 | C19: 90350 | D19: 67312.5 | E19: 51762.5 | F19: 39743.75 | H19: 30 | I19: 108150 | J19: 79600 | K19: 59306.25 | L19: 45606.25 | M19: 35012.5 | O19: 30 | P19: 96143.75 | Q19: 84922.5 | R19: 63270 | S19: 48652.5 | T19: 37350 | V19: 30 | W19: 107017.5 | X19: 78765 | Y19: 58687.5 | Z19: 45127.5 | AA19: 34642.5 | AC19: 30 | AD19: 98647.5 | AE19: 72607.5 | AF19: 54097.5 | AG19: 41595 | AH19: 31935
A20: 31 | B20: =B121*0.5 -> 126631.25 | C20: 93200 | D20: 69437.5 | E20: 53400 | F20: 40993.75 | H20: 31 | I20: 111562.5 | J20: 82112.5 | K20: 61181.25 | L20: 47043.75 | M20: 36118.75 | O20: 31 | P20: 99181.25 | Q20: 87600 | R20: 65265 | S20: 50190 | T20: 38527.5 | V20: 31 | W20: 110392.5 | X20: 81255 | Y20: 60540 | Z20: 46552.5 | AA20: 35737.5 | AC20: 31 | AD20: 101767.5 | AE20: 74902.5 | AF20: 55807.5 | AG20: 42915 | AH20: 32947.5
A21: 32 | B21: 130625 | C21: 96143.75 | D21: 71631.25 | E21: 55081.25 | F21: 42287.5 | H21: 32 | I21: =I122*0.5 -> 115087.5 | J21: 84706.25 | K21: 63112.5 | L21: 48531.25 | M21: 37256.25 | O21: 32 | P21: 102312.5 | Q21: =Q122*0.6 -> 90367.5 | R21: 67327.5 | S21: 51772.5 | T21: 39750 | V21: 32 | W21: =W122*0.6 -> 113880 | X21: 83820 | Y21: 62445 | Z21: 48022.5 | AA21: 36870 | AC21: 32 | AD21: =AD122*0.6 -> 104977.5 | AE21: 77265 | AF21: 57570 | AG21: 44265 | AH21: 33982.5
A22: 33 | B22: 134750 | C22: 99181.25 | D22: 73893.75 | E22: 56825 | F22: 43625 | H22: 33 | I22: 118718.75 | J22: 87381.25 | K22: 65100 | L22: 50062.5 | M22: 38431.25 | O22: 33 | P22: 105543.75 | Q22: 93217.5 | R22: 69450 | S22: 53407.5 | T22: 41002.5 | V22: 33 | W22: 117472.5 | X22: 86467.5 | Y22: 64417.5 | Z22: 49537.5 | AA22: 38032.5 | AC22: 33 | AD22: 108292.5 | AE22: 79702.5 | AF22: 59385 | AG22: 45667.5 | AH22: 35055
A23: 34 | B23: 139006.25 | C23: 102312.5 | D23: 76225 | E23: 58618.75 | F23: 45000 | H23: 34 | I23: 122468.75 | J23: 90137.5 | K23: 67156.25 | L23: 51643.75 | M23: 39650 | O23: 34 | P23: 108875 | Q23: 96165 | R23: 71647.5 | S23: 55095 | T23: 42292.5 | V23: 34 | W23: 121185 | X23: 89197.5 | Y23: 66450 | Z23: 51097.5 | AA23: 39232.5 | AC23: 34 | AD23: 111712.5 | AE23: 82222.5 | AF23: 61260 | AG23: 47107.5 | AH23: 36165
A24: 35 | B24: 139725 | C24: 102843.75 | D24: 76625 | E24: 58918.75 | F24: 45237.5 | H24: 35 | I24: 123100 | J24: 90606.25 | K24: 67506.25 | L24: 51906.25 | M24: 39850 | O24: 35 | P24: 109437.5 | Q24: 96660 | R24: 72015 | S24: 55380 | T24: 42517.5 | V24: 35 | W24: 121807.5 | X24: 89655 | Y24: 66795 | Z24: 51367.5 | AA24: 39435 | AC24: 35 | AD24: 112290 | AE24: 82650 | AF24: 61575 | AG24: 47347.5 | AH24: 36352.5
A25: 36 | B25: 142925 | C25: 105193.75 | D25: 78375 | E25: 60268.75 | F25: 46268.75 | H25: 36 | I25: 125918.75 | J25: 92681.25 | K25: 69050 | L25: 53100 | M25: 40762.5 | O25: 36 | P25: 111943.75 | Q25: 98872.5 | R25: 73665 | S25: 56647.5 | T25: 43485 | V25: 36 | W25: 124597.5 | X25: 91710 | Y25: 68325 | Z25: 52537.5 | AA25: 40335 | AC25: 36 | AD25: 114862.5 | AE25: 84540 | AF25: 62985 | AG25: 48435 | AH25: 37185
A26: 37 | B26: 146193.75 | C26: 107606.25 | D26: 80168.75 | E26: 61650 | F26: 47331.25 | H26: 37 | I26: 128800 | J26: 94800 | K26: 70631.25 | L26: 54312.5 | M26: 41700 | O26: 37 | P26: 114506.25 | Q26: 101137.5 | R26: 75352.5 | S26: 57937.5 | T26: 44482.5 | V26: 37 | W26: 127447.5 | X26: 93810 | Y26: 69892.5 | Z26: 53745 | AA26: 41257.5 | AC26: 37 | AD26: 117487.5 | AE26: 86475 | AF26: 64425 | AG26: 49545 | AH26: 38032.5
A27: 38 | B27: 149537.5 | C27: 110068.75 | D27: 82006.25 | E27: 63056.25 | F27: 48412.5 | H27: 38 | I27: 131750 | J27: 96968.75 | K27: 72243.75 | L27: 55556.25 | M27: 42650 | O27: 38 | P27: 117125 | Q27: 103447.5 | R27: 77070 | S27: 59265 | T27: 45502.5 | V27: 38 | W27: 130365 | X27: 95955 | Y27: 71490 | Z27: 54975 | AA27: 42202.5 | AC27: 38 | AD27: 120172.5 | AE27: 88455 | AF27: 65902.5 | AG27: 50677.5 | AH27: 38902.5
A28: 39 | B28: 152962.5 | C28: 112587.5 | D28: 83881.25 | E28: 64500 | F28: 49518.75 | H28: 39 | I28: 134762.5 | J28: 99187.5 | K28: 73900 | L28: 56825 | M28: 43625 | O28: 39 | P28: 119806.25 | Q28: 105817.5 | R28: 78840 | S28: 60622.5 | T28: 46545 | V28: 39 | W28: 133350 | X28: 98152.5 | Y28: 73125 | Z28: 56227.5 | AA28: 43170 | AC28: 39 | AD28: 122925 | AE28: 90480 | AF28: 67410 | AG28: 51832.5 | AH28: 39795
A29: 40 | B29: 156462.5 | C29: 115162.5 | D29: 85800 | E29: 65975 | F29: 50650 | H29: 40 | I29: 137843.75 | J29: 101456.25 | K29: 75593.75 | L29: 58125 | M29: 44625 | O29: 40 | P29: 122543.75 | Q29: 108240 | R29: 80640 | S29: 62010 | T29: 47610 | V29: 40 | W29: 136402.5 | X29: 100395 | Y29: 74797.5 | Z29: 57517.5 | AA29: 44160 | AC29: 40 | AD29: 125737.5 | AE29: 92550 | AF29: 68955 | AG29: 53025 | AH29: 40710
A30: 41 | B30: 160043.75 | C30: 117793.75 | D30: 87762.5 | E30: 67487.5 | F30: 51812.5 | H30: 41 | I30: 141000 | J30: 103781.25 | K30: 77318.75 | L30: 59456.25 | M30: 45650 | O30: 41 | P30: 125350 | Q30: 110715 | R30: 82485 | S30: 63427.5 | T30: 48697.5 | V30: 41 | W30: 139522.5 | X30: 102690 | Y30: 76507.5 | Z30: 58830 | AA30: 45172.5 | AC30: 41 | AD30: 128617.5 | AE30: 94665 | AF30: 70530 | AG30: 54232.5 | AH30: 41640
A31: 42 | B31: 163706.25 | C31: 120493.75 | D31: 89768.75 | E31: 69031.25 | F31: 53000 | H31: 42 | I31: 144225 | J31: 106156.25 | K31: 79087.5 | L31: 60818.75 | M31: 46693.75 | O31: 42 | P31: 128218.75 | Q31: 113250 | R31: 84375 | S31: 64882.5 | T31: 49815 | V31: 42 | W31: 142717.5 | X31: 105045 | Y31: 78262.5 | Z31: 60180 | AA31: 46200 | AC31: 42 | AD31: 131557.5 | AE31: 96832.5 | AF31: 72142.5 | AG31: 55477.5 | AH31: 42592.5
A32: 43 | B32: 167450 | C32: 123250 | D32: 91825 | E32: 70612.5 | F32: 54212.5 | H32: 43 | I32: 147525 | J32: 108581.25 | K32: 80900 | L32: 62206.25 | M32: 47762.5 | O32: 43 | P32: 131150 | Q32: 115837.5 | R32: 86302.5 | S32: 66367.5 | T32: 50947.5 | V32: 43 | W32: 145980 | X32: 107445 | Y32: 80055 | Z32: 61560 | AA32: 47257.5 | AC32: 43 | AD32: 134572.5 | AE32: 99045 | AF32: 73792.5 | AG32: 56745 | AH32: 43567.5
A33: 44 | B33: 171281.25 | C33: 126068.75 | D33: 93925 | E33: 72225 | F33: 55450 | H33: 44 | I33: 150900 | J33: 111068.75 | K33: 82750 | L33: 63631.25 | M33: 48856.25 | O33: 44 | P33: 134156.25 | Q33: 118492.5 | R33: 88282.5 | S33: 67882.5 | T33: 52117.5 | V33: 44 | W33: 149325 | X33: 109905 | Y33: 81885 | Z33: 62962.5 | AA33: 48337.5 | AC33: 44 | AD33: 137647.5 | AE33: 101317.5 | AF33: 75480 | AG33: 58042.5 | AH33: 44565
A34: 45 | B34: 175200 | C34: 128956.25 | D34: 96075 | E34: 73881.25 | F34: 56718.75 | H34: 45 | I34: 154356.25 | J34: 113612.5 | K34: 84643.75 | L34: 65087.5 | M34: 49968.75 | O34: 45 | P34: 137225 | Q34: 121200 | R34: 90300 | S34: 69435 | T34: 53310 | V34: 45 | W34: 152737.5 | X34: 112417.5 | Y34: 83760 | Z34: 64410 | AA34: 49447.5 | AC34: 45 | AD34: 140797.5 | AE34: 103635 | AF34: 77212.5 | AG34: 59370 | AH34: 45585
A35: 46 | B35: 179212.5 | C35: 131906.25 | D35: 98275 | E35: 75568.75 | F35: 58018.75 | H35: 46 | I35: 157887.5 | J35: 116212.5 | K35: 86581.25 | L35: 66575 | M35: 51112.5 | O35: 46 | P35: 140362.5 | Q35: 123975 | R35: 92370 | S35: 71025 | T35: 54532.5 | V35: 46 | W35: 156232.5 | X35: 114990 | Y35: 85672.5 | Z35: 65880 | AA35: 50580 | AC35: 46 | AD35: 144022.5 | AE35: 106005 | AF35: 78975 | AG35: 60727.5 | AH35: 46627.5
A36: 47 | B36: =B137*0.5 -> 183312.5 | C36: 134925 | D36: 100525 | E36: 77300 | F36: 59343.75 | H36: 47 | I36: 161500 | J36: 118868.75 | K36: 88562.5 | L36: 68100 | M36: 52287.5 | O36: 47 | P36: 143575 | Q36: 126810 | R36: 94477.5 | S36: 72652.5 | T36: 55777.5 | V36: 47 | W36: 159810 | X36: 117622.5 | Y36: 87637.5 | Z36: 67387.5 | AA36: 51735 | AC36: 47 | AD36: 147315 | AE36: 108427.5 | AF36: 80782.5 | AG36: 62122.5 | AH36: 47692.5
A37: 48 | B37: 187506.25 | C37: 138012.5 | D37: 102825 | E37: 79068.75 | F37: 60706.25 | H37: 48 | I37: =I138*0.5 -> 165193.75 | J37: 121587.5 | K37: 90587.5 | L37: 69662.5 | M37: 53481.25 | O37: 48 | P37: 146862.5 | Q37: =Q138*0.6 -> 129712.5 | R37: 96645 | S37: 74317.5 | T37: 57052.5 | V37: 48 | W37: =W138*0.6 -> 163462.5 | X37: 120315 | Y37: 89640 | Z37: 68932.5 | AA37: 52920 | AC37: 48 | AD37: =AD138*0.6 -> 150690 | AE37: 110910 | AF37: 82635 | AG37: 63540 | AH37: 48780
A38: 49 | B38: 191800 | C38: 141168.75 | D38: 105175 | E38: 80875 | F38: 62093.75 | H38: 49 | I38: 168975 | J38: 124375 | K38: 92662.5 | L38: 71256.25 | M38: 54706.25 | O38: 49 | P38: 150225 | Q38: 132682.5 | R38: 98850 | S38: 76012.5 | T38: 58357.5 | V38: 49 | W38: 167205 | X38: 123067.5 | Y38: 91695 | Z38: 70507.5 | AA38: 54135 | AC38: 49 | AD38: 154140 | AE38: 113445 | AF38: 84525 | AG38: 64995 | AH38: 49897.5
A39: 50 | B39: 196187.5 | C39: 144400 | D39: 107581.25 | E39: 82725 | F39: 63512.5 | H39: 50 | I39: 172843.75 | J39: 127218.75 | K39: 94781.25 | L39: 72887.5 | M39: 55956.25 | O39: 50 | P39: 153662.5 | Q39: 135720 | R39: 101115 | S39: 77752.5 | T39: 59692.5 | V39: 50 | W39: 171030 | X39: 125887.5 | Y39: 93787.5 | Z39: 72120 | AA39: 55372.5 | AC39: 50 | AD39: 157665 | AE39: 116047.5 | AF39: 86460 | AG39: 66480 | AH39: 51045
A40: 51 | B40: 200675 | C40: 147706.25 | D40: 110043.75 | E40: 84618.75 | F40: 64968.75 | H40: 51 | I40: 176800 | J40: 130131.25 | K40: 96950 | L40: 74550 | M40: 57237.5 | O40: 51 | P40: 157175 | Q40: 138825 | R40: 103432.5 | S40: 79530 | T40: 61057.5 | V40: 51 | W40: 174945 | X40: 128767.5 | Y40: 95932.5 | Z40: 73770 | AA40: 56640 | AC40: 51 | AD40: 161272.5 | AE40: 118702.5 | AF40: 88440 | AG40: 68002.5 | AH40: 52207.5
A41: 52 | B41: 205268.75 | C41: 151081.25 | D41: 112562.5 | E41: 86556.25 | F41: 66456.25 | H41: 52 | I41: 180843.75 | J41: 133106.25 | K41: 99168.75 | L41: 76256.25 | M41: 58543.75 | O41: 52 | P41: 160775 | Q41: 141997.5 | R41: 105795 | S41: 81352.5 | T41: 62460 | V41: 52 | W41: 178950 | X41: 131715 | Y41: 98130 | Z41: 75457.5 | AA41: 57930 | AC41: 52 | AD41: 164962.5 | AE41: 121417.5 | AF41: 90457.5 | AG41: 69562.5 | AH41: 53407.5
A42: 53 | B42: 209962.5 | C42: 154537.5 | D42: 115137.5 | E42: 88537.5 | F42: 67975 | H42: 53 | I42: 184981.25 | J42: 136150 | K42: 101437.5 | L42: 78006.25 | M42: 59887.5 | O42: 53 | P42: 164450 | Q42: 145252.5 | R42: 108217.5 | S42: 83212.5 | T42: 63885 | V42: 53 | W42: 183045 | X42: 134722.5 | Y42: 100380 | Z42: 77190 | AA42: 59257.5 | AC42: 53 | AD42: 168735 | AE42: 124192.5 | AF42: 92527.5 | AG42: 71152.5 | AH42: 54630
A43: 54 | B43: 220875 | C43: 162575 | D43: 121125 | E43: 93137.5 | F43: 71506.25 | H43: 54 | I43: 194600 | J43: 143231.25 | K43: 106712.5 | L43: 82056.25 | M43: 63000 | O43: 54 | P43: 173000 | Q43: 152797.5 | R43: 113842.5 | S43: 87540 | T43: 67207.5 | V43: 54 | W43: 192555 | X43: 141727.5 | Y43: 105592.5 | Z43: 81195 | AA43: 62340 | AC43: 54 | AD43: 177510 | AE43: 130650 | AF43: 97342.5 | AG43: 74850 | AH43: 57465
A44: 55 | B44: 234025 | C44: 172250 | D44: 128331.25 | E44: 98681.25 | F44: 75762.5 | H44: 55 | I44: 206181.25 | J44: 151756.25 | K44: 113062.5 | L44: 86943.75 | M44: 66750 | O44: 55 | P44: 183293.75 | Q44: 161895 | R44: 120615 | S44: 92752.5 | T44: 71205 | V44: 55 | W44: 204015 | X44: 150165 | Y44: 111877.5 | Z44: 86032.5 | AA44: 66045 | AC44: 55 | AD44: 188070 | AE44: 138427.5 | AF44: 103132.5 | AG44: 79305 | AH44: 60885
A45: 56 | B45: 241700 | C45: 177900 | D45: 132543.75 | E45: 101918.75 | F45: 78250 | H45: 56 | I45: 212943.75 | J45: 156731.25 | K45: 116775 | L45: 89793.75 | M45: 68937.5 | O45: 56 | P45: 189306.25 | Q45: 167205 | R45: 124575 | S45: 95790 | T45: 73545 | V45: 56 | W45: 210712.5 | X45: 155092.5 | Y45: 115545 | Z45: 88852.5 | AA45: 68212.5 | AC45: 56 | AD45: 194242.5 | AE45: 142965 | AF45: 106515 | AG45: 81907.5 | AH45: 62880
A46: 57 | B46: 253950 | C46: 186918.75 | D46: 139262.5 | E46: 107087.5 | F46: 82212.5 | H46: 57 | I46: 223737.5 | J46: 164675 | K46: 122693.75 | L46: 94343.75 | M46: 72431.25 | O46: 57 | P46: 198906.25 | Q46: 175680 | R46: 130890 | S46: 100650 | T46: 77272.5 | V46: 57 | W46: 221392.5 | X46: 162952.5 | Y46: 121402.5 | Z46: 93352.5 | AA46: 71670 | AC46: 57 | AD46: 204090 | AE46: 150210 | AF46: 111915 | AG46: 86055 | AH46: 66067.5
A47: 58 | B47: 269068.75 | C47: 198043.75 | D47: 147550 | E47: 113462.5 | F47: 87106.25 | H47: 58 | I47: 237050 | J47: 174475 | K47: 129993.75 | L47: 99962.5 | M47: 76743.75 | O47: 58 | P47: 210743.75 | Q47: 186135 | R47: 138675 | S47: 106635 | T47: 81870 | V47: 58 | W47: 234570 | X47: 172650 | Y47: 128632.5 | Z47: 98910 | AA47: 75937.5 | AC47: 58 | AD47: 216232.5 | AE47: 159150 | AF47: 118575 | AG47: 91177.5 | AH47: 70005
A48: 59 | B48: 285081.25 | C48: 209825 | D48: 156331.25 | E48: 120212.5 | F48: 92293.75 | H48: 59 | I48: 251162.5 | J48: 184862.5 | K48: 137731.25 | L48: 105912.5 | M48: 81312.5 | O48: 59 | P48: 223281.25 | Q48: 197212.5 | R48: 146932.5 | S48: 112987.5 | T48: 86745 | V48: 59 | W48: 248527.5 | X48: 182925 | Y48: 136290 | Z48: 104797.5 | AA48: 80460 | AC48: 59 | AD48: 229102.5 | AE48: 168622.5 | AF48: 125632.5 | AG48: 96607.5 | AH48: 74167.5
A49: 60 | B49: 302050 | C49: 222318.75 | D49: 165637.5 | E49: 127368.75 | F49: 97787.5 | H49: 60 | I49: 266106.25 | J49: 195862.5 | K49: 145925 | L49: 112212.5 | M49: 86150 | O49: 60 | P49: 236575 | Q49: 208950 | R49: 155677.5 | S49: 119707.5 | T49: 91905 | V49: 60 | W49: 263317.5 | X49: 193807.5 | Y49: 144397.5 | Z49: 111037.5 | AA49: 85245 | AC49: 60 | AD49: 242737.5 | AE49: 178665 | AF49: 133110 | AG49: 102360 | AH49: 78585
A50: 61 | B50: 320025 | C50: 235550 | D50: 175493.75 | E50: 134950 | F50: 103606.25 | H50: 61 | I50: 281950 | J50: 207518.75 | K50: 154612.5 | L50: 118893.75 | M50: 91275 | O50: 61 | P50: 250656.25 | Q50: 221385 | R50: 164940 | S50: 126832.5 | T50: 97372.5 | V50: 61 | W50: 278992.5 | X50: 205342.5 | Y50: 152992.5 | Z50: 117645 | AA50: 90322.5 | AC50: 61 | AD50: 257182.5 | AE50: 189292.5 | AF50: 141030 | AG50: 108450 | AH50: 83257.5
A51: 62 | B51: 339068.75 | C51: 249568.75 | D51: 185937.5 | E51: 142981.25 | F51: 109768.75 | H51: 62 | I51: 298725 | J51: 219875 | K51: 163812.5 | L51: 125968.75 | M51: 96712.5 | O51: 62 | P51: 265568.75 | Q51: 234562.5 | R51: 174757.5 | S51: 134385 | T51: 103170 | V51: 62 | W51: 295597.5 | X51: 217567.5 | Y51: 162097.5 | Z51: 124650 | AA51: 95700 | AC51: 62 | AD51: 272490 | AE51: 200557.5 | AF51: 149430 | AG51: 114900 | AH51: 88215
A52: 63 | B52: =B153*0.5 -> 359250 | C52: 264418.75 | D52: 197006.25 | E52: 151487.5 | F52: 116306.25 | H52: 63 | I52: 316506.25 | J52: 232956.25 | K52: 173562.5 | L52: 133462.5 | M52: 102468.75 | O52: 63 | P52: 281375 | Q52: 248520 | R52: 185160 | S52: 142380 | T52: 109312.5 | V52: 63 | W52: 313192.5 | X52: 230520 | Y52: 171742.5 | Z52: 132067.5 | AA52: 101392.5 | AC52: 63 | AD52: 288705 | AE52: 212497.5 | AF52: 158317.5 | AG52: 121740 | AH52: 93465
A53: 64 | B53: 380631.25 | C53: 280156.25 | D53: 208731.25 | E53: 160506.25 | F53: 123225 | H53: 64 | I53: =I154*0.5 -> 335343.75 | J53: 246825 | K53: 183893.75 | L53: 141406.25 | M53: 108562.5 | O53: 64 | P53: 298125 | Q53: =Q154*0.6 -> 263310 | R53: 196177.5 | S53: 150855 | T53: 115815 | V53: 64 | W53: =W154*0.6 -> 331830 | X53: 244237.5 | Y53: 181965 | Z53: 139927.5 | AA53: 107430 | AC53: 64 | AD53: =AD154*0.6 -> 305895 | AE53: 225142.5 | AF53: 167745 | AG53: 128985 | AH53: 99030
A54: 65 | B54: 403287.5 | C54: 296831.25 | D54: 221150 | E54: 170056.25 | F54: 130562.5 | H54: 65 | I54: 355300 | J54: 261512.5 | K54: 194837.5 | L54: 149825 | M54: 115025 | O54: 65 | P54: 315868.75 | Q54: 278985 | R54: 207855 | S54: 159832.5 | T54: 122707.5 | V54: 65 | W54: 351577.5 | X54: 258772.5 | Y54: 192795 | Z54: 148252.5 | AA54: 113820 | AC54: 65 | AD54: 324097.5 | AE54: 238545 | AF54: 177727.5 | AG54: 136665 | AH54: 104925
A55: 66 | B55: 427287.5 | C55: 314500 | D55: 234312.5 | E55: 180181.25 | F55: 138331.25 | H55: 66 | I55: 376450 | J55: 277075 | K55: 206437.5 | L55: 158743.75 | M55: 121868.75 | O55: 66 | P55: 334668.75 | Q55: 295590 | R55: 220230 | S55: 169342.5 | T55: 130012.5 | V55: 66 | W55: 372502.5 | X55: 274170 | Y55: 204270 | Z55: 157080 | AA55: 120592.5 | AC55: 66 | AD55: 343387.5 | AE55: 252742.5 | AF55: 188302.5 | AG55: 144795 | AH55: 111165
A56: 67 | B56: 456525 | C56: 336012.5 | D56: 250343.75 | E56: 192506.25 | F56: 147793.75 | H56: 67 | I56: 402206.25 | J56: 296037.5 | K56: 220562.5 | L56: 169600 | M56: 130212.5 | O56: 67 | P56: 357562.5 | Q56: 315810 | R56: 235297.5 | S56: 180930 | T56: 138907.5 | V56: 67 | W56: 397987.5 | X56: 292935 | Y56: 218250 | Z56: 167820 | AA56: 128842.5 | AC56: 67 | AD56: 366877.5 | AE56: 270037.5 | AF56: 201187.5 | AG56: 154702.5 | AH56: 118777.5
A57: 68 | B57: 487793.75 | C57: 359031.25 | D57: 267493.75 | E57: 205693.75 | F57: 157918.75 | H57: 68 | I57: 429756.25 | J57: 316312.5 | K57: 235668.75 | L57: 181218.75 | M57: 139131.25 | O57: 68 | P57: 382056.25 | Q57: 337447.5 | R57: 251415 | S57: 193327.5 | T57: 148425 | V57: 68 | W57: 425250 | X57: 312997.5 | Y57: 233197.5 | Z57: 179317.5 | AA57: 137670 | AC57: 68 | AD57: 392010 | AE57: 288532.5 | AF57: 214965 | AG57: 165300 | AH57: 126907.5
A58: 69 | B58: 521243.75 | C58: 383650 | D58: 285837.5 | E58: 219800 | F58: 168750 | H58: 69 | I58: 459225 | J58: 338000 | K58: 251825 | L58: 193643.75 | M58: 148668.75 | O58: 69 | P58: 408256.25 | Q58: 360585 | R58: 268650 | S58: 206580 | T58: 158602.5 | V58: 69 | W58: 454410 | X58: 334462.5 | Y58: 249187.5 | Z58: 191617.5 | AA58: 147112.5 | AC58: 69 | AD58: 418890 | AE58: 308317.5 | AF58: 229710 | AG58: 176640 | AH58: 135615
A59: 70 | B59: 557025 | C59: 409987.5 | D59: 305456.25 | E59: 234887.5 | F59: 180331.25 | H59: 70 | I59: 490750 | J59: 361206.25 | K59: 269112.5 | L59: 206937.5 | M59: 158875 | O59: 70 | P59: 436281.25 | Q59: 385335 | R59: 287092.5 | S59: 220762.5 | T59: 169492.5 | V59: 70 | W59: 485602.5 | X59: 357420 | Y59: 266295 | Z59: 204772.5 | AA59: 157207.5 | AC59: 70 | AD59: 447645 | AE59: 329482.5 | AF59: 245482.5 | AG59: 188767.5 | AH59: 144922.5
A60: 71 | B60: 590181.25 | C60: 434387.5 | D60: 323637.5 | E60: 248868.75 | F60: 191062.5 | H60: 71 | I60: 519956.25 | J60: 382706.25 | K60: 285131.25 | L60: 219256.25 | M60: 168331.25 | O60: 71 | P60: 462250 | Q60: 408270 | R60: 304185 | S60: 233902.5 | T60: 179580 | V60: 71 | W60: 514507.5 | X60: 378690 | Y60: 282142.5 | Z60: 216960 | AA60: 166567.5 | AC60: 71 | AD60: 474292.5 | AE60: 349095 | AF60: 260085 | AG60: 199995 | AH60: 153547.5
A61: 72 | B61: 625306.25 | C61: 460243.75 | D61: 342900 | E61: 263675 | F61: 202437.5 | H61: 72 | I61: 550900 | J61: 405481.25 | K61: 302100 | L61: 232306.25 | M61: 178350 | O61: 72 | P61: 489756.25 | Q61: 432570 | R61: 322282.5 | S61: 247822.5 | T61: 190267.5 | V61: 72 | W61: 545130 | X61: 401227.5 | Y61: 298935 | Z61: 229867.5 | AA61: 176482.5 | AC61: 72 | AD61: 502515 | AE61: 369870 | AF61: 275565 | AG61: 211905 | AH61: 162682.5
A62: 73 | B62: 662518.75 | C62: 487631.25 | D62: 363306.25 | E62: 279368.75 | F62: 214481.25 | H62: 73 | I62: 583687.5 | J62: 429612.5 | K62: 320081.25 | L62: 246131.25 | M62: 188962.5 | O62: 73 | P62: 518906.25 | Q62: 458317.5 | R62: 341467.5 | S62: 262575 | T62: 201592.5 | V62: 73 | W62: 577575 | X62: 425107.5 | Y62: 316725 | Z62: 243547.5 | AA62: 186982.5 | AC62: 73 | AD62: 532425 | AE62: 391882.5 | AF62: 291967.5 | AG62: 224512.5 | AH62: 172365
A63: 74 | B63: 701950 | C63: 516656.25 | D63: 384931.25 | E63: 296000 | F63: 227250 | H63: 74 | I63: 618431.25 | J63: 455181.25 | K63: 339131.25 | L63: 260781.25 | M63: 200212.5 | O63: 74 | P63: 549787.5 | Q63: 485595 | R63: 361792.5 | S63: 278205 | T63: 213585 | V63: 74 | W63: 611947.5 | X63: 450412.5 | Y63: 335580 | Z63: 258045 | AA63: 198112.5 | AC63: 74 | AD63: 564112.5 | AE63: 415207.5 | AF63: 309345 | AG63: 237877.5 | AH63: 182625
A64: 75 | B64: 758262.5 | C64: 558106.25 | D64: 415812.5 | E64: 319743.75 | F64: 245481.25 | H64: 75 | I64: 668043.75 | J64: 491700 | K64: 366337.5 | L64: 281700 | M64: 216275 | O64: 75 | P64: 593900 | Q64: 524550 | R64: 390817.5 | S64: 300525 | T64: 230722.5 | V64: 75 | W64: 661042.5 | X64: 486547.5 | Y64: 362497.5 | Z64: 278745 | AA64: 214005 | AC64: 75 | AD64: 609375 | AE64: 448515 | AF64: 334162.5 | AG64: 256957.5 | AH64: 197280
A65: 76 | B65: 794506.25 | C65: 584781.25 | D65: 435687.5 | E65: 335025 | F65: 257212.5 | H65: 76 | I65: 699975 | J65: 515200 | K65: 383850 | L65: 295162.5 | M65: 226612.5 | O65: 76 | P65: 622281.25 | Q65: 549622.5 | R65: 409492.5 | S65: 314887.5 | T65: 241747.5 | V65: 76 | W65: 692640 | X65: 509805 | Y65: 379822.5 | Z65: 292072.5 | AA65: 224235 | AC65: 76 | AD65: 638497.5 | AE65: 469950 | AF65: 350137.5 | AG65: 269242.5 | AH65: 206707.5
A66: 77 | B66: 832481.25 | C66: 612731.25 | D66: 456512.5 | E66: 351037.5 | F66: 269506.25 | H66: 77 | I66: 733431.25 | J66: 539825 | K66: 402193.75 | L66: 309268.75 | M66: 237437.5 | O66: 77 | P66: 652025 | Q66: 575895 | R66: 429067.5 | S66: 329932.5 | T66: 253305 | V66: 77 | W66: 725745 | X66: 534165 | Y66: 397980 | Z66: 306030 | AA66: 234952.5 | AC66: 77 | AD66: 669015 | AE66: 492412.5 | AF66: 366870 | AG66: 282105 | AH66: 216585
A67: 78 | B67: 872268.75 | C67: 642012.5 | D67: 478331.25 | E67: 367818.75 | F67: 282387.5 | H67: 78 | I67: 768481.25 | J67: 565625 | K67: 421418.75 | L67: 324050 | M67: 248787.5 | O67: 78 | P67: 683187.5 | Q67: 603412.5 | R67: 449572.5 | S67: 345705 | T67: 265410 | V67: 78 | W67: 760425 | X67: 559695 | Y67: 417000 | Z67: 320655 | AA67: 246180 | AC67: 78 | AD67: 700987.5 | AE67: 515947.5 | AF67: 384405 | AG67: 295590 | AH67: 226935
A68: 79 | B68: =B169*0.5 -> 913956.25 | C68: 672700 | D68: 501193.75 | E68: 385393.75 | F68: 295881.25 | H68: 79 | I68: 805212.5 | J68: 592662.5 | K68: 441556.25 | L68: 339543.75 | M68: 260681.25 | O68: 79 | P68: 715837.5 | Q68: 632257.5 | R68: 471060 | S68: 362227.5 | T68: 278092.5 | V68: 79 | W68: 796770 | X68: 586447.5 | Y68: 436927.5 | Z68: 335985 | AA68: 257947.5 | AC68: 79 | AD68: 734490 | AE68: 540607.5 | AF68: 402780 | AG68: 309720 | AH68: 237787.5
A69: 80 | B69: 957637.5 | C69: 704850 | D69: 525143.75 | E69: 403818.75 | F69: 310025 | H69: 80 | I69: =I170*0.5 -> 843693.75 | J69: 620987.5 | K69: 462662.5 | L69: 355768.75 | M69: 273137.5 | O69: 80 | P69: =P170*0.5 -> 750056.25 | Q69: =Q170*0.6 -> 662475 | R69: 493575 | S69: 379537.5 | T69: 291390 | V69: 80 | W69: =W170*0.6 -> 834855 | X69: 614475 | Y69: 457815 | Z69: 352042.5 | AA69: 270277.5 | AC69: 80 | AD69: =AD170*0.6 -> 769597.5 | AE69: 566445 | AF69: 422025 | AG69: 324525 | AH69: 249150
A70: 81 | B70: 1003406.25 | C70: 738537.5 | D70: 550243.75 | E70: 423118.75 | F70: 324843.75 | H70: 81 | I70: 884018.75 | J70: 650662.5 | K70: 484775 | L70: 372775 | M70: 286193.75 | O70: 81 | P70: 785900 | Q70: 694140 | R70: 517162.5 | S70: 397680 | T70: 305310 | V70: 81 | W70: 874755 | X70: 643845 | Y70: 479692.5 | Z70: 368865 | AA70: 283192.5 | AC70: 81 | AD70: 806377.5 | AE70: 593520 | AF70: 442200 | AG70: 340035 | AH70: 261060
A71: 82 | B71: 1051368.75 | C71: 773837.5 | D71: 576543.75 | E71: 443337.5 | F71: 340368.75 | H71: 82 | I71: 926275 | J71: 681762.5 | K71: 507943.75 | L71: 390587.5 | M71: 299868.75 | O71: 82 | P71: 823462.5 | Q71: 727312.5 | R71: 541882.5 | S71: 416685 | T71: 319905 | V71: 82 | W71: 916560 | X71: 674617.5 | Y71: 502620 | Z71: 386497.5 | AA71: 296730 | AC71: 82 | AD71: 844920 | AE71: 621885 | AF71: 463335 | AG71: 356287.5 | AH71: 273532.5
A72: 83 | B72: 1101618.75 | C72: 810825 | D72: 604100 | E72: 464531.25 | F72: 356637.5 | H72: 83 | I72: 970543.75 | J72: 714350 | K72: 532218.75 | L72: 409256.25 | M72: 314206.25 | O72: 83 | P72: 862818.75 | Q72: 762075 | R72: 567780 | S72: 436597.5 | T72: 335197.5 | V72: 83 | W72: 960367.5 | X72: 706860 | Y72: 526642.5 | Z72: 404970 | AA72: 310912.5 | AC72: 83 | AD72: 885300 | AE72: 651607.5 | AF72: 485475 | AG72: 373312.5 | AH72: 286605
A73: 84 | B73: 1154268.75 | C73: 849575 | D73: 632968.75 | E73: 486731.25 | F73: 373681.25 | H73: 84 | I73: 1016931.25 | J73: 748487.5 | K73: 557656.25 | L73: 428818.75 | M73: 329218.75 | O73: 84 | P73: 904062.5 | Q73: 798495 | R73: 594915 | S73: 457470 | T73: 351217.5 | V73: 84 | W73: 1006267.5 | X73: 740647.5 | Y73: 551812.5 | Z73: 424320 | AA73: 325770 | AC73: 84 | AD73: 927615 | AE73: 682755 | AF73: 508680 | AG73: 391155 | AH73: 300307.5
A95: ANNUAL RATES - START FROM HERE
G99: =C132/4 -> 60246.875 | H99: =G99/12.5 -> 4819.75
A102: Zona 1: Ciudad de México (D.F. y área metropolitana) y franja fronteriza norte | H102: Zona 2: Nuevo León, Sonora, Coahuila, Chihuahua, Tamaulipas, Baja California Norte y Baja California Sur | O102: Zona 3: Jalisco, Puebla, Morelos, Estado de México (excepto Área Metropolitana), Guerrero (Acapulco y Zihuatanejo), Hidalgo y Querétaro | V102: Zona 4: Sinaloa, Guanajuato, San Luis Potosí, Durango, Aguascalientes, Nayarit, Michoacán, Colima, Quintana Roo, Zacatecas | AC102: Zona 5: Guerrero (excepto Acapulco y Zihuatanejo), Veracruz, Chiapas, Tabasco, Campeche, Oaxaca, Tlaxcala, Yucatán
A103: Primas de tarifa expresadas en pesos mexicanos | H103: Primas de tarifa expresadas en pesos mexicanos | O103: Primas de tarifa expresadas en pesos mexicanos | V103: Primas de tarifa expresadas en pesos mexicanos | AC103: Primas de tarifa expresadas en pesos mexicanos
A104: Edad | B104: CW21 | C104: CW31 | D104: CW41 | E104: CW51 | F104: CW61 | H104: Edad | I104: CW22 | J104: CW32 | K104: CW42 | L104: CW52 | M104: CW62 | O104: Edad | P104: CW23 | Q104: CW33 | R104: CW43 | S104: CW53 | T104: CW63 | V104: Edad | W104: CW24 | X104: CW34 | Y104: CW44 | Z104: CW54 | AA104: CW64 | AC104: Edad | AD104: CW25 | AE104: CW35 | AF104: CW45 | AG104: CW55 | AH104: CW65
A105: 1 menor | B105: 72050 | C105: 53037.5 | D105: 39512.5 | E105: 30387.5 | F105: 23325 | H105: 1 menor | I105: 63487.5 | J105: 46725 | K105: 34812.5 | L105: 26775 | M105: 20550 | O105: 1 menor | P105: 56437.5 | Q105: 41537.5 | R105: 30950 | S105: 23800 | T105: 18275 | V105: 1 menor | W105: 52350 | X105: 38525 | Y105: 28700 | Z105: 22075 | AA105: 16950 | AC105: 1 menor | AD105: 48250 | AE105: 35512.5 | AF105: 26462.5 | AG105: 20350 | AH105: 15625
A106: 2 menor | B106: 113525 | C106: 83562.5 | D106: 62262.5 | E106: 47875 | F106: 36750 | H106: 2 menores | I106: 100025 | J106: 73625 | K106: 54850 | L106: 42175 | M106: 32375 | O106: 2 menores | P106: 88925 | Q106: 65450 | R106: 48762.5 | S106: 37500 | T106: 28787.5 | V106: 2 menores | W106: 82475 | X106: 60700 | Y106: 45225 | Z106: 34775 | AA106: 26700 | AC106: 2 menores | AD106: 76037.5 | AE106: 55962.5 | AF106: 41700 | AG106: 32062.5 | AH106: 24612.5
A107: 3 menor | B107: 165650 | C107: 121925 | D107: 90837.5 | E107: 69850 | F107: 53625 | H107: 3 ó más menores | I107: 145937.5 | J107: 107412.5 | K107: 80025 | L107: 61537.5 | M107: 47250 | O107: 3 ó más menores | P107: 129737.5 | Q107: 95487.5 | R107: 71150 | S107: 54712.5 | T107: 42000 | V107: 3 ó más menores | W107: 120337.5 | X107: 88575 | Y107: 65987.5 | Z107: 50750 | AA107: 38962.5 | AC107: 3 ó más menores | AD107: 110937.5 | AE107: 81650 | AF107: 60837.5 | AG107: 46775 | AH107: 35912.5
A108: 18 | B108: 166212.5 | C108: 122337.5 | D108: 91150 | E108: 70087.5 | F108: 53812.5 | H108: 18 | I108: 146437.5 | J108: 107775 | K108: 80300 | L108: 61750 | M108: 47400 | O108: 18 | P108: 130175 | Q108: 95812.5 | R108: 71387.5 | S108: 54900 | T108: 42150 | V108: 18 | W108: 120750 | X108: 88875 | Y108: 66212.5 | Z108: 50912.5 | AA108: 39087.5 | AC108: 18 | AD108: 111312.5 | AE108: 81925 | AF108: 61037.5 | AG108: 46937.5 | AH108: 36037.5
A109: 19 | B109: 171462.5 | C109: 126200 | D109: 94025 | E109: 72300 | F109: 55512.5 | H109: 19 | I109: 151062.5 | J109: 111187.5 | K109: 82837.5 | L109: 63700 | M109: 48900 | O109: 19 | P109: 134287.5 | Q109: 98837.5 | R109: 73637.5 | S109: 56625 | T109: 43475 | V109: 19 | W109: 124562.5 | X109: 91675 | Y109: 68300 | Z109: 52525 | AA109: 40325 | AC109: 19 | AD109: 114825 | AE109: 84512.5 | AF109: 62962.5 | AG109: 48425 | AH109: 37175
A110: 20 | B110: 176875 | C110: 130187.5 | D110: 96987.5 | E110: 74587.5 | F110: 57262.5 | H110: 20 | I110: 155825 | J110: 114687.5 | K110: 85450 | L110: 65712.5 | M110: 50450 | O110: 20 | P110: 138525 | Q110: 101962.5 | R110: 75962.5 | S110: 58412.5 | T110: 44850 | V110: 20 | W110: 128487.5 | X110: 94575 | Y110: 70462.5 | Z110: 54187.5 | AA110: 41600 | AC110: 20 | AD110: 118450 | AE110: 87187.5 | AF110: 64950 | AG110: 49950 | AH110: 38350
A111: 21 | B111: 182450 | C111: 134287.5 | D111: 100050 | E111: 76937.5 | F111: 59062.5 | H111: 21 | I111: 160750 | J111: 118312.5 | K111: 88150 | L111: 67787.5 | M111: 52037.5 | O111: 21 | P111: 142900 | Q111: 105187.5 | R111: 78362.5 | S111: 60262.5 | T111: 46262.5 | V111: 21 | W111: 132550 | X111: 97562.5 | Y111: 72687.5 | Z111: 55900 | AA111: 42912.5 | AC111: 21 | AD111: 122187.5 | AE111: 89937.5 | AF111: 67000 | AG111: 51525 | AH111: 39562.5
A112: 22 | B112: 188212.5 | C112: 138525 | D112: 103212.5 | E112: 79362.5 | F112: 60937.5 | H112: 22 | I112: 165825 | J112: 122050 | K112: 90925 | L112: 69925 | M112: 53687.5 | O112: 22 | P112: 147412.5 | Q112: 108500 | R112: 80837.5 | S112: 62162.5 | T112: 47725 | V112: 22 | W112: 136737.5 | X112: 100637.5 | Y112: 74987.5 | Z112: 57662.5 | AA112: 44262.5 | AC112: 22 | AD112: 126050 | AE112: 92775 | AF112: 69125 | AG112: 53150 | AH112: 40812.5
A113: 23 | B113: 194150 | C113: 142900 | D113: 106475 | E113: 81875 | F113: 62850 | H113: 23 | I113: 171050 | J113: 125900 | K113: 93800 | L113: 72125 | M113: 55375 | O113: 23 | P113: 152075 | Q113: 111925 | R113: 83387.5 | S113: 64125 | T113: 49225 | V113: 23 | W113: 141050 | X113: 103812.5 | Y113: 77350 | Z113: 59475 | AA113: 45662.5 | AC113: 23 | AD113: 130025 | AE113: 95700 | AF113: 71300 | AG113: 54825 | AH113: 42100
A114: 24 | B114: 200287.5 | C114: 147412.5 | D114: 109837.5 | E114: 84450 | F114: 64837.5 | H114: 24 | I114: 176450 | J114: 129875 | K114: 96762.5 | L114: 74412.5 | M114: 57125 | O114: 24 | P114: 156875 | Q114: 115462.5 | R114: 86025 | S114: 66150 | T114: 50787.5 | V114: 24 | W114: 145500 | X114: 107100 | Y114: 79787.5 | Z114: 61350 | AA114: 47100 | AC114: 24 | AD114: 134125 | AE114: 98725 | AF114: 73550 | AG114: 56562.5 | AH114: 43425
A115: 25 | B115: 206612.5 | C115: 152075 | D115: 113300 | E115: 87125 | F115: 66887.5 | H115: 25 | I115: 182025 | J115: 133975 | K115: 99812.5 | L115: 76750 | M115: 58925 | O115: 25 | P115: 161825 | Q115: 119112.5 | R115: 88737.5 | S115: 68237.5 | T115: 52387.5 | V115: 25 | W115: 150100 | X115: 110475 | Y115: 82312.5 | Z115: 63287.5 | AA115: 48587.5 | AC115: 25 | AD115: 138362.5 | AE115: 101837.5 | AF115: 75875 | AG115: 58350 | AH115: 44800
A116: 26 | B116: 213137.5 | C116: 156875 | D116: 116875 | E116: 89875 | F116: 69000 | H116: 26 | I116: 187775 | J116: 138212.5 | K116: 102975 | L116: 79175 | M116: 60787.5 | O116: 26 | P116: 166937.5 | Q116: 122862.5 | R116: 91537.5 | S116: 70387.5 | T116: 54037.5 | V116: 26 | W116: 154837.5 | X116: 113962.5 | Y116: 84912.5 | Z116: 65287.5 | AA116: 50125 | AC116: 26 | AD116: 142737.5 | AE116: 105050 | AF116: 78275 | AG116: 60187.5 | AH116: 46212.5
A117: 27 | B117: 219862.5 | C117: 161825 | D117: 120562.5 | E117: 92712.5 | F117: 71175 | H117: 27 | I117: 193700 | J117: 142575 | K117: 106225 | L117: 81675 | M117: 62712.5 | O117: 27 | P117: 172200 | Q117: 126750 | R117: 94425 | S117: 72612.5 | T117: 55750 | V117: 27 | W117: 159725 | X117: 117562.5 | Y117: 87587.5 | Z117: 67350 | AA117: 51712.5 | AC117: 27 | AD117: 147237.5 | AE117: 108375 | AF117: 80737.5 | AG117: 62087.5 | AH117: 47662.5
A118: 28 | B118: 226800 | C118: 166937.5 | D118: 124375 | E118: 95637.5 | F118: 73425 | H118: 28 | I118: 199812.5 | J118: 147075 | K118: 109575 | L118: 84262.5 | M118: 64687.5 | O118: 28 | P118: 177637.5 | Q118: 130750 | R118: 97412.5 | S118: 74900 | T118: 57512.5 | V118: 28 | W118: 164762.5 | X118: 121275 | Y118: 90350 | Z118: 69475 | AA118: 53337.5 | AC118: 28 | AD118: 151887.5 | AE118: 111800 | AF118: 83287.5 | AG118: 64050 | AH118: 49175
A119: 29 | B119: 238000 | C119: 175175 | D119: 130512.5 | E119: 100362.5 | F119: 77050 | H119: 29 | I119: 209675 | J119: 154325 | K119: 114987.5 | L119: 88412.5 | M119: 67887.5 | O119: 29 | P119: 186400 | Q119: 137200 | R119: 102225 | S119: 78600 | T119: 60350 | V119: 29 | W119: 172900 | X119: 127262.5 | Y119: 94812.5 | Z119: 72912.5 | AA119: 55975 | AC119: 29 | AD119: 159387.5 | AE119: 117312.5 | AF119: 87400 | AG119: 67212.5 | AH119: 51600
A120: 30 | B120: 245512.5 | C120: 180700 | D120: 134625 | E120: 103525 | F120: 79487.5 | H120: 30 | I120: 216300 | J120: 159200 | K120: 118612.5 | L120: 91212.5 | M120: 70025 | O120: 30 | P120: 192287.5 | Q120: 141537.5 | R120: 105450 | S120: 81087.5 | T120: 62250 | V120: 30 | W120: 178362.5 | X120: 131275 | Y120: 97812.5 | Z120: 75212.5 | AA120: 57737.5 | AC120: 30 | AD120: 164412.5 | AE120: 121012.5 | AF120: 90162.5 | AG120: 69325 | AH120: 53225
A121: 31 | B121: 253262.5 | C121: 186400 | D121: 138875 | E121: 106800 | F121: 81987.5 | H121: 31 | I121: 223125 | J121: 164225 | K121: 122362.5 | L121: 94087.5 | M121: 72237.5 | O121: 31 | P121: 198362.5 | Q121: 146000 | R121: 108775 | S121: 83650 | T121: 64212.5 | V121: 31 | W121: 183987.5 | X121: 135425 | Y121: 100900 | Z121: 77587.5 | AA121: 59562.5 | AC121: 31 | AD121: 169612.5 | AE121: 124837.5 | AF121: 93012.5 | AG121: 71525 | AH121: 54912.5
A122: 32 | B122: 261250 | C122: 192287.5 | D122: 143262.5 | E122: 110162.5 | F122: 84575 | H122: 32 | I122: 230175 | J122: 169412.5 | K122: 126225 | L122: 97062.5 | M122: 74512.5 | O122: 32 | P122: 204625 | Q122: 150612.5 | R122: 112212.5 | S122: 86287.5 | T122: 66250 | V122: 32 | W122: 189800 | X122: 139700 | Y122: 104075 | Z122: 80037.5 | AA122: 61450 | AC122: 32 | AD122: 174962.5 | AE122: 128775 | AF122: 95950 | AG122: 73775 | AH122: 56637.5
A123: 33 | B123: 269500 | C123: 198362.5 | D123: 147787.5 | E123: 113650 | F123: 87250 | H123: 33 | I123: 237437.5 | J123: 174762.5 | K123: 130200 | L123: 100125 | M123: 76862.5 | O123: 33 | P123: 211087.5 | Q123: 155362.5 | R123: 115750 | S123: 89012.5 | T123: 68337.5 | V123: 33 | W123: 195787.5 | X123: 144112.5 | Y123: 107362.5 | Z123: 82562.5 | AA123: 63387.5 | AC123: 33 | AD123: 180487.5 | AE123: 132837.5 | AF123: 98975 | AG123: 76112.5 | AH123: 58425
A124: 34 | B124: 278012.5 | C124: 204625 | D124: 152450 | E124: 117237.5 | F124: 90000 | H124: 34 | I124: 244937.5 | J124: 180275 | K124: 134312.5 | L124: 103287.5 | M124: 79300 | O124: 34 | P124: 217750 | Q124: 160275 | R124: 119412.5 | S124: 91825 | T124: 70487.5 | V124: 34 | W124: 201975 | X124: 148662.5 | Y124: 110750 | Z124: 85162.5 | AA124: 65387.5 | AC124: 34 | AD124: 186187.5 | AE124: 137037.5 | AF124: 102100 | AG124: 78512.5 | AH124: 60275
A125: 35 | B125: 279450 | C125: 205687.5 | D125: 153250 | E125: 117837.5 | F125: 90475 | H125: 35 | I125: 246200 | J125: 181212.5 | K125: 135012.5 | L125: 103812.5 | M125: 79700 | O125: 35 | P125: 218875 | Q125: 161100 | R125: 120025 | S125: 92300 | T125: 70862.5 | V125: 35 | W125: 203012.5 | X125: 149425 | Y125: 111325 | Z125: 85612.5 | AA125: 65725 | AC125: 35 | AD125: 187150 | AE125: 137750 | AF125: 102625 | AG125: 78912.5 | AH125: 60587.5
A126: 36 | B126: 285850 | C126: 210387.5 | D126: 156750 | E126: 120537.5 | F126: 92537.5 | H126: 36 | I126: 251837.5 | J126: 185362.5 | K126: 138100 | L126: 106200 | M126: 81525 | O126: 36 | P126: 223887.5 | Q126: 164787.5 | R126: 122775 | S126: 94412.5 | T126: 72475 | V126: 36 | W126: 207662.5 | X126: 152850 | Y126: 113875 | Z126: 87562.5 | AA126: 67225 | AC126: 36 | AD126: 191437.5 | AE126: 140900 | AF126: 104975 | AG126: 80725 | AH126: 61975
A127: 37 | B127: 292387.5 | C127: 215212.5 | D127: 160337.5 | E127: 123300 | F127: 94662.5 | H127: 37 | I127: 257600 | J127: 189600 | K127: 141262.5 | L127: 108625 | M127: 83400 | O127: 37 | P127: 229012.5 | Q127: 168562.5 | R127: 125587.5 | S127: 96562.5 | T127: 74137.5 | V127: 37 | W127: 212412.5 | X127: 156350 | Y127: 116487.5 | Z127: 89575 | AA127: 68762.5 | AC127: 37 | AD127: 195812.5 | AE127: 144125 | AF127: 107375 | AG127: 82575 | AH127: 63387.5
A128: 38 | B128: 299075 | C128: 220137.5 | D128: 164012.5 | E128: 126112.5 | F128: 96825 | H128: 38 | I128: 263500 | J128: 193937.5 | K128: 144487.5 | L128: 111112.5 | M128: 85300 | O128: 38 | P128: 234250 | Q128: 172412.5 | R128: 128450 | S128: 98775 | T128: 75837.5 | V128: 38 | W128: 217275 | X128: 159925 | Y128: 119150 | Z128: 91625 | AA128: 70337.5 | AC128: 38 | AD128: 200287.5 | AE128: 147425 | AF128: 109837.5 | AG128: 84462.5 | AH128: 64837.5
A129: 39 | B129: 305925 | C129: 225175 | D129: 167762.5 | E129: 129000 | F129: 99037.5 | H129: 39 | I129: 269525 | J129: 198375 | K129: 147800 | L129: 113650 | M129: 87250 | O129: 39 | P129: 239612.5 | Q129: 176362.5 | R129: 131400 | S129: 101037.5 | T129: 77575 | V129: 39 | W129: 222250 | X129: 163587.5 | Y129: 121875 | Z129: 93712.5 | AA129: 71950 | AC129: 39 | AD129: 204875 | AE129: 150800 | AF129: 112350 | AG129: 86387.5 | AH129: 66325
A130: 40 | B130: 312925 | C130: 230325 | D130: 171600 | E130: 131950 | F130: 101300 | H130: 40 | I130: 275687.5 | J130: 202912.5 | K130: 151187.5 | L130: 116250 | M130: 89250 | O130: 40 | P130: 245087.5 | Q130: 180400 | R130: 134400 | S130: 103350 | T130: 79350 | V130: 40 | W130: 227337.5 | X130: 167325 | Y130: 124662.5 | Z130: 95862.5 | AA130: 73600 | AC130: 40 | AD130: 209562.5 | AE130: 154250 | AF130: 114925 | AG130: 88375 | AH130: 67850
A131: 41 | B131: 320087.5 | C131: 235587.5 | D131: 175525 | E131: 134975 | F131: 103625 | H131: 41 | I131: 282000 | J131: 207562.5 | K131: 154637.5 | L131: 118912.5 | M131: 91300 | O131: 41 | P131: 250700 | Q131: 184525 | R131: 137475 | S131: 105712.5 | T131: 81162.5 | V131: 41 | W131: 232537.5 | X131: 171150 | Y131: 127512.5 | Z131: 98050 | AA131: 75287.5 | AC131: 41 | AD131: 214362.5 | AE131: 157775 | AF131: 117550 | AG131: 90387.5 | AH131: 69400
A132: 42 | B132: 327412.5 | C132: 240987.5 | D132: 179537.5 | E132: 138062.5 | F132: 106000 | H132: 42 | I132: 288450 | J132: 212312.5 | K132: 158175 | L132: 121637.5 | M132: 93387.5 | O132: 42 | P132: 256437.5 | Q132: 188750 | R132: 140625 | S132: 108137.5 | T132: 83025 | V132: 42 | W132: 237862.5 | X132: 175075 | Y132: 130437.5 | Z132: 100300 | AA132: 77000 | AC132: 42 | AD132: 219262.5 | AE132: 161387.5 | AF132: 120237.5 | AG132: 92462.5 | AH132: 70987.5
A133: 43 | B133: 334900 | C133: 246500 | D133: 183650 | E133: 141225 | F133: 108425 | H133: 43 | I133: 295050 | J133: 217162.5 | K133: 161800 | L133: 124412.5 | M133: 95525 | O133: 43 | P133: 262300 | Q133: 193062.5 | R133: 143837.5 | S133: 110612.5 | T133: 84912.5 | V133: 43 | W133: 243300 | X133: 179075 | Y133: 133425 | Z133: 102600 | AA133: 78762.5 | AC133: 43 | AD133: 224287.5 | AE133: 165075 | AF133: 122987.5 | AG133: 94575 | AH133: 72612.5
